Workbook

Sheet Start
B1: CAT Scan | I1: =$B1 -> CAT Scan | N1: =$B1 -> CAT Scan
B3: Workbook Overview | I3: Workbook Instructions | K3: Instructions Guidance | N3: Spreadsheet-QA Overview | P3: Spreadsheet-QA Guidance | R3: Additional Guidance
B5: Overview | E5: Color Coding | I5: 0. Location Familiarization | N5: Management
B7: This workbook (file) has been developed to analyze the crash history of a roadway segment using Safety Performance Functions (SPFs) for network screening, and statistics and probability to determine overrepresentation. Users should verify through Quality Assurance that the answers they obtain are representative of the target area. Users should familiarize themselves with this spreadsheet before exploring the other spreadsheets. | E7: The spreadsheets include several specific color options to help users identify cells where input data is required or may be needed. In some cases, the shaded cells require the user to input specific numbers. In other cases the input is restricted to a select set of options restricted to a pull-down list. The respective color coding is as follows: | I7: Go to the Surface Type Log and review your location. | K7: For an intersection, ensure that the limits include all turn-lanes. Where turn-lanes are absent use Recommended Crash Query Radius in columns E:G. | N7: The Management section has several functions to facilitate/manage the crash data analysis.
I8: Go to the Lat/Long Converter. Enter each end-point with each year of analysis. If the end-points are different, use the most extreme values that would query the most crashes.
N9: Status 0 evaluates status 2, 3, 4; 5.
N10: Authenticity notes whether the row is a valid crash or not. Authenticity evaluated the row for data to distinguish from other rows, especially useful when copying data from the default HTML. | P10: If through investigating it is determined that the crash was not well located and does not belong in the analysis, over-write the value with a 'B'.
I12: 1. Download Crash Data
N13: Status 1 notes whether the row has been completed and the next set of crash records (rows) to evaluate.
B14: The spreadsheets available in this workbook (file) each has a role to play in the analysis. Many spreadsheets are hidden, to help optimize the user's experience. The current contents of this spreadsheet include the following: | E14: Color Used | F14: Input Meaning | I14: Go to Crash1. In section 2, enter a date range where the road operates in a similar manner. In section 3, enter a location range where the road operates in a similar manner. In section 8, select the option for returning output as "CSV for CAT Scan" as demonstrated in the image below. | K14: This step requires access to Crash1. If you need access see Assistance for contact information.
N15: Evaluate notes whether to evaluate the row and if so, when.
E16: entry | F16: Required input | K16: Date Range: (1) Should be no less than three years. (2) If performing Quality Assurance use any year, otherwise do not use years where the Crash Data has not been closed. | N16: Priority provide an evaluation priority based on the Evaluation Score. A value of 'high' is assigned for an Evaluation Score greater than the 70th percentile. A value of 'low' is assigned for an Evaluation Score lower than the 20th percentile. All others are assigned a value of 'med'.
B17: Spreadsheet | C17: Contents
E18: entry | F18: Required input by pull-down menu
B19: Start | C19: Current spreadsheet providing an overview of this workbook, summary of this workbook's spreadsheets, description of color coding included in the workbook, instructions, and other useful information. | K19: Location: (1) Preferable to use at least 150-foot circle (2) Include all turn-lanes (3) Do not include other intersections or their functional area. May need to split difference between two close intersections. (4) Too small an area may not capture all intended crashes, while too large an area will require excessive quality assurance.
E20: entry | F20: Optional Input | N20: Status 2 notes whether the crash has been reviewed, a solution proposed, and the location verified.
E22: entry | F22: Required input with suggested value already present | N22: Status 3 notes whether any potential errors have been determined by any of the error detection functions.
B24: Data | C24: Place to put all the raw data from Crash1. May have example data that would need to be removed. Deleting rows or columns from this sheet may break the CAT-Scan. | E24: entry | F24: Required input by pull-down menu, with suggested value already present | I24: If there is insufficient crash data, then increase the geographic span or the time span and rerun the query. | N24: Status 4 notes whether the crash has been reported in external documents to report errors.
K25: Insufficient data <5 crashes/year/mile
N26: Status 5 notes whether the crash has been documented for research.
I27: 2. Import Crash Data
E28: Websites | N28: Errors Detection | P28: All correction should be made in the User Entry section. | R28: There are situations in which phantom vehicles are coded as traveling vehicles on the crash report. A phantom vehicle is either a no-contact motorized vehicle or motorized vehicle not in transport (parked). These can be tricky situations that will require some thought to code correctly.
B29: Query | C29: Place to document your crash query. Include this with Output. | I29: Copy the data. Go to the spreadsheet-Data within this workbook, select cell A1, and paste the data. Delete any of the example data that may not have been overwritten.
E30: Name | F30: Link and Usefulness | N30: The Errors Detection section has several error detecting algorithms (EDA). On the infrequent occasion where the crash was coded correctly, but an error persists, you can over-write*. Review those that state 'resolve' or 'issue#', where # is a number.
E31: Crash1 | F31: Internal to DOTD <http://engrapps/crash1/> and external to DOTD <http://www8.dotd.la.gov/crash1>. Main query tool for crashes on state maintained roads.
B32: CM | C32: Crash History Dashboard. Initially and after changes are make in the QA section will have to follow these refresh procedures: Select any chart. Once the conditional tab "Analyze" becomes available, select it. In the middle of the ribbon will be the choice "Refresh", select it. | I32: This workbook was intended to handle the number of crash records in cell K32. The number of additional rows is noted in cell K34. If the value in cell K34 is 0, then skip the next two steps (boxes). If the value in cell K32 is positive, follow the instructions in the next two steps (boxes). If the value in cell K32 is negative, an error has occurred. Undo until the error has been resolved. | K32: =COUNTA(QA!D7:D339) -> 333 | L32: Number of records this workbook was designed to accommodate. | P32: * Over-writes are accomplished by Copy&Pasting values on row 346 onto the row in need of an over-write
K34: =MAX(QA!A353-QA!A348,0) -> 0 | L34: Number of additional rows needed to accommodate all of the data on the spreadsheet-Data. | N34: "Collision Manner & Crash Type Agree?" compare the Crash Type to the Collision Manner. Issue5 notes odd single-vehicle combination. Issue7 notes Collision Manners of "other" where the driver is not impaired and column HC does not have the values listed in rows 341:347. Issue9 notes Crash Type of "Not fixed". | O34: 1 | P34: Update either the Collision Manner or Crash Type. Use the Crash Types that matches first from top to bottom. Issues 5, 7; 9 flag high error types, but may be correct and need over-writing*. Issue5 may mean that a vehicle direction is missing. | R34: If you have not already unhide the sheet "print" and have that readily available, then do so. The most common error is LEO coding Collision Manner as "Z", for single vehicle (A) crashes (3X larger than the next error). Parked vehicles are not traveling vehicles and should be treated as objects. The 2nd & 3rd common error is LEO coding Collision Manner as "D" and "J" respectably, for single vehicle (A) crashes. The 4th most common error is LEO coding Collision Manner as "D", for left against flow (F) crashes.
E35: Crash2 | F35: Internal to DOTD <http://engrapps/crash2/>. Single crash query tool, most useful for the quality assurance process.
B38: Inputs | C38: Place to make global inputs for this workbook. | E38: Crash3 | F38: Internal to DOTD <http://engrapps/crash3/> and external to DOTD <http://www8.dotd.la.gov/crash3>. Main query tool for crashes not on state maintained roads. | I38: Go to the spreadsheet-QA. Select the row in cell K42 and while holding the [Shift] key either press the [PageDown] or [˅] (down-arrow) key until the number of rows in cell K34 has been reached. Free your hands and visually ensure the area is highlighted, if not repeat the previous sentence. Right-click and select the option "Insert".
N39: "Collision Manner & Crash Type Agree?" compare the Crash Type to the Collision Manner. Issue1 notes a missing/blank Collision Manner. Issue2 notes a missing/blank Crash Type. Issue3 notes odd combination. | O39: 2 | P39: Update either the Collision Manner or Crash Type. Use the Crash Types that matches first from top to bottom. The u-turning vehicle's Prior Movement should be "Stopped, Preparing To Or Making U-Turn".
B40: QA | C40: Place to manage the review of crash reports, a vital part of the Quality Assurance process.
C42: Management: Functions that facilitate/manage the crash data review. | E42: Crash Report Manual | F42: Explains the data elements and attributes (for those with a list selections) <http://lacrash.lsu.edu/interactivemanual/>. | K42: =MAX(QA!GP7:GP340) -> 339 | L42: The last row designed for crash records.
I43: Go to the row in cell K43 and select it. Right-click and select the option "Copy". Go to the next row below and select it. While holding the [Shift] key either press the [PageDown] or [˅] (down-arrow) key until the blank (previously inserted) rows are all highlighted ending with the row in cell K42. Free your hands and visually ensure the area is highlighted, if not repeat the previous sentence. Right-click and select the option "Paste". | K43: =K42-1 -> 338 | L43: The next to last row designed for crash records. | N43: "Collision Manner & Angle Agree?" compares the travel directions of the first two vehicles that collided to the Collision Manner and compares the number of travel directions to the Collision Manner. This function has a high accuracy rate when excluding the few crashes where either a U-turn or turning rear-end occurs. | O43: 3 | P43: Update either the Collision Manner or Vehicle's Travel Direction. The Travel Direction is the direction of the vehicle prior to engaging in an uncontrolled event or before a turn. Use the first letter of the cardinal direction. Select the last Travel Direction choice when the vehicle was not in transport (parked). Ignore the first vehicle if it didn't collided and use the next two vehicles.
C44: Errors Detection: Functions that detect possible errors.
C45: Analysis: Functions that provide further analysis. | E45: Coordinate Converter | F45: Internal to DOTD <http://engrapps/latlong/latlong.aspx>. Converts latitude & longitude, control-section & log-mile, or route & mile-point to one of these another systems.
C46: User Entry: Space to upgrade the data, provide notes on the crash, provide potential solutions, and provide more specific location information. Changes in this section will be reflected in the Output.
E49: Surface Type Log | F49: Internal to DOTD <http://engrapps/hwyinfo/tahiwstl/>. Provides AADT and other useful data for the road queried. | N49: "Intersection & Intersection ID Agree?" compares the Intersection notation to the Intersection ID. This function has a high accuracy rate with no known flaws. Intersections are either: (1) the overlapping of two roads or (2) where a traffic signal directs movements. | O49: 4 | P49: Update either the Intersection or Intersection ID and possibly the location (columns EQ, EU; EV). Use "0" to denote the crash did not occur at an intersection. | R49: LEO don't directly report intersection related, so Intersection misses almost 1/4th of Intersection crashes. IntersectionID does not capture signalized intersections at driveways.
C50: Error Notation: Space to consolidate errors for reporting. | I50: 3. Initial Documentation
C51: Research: Space to consolidate crash data for research.
C52: Calculations: Functions that perform the work for other parts of this spreadsheet. | E52: CMF Clearinghouse | F52: Highway Safety Manual's CMF Clearinghouse <http://www.cmfclearinghouse.org/>. Provides Crash Modification Factors (CFM) to determine the Safety Economical Appraisal. | I52: While still in the spreadsheet-QA, use the filter in cell D6 to select all values of "Z". Delete data in rows with values of "Z" in column D. | K52: Deleting the row may cause parts of the CAT-Scan to malfunction.
N53: "Intersection & Location Type Agree?" compare the Intersection code to the Location Type. | O53: 5 | P53: Update either Location Type or Intersection. Use the Location Types that matches first from top to bottom.
I54: Go to the spreadsheet-Inputs. Input or review all values in cells C5:C88. For AADT, fill-in the various values within cells I37:O51 and/or I54:O68 as instructed on the spreadsheet-Inputs.
B55: Output | C55: Programed spreadsheet for the crash data analysis that uses lookup tables, programmed macros, excel slicers, and other functions to perform network screening and over-representation calculations. | N55: "Collision Manner & Access Agree?" compare the access coding to the Collision Manner. Issue4 notes a Collision Manner highly associated with access, but no access noted. Issue6 notes the opposite of Issue 4. Issue8 notes a Collision Manner highly associated with control-of-access facilities, but not on such a facility. | O55: 6 | P55: Update either Collision Manner or Location Type. Use the Location Types that matches first from top to bottom. Access is defined as a Location Type of "A" (intersection), "B" (median cross-over), "C" (driveway), or "J" (turn-lane).
F56: *a check box on both Crash1 and Crash3 allows the query of crashes regardless of ownership
I57: Save the file, replacing "[year] Intersection" with a meaningful location name and adjust the date to today following the year-month-day scheme. | K57: Suggested file name:
K58: ="CAT Scan - "&Inputs!C19&" - "&YEAR(Inputs!C9)&IF(MONTH(Inputs!C9)>9,MONTH(Inputs!C9),"0"&MONTH(Inputs!C9))&IF(DAY(Inputs!C9)>9,DAY(Inputs!C9),"0"&DAY(Inputs!C9)) -> CAT Scan - 28LA325@ERA - 20221012
C59: The "Dashboards" tab has 3 main sections: | I59: Go to spreadsheet-Query and delete the example and copy your query map. The query map can be found from by selecting the option "map all points - dotd coords" from the "Regular HTML" Output option in Crash1/3. | K59: Likely the screenshot will need to be adjusted to fit the space so as to print on one sheet.
C60: 1. Network Screening | E60: Human Severity | N60: "Correct Same as Original" compares the user-entered values to the original values and notes if these are the same for: Parish, Collision Manner, Crash Type, Intersection, Location Type, and Travel Direction. This function has a high accuracy rate. | O60: 7 | P60: Check the Error Notation columns for a value of "why" and delete the value in the User Entry area with the matching column heading.
C61: 2. Pattern Recognition Analysis
C62: 3. Cumulative Time of Day | E62: DOTD Crash Data Code
F63: National Safety Council | G63: Degree | I63: 4. Outputs - Safety Comparison
B64: BCA | C64: Benefit-Cost Analysis spreadsheet will calculate a simple alternative. | E64: A | F64: K - Killed | G64: Highest | N64: "Might be Night" compares the Crash Hour to the Lighting code. While very useful this function has the second lowest accuracy rate. | O64: 8 | P64: Update either Light Condition or Hour of Day. Dawn is between 75 min before sunrise and 75 min after sunrise. Dusk is similar.
E65: B | F65: A - Suspected Serious injury | I65: Go to the spreadsheet-Output. In this section, the tool will display a maroon (or orange) dot representing where the analyzed site exists. The solid blue (or green) line represents the safety performance function for that facility type, while the orange (or maroon) dashed line represents the 80th percentile line. This allows one to compare the analyzed site to the rest of the state system and get a feel for its overall performance. The graph on the left compares all crashes, while the graph on the right compares Severity A, B, C; D crashes.
E66: C | F66: B - Suspected Minor injury | K66: LOSS = Level of Service of Safety ~ Safety Level | N66: "Collision Manner & Move Prior Agree?" notes odd combinations of the two data elements. | O66: 9 | P66: Update either the Collision Manner or Vehicle's Prior Movement. Use the Prior Movement that matches first from top to bottom.
B67: CM | C67: Counter-Measures suggestions | E67: D | F67: C - Possible injury | G67: Lowest | K67: LOSS 4 | L67: : High potential for safety improvements
E68: E | F68: O - No injury | G68: None | K68: LOSS 3 | L68: : Moderate potential for safety improvements | N68: "Road Depart & Crash Type Agree?" compares the Collision Manner with Road Departure. | O68: 10 | P68: If no vehicle departed the road, then mark Road Departure as 0, otherwise over-write* the EDA. | R68: Road Departure tends to overestimate for single vehicles crashes.
B69: Print | C69: A print ready sheet to help understanding the Collision Manners and Crash Types. If you don't have this readily available, print it for easy reference. If you are not using the research section of the spreadsheet-QA, then you will not need the new (yellow) Collision Manners, which Law Enforcement does not use - these should be coded as "Z". | K69: LOSS 2 | L69: : Low potential for safety improvements
K70: LOSS 1 | L70: : Negligible potential for safety improvements
E71: Development | N71: Other Analysis
E73: Louisiana Department of Transportation and Development (La DOTD) – Highway Safety Section (82) | I73: It is important to review the results in cells D26 and D57. If there is not a value of "LOSS 3" or "LOSS 4", there is a low likelihood that safety is a significant enough issue to warrant further analysis. | N73: Over Represent is the degree of over-representation.
N74: Location Issues notes whether the crash occurred within locations that have an over-representation of crashes within that location-bucket.
N76: Evaluation Score scores the crash based on several aspects including: severity, errors, crash age, cause, harm count, and the degree of over-representation within the location-bucket.
B77: Tables | C77: Lookup tables used throughout the Workbook. | E77: Assistance | I77: 5. Outputs - Pattern Recognition Analysis
B79: Construction | C79: Includes charts and tables that are used for calculations and graphic representation of the network screening process. | E79: Mail: | F79: Bryan Costello, P.E. | I79: Go to the spreadsheet-Output. It is important to review the results in cells F73:F89 and M73:M88. If there is not at least one value of "Yes", then, there is a low likelihood that safety is a significant enough issue to warrant further analysis. | N79: # Harmed is the number of people harmed.
F80: Department of Transportation and Development | N80: Calculated Latitude and Comparison are functions used with the Geolinear Segregator, settings can be established in the 'inputs' sheet. They calculate and compare to the established line. | P80: A value of "True" means the crash occurred North of the line, while a value of "False" means the crash occurred South of the line.
F81: Highway Safety - Section 82
F82: 1201 Capitol Access Rd
B83: Percentages | C83: Includes the statewide percentages of every crash category based on a defined AADT group. These charts are used in the Pattern Recognition Analysis section. | F83: Baton Rouge, LA 70804 | N83: Corrected notes whether the crash data was upgraded.
I84: 6. Quality Assurance | N84: Solutions Count is the frequency of this crash's solution.
E85: Email: | F85: Bryan.Costello@LA.gov
I86: One should pursue this step-group only if there is a likelihood that safety can be improved by means of altering the infrastructure or operations, otherwise skip this step-group. This step occurs in the spreadsheet-QA. Check the cell AH1:AI2. If it notes "Done", then this step becomes optional. | K86: Quality Assurance procedures help to ensure that the aggregate statistics presented are "very likely true" instead of "maybe true". Each crash will be on its own row. | N86: User Entry
E87: Phone: | F87: 225-379-1958
N88: Review Notes is a place to put notes concerning the crash. There is a drop-down menu for some of the most typical notes and can be edited near the bottom.
E89: Physical: | F89: Baton Rouge | K89: The Manual on Uniform Traffic Control Devices (MUTCD) <http://mutcd.fhwa.dot.gov/> provides guidance on operations.
F90: 1201 Capitol Access Rd | I90: (first time) Go to cell E6 and select "Yes" values. (Subsequent times) Select the MS Excel tab "Data" and select "Reapply". (All times) Review each crash record and the corresponding report.
F91: 2nd floor | N91: Possible Solutions is a place to note a solution for the crash. There is a drop-down menu for some of the most typical solutions and can be edited below the column.
F92: 201M | K92: There are many references that provide guidance on infrastructure and most can be found at <https://www.fhwa.dot.gov/programadmin/standards.cfm>.
B93: Why Partial and not Complete crash analysis | I93: If the report is not available, select "can't view" in Review Notes (column DP), otherwise ensure Possible Solutions (column DQ) and Location Evaluation (column EG) have values to complete Status2 and fix any potential errors (noted in columns CI to DC) to complete Status3. If the crash occurred outside the area of interest, then select "not within study area" in Review Notes (column DP). Once Columns A, B; C are green, the crash record can be deemed "complete". Then go (loop) to the beginning of this step (box) until no more new crashes are available for review.
B94: Since, we know that the law of diminishing returns states that in all productive processes, adding more of one factor, while holding all others constant will at some point yield lower incremental per-unit returns. This holds true with examining crash reports for a project. The graph below illustrates this phenomenon and typical ranges. | N94: Corrected Values are columns to put improved (upgraded) values for the crash record. Some of these columns have a drop-down menu. Some have typical values near the bottom of the column. | P94: For Crash Type and Location Type, use the most appropriate value that matches first from top to bottom.
E95: Recommended Crash Query Radius | K95: Access to Crash2 will expedite this step since it allow one to enter the crash number and gain quick access to both the report's image and the crash's reported location on a map.
E96: Based upon MUTCD's Table 2C-4 <https://mutcd.fhwa.dot.gov/htm/2009/part2/part2c.htm>
N97: Location Evaluation is a place for you to evaluate the location. If the location appears good enough, then there are drop-down options. For an automatic evaluation, {Copy&Paste} the cell on row 345 where you want to evaluate the improved location based on your entry in column ER.
K98: Within this spreadsheet, review cells N30:P58 to learn how to resolve the potential errors from the Error Detection Algorithms (EDA). | R98: The location is 72% accurate at the 0.05 mile threshold.
E99: Speed | F99: Radius
E100: 20 mph | F100: 150 feet
E101: 25 mph | F101: 150 feet | I101: After completing all crash records for review, go (loop) back to step-group 5 (Outputs - PRA) and follow the directions until no more new crashes are available for review. | K101: It is envisioned that an operator of this tool only review crashes germane to their study and ensure high quality by fixing crash issues so that proper counter-measures are selected. | N101: Feature is a place to put reference features, like business driveways or road features, like curves and bridges.
E102: 30 mph | F102: 150 feet
E103: 35 mph | F103: 150 feet | N103: Updated Coordinates is a place to put more accurate coordinates.
E104: 40 mph | F104: 150 feet
E105: 45 mph | F105: 175 feet | I105: 7. Printing | N105: Error Notation
E106: 50 mph | F106: 250 feet
E107: 55 mph | F107: 325 feet | I107: If this site is part of a project (multiple sites), then follow the project directions starting in cell I128. Otherwise continue without those additional direction. | N107: Error Notation is where errors are noted. Near the bottom are some common errors to make the {Copy&Paste} process easy.
E108: 60 mph | F108: 400 feet
E109: 65 mph | F109: 475 feet | N109: Errors notes whether an error was marked.
E110: 70 mph | F110: 550 feet | I110: The spreadsheet-Output is the only sheet intended for printing and distributing in reports. The default is set to only print the first two areas. The third area is most useful for Traffic Management Plans, where time may be a factor. | N110: Errors Reported checks whether the errors have made it to a separate document for consolidation purposes.
E113: Version | N113: Calculations
E115: 2022-10-12 | I115: 8. Reporting Errors | N115: The first group of Calculations has the row notation used in many calculations, the Night evaluation, and several time calculations.
I117: Open a new MS Excel workbook and go to the spreadsheet-QA. | K117: Save the file including the location and "Crash Data Errors" in the name. See Assistance for contact information to send this file. | N117: The second group of Calculations is for the Evaluate (management tool) and for the Evaluation Score calculation.
I118: Go to cell FP6 filter for the value "Add". Copy the rows with crash data and columns K:AO. Past this into the new workbook. Copy the rows with crash data and columns FB:FM. Paste this into the new workbook to the right of the previous paste (column AG).
N119: The third and fourth groups of Calculations are primarily for converting codes to attributes.
K120: ="Alternatively, just e-mail this document to "&F85 -> Alternatively, just e-mail this document to Bryan.Costello@LA.gov
N122: Research
N124: The Research section compiles alternative crash data values. Some specialized training would be needed to effectively use the section.
N127: Data
N129: This section mimics the spreadsheet-Data, but replaces original values with upgraded values.
I131: Project Instructions | K131: Instructions Guidance
N132: Calculations
I133: A. Filter Crashes
N134: The ninth section is the very bottom section. There are many resources here, primarily values or functions that you can {Copy&Paste} to the rows above in the column the value exists. The Management, Error Detection, User Entry, and Error Notation sections have these values and functions below row 340.
I135: If there are multiple segment files, then move the crashes to the appropriate Workbook's spreadsheet-Data.
I137: If there are both segments and intersection being analyzed, then the following procedure should assist in finding those crashes to move. Within the spreadsheet-QA, go to cell IY6 and filter for "Move". | K137: Additional filters may be needed to refine the location.
I141: B. Move Crashes
I143: Once the data is filtered, the crashes can be moved. Select cell IZ6. Move the cursor down one row and right one column. While holding down the [Shift] key, select cell MT340 and move up one row and left one column. Copy the data. | K143: The process may have to be completed multiple times, depending on the complexity of the project and the errors fixed.
I147: Go to the appropriate file. Select the spreadsheet-Data. Go down to the first blank row, then go down one more row. Select the cell in column A. PasteSpecial the data values.
I150: C. Delete Duplicates
I152: Go to the spreadsheet-Data. Filter column-B for pink cells.
I153: Delete the extra data in the top row, while not deleting the row. Go to the Data ribbon and select "Reapply" (near the middle). Repeat this step until there are no more duplicate crashes to delete.

Sheet Data
A1: CRASH YEAR | B1: CRASH NUM | C1: CRASH DATE | D1: CRASH HOUR | E1: ACCESS CNTL CD | F1: ALCOHOL | G1: ALIGNMENT CD | H1: BYPASS | I1: CITY CD | J1: CONST MAINT ZN | K1: DAY OF WK | L1: DOTD PROP DAM | M1: HIT AND RUN | N1: HWY TYPE CD | O1: INTERSECTION | P1: INVEST AGENCY CD | Q1: LIGHTING CD | R1: LOC TYPE CD | S1: MAN COLL CD | T1: MILE POST | U1: NUM TOT INJ | V1: NUM TOT KIL | W1: NUM VEH | X1: PARISH CD | Y1: POP CD | Z1: PRI HWY NUM | AA1: ROAD COND CD | AB1: ROAD REL CD | AC1: ROAD TYPE CD | AD1: RR TRAIN INV | AE1: SEVERITY CD | AF1: SURF COND CD | AG1: SURF TYPE CD | AH1: TROOP | AI1: WEATHER CD | AJ1: DR COND CD1 | AK1: DR COND CD2 | AL1: EST SPEED1 | AM1: EST SPEED2 | AN1: F HARM EV CD1 | AO1: F HARM EV CD2 | AP1: M HARM EV CD1 | AQ1: M HARM EV CD2 | AR1: POSTED SPEED | AS1: PRIOR MOVEMENTS | AT1: PRIOR MOVEMENT CD1 | AU1: PRIOR MOVEMENT CD2 | AV1: TRAFF CNTL CD | AW1: TRAVEL DIRS | AX1: TRAVEL DIR1 | AY1: TRAVEL DIR2 | AZ1: VEH COND CD1 | BA1: VEH COND CD2 | BB1: VEH TYPE CD1 | BC1: VEH TYPE CD2 | BD1: VIOLATIONS CD1 | BE1: VIOLATIONS CD2 | BF1: PED COND | BG1: ACC CLASS | BH1: ADT | BI1: CSECT | BJ1: DOTD PARISH | BK1: FUN CLASS | BL1: HWY CLASS | BM1: LOGMI FROM | BN1: LOGMI TO | BO1: LOGMILE | BP1: MED WIDTH | BQ1: NUM LANES | BR1: PAVE TYPE | BS1: PAVE WIDTH | BT1: PEDESTRIAN | BU1: MILEPOST FROM | BV1: MILEPOST TO | BW1: ROUTE | BX1: SEC LENGTH | BY1: TYPE ACC | BZ1: DISTRICT | CA1: PRI CONTRIB FAC | CB1: SEC CONTRIB FAC | CC1: MOVEMENT REASON 1 | CD1: MOVEMENT REASON 2 | CE1: URBAN AREA | CF1: MILEPOINT | CG1: dotd latitude | CH1: dotd longitude | CI1: crash time | CJ1: spotted by | CK1: intersection id | CL1: LRS id | CM1: LRS log mile | CN1: Roadway Departure | CO1: lane departure | CP1: Location type | CQ1: Crash type | CR1: Contributing Factor | CS1: Vehicle Severity
A2: =YEAR(TODAY()-1.7*365)-2 -> 2019 | D2: 19 | E2: B | F2: 0 | G2: A | J2: 0 | K2: WE | L2: 0 | M2: 0 | N2: C | O2: 1 | P2: B | Q2: C | R2: B | S2: B | T2: 1.613 | U2: 0 | V2: 0 | W2: 2 | X2: 28 | Z2: 325 | AA2: A | AB2: A | AC2: B | AD2: 0 | AE2: E | AF2: B | AG2: A | AI2: C | AJ2: A | AK2: A | AL2: 0 | AM2: 0 | AN2: S | AO2: S | AP2: S | AQ2: S | AR2: 45 | AS2: BJ | AT2: B | AU2: J | AV2: R | AW2: NN | AX2: N | AY2: N | AZ2: K | BA2: K | BB2: A | BC2: A | BD2: S | BE2: U | BG2: 3 | BH2: 9900 | BI2: 789-12 | BJ2: 28 | BK2: 17 | BL2: 6 | BM2: 2.04 | BN2: 1.39 | BO2: 1.508 | BP2: 0 | BQ2: 4 | BR2: 70 | BS2: 42 | BT2: 0 | BU2: 2.17 | BV2: 1.49 | BW2: 325 | BX2: 0.65 | BY2: D | BZ2: 3 | CA2: A | CB2: B | CC2: L | CD2: P | CE2: 4 | CF2: 0.532 | CG2: 30.254958 | CH2: -92.144478 | CI2: 19:21:00 | CJ2: 3 | CK2: 28LA325@ERA | CL2: 789-12-1-010 | CM2: 1.508 | CN2: 0 | CO2: 0 | CP2: A | CQ2: S | CR2: O | CS2: D
A3: 2019 | D3: 10 | E3: A | F3: 0 | G3: A | J3: 0 | K3: SU | L3: 0 | M3: 0 | N3: C | O3: 1 | P3: B | Q3: A | R3: B | S3: D | T3: 1.613 | U3: 3 | V3: 0 | W3: 2 | X3: 28 | Z3: 325 | AA3: G | AB3: A | AC3: C | AD3: 0 | AE3: D | AF3: A | AG3: A | AH3: I | AI3: B | AJ3: A | AK3: A | AL3: 0 | AM3: 0 | AN3: S | AO3: S | AP3: S | AQ3: S | AR3: 45 | AS3: JB | AT3: J | AU3: B | AV3: R | AW3: NN | AX3: N | AY3: N | AZ3: K | BA3: K | BB3: V | BC3: A | BD3: H | BE3: U | BG3: 2 | BH3: 9900 | BI3: 789-12 | BJ3: 28 | BK3: 17 | BL3: 6 | BM3: 2.04 | BN3: 1.39 | BO3: 1.508 | BP3: 0 | BQ3: 4 | BR3: 70 | BS3: 42 | BT3: 0 | BU3: 2.17 | BV3: 1.49 | BW3: 325 | BX3: 0.65 | BY3: D | BZ3: 3 | CA3: A | CB3: B | CC3: L | CD3: P | CE3: 4 | CF3: 0.532 | CG3: 30.254958 | CH3: -92.144478 | CI3: 10:32:00 | CJ3: 3 | CK3: 28LA325@ERA | CL3: 789-12-1-010 | CM3: 1.508 | CN3: 0 | CO3: 0 | CP3: A | CQ3: K | CR3: R | CS3: C
A4: 2019 | D4: 13 | E4: A | F4: 0 | G4: A | J4: 0 | K4: MO | L4: 0 | M4: 0 | N4: C | O4: 1 | P4: B | Q4: A | R4: B | S4: H | T4: 1.613 | U4: 0 | V4: 0 | W4: 2 | X4: 28 | Z4: 325 | AA4: A | AB4: A | AC4: B | AD4: 0 | AE4: E | AF4: B | AG4: A | AI4: C | AJ4: A | AK4: A | AL4: 0 | AM4: 0 | AN4: S | AO4: S | AP4: S | AQ4: S | AR4: 40 | AS4: JB | AT4: J | AU4: B | AV4: C | AW4: EE | AX4: E | AY4: E | AZ4: K | BA4: K | BB4: A | BC4: B | BD4: C | BE4: U | BG4: 3 | BH4: 9900 | BI4: 789-12 | BJ4: 28 | BK4: 17 | BL4: 6 | BM4: 2.04 | BN4: 1.39 | BO4: 1.508 | BP4: 0 | BQ4: 4 | BR4: 70 | BS4: 42 | BT4: 0 | BU4: 2.17 | BV4: 1.49 | BW4: 325 | BX4: 0.65 | BY4: D | BZ4: 3 | CA4: A | CB4: B | CC4: L | CD4: P | CE4: 4 | CF4: 0.532 | CG4: 30.254958 | CH4: -92.144478 | CI4: 13:51:00 | CJ4: 3 | CK4: 28LA325@ERA | CL4: 789-12-1-010 | CM4: 1.508 | CN4: 0 | CO4: 0 | CP4: A | CQ4: S | CR4: O | CS4: D
A5: 2019 | D5: 17 | E5: A | F5: 0 | G5: A | J5: 1 | K5: FR | L5: 0 | M5: 1 | N5: C | O5: 1 | P5: B | Q5: A | R5: B | S5: Z | T5: 1.638 | U5: 0 | V5: 0 | W5: 2 | X5: 28 | Z5: 325 | AA5: A | AB5: A | AC5: B | AD5: 0 | AE5: E | AF5: A | AG5: A | AI5: A | AJ5: B | AK5: A | AL5: 0 | AM5: 0 | AN5: S | AO5: S | AP5: S | AQ5: S | AR5: 25 | AS5: DA | AT5: D | AU5: A | AV5: C | AW5: NS | AX5: N | AY5: S | AZ5: K | BA5: K | BB5: B | BC5: S | BD5: T | BE5: U | BG5: 3 | BH5: 9900 | BI5: 789-12 | BJ5: 28 | BK5: 17 | BL5: 6 | BM5: 2.04 | BN5: 1.39 | BO5: 1.531 | BP5: 0 | BQ5: 4 | BR5: 70 | BS5: 42 | BT5: 0 | BU5: 2.17 | BV5: 1.49 | BW5: 325 | BX5: 0.65 | BY5: D | BZ5: 3 | CA5: B | CB5: A | CC5: L | CD5: P | CE5: 4 | CF5: 0.509 | CG5: 30.255287 | CH5: -92.144443 | CI5: 17:04:00 | CJ5: 2 | CK5: 28LA325@ERA | CL5: 789-12-1-010 | CM5: 1.531 | CN5: 0 | CO5: 0 | CP5: A | CQ5: U | CR5: R | CS5: E
A6: 2019 | D6: 10 | E6: A | F6: 0 | G6: A | J6: 0 | K6: FR | L6: 0 | M6: 0 | N6: C | O6: 1 | P6: B | Q6: A | R6: B | S6: D | T6: 1.613 | U6: 0 | V6: 0 | W6: 2 | X6: 28 | Z6: 325 | AA6: G | AB6: A | AC6: C | AD6: 0 | AE6: E | AF6: A | AG6: A | AI6: A | AJ6: Z | AK6: Y | AL6: 0 | AM6: 0 | AN6: S | AO6: S | AP6: S | AQ6: S | AR6: 40 | AS6: BB | AT6: B | AU6: B | AV6: E | AW6: ES | AX6: E | AY6: S | AZ6: K | BA6: K | BB6: A | BC6: A | BD6: Y | BE6: Y | BG6: 3 | BH6: 9900 | BI6: 789-12 | BJ6: 28 | BK6: 17 | BL6: 6 | BM6: 2.04 | BN6: 1.39 | BO6: 1.508 | BP6: 0 | BQ6: 4 | BR6: 70 | BS6: 42 | BT6: 0 | BU6: 2.17 | BV6: 1.49 | BW6: 325 | BX6: 0.65 | BY6: D | BZ6: 3 | CA6: A | CB6: B | CC6: Y | CE6: 4 | CF6: 0.532 | CG6: 30.254958 | CH6: -92.144478 | CI6: 10:36:00 | CJ6: 3 | CK6: 28LA325@ERA | CL6: 789-12-1-010 | CM6: 1.508 | CN6: 0 | CO6: 0 | CP6: A | CQ6: S | CR6: O | CS6: D
A7: 2019 | D7: 11 | E7: Z | F7: 0 | G7: A | J7: 1 | K7: MO | L7: 0 | M7: 0 | N7: C | O7: 1 | P7: B | Q7: A | R7: C | S7: D | T7: 1.613 | U7: 0 | V7: 0 | W7: 2 | X7: 28 | Z7: 325 | AA7: G | AB7: A | AC7: Z | AD7: 0 | AE7: E | AF7: A | AG7: A | AI7: A | AJ7: A | AK7: A | AL7: 0 | AM7: 0 | AN7: S | AO7: S | AP7: S | AQ7: S | AR7: 40 | AS7: BB | AT7: B | AU7: B | AV7: A | AW7: SE | AX7: S | AY7: E | AZ7: K | BA7: K | BB7: S | BC7: A | BD7: C | BE7: U | BG7: 3 | BH7: 9900 | BI7: 789-12 | BJ7: 28 | BK7: 17 | BL7: 6 | BM7: 2.04 | BN7: 1.39 | BO7: 1.508 | BP7: 0 | BQ7: 4 | BR7: 70 | BS7: 42 | BT7: 0 | BU7: 2.17 | BV7: 1.49 | BW7: 325 | BX7: 0.65 | BY7: D | BZ7: 3 | CA7: A | CB7: B | CC7: L | CD7: P | CE7: 4 | CF7: 0.532 | CG7: 30.254958 | CH7: -92.144478 | CI7: 11:04:00 | CJ7: 3 | CK7: 28LA325@ERA | CL7: 789-12-1-010 | CM7: 1.508 | CN7: 0 | CO7: 0 | CP7: B | CQ7: U | CR7: O | CS7: D
A8: 2019 | D8: 20 | E8: B | F8: 0 | G8: A | J8: 1 | K8: MO | L8: 0 | M8: 0 | N8: C | O8: 1 | P8: B | Q8: C | R8: C | S8: D | T8: 1.613 | U8: 0 | V8: 0 | W8: 2 | X8: 28 | Z8: 325 | AA8: G | AB8: A | AC8: C | AD8: 0 | AE8: E | AF8: A | AG8: A | AI8: A | AJ8: Y | AK8: Y | AL8: 0 | AM8: 0 | AN8: S | AO8: S | AP8: S | AQ8: S | AR8: 25 | AS8: BB | AT8: B | AU8: B | AV8: H | AW8: EN | AX8: E | AY8: N | AZ8: K | BA8: K | BB8: B | BC8: A | BD8: Y | BE8: Y | BG8: 3 | BH8: 9900 | BI8: 789-12 | BJ8: 28 | BK8: 17 | BL8: 6 | BM8: 2.04 | BN8: 1.39 | BO8: 1.508 | BP8: 0 | BQ8: 4 | BR8: 70 | BS8: 42 | BT8: 0 | BU8: 2.17 | BV8: 1.49 | BW8: 325 | BX8: 0.65 | BY8: D | BZ8: 3 | CA8: A | CB8: B | CC8: Y | CD8: Y | CE8: 4 | CF8: 0.532 | CG8: 30.254958 | CH8: -92.144478 | CI8: 20:44:00 | CJ8: 3 | CK8: 28LA325@ERA | CL8: 789-12-1-010 | CM8: 1.508 | CN8: 0 | CO8: 0 | CP8: A | CQ8: U | CR8: R | CS8: C
A9: 2019 | D9: 20 | E9: A | F9: 0 | G9: A | J9: 1 | K9: WE | L9: 0 | M9: 0 | N9: C | O9: 0 | P9: B | Q9: C | R9: C | S9: B | T9: 1.618 | U9: 0 | V9: 0 | W9: 2 | X9: 28 | Z9: 325 | AA9: G | AB9: A | AC9: C | AD9: 0 | AE9: E | AF9: A | AG9: A | AI9: B | AJ9: B | AK9: A | AL9: 0 | AM9: 0 | AN9: S | AO9: S | AP9: S | AQ9: S | AR9: 45 | AS9: BA | AT9: B | AU9: A | AV9: C | AW9: SS | AX9: S | AY9: S | AZ9: K | BA9: K | BB9: A | BC9: B | BD9: S | BE9: U | BG9: 3 | BH9: 9900 | BI9: 789-12 | BJ9: 28 | BK9: 17 | BL9: 6 | BM9: 2.04 | BN9: 1.39 | BO9: 1.512 | BP9: 0 | BQ9: 4 | BR9: 70 | BS9: 42 | BT9: 0 | BU9: 2.17 | BV9: 1.49 | BW9: 325 | BX9: 0.65 | BY9: D | BZ9: 3 | CA9: A | CB9: B | CC9: L | CD9: P | CE9: 4 | CF9: 0.528 | CG9: 30.255016 | CH9: -92.144472 | CI9: 20:25:00 | CJ9: 3 | CK9: 28LA325@ERA | CL9: 789-12-1-010 | CM9: 1.512 | CN9: 0 | CO9: 0 | CP9: A | CQ9: S | CR9: R | CS9: D
A10: 2019 | D10: 17 | E10: A | F10: 0 | G10: A | J10: 1 | K10: MO | L10: 0 | M10: 0 | N10: C | O10: 1 | P10: B | Q10: A | R10: B | S10: D | T10: 1.613 | U10: 0 | V10: 0 | W10: 2 | X10: 28 | Z10: 325 | AA10: A | AB10: A | AC10: B | AD10: 0 | AE10: E | AF10: A | AG10: A | AI10: A | AJ10: Y | AK10: Y | AL10: 0 | AM10: 0 | AN10: S | AO10: S | AP10: S | AQ10: S | AR10: 45 | AS10: JB | AT10: J | AU10: B | AV10: R | AW10: SS | AX10: S | AY10: S | AZ10: K | BA10: K | BB10: B | BC10: A | BD10: H | BE10: U | BG10: 3 | BH10: 9900 | BI10: 789-12 | BJ10: 28 | BK10: 17 | BL10: 6 | BM10: 2.04 | BN10: 1.39 | BO10: 1.508 | BP10: 0 | BQ10: 4 | BR10: 70 | BS10: 42 | BT10: 0 | BU10: 2.17 | BV10: 1.49 | BW10: 325 | BX10: 0.65 | BY10: D | BZ10: 3 | CA10: A | CB10: B | CC10: L | CD10: P | CE10: 4 | CF10: 0.532 | CG10: 30.254958 | CH10: -92.144478 | CI10: 17:21:00 | CJ10: 3 | CK10: 28LA325@ERA | CL10: 789-12-1-010 | CM10: 1.508 | CN10: 0 | CO10: 0 | CP10: A | CQ10: G | CR10: R | CS10: D
A11: 2019 | D11: 16 | E11: A | F11: 0 | G11: A | J11: 1 | K11: MO | L11: 0 | M11: 0 | N11: E | O11: 1 | P11: B | Q11: A | R11: C | S11: D | T11: 0 | U11: 0 | V11: 0 | W11: 2 | X11: 28 | Z11: 0 | AA11: G | AB11: A | AC11: B | AD11: 0 | AE11: E | AF11: A | AG11: A | AI11: A | AJ11: B | AK11: A | AL11: 0 | AM11: 0 | AN11: S | AO11: S | AP11: S | AQ11: S | AR11: 45 | AS11: BB | AT11: B | AU11: B | AV11: A | AW11: SW | AX11: S | AY11: W | AZ11: K | BA11: K | BB11: S | BC11: C | BD11: C | BE11: U | BG11: 3 | BH11: 0 | BJ11: 28 | BM11: 0 | BN11: 0 | BO11: 0 | BP11: 0 | BQ11: 0 | BS11: 0 | BT11: 0 | BU11: 0 | BV11: 0 | BW11: 0 | BX11: 0 | BY11: D | BZ11: 3 | CA11: A | CB11: B | CC11: L | CD11: P | CF11: 0 | CG11: 30.254731 | CH11: -92.144883 | CI11: 16:43:00 | CJ11: 7 | CL11: 5.59014728e+16 | CM11: 0.992 | CN11: 0 | CO11: 0 | CP11: A | CQ11: U | CR11: R | CS11: D
A12: 2019 | D12: 23 | E12: A | F12: 0 | G12: A | J12: 1 | K12: FR | L12: 0 | M12: 1 | N12: C | O12: 1 | P12: B | Q12: D | R12: C | S12: B | T12: 1.613 | U12: 1 | V12: 0 | W12: 2 | X12: 28 | Z12: 325 | AA12: A | AB12: A | AC12: C | AD12: 0 | AE12: D | AF12: A | AG12: A | AI12: B | AJ12: Y | AK12: A | AL12: 0 | AM12: 0 | AN12: S | AO12: S | AP12: S | AQ12: S | AR12: 45 | AS12: BA | AT12: B | AU12: A | AV12: R | AW12: SS | AX12: S | AY12: S | AZ12: Y | BA12: K | BB12: A | BC12: A | BD12: S | BE12: U | BG12: 2 | BH12: 9900 | BI12: 789-12 | BJ12: 28 | BK12: 17 | BL12: 6 | BM12: 2.04 | BN12: 1.39 | BO12: 1.508 | BP12: 0 | BQ12: 4 | BR12: 70 | BS12: 42 | BT12: 0 | BU12: 2.17 | BV12: 1.49 | BW12: 325 | BX12: 0.65 | BY12: D | BZ12: 3 | CA12: A | CB12: B | CC12: L | CD12: P | CE12: 4 | CF12: 0.532 | CG12: 30.254958 | CH12: -92.144478 | CI12: 23:27:00 | CJ12: 3 | CK12: 28LA325@ERA | CL12: 789-12-1-010 | CM12: 1.508 | CN12: 0 | CO12: 0 | CP12: A | CQ12: S | CR12: R | CS12: E
A13: 2019 | D13: 13 | E13: A | F13: 0 | G13: A | J13: 0 | K13: FR | L13: 0 | M13: 0 | N13: C | O13: 1 | P13: B | Q13: A | R13: B | S13: B | T13: 1.624 | U13: 2 | V13: 0 | W13: 2 | X13: 28 | Z13: 325 | AA13: A | AB13: A | AC13: B | AD13: 0 | AE13: D | AF13: A | AG13: A | AI13: A | AJ13: B | AK13: A | AL13: 0 | AM13: 0 | AN13: S | AO13: S | AP13: S | AQ13: S | AR13: 45 | AS13: BA | AT13: B | AU13: A | AV13: V | AW13: NN | AX13: N | AY13: N | AZ13: K | BA13: K | BB13: A | BC13: A | BD13: S | BE13: U | BG13: 2 | BH13: 9900 | BI13: 789-12 | BJ13: 28 | BK13: 17 | BL13: 6 | BM13: 2.04 | BN13: 1.39 | BO13: 1.518 | BP13: 0 | BQ13: 4 | BR13: 70 | BS13: 42 | BT13: 0 | BU13: 2.17 | BV13: 1.49 | BW13: 325 | BX13: 0.65 | BY13: D | BZ13: 3 | CA13: A | CB13: B | CC13: L | CD13: P | CE13: 4 | CF13: 0.522 | CG13: 30.255106 | CH13: -92.144464 | CI13: 13:49:00 | CJ13: 7 | CK13: 28LA325@ERA | CL13: 789-12-1-010 | CM13: 1.518 | CN13: 0 | CO13: 0 | CP13: A | CQ13: S | CR13: R | CS13: D
A14: 2019 | D14: 16 | E14: A | F14: 0 | G14: A | J14: 0 | K14: FR | L14: 0 | M14: 0 | N14: C | O14: 0 | P14: B | Q14: A | R14: C | S14: B | T14: 1.604 | U14: 1 | V14: 0 | W14: 2 | X14: 28 | Z14: 325 | AA14: A | AB14: A | AC14: C | AD14: 0 | AE14: D | AF14: A | AG14: A | AI14: B | AJ14: B | AK14: A | AL14: 0 | AM14: 0 | AN14: S | AO14: S | AP14: S | AQ14: S | AR14: 45 | AS14: BA | AT14: B | AU14: A | AV14: V | AW14: NN | AX14: N | AY14: N | AZ14: K | BA14: K | BB14: L | BC14: A | BD14: S | BE14: U | BG14: 2 | BH14: 9900 | BI14: 789-12 | BJ14: 28 | BK14: 17 | BL14: 6 | BM14: 2.04 | BN14: 1.39 | BO14: 1.499 | BP14: 0 | BQ14: 4 | BR14: 70 | BS14: 42 | BT14: 0 | BU14: 2.17 | BV14: 1.49 | BW14: 325 | BX14: 0.65 | BY14: D | BZ14: 3 | CA14: A | CB14: B | CC14: L | CD14: P | CE14: 4 | CF14: 0.541 | CG14: 30.254828 | CH14: -92.144492 | CI14: 16:05:00 | CJ14: 3 | CK14: 28LA325@ERA | CL14: 789-12-1-010 | CM14: 1.499 | CN14: 0 | CO14: 0 | CP14: Z | CQ14: Q | CR14: R | CS14: C
A15: 2019 | D15: 7 | E15: A | F15: 0 | G15: A | J15: 0 | K15: FR | L15: 0 | M15: 0 | N15: C | O15: 1 | P15: B | Q15: A | R15: B | S15: B | T15: 1.613 | U15: 0 | V15: 0 | W15: 2 | X15: 28 | Z15: 325 | AA15: A | AB15: A | AC15: B | AD15: 0 | AE15: E | AF15: A | AG15: B | AI15: A | AJ15: B | AK15: A | AL15: 0 | AM15: 0 | AN15: S | AO15: S | AP15: S | AQ15: S | AR15: 40 | AS15: BQ | AT15: B | AU15: Q | AV15: D | AW15: EE | AX15: E | AY15: E | AZ15: K | BA15: K | BB15: B | BC15: A | BD15: S | BE15: U | BG15: 3 | BH15: 9900 | BI15: 789-12 | BJ15: 28 | BK15: 17 | BL15: 6 | BM15: 2.04 | BN15: 1.39 | BO15: 1.508 | BP15: 0 | BQ15: 4 | BR15: 70 | BS15: 42 | BT15: 0 | BU15: 2.17 | BV15: 1.49 | BW15: 325 | BX15: 0.65 | BY15: D | BZ15: 3 | CA15: A | CB15: B | CC15: L | CD15: P | CE15: 4 | CF15: 0.532 | CG15: 30.254958 | CH15: -92.144478 | CI15: 07:09:00 | CJ15: 3 | CK15: 28LA325@ERA | CL15: 789-12-1-010 | CM15: 1.508 | CN15: 0 | CO15: 0 | CP15: A | CQ15: U | CR15: R | CS15: D
A16: 2019 | D16: 18 | E16: A | F16: 0 | G16: A | J16: 0 | K16: WE | L16: 0 | M16: 0 | N16: E | O16: 1 | P16: B | Q16: A | R16: C | S16: D | T16: 0 | U16: 0 | V16: 0 | W16: 2 | X16: 28 | Z16: 0 | AA16: A | AB16: A | AC16: B | AD16: 0 | AE16: E | AF16: A | AG16: A | AI16: A | AJ16: Y | AK16: Y | AL16: 0 | AM16: 0 | AN16: S | AO16: S | AP16: S | AQ16: S | AR16: 45 | AS16: BB | AT16: B | AU16: B | AV16: A | AW16: NE | AX16: N | AY16: E | AZ16: K | BA16: K | BB16: A | BC16: A | BD16: L | BE16: U | BG16: 3 | BH16: 0 | BJ16: 28 | BM16: 0 | BN16: 0 | BO16: 0 | BP16: 0 | BQ16: 0 | BS16: 42 | BT16: 0 | BU16: 0 | BV16: 0 | BW16: 0 | BX16: 0 | BY16: D | BZ16: 3 | CA16: A | CB16: B | CC16: L | CD16: P | CF16: 0 | CG16: 30.254937 | CH16: -92.144507 | CI16: 18:20:00 | CJ16: 7 | CK16: 28LA325@ERA | CL16: 5.59014728e+16 | CM16: 0.966 | CN16: 0 | CO16: 0 | CP16: A | CQ16: S | CR16: R | CS16: D
A17: =YEAR(TODAY()-1.7*365)-2 -> 2019 | D17: 15 | E17: A | F17: 0 | G17: A | J17: 0 | K17: FR | L17: 0 | M17: 0 | N17: C | O17: 1 | P17: B | Q17: A | R17: C | S17: B | T17: 1.595 | U17: 1 | V17: 0 | W17: 2 | X17: 28 | Z17: 325 | AA17: A | AB17: A | AC17: B | AD17: 0 | AE17: D | AF17: A | AG17: A | AI17: B | AJ17: B | AK17: A | AL17: 999 | AM17: 999 | AN17: S | AO17: S | AP17: S | AQ17: S | AR17: 35 | AS17: BA | AT17: B | AU17: A | AV17: A | AW17: NN | AX17: N | AY17: N | AZ17: K | BA17: K | BB17: A | BC17: A | BD17: S | BE17: U | BG17: 2 | BH17: 9900 | BI17: 789-12 | BJ17: 28 | BK17: 17 | BL17: 6 | BM17: 2.04 | BN17: 1.39 | BO17: 1.49 | BP17: 0 | BQ17: 4 | BR17: 70 | BS17: 42 | BT17: 0 | BU17: 2.17 | BV17: 1.49 | BW17: 325 | BX17: 0.65 | BY17: D | BZ17: 3 | CA17: A | CB17: B | CC17: L | CD17: P | CE17: 4 | CF17: 0.55 | CG17: 30.254701 | CH17: -92.144504 | CI17: 15:52:00 | CJ17: 7 | CK17: 28LA325@ERA | CL17: 789-12-1-010 | CM17: 1.49 | CN17: 0 | CO17: 0 | CP17: A | CQ17: F | CR17: R | CS17: D
A18: =YEAR(TODAY()-1.7*365)-1 -> 2020 | D18: 13 | E18: A | F18: 0 | G18: A | J18: 0 | K18: TH | L18: 0 | M18: 0 | N18: E | O18: 1 | P18: B | Q18: A | R18: B | S18: D | T18: 0 | U18: 1 | V18: 0 | W18: 2 | X18: 28 | Z18: 0 | AA18: A | AB18: A | AC18: B | AD18: 0 | AE18: D | AF18: A | AG18: A | AH18: I | AI18: A | AJ18: B | AK18: A | AL18: 0 | AM18: 0 | AN18: S | AO18: S | AP18: S | AQ18: S | AR18: 45 | AS18: BB | AT18: B | AU18: B | AV18: A | AW18: SW | AX18: S | AY18: W | AZ18: K | BA18: K | BB18: A | BC18: B | BD18: C | BE18: U | BG18: 2 | BH18: 0 | BJ18: 28 | BM18: 0 | BN18: 0 | BO18: 0 | BP18: 0 | BQ18: 0 | BS18: 0 | BT18: 0 | BU18: 0 | BV18: 0 | BW18: 0 | BX18: 0 | BY18: D | BZ18: 3 | CA18: A | CB18: B | CC18: L | CD18: P | CF18: 0 | CG18: 30.254937 | CH18: -92.144507 | CI18: 13:22:00 | CJ18: 7 | CK18: 28LA325@ERA | CL18: 5.59014728e+16 | CM18: 0.966 | CN18: 0 | CO18: 0 | CP18: A | CQ18: S | CR18: R | CS18: C
A19: 2020 | D19: 8 | E19: A | F19: 0 | G19: A | J19: 0 | K19: WE | L19: 0 | M19: 0 | N19: C | O19: 1 | P19: B | Q19: A | R19: B | S19: B | T19: 1.613 | U19: 1 | V19: 0 | W19: 2 | X19: 28 | Z19: 325 | AA19: A | AB19: A | AC19: B | AD19: 0 | AE19: D | AF19: A | AG19: A | AI19: A | AJ19: B | AK19: A | AL19: 0 | AM19: 0 | AN19: S | AO19: S | AP19: S | AQ19: S | AR19: 45 | AS19: BB | AT19: B | AU19: B | AV19: E | AW19: SS | AX19: S | AY19: S | AZ19: K | BA19: K | BB19: S | BC19: B | BD19: S | BE19: U | BG19: 2 | BH19: 10100 | BI19: 789-12 | BJ19: 28 | BK19: 17 | BL19: 6 | BM19: 2.04 | BN19: 1.39 | BO19: 1.508 | BP19: 0 | BQ19: 4 | BR19: 70 | BS19: 42 | BT19: 0 | BU19: 2.17 | BV19: 1.49 | BW19: 325 | BX19: 0.65 | BY19: D | BZ19: 3 | CA19: B | CB19: A | CC19: L | CD19: P | CE19: 4 | CF19: 0.532 | CG19: 30.254958 | CH19: -92.144478 | CI19: 08:09:00 | CJ19: 3 | CK19: 28LA325@ERA | CL19: 789-12-1-010 | CM19: 1.508 | CN19: 0 | CO19: 0 | CP19: A | CQ19: U | CR19: R | CS19: C
A20: 2020 | D20: 8 | E20: A | F20: 0 | G20: A | J20: 0 | K20: WE | L20: 0 | M20: 0 | N20: C | O20: 0 | P20: B | Q20: A | R20: C | S20: B | T20: 1.594 | U20: 0 | V20: 0 | W20: 2 | X20: 28 | Z20: 325 | AA20: A | AB20: A | AC20: C | AD20: 0 | AE20: E | AF20: A | AG20: A | AI20: A | AJ20: B | AK20: A | AL20: 0 | AM20: 0 | AN20: S | AO20: S | AP20: S | AQ20: S | AR20: 45 | AS20: QQ | AT20: Q | AU20: Q | AV20: S | AW20: SS | AX20: S | AY20: S | AZ20: K | BA20: K | BB20: A | BC20: S | BD20: S | BE20: U | BG20: 3 | BH20: 10100 | BI20: 789-12 | BJ20: 28 | BK20: 17 | BL20: 6 | BM20: 2.04 | BN20: 1.39 | BO20: 1.489 | BP20: 0 | BQ20: 4 | BR20: 70 | BS20: 42 | BT20: 0 | BU20: 2.17 | BV20: 1.49 | BW20: 325 | BX20: 0.65 | BY20: D | BZ20: 3 | CA20: B | CB20: A | CC20: L | CD20: P | CE20: 4 | CF20: 0.551 | CG20: 30.254682 | CH20: -92.144508 | CI20: 08:08:00 | CJ20: 3 | CK20: 28LA325@ERA | CL20: 789-12-1-010 | CM20: 1.489 | CN20: 0 | CO20: 0 | CP20: Z | CQ20: S | CR20: R | CS20: D
A21: 2020 | D21: 17 | E21: A | F21: 0 | G21: A | J21: 0 | K21: TU | L21: 0 | M21: 0 | N21: E | O21: 1 | P21: B | Q21: A | R21: B | S21: D | T21: 0 | U21: 2 | V21: 0 | W21: 2 | X21: 28 | Z21: 0 | AA21: A | AB21: A | AC21: B | AD21: 0 | AE21: C | AF21: B | AG21: B | AH21: I | AI21: C | AJ21: B | AK21: A | AL21: 0 | AM21: 0 | AN21: S | AO21: S | AP21: S | AQ21: S | AR21: 45 | AS21: BB | AT21: B | AU21: B | AV21: A | AW21: NW | AX21: N | AY21: W | AZ21: K | BA21: K | BB21: B | BC21: B | BD21: C | BE21: U | BG21: 2 | BH21: 0 | BJ21: 28 | BM21: 0 | BN21: 0 | BO21: 0 | BP21: 0 | BQ21: 0 | BS21: 0 | BT21: 0 | BU21: 0 | BV21: 0 | BW21: 0 | BX21: 0 | BY21: D | BZ21: 3 | CA21: A | CB21: B | CC21: L | CD21: P | CF21: 0 | CG21: 30.254937 | CH21: -92.144507 | CI21: 17:12:00 | CJ21: 7 | CK21: 28LA325@ERA | CL21: 5.59014728e+16 | CM21: 0.966 | CN21: 0 | CO21: 0 | CP21: A | CQ21: U | CR21: R | CS21: C
A22: 2020 | D22: 13 | E22: A | F22: 0 | G22: A | J22: 0 | K22: SU | L22: 0 | M22: 0 | N22: E | O22: 1 | P22: B | Q22: A | R22: C | S22: Z | T22: 0 | U22: 0 | V22: 0 | W22: 2 | X22: 28 | Z22: 0 | AA22: A | AB22: A | AC22: B | AD22: 0 | AE22: E | AF22: A | AG22: B | AI22: A | AJ22: B | AK22: A | AL22: 0 | AM22: 0 | AN22: S | AO22: S | AP22: S | AQ22: S | AR22: 40 | AS22: BB | AT22: B | AU22: B | AV22: A | AW22: NE | AX22: N | AY22: E | AZ22: K | BA22: K | BB22: A | BC22: A | BD22: C | BE22: U | BG22: 3 | BH22: 0 | BJ22: 28 | BM22: 0 | BN22: 0 | BO22: 0 | BP22: 0 | BQ22: 0 | BS22: 0 | BT22: 0 | BU22: 0 | BV22: 0 | BW22: 0 | BX22: 0 | BY22: D | BZ22: 3 | CA22: A | CB22: B | CC22: L | CD22: P | CF22: 0 | CG22: 30.254937 | CH22: -92.144507 | CI22: 13:26:00 | CJ22: 7 | CK22: 28LA325@ERA | CL22: 5.59014728e+16 | CM22: 0.966 | CN22: 0 | CO22: 0 | CP22: A | CQ22: S | CR22: R | CS22: D
A23: 2020 | D23: 7 | E23: A | F23: 0 | G23: A | J23: 0 | K23: TU | L23: 0 | M23: 0 | N23: E | O23: 1 | P23: B | Q23: A | R23: B | S23: D | T23: 0 | U23: 2 | V23: 0 | W23: 2 | X23: 28 | Z23: 0 | AA23: A | AB23: A | AC23: B | AD23: 0 | AE23: C | AF23: A | AG23: B | AI23: A | AJ23: B | AK23: A | AL23: 0 | AM23: 0 | AN23: S | AO23: S | AP23: S | AQ23: S | AR23: 40 | AS23: BB | AT23: B | AU23: B | AV23: A | AW23: NE | AX23: N | AY23: E | AZ23: K | BA23: K | BB23: A | BC23: A | BD23: C | BE23: U | BG23: 2 | BH23: 0 | BJ23: 28 | BM23: 0 | BN23: 0 | BO23: 0 | BP23: 0 | BQ23: 0 | BS23: 0 | BT23: 0 | BU23: 0 | BV23: 0 | BW23: 0 | BX23: 0 | BY23: D | BZ23: 3 | CA23: A | CB23: B | CC23: L | CD23: P | CF23: 0 | CG23: 30.254937 | CH23: -92.144507 | CI23: 07:30:00 | CJ23: 7 | CK23: 28LA325@ERA | CL23: 5.59014728e+16 | CM23: 0.966 | CN23: 0 | CO23: 0 | CP23: A | CQ23: S | CR23: R | CS23: C
A24: 2020 | D24: 17 | E24: A | F24: 1 | G24: A | J24: 0 | K24: SA | L24: 0 | M24: 0 | N24: C | O24: 0 | P24: B | Q24: A | R24: C | S24: B | T24: 1.616 | U24: 0 | V24: 0 | W24: 2 | X24: 28 | Z24: 325 | AA24: A | AB24: A | AC24: C | AD24: 0 | AE24: E | AF24: A | AG24: A | AI24: A | AJ24: G | AK24: A | AL24: 0 | AM24: 0 | AN24: S | AO24: S | AP24: S | AQ24: S | AR24: 45 | AS24: BA | AT24: B | AU24: A | AV24: C | AW24: SS | AX24: S | AY24: S | AZ24: K | BA24: K | BB24: S | BC24: A | BD24: S | BE24: U | BG24: 3 | BH24: 10100 | BI24: 789-12 | BJ24: 28 | BK24: 17 | BL24: 6 | BM24: 2.04 | BN24: 1.39 | BO24: 1.51 | BP24: 0 | BQ24: 4 | BR24: 70 | BS24: 42 | BT24: 0 | BU24: 2.17 | BV24: 1.49 | BW24: 325 | BX24: 0.65 | BY24: D | BZ24: 3 | CA24: A | CB24: B | CC24: L | CD24: P | CE24: 4 | CF24: 0.53 | CG24: 30.254987 | CH24: -92.144475 | CI24: 17:06:00 | CJ24: 3 | CK24: 28LA325@ERA | CL24: 789-12-1-010 | CM24: 1.51 | CN24: 0 | CO24: 0 | CP24: A | CQ24: U | CR24: O | CS24: D
A25: 2020 | D25: 15 | E25: A | F25: 0 | G25: A | J25: 0 | K25: FR | L25: 0 | M25: 0 | N25: E | O25: 1 | P25: B | Q25: A | R25: C | S25: D | T25: 0 | U25: 1 | V25: 0 | W25: 2 | X25: 28 | Z25: 0 | AA25: A | AB25: B | AC25: B | AD25: 0 | AE25: D | AF25: A | AG25: A | AI25: A | AJ25: B | AK25: A | AL25: 0 | AM25: 0 | AN25: S | AO25: S | AP25: S | AQ25: S | AR25: 30 | AS25: BB | AT25: B | AU25: B | AV25: A | AW25: NE | AX25: N | AY25: E | AZ25: K | BA25: K | BB25: A | BC25: B | BD25: C | BE25: U | BG25: 2 | BH25: 0 | BJ25: 28 | BM25: 0 | BN25: 0 | BO25: 0 | BP25: 0 | BQ25: 0 | BS25: 0 | BT25: 0 | BU25: 0 | BV25: 0 | BW25: 0 | BX25: 0 | BY25: D | BZ25: 3 | CA25: A | CB25: B | CC25: L | CD25: P | CF25: 0 | CG25: 30.255095 | CH25: -92.144213 | CI25: 15:36:00 | CJ25: 7 | CK25: 28LA325@ERA | CL25: 5.59014728e+16 | CM25: 0.945 | CN25: 0 | CO25: 0 | CP25: H | CQ25: K | CR25: R | CS25: C
A26: 2020 | D26: 14 | E26: A | F26: 0 | G26: A | J26: 0 | K26: MO | L26: 0 | M26: 0 | N26: C | O26: 1 | P26: B | Q26: A | R26: B | S26: B | T26: 1.613 | U26: 0 | V26: 0 | W26: 2 | X26: 28 | Z26: 325 | AA26: A | AB26: A | AC26: C | AD26: 0 | AE26: E | AF26: A | AG26: A | AI26: A | AJ26: B | AK26: A | AL26: 0 | AM26: 0 | AN26: S | AO26: S | AP26: S | AQ26: S | AR26: 45 | AS26: BA | AT26: B | AU26: A | AV26: Z | AW26: SS | AX26: S | AY26: S | AZ26: K | BA26: K | BB26: A | BC26: S | BD26: S | BE26: U | BG26: 3 | BH26: 10100 | BI26: 789-12 | BJ26: 28 | BK26: 17 | BL26: 6 | BM26: 2.04 | BN26: 1.39 | BO26: 1.508 | BP26: 0 | BQ26: 4 | BR26: 70 | BS26: 42 | BT26: 0 | BU26: 2.17 | BV26: 1.49 | BW26: 325 | BX26: 0.65 | BY26: D | BZ26: 3 | CA26: A | CB26: B | CC26: L | CD26: P | CE26: 4 | CF26: 0.532 | CG26: 30.254958 | CH26: -92.144478 | CI26: 14:23:00 | CJ26: 3 | CK26: 28LA325@ERA | CL26: 789-12-1-010 | CM26: 1.508 | CN26: 0 | CO26: 0 | CP26: A | CQ26: S | CR26: R | CS26: D
A27: 2020 | D27: 10 | E27: A | F27: 0 | G27: A | J27: 0 | K27: TU | L27: 0 | M27: 0 | N27: C | O27: 0 | P27: B | Q27: A | R27: B | S27: B | T27: 1.618 | U27: 0 | V27: 0 | W27: 2 | X27: 28 | Z27: 325 | AA27: A | AB27: A | AC27: B | AD27: 0 | AE27: E | AF27: A | AG27: A | AI27: A | AJ27: B | AK27: A | AL27: 0 | AM27: 0 | AN27: S | AO27: S | AP27: S | AQ27: S | AR27: 40 | AS27: BA | AT27: B | AU27: A | AV27: R | AW27: SS | AX27: S | AY27: S | AZ27: K | BA27: K | BB27: S | BC27: A | BD27: S | BE27: U | BG27: 3 | BH27: 10100 | BI27: 789-12 | BJ27: 28 | BK27: 17 | BL27: 6 | BM27: 2.04 | BN27: 1.39 | BO27: 1.512 | BP27: 0 | BQ27: 4 | BR27: 70 | BS27: 42 | BT27: 0 | BU27: 2.17 | BV27: 1.49 | BW27: 325 | BX27: 0.65 | BY27: D | BZ27: 3 | CA27: B | CB27: A | CC27: L | CD27: P | CE27: 4 | CF27: 0.528 | CG27: 30.255016 | CH27: -92.144472 | CI27: 10:17:00 | CJ27: 3 | CK27: 28LA325@ERA | CL27: 789-12-1-010 | CM27: 1.512 | CN27: 0 | CO27: 0 | CP27: Z | CQ27: U | CR27: R | CS27: C
A28: 2020 | D28: 12 | E28: A | F28: 0 | G28: A | J28: 0 | K28: WE | L28: 0 | M28: 0 | N28: C | O28: 1 | P28: B | Q28: A | R28: C | S28: B | T28: 1.598 | U28: 0 | V28: 0 | W28: 2 | X28: 28 | Z28: 325 | AA28: A | AB28: A | AC28: B | AD28: 0 | AE28: E | AF28: A | AG28: A | AI28: B | AJ28: B | AK28: A | AL28: 0 | AM28: 0 | AN28: S | AO28: S | AP28: S | AQ28: S | AR28: 35 | AS28: BA | AT28: B | AU28: A | AV28: V | AW28: NN | AX28: N | AY28: N | AZ28: K | BA28: K | BB28: S | BC28: A | BD28: S | BE28: U | BG28: 3 | BH28: 10100 | BI28: 789-12 | BJ28: 28 | BK28: 17 | BL28: 6 | BM28: 2.04 | BN28: 1.39 | BO28: 1.493 | BP28: 0 | BQ28: 4 | BR28: 70 | BS28: 42 | BT28: 0 | BU28: 2.17 | BV28: 1.49 | BW28: 325 | BX28: 0.65 | BY28: D | BZ28: 3 | CA28: A | CB28: B | CC28: L | CD28: P | CE28: 4 | CF28: 0.547 | CG28: 30.254735 | CH28: -92.144504 | CI28: 12:54:00 | CJ28: 2 | CK28: 28LA325@ERA | CL28: 789-12-1-010 | CM28: 1.493 | CN28: 0 | CO28: 0 | CP28: A | CQ28: U | CR28: R | CS28: E
A29: 2020 | D29: 16 | E29: A | F29: 0 | G29: A | J29: 0 | K29: TU | L29: 0 | M29: 0 | N29: C | O29: 1 | P29: B | Q29: A | R29: C | S29: F | T29: 1.613 | U29: 2 | V29: 0 | W29: 2 | X29: 28 | Z29: 325 | AA29: A | AB29: A | AC29: B | AD29: 0 | AE29: C | AF29: A | AG29: A | AI29: A | AJ29: B | AK29: A | AL29: 0 | AM29: 0 | AN29: S | AO29: S | AP29: S | AQ29: S | AR29: 45 | AS29: IB | AT29: I | AU29: B | AV29: E | AW29: WE | AX29: W | AY29: E | AZ29: K | BA29: K | BB29: A | BC29: A | BD29: C | BE29: U | BG29: 2 | BH29: 10100 | BI29: 789-12 | BJ29: 28 | BK29: 17 | BL29: 6 | BM29: 2.04 | BN29: 1.39 | BO29: 1.508 | BP29: 0 | BQ29: 4 | BR29: 70 | BS29: 42 | BT29: 0 | BU29: 2.17 | BV29: 1.49 | BW29: 325 | BX29: 0.65 | BY29: D | BZ29: 3 | CA29: A | CB29: B | CC29: L | CD29: P | CE29: 4 | CF29: 0.532 | CG29: 30.254958 | CH29: -92.144478 | CI29: 16:46:00 | CJ29: 3 | CK29: 28LA325@ERA | CL29: 789-12-1-010 | CM29: 1.508 | CN29: 0 | CO29: 0 | CP29: A | CQ29: S | CR29: R | CS29: C
A30: 2020 | D30: 13 | E30: A | F30: 0 | G30: A | J30: 0 | K30: MO | L30: 0 | M30: 1 | N30: C | O30: 0 | P30: B | Q30: A | R30: B | S30: B | T30: 1.624 | U30: 0 | V30: 0 | W30: 2 | X30: 28 | Z30: 325 | AA30: A | AB30: A | AC30: B | AD30: 0 | AE30: E | AF30: A | AG30: A | AI30: A | AJ30: B | AK30: A | AL30: 0 | AM30: 0 | AN30: S | AO30: S | AP30: S | AQ30: S | AR30: 30 | AS30: BA | AT30: B | AU30: A | AV30: R | AW30: SS | AX30: S | AY30: S | AZ30: K | BA30: K | BB30: A | BC30: A | BD30: S | BE30: U | BG30: 3 | BH30: 10100 | BI30: 789-12 | BJ30: 28 | BK30: 17 | BL30: 6 | BM30: 2.04 | BN30: 1.39 | BO30: 1.518 | BP30: 0 | BQ30: 4 | BR30: 70 | BS30: 42 | BT30: 0 | BU30: 2.17 | BV30: 1.49 | BW30: 325 | BX30: 0.65 | BY30: D | BZ30: 3 | CA30: B | CB30: A | CC30: L | CD30: P | CE30: 4 | CF30: 0.522 | CG30: 30.255096 | CH30: -92.144464 | CI30: 13:40:00 | CJ30: 2 | CK30: 28LA325@ERA | CL30: 789-12-1-010 | CM30: 1.518 | CN30: 0 | CO30: 0 | CP30: Z | CQ30: S | CR30: R | CS30: D
A31: 2020 | D31: 22 | E31: A | F31: 0 | G31: A | J31: 0 | K31: MO | L31: 0 | M31: 1 | N31: E | O31: 1 | P31: B | Q31: C | R31: C | S31: B | T31: 0 | U31: 1 | V31: 0 | W31: 2 | X31: 28 | Z31: 0 | AA31: A | AB31: A | AC31: B | AD31: 0 | AE31: D | AF31: B | AG31: A | AI31: B | AJ31: Y | AK31: A | AL31: 0 | AM31: 0 | AN31: YY | AO31: S | AP31: YY | AQ31: S | AR31: 45 | AS31: ZP | AT31: Z | AU31: P | AV31: R | AW31: WW | AX31: W | AY31: W | AZ31: Y | BA31: K | BB31: B | BC31: A | BD31: Y | BE31: U | BG31: 2 | BH31: 0 | BJ31: 28 | BM31: 0 | BN31: 0 | BO31: 0 | BP31: 0 | BQ31: 0 | BS31: 0 | BT31: 0 | BU31: 0 | BV31: 0 | BW31: 0 | BX31: 0 | BY31: J | BZ31: 3 | CA31: A | CB31: B | CC31: Y | CD31: P | CF31: 0 | CG31: 30.254937 | CH31: -92.144507 | CI31: 22:04:00 | CJ31: 7 | CK31: 28LA325@ERA | CL31: 5.59014728e+16 | CM31: 0.966 | CN31: 0 | CO31: 0 | CP31: C | CQ31: U | CR31: R | CS31: D
A32: 2020 | D32: 15 | E32: A | F32: 0 | G32: A | J32: 0 | K32: TH | L32: 0 | M32: 1 | N32: C | O32: 0 | P32: B | Q32: A | R32: C | S32: Z | T32: 1.62 | U32: 1 | V32: 0 | W32: 3 | X32: 28 | Z32: 325 | AA32: A | AB32: A | AC32: C | AD32: 0 | AE32: D | AF32: A | AG32: A | AI32: B | AJ32: Y | AK32: A | AL32: 0 | AM32: 0 | AN32: N | AO32: S | AP32: N | AQ32: S | AR32: 45 | AS32: ZZZ | AT32: Z | AU32: Z | AV32: Y | AW32: SSN | AX32: S | AY32: S | AZ32: Y | BA32: K | BB32: Z | BC32: A | BD32: Y | BE32: U | BG32: 2 | BH32: 10100 | BI32: 789-12 | BJ32: 28 | BK32: 17 | BL32: 6 | BM32: 2.04 | BN32: 1.39 | BO32: 1.514 | BP32: 0 | BQ32: 4 | BR32: 70 | BS32: 42 | BT32: 0 | BU32: 2.17 | BV32: 1.49 | BW32: 325 | BX32: 0.65 | BY32: K | BZ32: 3 | CA32: A | CB32: B | CC32: Y | CD32: A | CE32: 4 | CF32: 0.526 | CG32: 30.255045 | CH32: -92.144469 | CI32: 15:34:00 | CJ32: 3 | CK32: 28LA325@ERA | CL32: 789-12-1-010 | CM32: 1.514 | CN32: 0 | CO32: 0 | CP32: A | CQ32: R | CR32: R | CS32: D
A33: 2020 | D33: 15 | E33: A | F33: 0 | G33: A | J33: 0 | K33: WE | L33: 0 | M33: 0 | N33: C | O33: 0 | P33: B | Q33: A | R33: B | S33: B | T33: 1.611 | U33: 1 | V33: 0 | W33: 2 | X33: 28 | Z33: 325 | AA33: A | AB33: A | AC33: B | AD33: 0 | AE33: C | AF33: A | AG33: A | AI33: A | AJ33: B | AK33: A | AL33: 0 | AM33: 0 | AN33: S | AO33: S | AP33: S | AQ33: S | AR33: 45 | AS33: BA | AT33: B | AU33: A | AV33: J | AW33: NN | AX33: N | AY33: N | AZ33: K | BA33: K | BB33: A | BC33: A | BD33: S | BE33: Z | BG33: 2 | BH33: 10100 | BI33: 789-12 | BJ33: 28 | BK33: 17 | BL33: 6 | BM33: 2.04 | BN33: 1.39 | BO33: 1.506 | BP33: 0 | BQ33: 4 | BR33: 70 | BS33: 42 | BT33: 0 | BU33: 2.17 | BV33: 1.49 | BW33: 325 | BX33: 0.65 | BY33: D | BZ33: 3 | CA33: B | CB33: A | CC33: L | CD33: P | CE33: 4 | CF33: 0.534 | CG33: 30.254929 | CH33: -92.144481 | CI33: 15:30:00 | CJ33: 3 | CK33: 28LA325@ERA | CL33: 789-12-1-010 | CM33: 1.506 | CN33: 0 | CO33: 0 | CP33: C | CQ33: S | CR33: R | CS33: E
A34: 2020 | D34: 21 | E34: A | F34: 0 | G34: A | J34: 0 | K34: FR | L34: 0 | M34: 0 | N34: C | O34: 1 | P34: B | Q34: C | R34: B | S34: D | T34: 1.613 | U34: 1 | V34: 0 | W34: 2 | X34: 28 | Z34: 325 | AA34: A | AB34: A | AC34: B | AD34: 0 | AE34: D | AF34: B | AG34: A | AI34: A | AJ34: A | AK34: A | AL34: 0 | AM34: 0 | AN34: S | AO34: S | AP34: S | AQ34: S | AR34: 45 | AS34: BB | AT34: B | AU34: B | AV34: D | AW34: SE | AX34: S | AY34: E | AZ34: K | BA34: K | BB34: A | BC34: S | BD34: Z | BE34: Z | BG34: 2 | BH34: 10100 | BI34: 789-12 | BJ34: 28 | BK34: 17 | BL34: 6 | BM34: 2.04 | BN34: 1.39 | BO34: 1.508 | BP34: 0 | BQ34: 4 | BR34: 70 | BS34: 42 | BT34: 0 | BU34: 2.17 | BV34: 1.49 | BW34: 325 | BX34: 0.65 | BY34: D | BZ34: 3 | CA34: B | CB34: A | CC34: J | CD34: J | CE34: 4 | CF34: 0.532 | CG34: 30.254958 | CH34: -92.144478 | CI34: 21:18:00 | CJ34: 3 | CK34: 28LA325@ERA | CL34: 789-12-1-010 | CM34: 1.508 | CN34: 0 | CO34: 0 | CP34: A | CQ34: S | CR34: O | CS34: C
A35: 2020 | D35: 11 | E35: B | F35: 0 | G35: A | J35: 0 | K35: FR | L35: 0 | M35: 0 | N35: E | O35: 0 | P35: B | Q35: A | R35: B | S35: B | T35: 0 | U35: 2 | V35: 0 | W35: 2 | X35: 28 | Z35: 0 | AA35: A | AB35: A | AC35: B | AD35: 0 | AE35: D | AF35: A | AG35: A | AI35: B | AJ35: B | AK35: A | AL35: 0 | AM35: 0 | AN35: S | AO35: S | AP35: S | AQ35: S | AR35: 45 | AS35: BA | AT35: B | AU35: A | AV35: C | AW35: EE | AX35: E | AY35: E | AZ35: K | BA35: K | BB35: Q | BC35: A | BD35: S | BE35: U | BG35: 2 | BH35: 0 | BJ35: 28 | BM35: 0 | BN35: 0 | BO35: 0 | BP35: 0 | BQ35: 0 | BS35: 0 | BT35: 0 | BU35: 0 | BV35: 0 | BW35: 0 | BX35: 0 | BY35: D | BZ35: 3 | CA35: A | CB35: B | CC35: L | CD35: P | CF35: 0 | CG35: 30.254937 | CH35: -92.144507 | CI35: 11:03:00 | CJ35: 7 | CK35: 28LA325@ERA | CL35: 5.59014728e+16 | CM35: 0.966 | CN35: 0 | CO35: 0 | CP35: A | CQ35: Q | CR35: R | CS35: D
A36: =YEAR(TODAY()-1.7*365)-1 -> 2020 | D36: 12 | E36: A | F36: 0 | G36: A | J36: 0 | K36: TU | L36: 0 | M36: 0 | N36: C | O36: 1 | P36: B | Q36: A | R36: C | S36: D | T36: 1.613 | U36: 1 | V36: 0 | W36: 2 | X36: 28 | Z36: 325 | AA36: A | AB36: A | AC36: C | AD36: 0 | AE36: D | AF36: A | AG36: A | AI36: A | AJ36: B | AK36: A | AL36: 0 | AM36: 0 | AN36: S | AO36: S | AP36: S | AQ36: S | AR36: 45 | AS36: BB | AT36: B | AU36: B | AV36: C | AW36: NW | AX36: N | AY36: W | AZ36: K | BA36: K | BB36: C | BC36: S | BD36: L | BE36: U | BG36: 2 | BH36: 10100 | BI36: 789-12 | BJ36: 28 | BK36: 17 | BL36: 6 | BM36: 2.04 | BN36: 1.39 | BO36: 1.508 | BP36: 0 | BQ36: 4 | BR36: 70 | BS36: 42 | BT36: 0 | BU36: 2.17 | BV36: 1.49 | BW36: 325 | BX36: 0.65 | BY36: D | BZ36: 3 | CA36: B | CB36: A | CC36: L | CD36: P | CE36: 4 | CF36: 0.532 | CG36: 30.254958 | CH36: -92.144478 | CI36: 12:52:00 | CJ36: 3 | CK36: 28LA325@ERA | CL36: 789-12-1-010 | CM36: 1.508 | CN36: 0 | CO36: 0 | CP36: A | CQ36: U | CR36: R | CS36: C
A37: =YEAR(TODAY()-1.7*365) -> 2021 | D37: 15 | E37: A | F37: 0 | G37: A | J37: 0 | K37: FR | L37: 0 | M37: 0 | N37: C | O37: 1 | P37: B | Q37: A | R37: C | S37: B | T37: 1.635 | U37: 2 | V37: 0 | W37: 2 | X37: 28 | Z37: 325 | AA37: A | AB37: A | AC37: B | AD37: 0 | AE37: D | AF37: A | AG37: A | AI37: A | AJ37: B | AK37: A | AL37: 0 | AM37: 0 | AN37: S | AO37: S | AP37: S | AQ37: S | AR37: 45 | AS37: BA | AT37: B | AU37: A | AV37: Q | AW37: SS | AX37: S | AY37: S | AZ37: K | BA37: K | BB37: A | BC37: A | BD37: S | BE37: U | BG37: 2 | BH37: 9700 | BI37: 789-12 | BJ37: 28 | BK37: 17 | BL37: 6 | BM37: 2.044 | BN37: 1.39 | BO37: 1.529 | BP37: 0 | BQ37: 4 | BR37: 70 | BS37: 42 | BT37: 0 | BU37: 2.17 | BV37: 1.49 | BW37: 325 | BX37: 0.654 | BY37: D | BZ37: 3 | CA37: A | CB37: B | CC37: L | CD37: P | CE37: 4 | CF37: 0.515 | CG37: 30.25526 | CH37: -92.144446 | CI37: 15:56:00 | CJ37: 2 | CK37: 28LA325@ERA | CL37: 789-12-1-010 | CM37: 1.529 | CN37: 0 | CO37: 0 | CP37: A | CQ37: N | CR37: R | CS37: E
A38: 2021 | D38: 18 | E38: A | F38: 0 | G38: A | J38: 0 | K38: MO | L38: 0 | M38: 0 | N38: C | O38: 1 | P38: B | Q38: A | R38: B | S38: F | T38: 1.612 | U38: 1 | V38: 0 | W38: 2 | X38: 28 | Z38: 325 | AA38: A | AB38: A | AC38: B | AD38: 0 | AE38: D | AF38: A | AG38: A | AI38: A | AJ38: B | AK38: A | AL38: 0 | AM38: 0 | AN38: S | AO38: S | AP38: S | AQ38: S | AR38: 40 | AS38: IB | AT38: I | AU38: B | AV38: E | AW38: NS | AX38: N | AY38: S | AZ38: K | BA38: K | BB38: B | BC38: S | BD38: U | BE38: U | BG38: 2 | BH38: 9700 | BI38: 789-12 | BJ38: 28 | BK38: 17 | BL38: 6 | BM38: 2.044 | BN38: 1.39 | BO38: 1.507 | BP38: 0 | BQ38: 4 | BR38: 70 | BS38: 42 | BT38: 0 | BU38: 2.17 | BV38: 1.49 | BW38: 325 | BX38: 0.654 | BY38: D | BZ38: 3 | CA38: B | CB38: A | CC38: L | CD38: P | CE38: 4 | CF38: 0.537 | CG38: 30.254941 | CH38: -92.144482 | CI38: 18:54:00 | CJ38: 3 | CK38: 28LA325@ERA | CL38: 789-12-1-010 | CM38: 1.507 | CN38: 0 | CO38: 0 | CP38: A | CQ38: U | CR38: R | CS38: B
A39: 2021 | D39: 9 | E39: A | F39: 0 | G39: A | J39: 0 | K39: WE | L39: 0 | M39: 0 | N39: C | O39: 1 | P39: B | Q39: A | R39: C | S39: D | T39: 1.612 | U39: 0 | V39: 0 | W39: 2 | X39: 28 | Z39: 325 | AA39: A | AB39: A | AC39: B | AD39: 0 | AE39: E | AF39: A | AG39: A | AI39: A | AJ39: Y | AK39: Y | AL39: 0 | AM39: 0 | AN39: S | AO39: S | AP39: S | AQ39: S | AR39: 45 | AS39: BB | AT39: B | AU39: B | AV39: Y | AW39: NE | AX39: N | AY39: E | AZ39: K | BA39: K | BB39: B | BC39: B | BD39: Y | BE39: Y | BG39: 3 | BH39: 9700 | BI39: 789-12 | BJ39: 28 | BK39: 17 | BL39: 6 | BM39: 2.044 | BN39: 1.39 | BO39: 1.507 | BP39: 0 | BQ39: 4 | BR39: 70 | BS39: 42 | BT39: 0 | BU39: 2.17 | BV39: 1.49 | BW39: 325 | BX39: 0.654 | BY39: D | BZ39: 3 | CA39: B | CB39: A | CC39: Y | CD39: Y | CE39: 4 | CF39: 0.537 | CG39: 30.254941 | CH39: -92.144482 | CI39: 09:29:00 | CJ39: 3 | CK39: 28LA325@ERA | CL39: 789-12-1-010 | CM39: 1.507 | CN39: 0 | CO39: 0 | CP39: A | CQ39: U | CR39: R | CS39: B
A40: 2021 | D40: 12 | E40: A | F40: 0 | G40: A | J40: 0 | K40: MO | L40: 0 | M40: 0 | N40: C | O40: 1 | P40: B | Q40: A | R40: C | S40: F | T40: 1.612 | U40: 0 | V40: 0 | W40: 2 | X40: 28 | Z40: 325 | AA40: A | AB40: A | AC40: B | AD40: 0 | AE40: E | AF40: A | AG40: A | AI40: A | AJ40: B | AK40: A | AL40: 0 | AM40: 0 | AN40: S | AO40: S | AP40: S | AQ40: S | AR40: 40 | AS40: IB | AT40: I | AU40: B | AV40: E | AW40: NS | AX40: N | AY40: S | AZ40: K | BA40: K | BB40: A | BC40: B | BD40: C | BE40: U | BG40: 3 | BH40: 9700 | BI40: 789-12 | BJ40: 28 | BK40: 17 | BL40: 6 | BM40: 2.044 | BN40: 1.39 | BO40: 1.507 | BP40: 0 | BQ40: 4 | BR40: 70 | BS40: 42 | BT40: 0 | BU40: 2.17 | BV40: 1.49 | BW40: 325 | BX40: 0.654 | BY40: D | BZ40: 3 | CA40: B | CB40: A | CC40: L | CD40: P | CE40: 4 | CF40: 0.537 | CG40: 30.254941 | CH40: -92.144482 | CI40: 12:33:00 | CJ40: 3 | CK40: 28LA325@ERA | CL40: 789-12-1-010 | CM40: 1.507 | CN40: 0 | CO40: 0 | CP40: A | CQ40: S | CR40: R | CS40: D
A41: 2021 | D41: 10 | E41: A | F41: 0 | G41: A | J41: 0 | K41: TU | L41: 0 | M41: 0 | N41: C | O41: 1 | P41: B | Q41: A | R41: C | S41: B | T41: 1.626 | U41: 0 | V41: 0 | W41: 2 | X41: 28 | Z41: 325 | AA41: A | AB41: A | AC41: C | AD41: 0 | AE41: E | AF41: A | AG41: A | AI41: A | AJ41: B | AK41: A | AL41: 0 | AM41: 0 | AN41: S | AO41: S | AP41: S | AQ41: S | AR41: 45 | AS41: BA | AT41: B | AU41: A | AV41: C | AW41: SS | AX41: S | AY41: S | AZ41: K | BA41: K | BB41: B | BC41: C | BD41: S | BE41: U | BG41: 3 | BH41: 9700 | BI41: 789-12 | BJ41: 28 | BK41: 17 | BL41: 6 | BM41: 2.044 | BN41: 1.39 | BO41: 1.521 | BP41: 0 | BQ41: 4 | BR41: 70 | BS41: 42 | BT41: 0 | BU41: 2.17 | BV41: 1.49 | BW41: 325 | BX41: 0.654 | BY41: D | BZ41: 3 | CA41: B | CB41: A | CC41: L | CD41: P | CE41: 4 | CF41: 0.523 | CG41: 30.255143 | CH41: -92.144461 | CI41: 10:04:00 | CJ41: 3 | CK41: 28LA325@ERA | CL41: 789-12-1-010 | CM41: 1.521 | CN41: 0 | CO41: 0 | CP41: A | CQ41: U | CR41: R | CS41: D
A42: 2021 | D42: 9 | E42: A | F42: 0 | G42: A | J42: 0 | K42: MO | L42: 0 | M42: 0 | N42: E | O42: 0 | P42: B | Q42: A | R42: B | S42: B | T42: 0 | U42: 0 | V42: 0 | W42: 2 | X42: 28 | Z42: 0 | AA42: A | AB42: A | AC42: B | AD42: 0 | AE42: E | AF42: A | AG42: A | AI42: A | AJ42: B | AK42: A | AL42: 0 | AM42: 0 | AN42: S | AO42: S | AP42: S | AQ42: S | AR42: 45 | AS42: BA | AT42: B | AU42: A | AV42: E | AW42: EE | AX42: E | AY42: E | AZ42: K | BA42: K | BB42: I | BC42: S | BD42: S | BE42: U | BG42: 3 | BH42: 0 | BJ42: 28 | BM42: 0 | BN42: 0 | BO42: 0 | BP42: 0 | BQ42: 0 | BS42: 0 | BT42: 0 | BU42: 0 | BV42: 0 | BW42: 0 | BX42: 0 | BY42: D | BZ42: 3 | CA42: B | CB42: A | CC42: L | CD42: P | CF42: 0 | CG42: 30.254863 | CH42: -92.144641 | CI42: 09:33:00 | CJ42: 7 | CK42: 28LA325@ERA | CL42: 5.59014728e+16 | CM42: 0.977 | CN42: 0 | CO42: 0 | CP42: E | CQ42: M | CR42: R | CS42: D
A43: 2021 | D43: 8 | E43: A | F43: 0 | G43: A | J43: 0 | K43: MO | L43: 0 | M43: 0 | N43: E | O43: 1 | P43: B | Q43: A | R43: C | S43: D | T43: 0 | U43: 3 | V43: 0 | W43: 2 | X43: 28 | Z43: 0 | AA43: A | AB43: A | AC43: B | AD43: 0 | AE43: D | AF43: A | AG43: A | AI43: A | AJ43: B | AK43: A | AL43: 0 | AM43: 0 | AN43: S | AO43: S | AP43: S | AQ43: S | AR43: 45 | AS43: IB | AT43: I | AU43: B | AV43: A | AW43: SW | AX43: S | AY43: W | AZ43: K | BA43: K | BB43: A | BC43: B | BD43: C | BE43: U | BG43: 2 | BH43: 0 | BJ43: 28 | BM43: 0 | BN43: 0 | BO43: 0 | BP43: 0 | BQ43: 0 | BS43: 0 | BT43: 0 | BU43: 0 | BV43: 0 | BW43: 0 | BX43: 0 | BY43: D | BZ43: 3 | CA43: A | CB43: B | CC43: L | CD43: P | CF43: 0 | CG43: 30.254937 | CH43: -92.144507 | CI43: 08:01:00 | CJ43: 7 | CK43: 28LA325@ERA | CL43: 5.59014728e+16 | CM43: 0.967 | CN43: 0 | CO43: 0 | CP43: A | CQ43: S | CR43: R | CS43: C
A44: 2021 | D44: 13 | E44: A | F44: 0 | G44: A | J44: 0 | K44: SA | L44: 0 | M44: 0 | N44: E | O44: 1 | P44: B | Q44: A | R44: C | S44: D | T44: 0 | U44: 0 | V44: 0 | W44: 2 | X44: 28 | Z44: 0 | AA44: A | AB44: A | AC44: B | AD44: 0 | AE44: E | AF44: A | AG44: A | AI44: A | AJ44: B | AK44: A | AL44: 0 | AM44: 0 | AN44: S | AO44: S | AP44: S | AQ44: S | AR44: 45 | AS44: BB | AT44: B | AU44: B | AV44: A | AW44: NE | AX44: N | AY44: E | AZ44: K | BA44: K | BB44: S | BC44: S | BD44: C | BE44: U | BG44: 3 | BH44: 0 | BJ44: 28 | BM44: 0 | BN44: 0 | BO44: 0 | BP44: 0 | BQ44: 0 | BS44: 0 | BT44: 0 | BU44: 0 | BV44: 0 | BW44: 0 | BX44: 0 | BY44: D | BZ44: 3 | CA44: A | CB44: B | CC44: L | CD44: P | CF44: 0 | CG44: 30.254831 | CH44: -92.1447 | CI44: 13:01:00 | CJ44: 7 | CK44: 28LA325@ERA | CL44: 5.59014728e+16 | CM44: 0.981 | CN44: 0 | CO44: 0 | CP44: A | CQ44: U | CR44: R | CS44: C
A45: 2021 | D45: 2 | E45: A | F45: 1 | G45: A | J45: 0 | K45: SU | L45: 0 | M45: 0 | N45: C | O45: 1 | P45: B | Q45: C | R45: B | S45: F | T45: 1.612 | U45: 5 | V45: 0 | W45: 2 | X45: 28 | Z45: 325 | AA45: A | AB45: A | AC45: C | AD45: 0 | AE45: D | AF45: A | AG45: A | AI45: A | AJ45: H | AK45: G | AL45: 0 | AM45: 0 | AN45: S | AO45: S | AP45: S | AQ45: S | AR45: 40 | AS45: IB | AT45: I | AU45: B | AV45: E | AW45: NS | AX45: N | AY45: S | AZ45: K | BA45: K | BB45: A | BC45: S | BD45: C | BE45: R | BG45: 2 | BH45: 9700 | BI45: 789-12 | BJ45: 28 | BK45: 17 | BL45: 6 | BM45: 2.044 | BN45: 1.39 | BO45: 1.507 | BP45: 0 | BQ45: 4 | BR45: 70 | BS45: 42 | BT45: 0 | BU45: 2.17 | BV45: 1.49 | BW45: 325 | BX45: 0.654 | BY45: D | BZ45: 3 | CA45: A | CB45: B | CC45: L | CD45: P | CE45: 4 | CF45: 0.537 | CG45: 30.254941 | CH45: -92.144482 | CI45: 02:47:00 | CJ45: 3 | CK45: 28LA325@ERA | CL45: 789-12-1-010 | CM45: 1.507 | CN45: 0 | CO45: 0 | CP45: A | CQ45: S | CR45: O | CS45: B
A46: 2021 | D46: 7 | E46: A | F46: 0 | G46: A | J46: 0 | K46: FR | L46: 0 | M46: 1 | N46: C | O46: 0 | P46: B | Q46: A | R46: C | S46: B | T46: 1.607 | U46: 0 | V46: 0 | W46: 3 | X46: 28 | Z46: 325 | AA46: A | AB46: A | AC46: B | AD46: 0 | AE46: E | AF46: B | AG46: A | AH46: I | AI46: C | AJ46: Y | AK46: A | AL46: 0 | AM46: 0 | AN46: YY | AO46: S | AP46: YY | AQ46: S | AR46: 45 | AS46: ZAN | AT46: Z | AU46: A | AV46: V | AW46: NN | AY46: N | AZ46: Y | BA46: K | BB46: A | BC46: A | BD46: Y | BE46: Z | BG46: 3 | BH46: 9700 | BI46: 789-12 | BJ46: 28 | BK46: 17 | BL46: 6 | BM46: 2.044 | BN46: 1.39 | BO46: 1.503 | BP46: 0 | BQ46: 4 | BR46: 70 | BS46: 42 | BT46: 0 | BU46: 2.17 | BV46: 1.49 | BW46: 325 | BX46: 0.654 | BY46: J | BZ46: 3 | CA46: A | CB46: B | CC46: Y | CD46: P | CE46: 4 | CF46: 0.541 | CG46: 30.254883 | CH46: -92.144489 | CI46: 07:41:00 | CJ46: 3 | CK46: 28LA325@ERA | CL46: 789-12-1-010 | CM46: 1.503 | CN46: 0 | CO46: 0 | CP46: Z | CQ46: R | CR46: R | CS46: E
A47: 2021 | D47: 0 | E47: A | F47: 0 | G47: A | J47: 0 | K47: SU | L47: 0 | M47: 0 | N47: C | O47: 1 | P47: B | Q47: C | R47: B | S47: B | T47: 1.612 | U47: 0 | V47: 0 | W47: 2 | X47: 28 | Z47: 325 | AA47: A | AB47: A | AC47: A | AD47: 0 | AE47: E | AF47: A | AG47: B | AI47: A | AJ47: B | AK47: A | AL47: 0 | AM47: 0 | AN47: S | AO47: S | AP47: S | AQ47: S | AR47: 40 | AS47: BA | AT47: B | AU47: A | AV47: C | AW47: SS | AX47: S | AY47: S | AZ47: K | BA47: K | BB47: A | BC47: A | BD47: S | BE47: U | BG47: 3 | BH47: 9700 | BI47: 789-12 | BJ47: 28 | BK47: 17 | BL47: 6 | BM47: 2.044 | BN47: 1.39 | BO47: 1.507 | BP47: 0 | BQ47: 4 | BR47: 70 | BS47: 42 | BT47: 0 | BU47: 2.17 | BV47: 1.49 | BW47: 325 | BX47: 0.654 | BY47: D | BZ47: 3 | CA47: A | CB47: B | CC47: L | CD47: P | CE47: 4 | CF47: 0.537 | CG47: 30.254941 | CH47: -92.144482 | CI47: 00:52:00 | CJ47: 3 | CK47: 28LA325@ERA | CL47: 789-12-1-010 | CM47: 1.507 | CN47: 0 | CO47: 0 | CP47: A | CQ47: S | CR47: R | CS47: D
A48: 2021 | D48: 11 | E48: A | F48: 0 | G48: A | J48: 0 | K48: TU | L48: 0 | M48: 0 | N48: C | O48: 0 | P48: B | Q48: A | R48: B | S48: B | T48: 1.621 | U48: 0 | V48: 0 | W48: 2 | X48: 28 | Z48: 325 | AA48: A | AB48: A | AC48: C | AD48: 0 | AE48: E | AF48: A | AG48: B | AI48: A | AJ48: B | AK48: A | AL48: 0 | AM48: 999 | AN48: S | AO48: S | AP48: S | AQ48: S | AR48: 45 | AS48: BA | AT48: B | AU48: A | AV48: R | AW48: SS | AX48: S | AY48: S | AZ48: K | BA48: K | BB48: A | BC48: A | BD48: S | BE48: U | BG48: 3 | BH48: 9700 | BI48: 789-12 | BJ48: 28 | BK48: 17 | BL48: 6 | BM48: 2.044 | BN48: 1.39 | BO48: 1.516 | BP48: 0 | BQ48: 4 | BR48: 70 | BS48: 42 | BT48: 0 | BU48: 2.17 | BV48: 1.49 | BW48: 325 | BX48: 0.654 | BY48: D | BZ48: 3 | CA48: A | CB48: B | CC48: L | CD48: I | CE48: 4 | CF48: 0.528 | CG48: 30.255071 | CH48: -92.144468 | CI48: 11:39:00 | CJ48: 3 | CK48: 28LA325@ERA | CL48: 789-12-1-010 | CM48: 1.516 | CN48: 0 | CO48: 0 | CP48: Z | CQ48: S | CR48: R | CS48: E
A49: 2021 | D49: 18 | E49: A | F49: 0 | G49: A | J49: 0 | K49: TH | L49: 0 | M49: 0 | N49: C | O49: 1 | P49: B | Q49: C | R49: D | S49: D | T49: 1.624 | U49: 0 | V49: 0 | W49: 2 | X49: 28 | Z49: 325 | AA49: A | AB49: A | AC49: B | AD49: 0 | AE49: E | AF49: A | AG49: B | AI49: A | AJ49: B | AK49: A | AL49: 0 | AM49: 0 | AN49: S | AO49: S | AP49: S | AQ49: S | AR49: 35 | AS49: BB | AT49: B | AU49: B | AV49: A | AW49: NW | AX49: N | AY49: W | AZ49: K | BA49: K | BB49: B | BC49: A | BD49: C | BE49: U | BG49: 3 | BH49: 9700 | BI49: 789-12 | BJ49: 28 | BK49: 17 | BL49: 6 | BM49: 2.044 | BN49: 1.39 | BO49: 1.519 | BP49: 0 | BQ49: 4 | BR49: 70 | BS49: 42 | BT49: 0 | BU49: 2.17 | BV49: 1.49 | BW49: 325 | BX49: 0.654 | BY49: D | BZ49: 3 | CA49: A | CB49: B | CC49: L | CD49: P | CE49: 4 | CF49: 0.525 | CG49: 30.255113 | CH49: -92.144462 | CI49: 18:20:00 | CJ49: 2 | CK49: 28LA325@ERA | CL49: 789-12-1-010 | CM49: 1.519 | CN49: 0 | CO49: 0 | CP49: A | CQ49: U | CR49: R | CS49: D
A50: 2021 | D50: 10 | E50: A | F50: 0 | G50: A | J50: 0 | K50: WE | L50: 0 | M50: 0 | N50: C | O50: 0 | P50: B | Q50: A | R50: B | S50: B | T50: 1.619 | U50: 1 | V50: 0 | W50: 2 | X50: 28 | Z50: 325 | AA50: A | AB50: A | AC50: B | AD50: 0 | AE50: D | AF50: A | AG50: A | AI50: A | AJ50: C | AK50: A | AL50: 0 | AM50: 0 | AN50: S | AO50: S | AP50: S | AQ50: S | AR50: 45 | AS50: BA | AT50: B | AU50: A | AV50: C | AW50: NN | AX50: N | AY50: N | AZ50: K | BA50: K | BB50: A | BC50: S | BD50: S | BE50: U | BG50: 2 | BH50: 9700 | BI50: 789-12 | BJ50: 28 | BK50: 17 | BL50: 6 | BM50: 2.044 | BN50: 1.39 | BO50: 1.514 | BP50: 0 | BQ50: 4 | BR50: 70 | BS50: 42 | BT50: 0 | BU50: 2.17 | BV50: 1.49 | BW50: 325 | BX50: 0.654 | BY50: D | BZ50: 3 | CA50: A | CB50: B | CC50: L | CD50: P | CE50: 4 | CF50: 0.53 | CG50: 30.255038 | CH50: -92.14447 | CI50: 10:12:00 | CJ50: 2 | CK50: 28LA325@ERA | CL50: 789-12-1-010 | CM50: 1.514 | CN50: 0 | CO50: 0 | CP50: A | CQ50: S | CR50: O | CS50: E
A51: 2021 | D51: 12 | E51: A | F51: 0 | G51: A | J51: 0 | K51: TU | L51: 0 | M51: 0 | N51: C | O51: 0 | P51: B | Q51: A | R51: C | S51: B | T51: 1.616 | U51: 0 | V51: 0 | W51: 2 | X51: 28 | Z51: 325 | AA51: A | AB51: A | AC51: B | AD51: 0 | AE51: E | AF51: A | AG51: B | AI51: A | AJ51: B | AK51: A | AL51: 0 | AM51: 0 | AN51: S | AO51: S | AP51: S | AQ51: S | AR51: 40 | AS51: JA | AT51: J | AU51: A | AV51: R | AW51: SS | AX51: S | AY51: S | AZ51: K | BA51: K | BB51: A | BC51: A | BD51: S | BE51: Y | BG51: 3 | BH51: 9700 | BI51: 789-12 | BJ51: 28 | BK51: 17 | BL51: 6 | BM51: 2.044 | BN51: 1.39 | BO51: 1.511 | BP51: 0 | BQ51: 4 | BR51: 70 | BS51: 42 | BT51: 0 | BU51: 2.17 | BV51: 1.49 | BW51: 325 | BX51: 0.654 | BY51: D | BZ51: 3 | CA51: B | CB51: A | CC51: L | CD51: P | CE51: 4 | CF51: 0.533 | CG51: 30.254999 | CH51: -92.144476 | CI51: 12:41:00 | CJ51: 3 | CK51: 28LA325@ERA | CL51: 789-12-1-010 | CM51: 1.511 | CN51: 0 | CO51: 0 | CP51: Z | CQ51: S | CR51: R | CS51: D
A52: =YEAR(TODAY()-1.7*365) -> 2021 | D52: 14 | E52: A | F52: 0 | G52: A | J52: 0 | K52: FR | L52: 0 | M52: 0 | N52: E | O52: 1 | P52: B | Q52: A | R52: B | S52: D | T52: 0 | U52: 3 | V52: 0 | W52: 2 | X52: 28 | Z52: 0 | AA52: A | AB52: A | AC52: B | AD52: 0 | AE52: C | AF52: A | AG52: A | AI52: A | AJ52: B | AK52: A | AL52: 0 | AM52: 0 | AN52: S | AO52: S | AP52: S | AQ52: S | AR52: 45 | AS52: BB | AT52: B | AU52: B | AV52: A | AW52: SN | AX52: S | AY52: N | AZ52: K | BA52: K | BB52: A | BC52: S | BD52: C | BE52: U | BG52: 2 | BH52: 0 | BJ52: 28 | BM52: 0 | BN52: 0 | BO52: 0 | BP52: 0 | BQ52: 0 | BS52: 0 | BT52: 0 | BU52: 0 | BV52: 0 | BW52: 0 | BX52: 0 | BY52: D | BZ52: 3 | CA52: B | CB52: A | CC52: L | CD52: P | CF52: 0 | CG52: 30.254785 | CH52: -92.144783 | CI52: 14:07:00 | CJ52: 7 | CK52: 28LA325@ERA | CL52: 5.59014728e+16 | CM52: 0.987 | CN52: 0 | CO52: 0 | CP52: A | CQ52: S | CR52: R | CS52: C

Sheet Query
A1: Crash Query:

Sheet CH
A1: 0. Crash History Dashboard
B2: =Outputs!C3 -> Project Name: | C2: =Outputs!D3 -> H. 98 65 32 | G2: =Outputs!I3 -> Intersection Class: | I2: =Outputs!J3 -> Rural 2-Lane 4-Leg | X2: =(K36-D36)/7 -> 9.571428571e-05 | Z2: =HLOOKUP(D$36,$BZ$71:$FK$175,176-72+1) -> BZ | AA2: =HLOOKUP(E$36,$BZ$71:$FK$175,176-72+1) -> BZ | AC2: =HLOOKUP(F$36,$BZ$71:$FK$175,176-72+1) -> CB | AD2: =HLOOKUP(G$36,$BZ$71:$FK$175,176-72+1) -> CB | AE2: =HLOOKUP(H$36,$BZ$71:$FK$175,176-72+1) -> CD | AG2: =HLOOKUP(I$36,$BZ$71:$FK$175,176-72+1) -> CK | AH2: =HLOOKUP(J$36,$BZ$71:$FK$175,176-72+1) -> CK | AI2: =HLOOKUP(K$36,$BZ$71:$FK$175,176-72+1) -> CL
B3: =Outputs!C4 -> Intersection ID: | C3: =Outputs!D4 -> 28LA325@ERA | Z3: =HLOOKUP(Z2,$BZ$175:$FK$176,2,FALSE) -> 2 | AA3: =HLOOKUP(AA2,$BZ$175:$FK$176,2,FALSE) -> 2 | AC3: =HLOOKUP(AC2,$BZ$175:$FK$176,2,FALSE) -> 4 | AD3: =HLOOKUP(AD2,$BZ$175:$FK$176,2,FALSE) -> 4 | AE3: =HLOOKUP(AE2,$BZ$175:$FK$176,2,FALSE) -> 6 | AG3: =HLOOKUP(AG2,$BZ$175:$FK$176,2,FALSE) -> 13 | AH3: =HLOOKUP(AH2,$BZ$175:$FK$176,2,FALSE) -> 13 | AI3: =HLOOKUP(AI2,$BZ$175:$FK$176,2,FALSE) -> 14
AA4: =Z3 -> 2 | AB4: =IF(AND(AA3=Z3,AA3+1<>AC3),AA3+1,AA3) -> 3 | AD4: =IF(AND(AC3=AA3,AC3+1<>AD3),AC3+1,AC3) -> 4 | AE4: =IF(AND(AD3=AC3,AD3+1<>AE3),AD3+1,AD3) -> 5 | AF4: =IF(AND(AE3=AD3,AE3+1<>AG3),AE3+1,AE3) -> 6 | AH4: =IF(AND(AG3=AE3,AG3+1<>AH3),AG3+1,AG3) -> 13 | AI4: =IF(AND(AH3=AG3,AH3+1<>AI3),AH3+1,AH3) -> 13 | AJ4: =AI3 -> 14
AA5: =Z2 -> BZ | AB5: =HLOOKUP(AB4,$BZ$176:$FK$177,2,FALSE) -> CA | AD5: =HLOOKUP(AD4,$BZ$176:$FK$177,2,FALSE) -> CB | AE5: =HLOOKUP(AE4,$BZ$176:$FK$177,2,FALSE) -> CC | AF5: =HLOOKUP(AF4,$BZ$176:$FK$177,2,FALSE) -> CD | AH5: =HLOOKUP(AH4,$BZ$176:$FK$177,2,FALSE) -> CK | AI5: =HLOOKUP(AI4,$BZ$176:$FK$177,2,FALSE) -> CK | AJ5: =AI2 -> CL
AB9: =VLOOKUP($D37,$BY$71:$FL$175,92) -> 85 | AD9: =IF(AB9>AD10,AB9,AD10+1) -> 85
AB10: =VLOOKUP($D39,$BY$71:$FL$175,92) -> 83 | AD10: 83
AB11: =VLOOKUP($D41,$BY$71:$FL$175,92) -> 82 | AD11: 82
AB12: =VLOOKUP($D43,$BY$71:$FL$175,92) -> 79 | AD12: 79
AB13: =VLOOKUP($D45,$BY$71:$FL$175,92) -> 78 | AD13: 78
AB14: =VLOOKUP($D47,$BY$71:$FL$175,92) -> 76 | AD14: 76
AB15: =VLOOKUP($D49,$BY$71:$FL$175,92) -> 74 | AD15: 74
AB16: =VLOOKUP($D51,$BY$71:$FL$175,92) -> 72 | AD16: =AB16 -> 72
Y17: =(D37-D51)/7 -> 8.371428571e-05 | Z17: =SUM(E37:K50) -> 75
Z18: =SUM(E53:K60) -> 37
A35: =$A$1 -> 0. Crash History Dashboard
D36: =BZ71 -> -92.144883 | E36: =D36+$X$2 -> -92.14478729 | F36: -92.14469157 | G36: -92.14459586 | H36: -92.14450014 | I36: -92.14440443 | J36: -92.14430871 | K36: =MAX(BZ71:EK71) -> -92.144213
D37: =MAX(BY:BY) -> 30.255287 | E37: =SUM(INDIRECT(AA$5&$AD10):INDIRECT(AB$5&$AD9)) -> 0 | F37: =SUM(INDIRECT(AB$5&$AD10):INDIRECT(AD$5&$AD9)) -> 0 | G37: =SUM(INDIRECT(AD$5&$AD10):INDIRECT(AE$5&$AD9)) -> 0 | H37: =SUM(INDIRECT(AE$5&$AD10):INDIRECT(AF$5&$AD9)) -> 0 | I37: =SUM(INDIRECT(AF$5&$AD10):INDIRECT(AH$5&$AD9)) -> 3 | J37: =SUM(INDIRECT(AH$5&$AD10):INDIRECT(AI$5&$AD9)) -> 1 | K37: =SUM(INDIRECT(AI$5&$AD10):INDIRECT(AJ$5&$AD9)) -> 1 | L37: \
L38: \
D39: =D37-$Y$17 -> 30.25520329 | E39: =SUM(INDIRECT(AA$5&$AD11):INDIRECT(AB$5&$AD10)) -> 0 | F39: =SUM(INDIRECT(AB$5&$AD11):INDIRECT(AD$5&$AD10)) -> 0 | G39: =SUM(INDIRECT(AD$5&$AD11):INDIRECT(AE$5&$AD10)) -> 0 | H39: =SUM(INDIRECT(AE$5&$AD11):INDIRECT(AF$5&$AD10)) -> 0 | I39: =SUM(INDIRECT(AF$5&$AD11):INDIRECT(AH$5&$AD10)) -> 2 | J39: =SUM(INDIRECT(AH$5&$AD11):INDIRECT(AI$5&$AD10)) -> 0 | K39: =SUM(INDIRECT(AI$5&$AD11):INDIRECT(AJ$5&$AD10)) -> 0 | L39: \
L40: \
D41: =D39-$Y$17 -> 30.25511957 | E41: =SUM(INDIRECT(AA$5&$AD12):INDIRECT(AB$5&$AD11)) -> 0 | F41: =SUM(INDIRECT(AB$5&$AD12):INDIRECT(AD$5&$AD11)) -> 0 | G41: =SUM(INDIRECT(AD$5&$AD12):INDIRECT(AE$5&$AD11)) -> 0 | H41: =SUM(INDIRECT(AE$5&$AD12):INDIRECT(AF$5&$AD11)) -> 0 | I41: =SUM(INDIRECT(AF$5&$AD12):INDIRECT(AH$5&$AD11)) -> 16 | J41: =SUM(INDIRECT(AH$5&$AD12):INDIRECT(AI$5&$AD11)) -> 0 | K41: =SUM(INDIRECT(AI$5&$AD12):INDIRECT(AJ$5&$AD11)) -> 1 | L41: \
L42: heat-map without base layer
D43: =D41-$Y$17 -> 30.25503586 | E43: =SUM(INDIRECT(AA$5&$AD13):INDIRECT(AB$5&$AD12)) -> 0 | F43: =SUM(INDIRECT(AB$5&$AD13):INDIRECT(AD$5&$AD12)) -> 0 | G43: =SUM(INDIRECT(AD$5&$AD13):INDIRECT(AE$5&$AD12)) -> 0 | H43: =SUM(INDIRECT(AE$5&$AD13):INDIRECT(AF$5&$AD12)) -> 0 | I43: =SUM(INDIRECT(AF$5&$AD13):INDIRECT(AH$5&$AD12)) -> 19 | J43: =SUM(INDIRECT(AH$5&$AD13):INDIRECT(AI$5&$AD12)) -> 0 | K43: =SUM(INDIRECT(AI$5&$AD13):INDIRECT(AJ$5&$AD12)) -> 0
D45: =D43-$Y$17 -> 30.25495214 | E45: =SUM(INDIRECT(AA$5&$AD14):INDIRECT(AB$5&$AD13)) -> 0 | F45: =SUM(INDIRECT(AB$5&$AD14):INDIRECT(AD$5&$AD13)) -> 1 | G45: =SUM(INDIRECT(AD$5&$AD14):INDIRECT(AE$5&$AD13)) -> 8 | H45: =SUM(INDIRECT(AE$5&$AD14):INDIRECT(AF$5&$AD13)) -> 7 | I45: =SUM(INDIRECT(AF$5&$AD14):INDIRECT(AH$5&$AD13)) -> 5 | J45: =SUM(INDIRECT(AH$5&$AD14):INDIRECT(AI$5&$AD13)) -> 0 | K45: =SUM(INDIRECT(AI$5&$AD14):INDIRECT(AJ$5&$AD13)) -> 0
L46: /
D47: =D45-$Y$17 -> 30.25486843 | E47: =SUM(INDIRECT(AA$5&$AD15):INDIRECT(AB$5&$AD14)) -> 1 | F47: =SUM(INDIRECT(AB$5&$AD15):INDIRECT(AD$5&$AD14)) -> 2 | G47: =SUM(INDIRECT(AD$5&$AD15):INDIRECT(AE$5&$AD14)) -> 1 | H47: =SUM(INDIRECT(AE$5&$AD15):INDIRECT(AF$5&$AD14)) -> 1 | I47: =SUM(INDIRECT(AF$5&$AD15):INDIRECT(AH$5&$AD14)) -> 1 | J47: =SUM(INDIRECT(AH$5&$AD15):INDIRECT(AI$5&$AD14)) -> 0 | K47: =SUM(INDIRECT(AI$5&$AD15):INDIRECT(AJ$5&$AD14)) -> 0 | L47: /
L48: /
D49: =D47-$Y$17 -> 30.25478471 | E49: =SUM(INDIRECT(AA$5&$AD16):INDIRECT(AB$5&$AD15)) -> 1 | F49: =SUM(INDIRECT(AB$5&$AD16):INDIRECT(AD$5&$AD15)) -> 0 | G49: =SUM(INDIRECT(AD$5&$AD16):INDIRECT(AE$5&$AD15)) -> 0 | H49: =SUM(INDIRECT(AE$5&$AD16):INDIRECT(AF$5&$AD15)) -> 2 | I49: =SUM(INDIRECT(AF$5&$AD16):INDIRECT(AH$5&$AD15)) -> 2 | J49: =SUM(INDIRECT(AH$5&$AD16):INDIRECT(AI$5&$AD15)) -> 0 | K49: =SUM(INDIRECT(AI$5&$AD16):INDIRECT(AJ$5&$AD15)) -> 0 | L49: /
L50: /
D51: =MIN(BY:BY) -> 30.254701
E52: Mon | F52: Tue | G52: Wed | H52: Thu | I52: Fri | J52: Sat | K52: Sun
D53: 0-2 | E53: =IFERROR(VLOOKUP(0,$BJ$71:$BQ$95,E$61,FALSE),0)+IFERROR(VLOOKUP(1,$BJ$71:$BQ$95,E$61,FALSE),0)+IFERROR(VLOOKUP(2,$BJ$71:$BQ$95,E$61,FALSE),0)+IFERROR(VLOOKUP(24,$BJ$71:$BQ$95,E$61,FALSE),0) -> 0 | F53: 0 | G53: 0 | H53: 0 | I53: 0 | J53: 0 | K53: 2
D54: 3-5 | E54: =IFERROR(VLOOKUP(3,$BJ$71:$BQ$95,E$61,FALSE),0)+IFERROR(VLOOKUP(4,$BJ$71:$BQ$95,E$61,FALSE),0)+IFERROR(VLOOKUP(5,$BJ$71:$BQ$95,E$61,FALSE),0) -> 0 | F54: 0 | G54: 0 | H54: 0 | I54: 0 | J54: 0 | K54: 0
D55: 6-8 | E55: =IFERROR(VLOOKUP(6,$BJ$71:$BQ$95,E$61,FALSE),0)+IFERROR(VLOOKUP(7,$BJ$71:$BQ$95,E$61,FALSE),0)+IFERROR(VLOOKUP(8,$BJ$71:$BQ$95,E$61,FALSE),0) -> 1 | F55: 1 | G55: 1 | H55: 0 | I55: 1 | J55: 0 | K55: 0
D56: 9-11 | E56: =IFERROR(VLOOKUP(9,$BJ$71:$BQ$95,E$61,FALSE),0)+IFERROR(VLOOKUP(10,$BJ$71:$BQ$95,E$61,FALSE),0)+IFERROR(VLOOKUP(11,$BJ$71:$BQ$95,E$61,FALSE),0) -> 1 | F56: 1 | G56: 1 | H56: 0 | I56: 1 | J56: 0 | K56: 1
D57: 12-14 | E57: =IFERROR(VLOOKUP(12,$BJ$71:$BQ$95,E$61,FALSE),0)+IFERROR(VLOOKUP(13,$BJ$71:$BQ$95,E$61,FALSE),0)+IFERROR(VLOOKUP(14,$BJ$71:$BQ$95,E$61,FALSE),0) -> 3 | F57: 1 | G57: 1 | H57: 1 | I57: 2 | J57: 1 | K57: 1
D58: 15-17 | E58: =IFERROR(VLOOKUP(15,$BJ$71:$BQ$95,E$61,FALSE),0)+IFERROR(VLOOKUP(16,$BJ$71:$BQ$95,E$61,FALSE),0)+IFERROR(VLOOKUP(17,$BJ$71:$BQ$95,E$61,FALSE),0) -> 2 | F58: 2 | G58: 0 | H58: 0 | I58: 4 | J58: 0 | K58: 0
D59: 18-20 | E59: =IFERROR(VLOOKUP(18,$BJ$71:$BQ$95,E$61,FALSE),0)+IFERROR(VLOOKUP(19,$BJ$71:$BQ$95,E$61,FALSE),0)+IFERROR(VLOOKUP(20,$BJ$71:$BQ$95,E$61,FALSE),0) -> 2 | F59: 0 | G59: 2 | H59: 1 | I59: 0 | J59: 0 | K59: 0
D60: 21-23 | E60: =IFERROR(VLOOKUP(21,$BJ$71:$BQ$95,E$61,FALSE),0)+IFERROR(VLOOKUP(22,$BJ$71:$BQ$95,E$61,FALSE),0)+IFERROR(VLOOKUP(23,$BJ$71:$BQ$95,E$61,FALSE),0) -> 1 | F60: 0 | G60: 0 | H60: 0 | I60: 2 | J60: 0 | K60: 0
E61: =HLOOKUP("MO",$BK$71:$BQ$99,100-72+1,FALSE) -> 4 | F61: =HLOOKUP("TU",$BK$71:$BQ$99,100-72+1,FALSE) -> 7 | G61: =HLOOKUP("WE",$BK$71:$BQ$99,100-72+1,FALSE) -> 2 | H61: =HLOOKUP("TH",$BK$71:$BQ$99,100-72+1,FALSE) -> 6 | I61: =HLOOKUP("FR",$BK$71:$BQ$99,100-72+1,FALSE) -> 5 | J61: =HLOOKUP("SA",$BK$71:$BQ$99,100-72+1,FALSE) -> 8 | K61: =HLOOKUP("SU",$BK$71:$BQ$99,100-72+1,FALSE) -> 3
A69: =$A$1 -> 0. Crash History Dashboard | N69: Legend | Z69: Collision Manner | AA69: 1 | AD69: Crash Type | AE69: =AA69+1 -> 2 | AH69: Intersection | AI69: =AE69+1 -> 3 | AL69: Severity | AM69: =AI69+1 -> 4 | AP69: Road Departure | AQ69: =AM69+1 -> 5 | AT69: Surface Condition | AU69: =AQ69+1 -> 6 | AX69: Year | AY69: =AU69+1 -> 7 | BB69: Lighting | BC69: =AY69+1 -> 8 | BF69: Vehicle Count | BG69: =BC69+1 -> 9 | BJ69: HoD X DoW | BK69: QA!$IA$1:$LS$339 | BU69: Mile point
Z70: Row Labels | AA70: Count of Collision Manner Code | AD70: Row Labels | AE70: Count of Crash Type | AH70: Row Labels | AI70: Count of Inter-section | AL70: Row Labels | AM70: Count of Severity Code | AP70: Row Labels | AQ70: Count of Roadway Departure | AT70: Row Labels | AU70: Count of Surface Cond Code | AX70: Row Labels | AY70: Count of Crash Year | BB70: Row Labels | BC70: Count of Light Code | BF70: Row Labels | BG70: Count of Vehicle Count | BJ70: Count of Day Of Wk | BK70: Column Labels | BU70: Row Labels | BV70: Count of Mile-point | BY70: Count of Dotd Latitude | BZ70: Column Labels
O71: Collision Manner | R71: Crash Type | V71: Severity | Z71: Right-turn-h | AA71: 1 | AD71: Small Veh. | AE71: 17 | AH71: Yes | AI71: 37 | AL71: Complaint | AM71: 14 | AP71: No | AQ71: 37 | AT71: Dry | AU71: 32 | AX71: 2018 | AY71: 14 | BB71: Dark - Continuous Street-Lights | BC71: 7 | BF71: 2 | BG71: 37 | BJ71: Row Labels | BK71: WE | BL71: SU | BM71: MO | BN71: FR | BO71: TH | BP71: TU | BQ71: SA | BU71: 0 | BV71: 11 | BY71: Row Labels | BZ71: -92.144883 | CA71: -92.144783 | CB71: -92.1447 | CC71: -92.144507 | CD71: -92.144504 | CE71: -92.144482 | CF71: -92.144478 | CG71: -92.144464 | CH71: -92.144462 | CI71: -92.144461 | CJ71: -92.144446 | CK71: -92.144443 | CL71: -92.144213 | CM71: Grand Total
O72: A | P72: Non-Collision | R72: A | S72: Pedestrian | V72: A | W72: Fatal | Z72: Other | AA72: 2 | AD72: Not Fixed | AE72: 1 | AH72: Grand Total | AI72: 37 | AL72: Moderate | AM72: 4 | AP72: Grand Total | AQ72: 37 | AT72: Wet | AU72: 5 | AX72: 2019 | AY72: 12 | BB72: Dark - Intersection Only Street-Light | BC72: 1 | BF72: Grand Total | BG72: 37 | BJ72: 2 | BL72: 1 | BU72: 0.509 | BV72: 1 | BY72: 30.254701 | CD72: 1 | CM72: 1 | FL72: =ROW(EK72) -> 72
O73: B | P73: Rear-End | R73: B | S73: Pedalcycle | V73: B | W73: Severe | Z73: Left-turn-f | AA73: 4 | AD73: Vertical Fixed | AE73: 1 | AL73: No Injury | AM73: 19 | AT73: Grand Total | AU73: 37 | AX73: 2020 | AY73: 11 | BB73: Daylight | BC73: 29 | BJ73: 7 | BN73: 1 | BP73: 1 | BU73: 0.515 | BV73: 1 | BY73: 30.254731 | BZ73: 1 | CM73: 1 | FL73: =ROW(EK73) -> 73
O74: C | P74: Head-on | R74: C | S74: ATV | V74: C | W74: Moderate | Z74: Rear-End | AA74: 12 | AD74: Responder | AE74: 2 | AL74: Grand Total | AM74: 37 | AX74: Grand Total | AY74: 37 | BB74: Grand Total | BC74: 37 | BJ74: 8 | BK74: 1 | BM74: 1 | BU74: 0.522 | BV74: 1 | BY74: 30.254735 | CD74: 1 | CM74: 1 | FL74: 74
O75: D | P75: Right-Angle | R75: D | S75: Motorcycle | V75: D | W75: Complaint | Z75: Right-Angle | AA75: 18 | AD75: Animal | AE75: 1 | BJ75: 9 | BK75: 1 | BU75: 0.523 | BV75: 1 | BY75: 30.254785 | CA75: 1 | CM75: 1 | FL75: 75
O76: E | P76: Left-turn-e | R76: E | S76: Parked | V76: E | W76: No Injury | Z76: Grand Total | AA76: 37 | AD76: Med. Vehicle | AE76: 15 | BJ76: 10 | BL76: 1 | BN76: 1 | BP76: 1 | BU76: 0.525 | BV76: 1 | BY76: 30.254831 | CB76: 1 | CM76: 1 | FL76: 76
O77: F | P77: Left-turn-f | R77: F | S77: Not Fixed | AD77: Grand Total | AE77: 37 | BJ77: 11 | BM77: 1 | BU77: 0.532 | BV77: 14 | BY77: 30.254937 | CC77: 7 | CM77: 7 | FL77: 77
O78: G | P78: Left-turn-g | R78: G | S78: Vertical Fixed | BJ78: 12 | BK78: 1 | BM78: 1 | BP78: 1 | BU78: 0.537 | BV78: 5 | BY78: 30.254941 | CE78: 5 | CM78: 5 | FL78: 78
O79: H | P79: Right-turn-h | R79: H | S79: Structures | V79: (Within) Intersection | BJ79: 13 | BL79: 1 | BM79: 1 | BN79: 1 | BO79: 1 | BQ79: 1 | BU79: 0.547 | BV79: 1 | BY79: 30.254958 | CF79: 14 | CM79: 14 | FL79: 79
O80: I | P80: Right-turn-i | R80: J | S80: Train | BJ80: 15 | BN80: 3 | BU80: 0.55 | BV80: 1 | BY80: 30.255095 | CL80: 1 | CM80: 1 | FL80: 80
O81: J | P81: S Swipe(sd) | R81: K | S81: Responder | V81: 0 | W81: No | BJ81: 16 | BM81: 1 | BP81: 1 | BU81: Grand Total | BV81: 37 | BY81: 30.255106 | CG81: 1 | CM81: 1 | FL81: 81
O82: K | P82: S Swipe(od) | R82: M | S82: Bus | V82: 1 | W82: Yes | BJ82: 17 | BM82: 1 | BN82: 1 | BP82: 1 | BY82: 30.255113 | CH82: 1 | CM82: 1 | FL82: 82
O83: Z | P83: Other | R83: N | S83: Animal | BJ83: 18 | BK83: 1 | BM83: 1 | BO83: 1 | BY83: 30.255143 | CI83: 1 | CM83: 1 | FL83: 83
R84: P | S84: Other Fixed | BJ84: 19 | BK84: 1 | BY84: 30.25526 | CJ84: 1 | CM84: 1 | FL84: 84
R85: Q | S85: Commercial | V85: Roadway Departure | BJ85: 20 | BM85: 1 | BY85: 30.255287 | CK85: 1 | CM85: 1 | FL85: 85
R86: R | S86: 3+ Vehicles | BJ86: 23 | BN86: 1 | BY86: Grand Total | BZ86: 1 | CA86: 1 | CB86: 1 | CC86: 7 | CD86: 2 | CE86: 5 | CF86: 14 | CG86: 1 | CH86: 1 | CI86: 1 | CJ86: 1 | CK86: 1 | CL86: 1 | CM86: 37 | FL86: 86
O87: Lighting Condition | R87: S | S87: Small Vehicle | V87: 0 | W87: No | BJ87: 14 | BM87: 1 | BN87: 1 | FL87: 87
O88: A | P88: Daylight | R88: T | S88: Miscellaneous | V88: 1 | W88: Yes | BJ88: 22 | BM88: 1 | FL88: 88
O89: B | P89: Dark - No Street-Lights | R89: U | S89: Medium Veh | BJ89: 21 | BN89: 1 | FL89: 89
BJ90: 0 | BL90: 1 | FL90: 90
O91: C | P91: Dark - Continuous Street-Lights | FL91: 91
R92: Surface Condition | FL92: 92
O93: D | P93: Dark - Intersection Only Street-Light | R93: A | S93: Dry | FL93: 93
R94: B | S94: Wet | FL94: 94
O95: E | P95: Dusk | R95: C | S95: Snow/Slush | FL95: 95
O96: F | P96: Dawn | R96: D | S96: Ice | FL96: 96
O97: Y | P97: Unknown | R97: E | S97: Contaminant | FL97: 97
O98: Z | P98: Other | R98: Y | S98: Unknown | FL98: 98
BK99: 2 | BL99: 3 | BM99: 4 | BN99: 5 | BO99: 6 | BP99: 7 | BQ99: 8 | FL99: 99
FL100: 100
FL101: 101
FL102: 102
FL103: 103
FL104: 104
FL105: 105
FL106: 106
FL107: 107
FL108: 108
FL109: 109
FL110: 110
FL111: 111
FL112: 112
FL113: 113
FL114: 114
FL115: 115
FL116: 116
FL117: 117
FL118: 118
FL119: 119
FL120: 120
FL121: 121
FL122: 122
FL123: 123
FL124: 124
FL125: 125
FL126: 126
FL127: 127
FL128: 128
FL129: 129
FL130: 130
FL131: 131
FL132: 132
FL133: 133
FL134: 134
FL135: 135
FL136: 136
FL137: =ROW(EK137) -> 137
FL138: 138
FL139: 139
FL140: 140
FL141: 141
FL142: 142
FL143: 143
FL144: 144
FL145: 145
FL146: 146
FL147: 147
FL148: 148
FL149: 149
FL150: 150
FL151: 151
FL152: 152
FL153: 153
FL154: 154
FL155: 155
FL156: 156
FL157: 157
FL158: 158
FL159: 159
FL160: 160
FL161: 161
FL162: 162
FL163: 163
FL164: 164
FL165: 165
FL166: 166
FL167: 167
FL168: 168
FL169: 169
FL170: 170
FL171: 171
FL172: 172
FL173: 173
FL174: 174
BZ175: BZ | CA175: CA | CB175: CB | CC175: CC | CD175: CD | CE175: CE | CF175: CF | CG175: CG | CH175: CH | CI175: CI | CJ175: CJ | CK175: CK | CL175: CL | CM175: CM | CN175: CN | CO175: CO | CP175: CP | CQ175: CQ | CR175: CR | CS175: CS | CT175: CT | CU175: CU | CV175: CV | CW175: CW | CX175: CX | CY175: CY | CZ175: CZ | DA175: DA | DB175: DB | DC175: DC | DD175: DD | DE175: DE | DF175: DF | DG175: DG | DH175: DH | DI175: DI | DJ175: DJ | DK175: DK | DL175: DL | DM175: DM | DN175: DN | DO175: DO | DP175: DP | DQ175: DQ | DR175: DR | DS175: DS | DT175: DT | DU175: DU | DV175: DV | DW175: DW | DX175: DX | DY175: DY | DZ175: DZ | EA175: EA | EB175: EB | EC175: EC | ED175: ED | EE175: EE | EF175: EF | EG175: EG | EH175: EH | EI175: EI | EJ175: EJ | EK175: EK | EL175: EL | EM175: EM | EN175: EN | EO175: EO | EP175: EP | EQ175: EQ | ER175: ER | ES175: ES | ET175: ET | EU175: EU | EV175: EV | EW175: EW | EX175: EX | EY175: EY | EZ175: EZ | FA175: FA | FB175: FB | FC175: FC | FD175: FD | FE175: FE | FF175: FF | FG175: FG | FH175: FH | FI175: FI | FJ175: FJ | FK175: FK
BZ176: 2 | CA176: =BZ176+1 -> 3 | CB176: =CA176+1 -> 4 | CC176: =CB176+1 -> 5 | CD176: =CC176+1 -> 6 | CE176: =CD176+1 -> 7 | CF176: =IF(CF71<0,CE176+1,"") -> 8 | CG176: =IF(CG71<0,CF176+1,"") -> 9 | CH176: 10 | CI176: 11 | CJ176: 12 | CK176: 13 | CL176: 14 | EB176: =IF(EB71<0,EA176+1,"") -> 
BZ177: =BZ175 -> BZ | CA177: =CA175 -> CA | CB177: CB | CC177: CC | CD177: CD | CE177: CE | CF177: CF | CG177: CG | CH177: CH | CI177: CI | CJ177: CJ | CK177: CK | CL177: CL | CM177: CM | CN177: CN | CO177: CO | CP177: CP | CQ177: CQ | CR177: CR | CS177: CS | CT177: CT | CU177: CU | CV177: CV | CW177: CW | CX177: CX | CY177: CY | CZ177: CZ | DA177: DA | DB177: DB | DC177: DC | DD177: DD | DE177: DE | DF177: DF | DG177: DG | DH177: DH | DI177: DI | DJ177: DJ | DK177: DK | DL177: DL | DM177: DM | DN177: DN | DO177: DO | DP177: DP | DQ177: DQ | DR177: DR | DS177: DS | DT177: DT | DU177: DU | DV177: DV | DW177: DW | DX177: DX | DY177: DY | DZ177: DZ | EA177: EA | EB177: EB | EC177: EC | ED177: ED | EE177: EE | EF177: EF | EG177: EG | EH177: EH | EI177: EI | EJ177: EJ | EK177: EK | EL177: EL | EM177: =EM175 -> EM | EN177: EN | EO177: EO | EP177: EP | EQ177: EQ | ER177: ER | ES177: ES | ET177: ET | EU177: EU | EV177: EV | EW177: EW | EX177: EX | EY177: EY | EZ177: EZ | FA177: FA | FB177: FB | FC177: FC | FD177: FD | FE177: FE | FF177: FF | FG177: FG | FH177: FH | FI177: FI | FJ177: FJ | FK177: FK

Sheet Inputs
B1: Name | C1: Input | E1: Suggested | G1: Options | H1: Notes
B3: All Analysis
B5: Project Name/Number | C5: =E5 -> H. 98 65 32 | E5: H. 98 65 32 | H5: Follow the suggested format. Preferential to use the six numbers of the Project Number and not include the phase (extra digits).
B7: Analyst | C7: DOTD Highway Safety | H7: Your Group, Name, or both.
B9: Analysis Date | C9: =E9 -> 2022-10-12 | E9: =TODAY() -> 2022-10-12
B11: Route | C11: =E11 -> LA 325 | E11: =VLOOKUP(QA!JN7,Tables!$BD$3:$BE$8,2,FALSE)&QA!LW7 -> LA 325
B13: Control-Section | C13: 065-30 | E13: 01-234 | H13: Format shall follow the "Suggested".
B15: Log-mile from | C15: =E15 -> 0 | E15: =MIN(QA!$HP$7:$HP$340) -> 0
C16: =IF(C15>C17,"Warning the number above ought to be smaller than the number below","") -> 
B17: Log-mile to | C17: =E17 -> 1.531 | E17: =MAX(QA!$HP$7:$HP$340) -> 1.531
B19: Intersection ID | C19: =E19 -> 28LA325@ERA | E19: 28LA325@ERA
B21: Intersection Classification | C21: Rural 2-Lane 4-Leg
B23: First Year | C23: =E23 -> 2019 | E23: =MIN(Data!A:A) -> 2019 | H23: Shall be a full year of data
C24: =IF(F24<3,"Should be at least 3 years","") ->  | F24: =C25-C23+1 -> 3
B25: Last Year | C25: =E25 -> 2021 | E25: =MAX(Data!A:A) -> 2021 | H25: Shall be a full year of data
B27: Major Legs | C27: West
C28: =IF(C27=C29,"Can't be the same!","") -> 
C29: East
B31: Location Method | C31: Log-Mile | G31: Log-Mile | H31: The primary method by which the crashes are located. Choose the appropriate value from the drop-down box. If using multiple Control-sections, use Mile Point.
G32: Mile-Point
B35: Intersection Analysis | I35: Entering ADT Calculator
I36: Average Daily Traffic (ADT) | R36: Input Verification | AA36: North | AB36: =IF(OR(AA36=$C$27,AA36=$C$29),"Major","Minor") -> Minor | AC36: =S37 -> 2600 | AD36: =W37 -> 2600 | AE36: =S41 -> 2600 | AF36: =W41 -> 2600 | AG36: =S45 -> 2600 | AH36: =W45 -> 2600 | AI36: =S49 -> 2600 | AJ36: =W49 -> 2600
E37: Enter the Average Entering Daily Traffic for each leg of the intersection into the Entering ADT Calculator to the right. Half the values from here <http://engrapps/hwyinfo/tahiwstl/> or apply adjustment factors to the raw data from here <http://wwwsp.dotd.la.gov/Inside_LaDOTD/Divisions/Multimodal/Data_Collection/Pages/Traffic-Monitoring.aspx>. For the first link, use the year of the data in parenthesis. Leave any nonexistent leg as the default value. Engineering Judgment may be needed to estimate unknown ADT from legs without ADT. Do not predict future ADT. | I37: =C23 -> 2019 | J37: =5200/2 -> 2600 | M37: =I37+1 -> 2020 | N37: =J37 -> 2600 | R37: =$I$37 -> 2019 | S37: =IF(TYPE(J37)<>1,IF(TYPE(J54)<>1,"",J54*$T$39/$T$56),J37) -> 2600 | V37: =R37+1 -> 2020 | W37: =IF(TYPE(N37)<>1,IF(TYPE(N54)<>1,"",N54*$X$39/$X$56),N37) -> 2600 | AA37: East | AB37: =IF(OR(AA37=$C$27,AA37=$C$29),"Major","Minor") -> Major | AC37: =T38 -> 12650 | AD37: =X38 -> 12650 | AE37: =T42 -> 12650 | AF37: =X42 -> 12650 | AG37: =T46 -> 12650 | AH37: =X46 -> 12650 | AI37: =T50 -> 12650 | AJ37: =X50 -> 12650
C38: Note: One may find that it is easier to enter data into the Entering ADT Calculator than to determine the three values below. | I38: =25300/2 -> 12650 | J38: =IFERROR(SUM(R38,S37,T38,S39),0) -> 30500 | K38: =I38 -> 12650 | M38: =I38 -> 12650 | N38: =IFERROR(SUM(V38,W37,X38,W39),0) -> 30500 | O38: =K38 -> 12650 | R38: =IF(TYPE(I38)<>1,IF(TYPE(I55)<>1,"",I55*$T$39/$T$56),I38) -> 12650 | T38: =IF(TYPE(K38)<>1,IF(TYPE(K55)<>1,"",K55*$T$39/$T$56),K38) -> 12650 | V38: =IF(TYPE(M38)<>1,IF(TYPE(M55)<>1,"",M55*$X$39/$X$56),M38) -> 12650 | X38: =IF(TYPE(O38)<>1,IF(TYPE(O55)<>1,"",O55*$X$39/$X$56),O38) -> 12650 | AA38: South | AB38: =IF(OR(AA38=$C$27,AA38=$C$29),"Major","Minor") -> Minor | AC38: =S39 -> 2600 | AD38: =W39 -> 2600 | AE38: =S43 -> 2600 | AF38: =W43 -> 2600 | AG38: =S47 -> 2600 | AH38: =W47 -> 2600 | AI38: =S51 -> 2600 | AJ38: =W51 -> 2600
J39: =J37 -> 2600 | N39: =J39 -> 2600 | S39: =IF(TYPE(J39)<>1,IF(TYPE(J56)<>1,"",J56*$T$39/$T$56),J39) -> 2600 | T39: =SUM(I38,J37,K38,J39) -> 30500 | W39: =IF(TYPE(N39)<>1,IF(TYPE(N56)<>1,"",N56*$X$39/$X$56),N39) -> 2600 | X39: =SUM(M38,N37,O38,N39) -> 30500 | AA39: West | AB39: =IF(OR(AA39=$C$27,AA39=$C$29),"Major","Minor") -> Major | AC39: =R38 -> 12650 | AD39: =V38 -> 12650 | AE39: =R42 -> 12650 | AF39: =V42 -> 12650 | AG39: =R46 -> 12650 | AH39: =V46 -> 12650 | AI39: =R50 -> 12650 | AJ39: =V50 -> 12650
I41: =M37+1 -> 2021 | J41: =N37 -> 2600 | M41: =I41+1 -> 2022 | N41: =J41 -> 2600 | R41: =V37+1 -> 2021 | S41: =IF(TYPE(J41)<>1,IF(TYPE(J58)<>1,"",J58*$T$43/$T$60),J41) -> 2600 | V41: =R41+1 -> 2022 | W41: =IF(TYPE(N41)<>1,IF(TYPE(N58)<>1,"",N58*$X$43/$X$60),N41) -> 2600 | AC41: =I37 -> 2019 | AD41: =AC41+1 -> 2020 | AE41: =AD41+1 -> 2021 | AF41: 2022 | AG41: 2023 | AH41: 2024 | AI41: 2025 | AJ41: 2026
I42: =M38 -> 12650 | J42: =IFERROR(SUM(R42,S41,T42,S43),0) -> 30500 | K42: =O38 -> 12650 | M42: =I42 -> 12650 | N42: =IFERROR(SUM(V42,W41,X42,W43),0) -> 30500 | O42: =K42 -> 12650 | R42: =IF(TYPE(I42)<>1,IF(TYPE(I59)<>1,"",I59*$T$43/$T$60),I42) -> 12650 | T42: =IF(TYPE(K42)<>1,IF(TYPE(K59)<>1,"",K59*$T$43/$T$60),K42) -> 12650 | V42: =IF(TYPE(M42)<>1,IF(TYPE(M59)<>1,"",M59*$X$43/$X$60),M42) -> 12650 | X42: =IF(TYPE(O42)<>1,IF(TYPE(O59)<>1,"",O59*$X$43/$X$60),O42) -> 12650 | AA42: =HLOOKUP(C23,AC41:AJ44,4,FALSE) -> AC | AB42: Major | AC42: =SUMIF($AB$36:AC$39,$AB42,AC36:AC39) -> 25300 | AD42: =SUMIF($AB$36:AD$39,$AB42,AD36:AD39) -> 25300 | AE42: =SUMIF($AB$36:AE$39,$AB42,AE36:AE39) -> 25300 | AF42: =SUMIF($AB$36:AF$39,$AB42,AF36:AF39) -> 25300 | AG42: =SUMIF($AB$36:AG$39,$AB42,AG36:AG39) -> 25300 | AH42: =SUMIF($AB$36:AH$39,$AB42,AH36:AH39) -> 25300 | AI42: =SUMIF($AB$36:AI$39,$AB42,AI36:AI39) -> 25300 | AJ42: =SUMIF($AB$36:AJ$39,$AB42,AJ36:AJ39) -> 25300
J43: =N39 -> 2600 | N43: =J43 -> 2600 | S43: =IF(TYPE(J43)<>1,IF(TYPE(J60)<>1,"",J60*$T$43/$T$60),J43) -> 2600 | T43: =SUM(I42,J41,K42,J43) -> 30500 | W43: =IF(TYPE(N43)<>1,IF(TYPE(N60)<>1,"",N60*$X$43/$X$60),N43) -> 2600 | X43: =SUM(M42,N41,O42,N43) -> 30500 | AA43: =HLOOKUP(C25,AC41:AJ44,4,FALSE) -> AE | AB43: Minor | AC43: =SUMIF($AB$36:AC$39,$AB43,AC36:AC39) -> 5200 | AD43: =SUMIF($AB$36:AD$39,$AB43,AD36:AD39) -> 5200 | AE43: =SUMIF($AB$36:AE$39,$AB43,AE36:AE39) -> 5200 | AF43: =SUMIF($AB$36:AF$39,$AB43,AF36:AF39) -> 5200 | AG43: =SUMIF($AB$36:AG$39,$AB43,AG36:AG39) -> 5200 | AH43: =SUMIF($AB$36:AH$39,$AB43,AH36:AH39) -> 5200 | AI43: =SUMIF($AB$36:AI$39,$AB43,AI36:AI39) -> 5200 | AJ43: =SUMIF($AB$36:AJ$39,$AB43,AJ36:AJ39) -> 5200
AC44: AC | AD44: AD | AE44: AE | AF44: AF | AG44: AG | AH44: AH | AI44: AI | AJ44: AJ
I45: =M41+1 -> 2023 | J45: =N41 -> 2600 | M45: =I45+1 -> 2024 | N45: =J45 -> 2600 | R45: =V41+1 -> 2023 | S45: =IF(TYPE(J45)<>1,IF(TYPE(J62)<>1,"",J62*$T$47/$T$64),J45) -> 2600 | V45: =R45+1 -> 2024 | W45: =IF(TYPE(N45)<>1,IF(TYPE(N62)<>1,"",N62*$X$47/$X$64),N45) -> 2600
I46: =M42 -> 12650 | J46: =IFERROR(SUM(R46,S45,T46,S47),0) -> 30500 | K46: =O42 -> 12650 | M46: =I46 -> 12650 | N46: =IFERROR(SUM(V46,W45,X46,W47),0) -> 30500 | O46: =K46 -> 12650 | R46: =IF(TYPE(I46)<>1,IF(TYPE(I63)<>1,"",I63*$T$47/$T$64),I46) -> 12650 | T46: =IF(TYPE(K46)<>1,IF(TYPE(K63)<>1,"",K63*$T$47/$T$64),K46) -> 12650 | V46: =IF(TYPE(M46)<>1,IF(TYPE(M63)<>1,"",M63*$X$47/$X$64),M46) -> 12650 | X46: =IF(TYPE(O46)<>1,IF(TYPE(O63)<>1,"",O63*$X$47/$X$64),O46) -> 12650
B47: =C23+F24-1 -> 2021 | C47: =MROUND(MAX(100,E47),100) -> 25300 | E47: =AVERAGE(INDIRECT(AA42&"42"):(INDIRECT(AA43&"42"))) -> 25300 | H47: vehicles / day | J47: =N43 -> 2600 | N47: =J47 -> 2600 | S47: =IF(TYPE(J47)<>1,IF(TYPE(J64)<>1,"",J64*$T$47/$T$64),J47) -> 2600 | T47: =SUM(I46,J45,K46,J47) -> 30500 | W47: =IF(TYPE(N47)<>1,IF(TYPE(N64)<>1,"",N64*$X$47/$X$64),N47) -> 2600 | X47: =SUM(M46,N45,O46,N47) -> 30500
B48: Major AADT
I49: =M45+1 -> 2025 | J49: =N45 -> 2600 | M49: =I49+1 -> 2026 | N49: =J49 -> 2600 | R49: =V45+1 -> 2025 | S49: =IF(TYPE(J49)<>1,IF(TYPE(J66)<>1,"",J66*$T$51/$T$68),J49) -> 2600 | V49: =R49+1 -> 2026 | W49: =IF(TYPE(N49)<>1,IF(TYPE(N66)<>1,"",N66*$X$51/$X$68),N49) -> 2600
I50: =M46 -> 12650 | J50: =IFERROR(SUM(R50,S49,T50,S51),0) -> 30500 | K50: =O46 -> 12650 | M50: =I50 -> 12650 | N50: =IFERROR(SUM(V50,W49,X50,W51),0) -> 30500 | O50: =K50 -> 12650 | R50: =IF(TYPE(I50)<>1,IF(TYPE(I67)<>1,"",I67*$T$51/$T$68),I50) -> 12650 | T50: =IF(TYPE(K50)<>1,IF(TYPE(K67)<>1,"",K67*$T$51/$T$68),K50) -> 12650 | V50: =IF(TYPE(M50)<>1,IF(TYPE(M67)<>1,"",M67*$X$51/$X$68),M50) -> 12650 | X50: =IF(TYPE(O50)<>1,IF(TYPE(O67)<>1,"",O67*$X$51/$X$68),O50) -> 12650
J51: =N47 -> 2600 | N51: =J51 -> 2600 | S51: =IF(TYPE(J51)<>1,IF(TYPE(J68)<>1,"",J68*$T$51/$T$68),J51) -> 2600 | T51: =SUM(I50,J49,K50,J51) -> 30500 | W51: =IF(TYPE(N51)<>1,IF(TYPE(N68)<>1,"",N68*$X$51/$X$68),N51) -> 2600 | X51: =SUM(M50,N49,O50,N51) -> 30500
C54: Note: Use this when if you have the data and are missing the ADT for one of the intersection's legs. | E54: Enter the Off-Peak Count (OPC) for each leg of the intersection into the Entering ADT Calculator to the right. Leave nonexistent leg as the default value. | I54: =$I$37 -> 2019 | J54: OPC N | M54: =I54+1 -> 2020 | N54: OPC N | R54: =$I$37 -> 2019 | S54: =IF(TYPE(J37)<>1,0,J54) -> OPC N | V54: =R54+1 -> 2020 | W54: =IF(TYPE(N37)<>1,0,N54) -> OPC N
I55: OPC W | K55: OPC E | M55: OPC W | O55: OPC E | R55: =IF(TYPE(I38)<>1,0,I55) -> OPC W | T55: =IF(TYPE(K38)<>1,0,K55) -> OPC E | V55: =IF(TYPE(M38)<>1,0,M55) -> OPC W | X55: =IF(TYPE(O38)<>1,0,O55) -> OPC E
J56: OPC S | N56: OPC S | S56: =IF(TYPE(J39)<>1,0,J56) -> OPC S | T56: =SUM(IF(TYPE(I38)<>1,0,I55),IF(TYPE(J37)<>1,0,J54),IF(TYPE(K38)<>1,0,K55),IF(TYPE(J39)<>1,0,J56)) -> 0 | W56: =IF(TYPE(N39)<>1,0,N56) -> OPC S | X56: =SUM(IF(TYPE(M38)<>1,0,M55),IF(TYPE(N37)<>1,0,N54),IF(TYPE(O38)<>1,0,O55),IF(TYPE(N39)<>1,0,N56)) -> 0
I58: =M54+1 -> 2021 | J58: OPC N | M58: =I58+1 -> 2022 | N58: OPC N | R58: =V54+1 -> 2021 | S58: =IF(TYPE(J41)<>1,0,J58) -> OPC N | V58: =R58+1 -> 2022 | W58: =IF(TYPE(N41)<>1,0,N58) -> OPC N
I59: OPC W | K59: OPC E | M59: OPC W | O59: OPC E | R59: =IF(TYPE(I42)<>1,0,I59) -> OPC W | T59: =IF(TYPE(K42)<>1,0,K59) -> OPC E | V59: =IF(TYPE(M42)<>1,0,M59) -> OPC W | X59: =IF(TYPE(O42)<>1,0,O59) -> OPC E
J60: OPC S | N60: OPC S | S60: =IF(TYPE(J43)<>1,0,J60) -> OPC S | T60: =SUM(IF(TYPE(I42)<>1,0,I59),IF(TYPE(J41)<>1,0,J58),IF(TYPE(K42)<>1,0,K59),IF(TYPE(J43)<>1,0,J60)) -> 0 | W60: =IF(TYPE(N43)<>1,0,N60) -> OPC S | X60: =SUM(IF(TYPE(M42)<>1,0,M59),IF(TYPE(N41)<>1,0,N58),IF(TYPE(O42)<>1,0,O59),IF(TYPE(N43)<>1,0,N60)) -> 0
B62: =B47 -> 2021 | C62: =MROUND(MAX(100,E62),100) -> 5200 | E62: =AVERAGE(INDIRECT(AA42&"43"):(INDIRECT(AA43&"43"))) -> 5200 | H62: vehicles / day | I62: =M58+1 -> 2023 | J62: OPC N | M62: =I62+1 -> 2024 | N62: OPC N | R62: =V58+1 -> 2023 | S62: =IF(TYPE(J45)<>1,0,J62) -> OPC N | V62: =R62+1 -> 2024 | W62: =IF(TYPE(N45)<>1,0,N62) -> OPC N
B63: Minor AADT | I63: OPC W | K63: OPC E | M63: OPC W | O63: OPC E | R63: =IF(TYPE(I46)<>1,0,I63) -> OPC W | T63: =IF(TYPE(K46)<>1,0,K63) -> OPC E | V63: =IF(TYPE(M46)<>1,0,M63) -> OPC W | X63: =IF(TYPE(O46)<>1,0,O63) -> OPC E
J64: OPC S | N64: OPC S | S64: =IF(TYPE(J47)<>1,0,J64) -> OPC S | T64: =SUM(IF(TYPE(I46)<>1,0,I63),IF(TYPE(J45)<>1,0,J62),IF(TYPE(K46)<>1,0,K63),IF(TYPE(J47)<>1,0,J64)) -> 0 | W64: =IF(TYPE(N47)<>1,0,N64) -> OPC S | X64: =SUM(IF(TYPE(M46)<>1,0,M63),IF(TYPE(N45)<>1,0,N62),IF(TYPE(O46)<>1,0,O63),IF(TYPE(N47)<>1,0,N64)) -> 0
I66: =M62+1 -> 2025 | J66: OPC N | M66: =I66+1 -> 2026 | N66: OPC N | R66: =V62+1 -> 2025 | S66: =IF(TYPE(J49)<>1,0,J66) -> OPC N | V66: =R66+1 -> 2026 | W66: =IF(TYPE(N49)<>1,0,N66) -> OPC N
I67: OPC W | K67: OPC E | M67: OPC W | O67: OPC E | R67: =IF(TYPE(I50)<>1,0,I67) -> OPC W | T67: =IF(TYPE(K50)<>1,0,K67) -> OPC E | V67: =IF(TYPE(M50)<>1,0,M67) -> OPC W | X67: =IF(TYPE(O50)<>1,0,O67) -> OPC E
J68: OPC S | N68: OPC S | S68: =IF(TYPE(J51)<>1,0,J68) -> OPC S | T68: =SUM(IF(TYPE(I50)<>1,0,I67),IF(TYPE(J49)<>1,0,J66),IF(TYPE(K50)<>1,0,K67),IF(TYPE(J51)<>1,0,J68)) -> 0 | W68: =IF(TYPE(N51)<>1,0,N68) -> OPC S | X68: =SUM(IF(TYPE(M50)<>1,0,M67),IF(TYPE(N49)<>1,0,N66),IF(TYPE(O50)<>1,0,O67),IF(TYPE(N51)<>1,0,N68)) -> 0
B71: Pattern Recognition Analysis (PRA)
B73: Δ | C73: =E73 -> 0.45 | E73: =MAX(MIN((C17-C15)/2,E88*15),E88*2) -> 0.45 | H73: Scanning Interval in miles
B75: δ | C75: =E75 -> 0.01531 | E75: =MAX(MIN((C17-C15)/100,E88*1),E88/2) -> 0.01531 | H75: Interval Step in miles
B77: Pattern Recognition Threshold (RPT) | C77: =E77 -> 0.9 | E77: =MAX(0.9,(MIN(0.99,0.0001*QA!A348+0.89))) -> 0.9 | H77: Threshold that differentiates if the PRA is significant or not
B80: Crashes Analysis
B82: Land Use / Area Type | C82: =E82 -> Rural | E82: =LEFT(C21,5) -> Rural | G82: Urban | H82: Area type surrounding the road. Choose the appropriate value from the drop-down box.
G83: Rural
B85: Evaluate "Med" Priority Crashes? | C85: No | G85: No | H85: Choose weather to evaluated crashes of medium priority along with high priority. This value affects the analysis on the "QA" spreadsheet. See the "Start" spreadsheet cells N17:N20 for definitions.
G86: Yes
B88: Location Deviation | C88: =E88 -> 0.03 | E88: =IF(C82=G82,0.02, 0.03) -> 0.03 | H88: The threshold beyond which the location's deviate should be reported.
B90: Analysis Level | C90: =G90 -> Standard | G90: Standard
G91: Advanced
B94: Name | C94: Input 1 | E94: Input 2 | H94: Notes
B96: Benefit-Cost Analysis
C98: Value | E98: Identifier
B99: CMF for Severity-K | C99: 0.66 | E99: 1234
B100: CMF for Severity-A | C100: =C99 -> 0.66 | E100: =E99 -> 1234
B101: CMF for Severity-B | C101: =C100 -> 0.66 | E101: 1234
B102: CMF for Severity-C | C102: 0.66 | E102: 1234
B103: CMF for Severity-O | C103: =C104 -> 0.77 | E103: =E104 -> 5678
B104: CMF for All | C104: 0.77 | E104: 5678
B106: Service Life | C106: 10 | H106: There are some workbooks with service life found at <http://www.cmfclearinghouse.org/resources_servlifecrashcostguide.cfm>.
B108: Construction Cost | C108: 2200000
B109: Engineering Cost | C109: 0
B110: Right-of-Way Cost | C110: 0
B111: Utilities Cost | C111: 0
B113: Inflation | C113: 0.03 | H113: Also known as the Discount Rate. Set by DOTD policy.
B116: Geolinear Segregator | H116: Helps to separate crashes using a line. Especially useful when dealing with frontage roads.
C118: Latitude | E118: Longitude | J118: lat = latitude = y
B119: Point 1 | C119: Latitude | E119: Longitude | H119: One point of the line. | J119: long = longitude = x
B121: Point 2 | C121: Latitude | E121: Longitude | H121: Another point of the line. | J121: y = mx +b
J122: lat = m*long + b
B123: m= | C123: =IFERROR((C121-C119)/(E121-E119),0) -> 0 | D123: b= | E123: =IFERROR(C121-C123*E121,0) -> 0 | J123: b = lat - m*long

Sheet QA
A1: status 0: combination | B1: status 2: review | C1: status 3: quality | D1: authenticity | E1: status 1: view | G1: priority | H1: status 4: report errors | I1: status 5: research | K1: Quality Assurance: | AH1: =IF(OR(DC363>0.925,COUNTIFS(E:E,"yes",A:A,"finish")<2,RIGHT(Outputs!D25,1)*RIGHT(Outputs!D56,1)<5,Outputs!D26*Outputs!D57<0.33),"Done","Continue") -> Done | AL1: =IF(Start!K34>0,"Add rows!","") ->  | CO1: =KW1 -> Travel Directions | CY1: Prior Movement | DB1: Roadway | DH1: =$DI$3*$MH1+$DI$4 ->  | DI1: =DH1<MG1 ->  | DJ1: corrected rate = | DK1: =ROUND(IFERROR(COUNTA(DK7:DK340)/(DP3),0),1) -> 0 | DL1: / entry | DS1: Corrected Values | EG1: =IFERROR(COUNTIF(EG7:EG340,"report")/COUNTA(EG7:EG340),0) -> 0 | EH1: Location errors | EY1: error rate = | FB1: =ROUND(IFERROR(COUNTA(FC7:FC340)/(DP3),0),1) -> 0 | FC1: / entry | FE1: =IF(GH1="no","Z",IF(COUNTIF(IC:IC,FQ1)>0,FQ1,"X")) -> 0 | FF1: =IF(OR(AND(DV1<>"",FN1=FO1),AND(DV1="",FN1<>FO1)),"fix Coll","X") -> X | FG1: =IF(OR(AND(DW1<>"",FY1=FZ1),AND(DW1="",FY1<>FZ1)),"fix Coll","X") -> X | FH1: =ACOS( SIN(RADIANS(INDIRECT(EJ$388&$GP1)))*SIN(RADIANS(EJ1)) + COS(RADIANS(INDIRECT(EJ$388&$GP1)))*COS(RADIANS(EJ1))*COS(RADIANS(EK1)-RADIANS(INDIRECT(EK$388&$GP1))) ) * 3958.7 -> 0 | FI1: =ABS(EF1-INDIRECT(HP$388&$GP1)) -> 0 | FJ1: =IF(OR(EF1="",INDIRECT(HP$388&GP1)=""),IF(OR(EJ1="",INDIRECT(EJ$388&GP1)="",INDIRECT(EJ$388&GP1)=0),"N/A",FH1),FI1) -> N/A | FK1: =IF(LEFT(FJ1,1)="0",LEFT(FJ1,6),LEFT(FJ1,5)) -> N/A | FL1: =IF(LEN(K1)=6,K1,M1) -> 0 | FM1: IF(LEN(GK1)>15,IF(COUNTIF('U:\Crash Data\[Crash research LA - 2022 Aug.xlsx]data'!$Z:$Z,GL1),"Done","Add"),IF(COUNTIF('U:\Crash Data\[Crash research LA - 2022 Aug.xlsx]data'!$X:$X,GK1),"Done","Add")) | FN1: =IFERROR(VLOOKUP(W1,Tables!$B$3:$D$14,3,FALSE),"X") -> X | FO1: =IF(DV1=0,FN1,IFERROR(VLOOKUP(DV1,Tables!$B$3:$D$14,3,FALSE),"X")) -> X | FP1: =IF(OR(DV1="",DV1="Other"),IF(COUNTIF(Tables!$D$3:$D$22,NU1)=1,NU1,QA!FO1),QA!FO1) -> X | FQ1: =INDIRECT(FQ$388&$GP1) -> 0 | FR1: =IF(OR(FL1="000-00",FL1=0,FL1=""),PROPER(EH1),FL1) -> Location Errors | FS1: =IF(MG1="",IF(EJ1="",IF(AM1="","X",AM1&", "&AN1),EJ1&", "&EK1),MG1&", "&MH1) -> DOTD Latitude, DOTD Longitude | FT1: =IFERROR(FK1*1,IF(AND(EG1<>"report",EG1<>"",EG1<>EG$344),IF(EG1=EG$343,EG$349,0),"N/A")) -> 0 | FU1: =AJ1 -> 0 | FV1: =MS1 -> Vehicle Severity | FW1: =IFERROR(IF(JP1="A",VLOOKUP(KH1,Tables!$CH$3:$CL$11,5,FALSE),IF(JP1="C",VLOOKUP(1*IF(LEFT(JX1,1)="0",RIGHT(JX1,1),JX1),Tables!$CI$37:$CL$102,4,FALSE),IF(JP1="B",VLOOKUP(IF(LEN(JX1)=2,JX1,"0"&JX1)&IF(LEN(JI1)=2,JI1,"0"&JI1),Tables!$CK$101:$CL$412,2,FALSE),"determine "&LZ1))),"determine "&LZ1) -> determine DOTD District | FX1: =GS1 -> 0 | FY1: =IFERROR(VLOOKUP(X1,Tables!L$3:M$21,2,FALSE),"X") -> X | FZ1: =IF(DW1=0,FY1,IFERROR(VLOOKUP(DW1,Tables!L$3:M$21,2,FALSE),"X")) -> X | GA1: =INDIRECT($HQ$388&$GP1) -> 0 | GB1: =IF(HQ1="",IF(DX1<>"",DX1,GA1),HQ1) -> 0 | GC1: =IFERROR(VLOOKUP(AL1,Tables!BW$3:BX$13,2,FALSE),"X") -> X | GD1: =IF(EE1=0,GC1,VLOOKUP(EE1,Tables!BW$3:BX$13,2,FALSE)) -> X | GE1: =INDIRECT(DZ$388&$GP1) -> 0 | GF1: =IF(DZ1="",GE1,DZ1) -> 0 | GG1: =IF(OR(MC1="J",MD1="J",KA1="J"),"J",IF(OR(MC1="I",MD1="I"),"C",IF(OR(KA1="G",KA1="I",JJ1=1),"M",IF(OR(MC1="D",MD1="D",MQ1="F"),"D",IF(OR(LD1="M",LE1="M"),"L",IF(HW1="B","B",IF(OR(MC1="H",MD1="H",HW1="H"),"G",IF(OR(HW1="D",HW1="G",HW1="F"),IF(MP1="A","G","F"),IF(OR(HW1="A",HW1="C",HW1="E",HW1="I",HW1="J",HW1="K",HW1="L",HW1="M",HW1="N",HW1="P"),"F",IF(OR(HW1="Q",HW1="S"),"L","O")))))))))) -> O | GH1: yes | GK1: =SUBSTITUTE(INDIRECT(GK$388&$GP1),"-","") ->  | GL1: =RIGHT(GK1,15) ->  | GM1: =IF(OR(AND(FP1<>"X",COUNTA(GG1:GJ1)=4,GG1<>"O"),GH1="no",GH1="duplicate",AND(GI1="Z",GJ1="Z")),FM1,"X") -> X | GP1: =ROW(D1) -> 1 | GU1: =IF(Inputs!$C$85=Inputs!$G$85,TRUE,FALSE) -> TRUE | GY1: Location Issues | IC1: =IF(GM1="X",FQ1,"X") -> 0 | IZ1: Changing | JA1: Crash Year | JB1: Crash Num | JC1: Crash Date | JD1: Crash Hour | JE1: Access Control Code | JF1: Alcohol Use | JG1: Alignment Code | JH1: Bypass | JI1: City Code | JJ1: Construction / Maintenance Zone | JK1: Day Of Wk | JL1: DOTD Property Damage | JM1: Hit & Run | JN1: Hwy Type Code | JO1: Inter-section | JP1: Invest Agency Code | JQ1: Light Code | JR1: Kind of Location | JS1: Collision Manner Code | JT1: Mile-Post | JU1: Injured Count | JV1: Killed Count | JW1: Vehicle Count | JX1: Parish Code | JY1: Population Code | JZ1: Pri Hwy No. | KA1: Road Condition Code | KB1: Road Relation Code | KC1: Road Type Code | KD1: RR Train Involve | KE1: Severity Code | KF1: Surface Cond Code | KG1: Surface Type Code | KH1: LSP Troop | KI1: Weather Code | KJ1: Driver1 Condition Code | KK1: Driver2 Condition Code | KL1: Est Speed1 | KM1: Est Speed2 | KN1: Vehicle1 1st Harm Event Code | KO1: Vehicle2 1st Harm Event Code | KP1: Vehicle1 Most Harm Event Code | KQ1: Vehicle2 Most Harm Event Code | KR1: Posted Speed | KS1: Prior Movement Codes | KT1: Vehicle1 Prior Movement Code | KU1: Vehicle2 Prior Movement Code | KV1: Traffic Control Code | KW1: Travel Directions | KX1: Vehicle1 Travel Direction | KY1: Vehicle2 Travel Direction | KZ1: Vehicle1 Condition Code | LA1: Vehicle2 Condition Code | LB1: Vehicle1 Type Code | LC1: Vehicle2 Type Code | LD1: Vehicle1 Violations Code | LE1: Vehicle2 Violations Code | LF1: Pedestrian Condition | LG1: Acc Class | LH1: ADT | LI1: Control-Section | LJ1: DOTD Parish | LK1: Functional Classification | LL1: Hwy Class | LM1: Log-mi From | LN1: Log-mi To | LO1: Log-mile | LP1: Median Width | LQ1: Lane Count | LR1: Pave Type | LS1: Pave Width | LT1: Pedestrian | LU1: Mile-post From | LV1: Mile-post To | LW1: Route | LX1: Section Length | LY1: Type Accident (defunct) | LZ1: DOTD District | MA1: Primary Contributing Factor | MB1: Secendary Contributing Factor | MC1: Vehicle1 Movement Reason | MD1: Vehicle2 Movement Reason | ME1: Urban Area | MF1: Mile-point | MG1: DOTD Latitude | MH1: DOTD Longitude | MI1: Crash Time | MJ1: Spotted By | MK1: Intersection Id | ML1: LRS Id | MM1: LRS Log-mile | MN1: Roadway Departure | MO1: Lane Departure | MP1: Location Type | MQ1: Crash Type | MR1: Contributing Factor | MS1: Vehicle Severity | NA1: Advanced QA
CJ2: Collision Manner:Crash Type | CN2: V1 | CO2: V2 | CQ2: Intersection / Access | CW2: =JD1 -> Crash Hour | CY2: V1 | CZ2: V2 | DB2: Departure | DR2: Initials | EX2: entries with errors | FB2: =IFERROR(COUNTIF(FC7:FC340,"corrected")/(A348),0) -> 0 | FC2: Errors Reported? | FN2: Crash1 (coll) | FT2: Location deviation | FZ2: Crash Type | GD2: Location Type | GE2: R.Depart | GG2: T Condition | GJ2: Report Quality | GK2: =K1 -> Quality Assurance: | GM2: Crash Recorded? | GP2: row | GX2: Over Represent | HF2: Evaluation Score | HQ2: 1 | IA2: All Location Crash type | IB2: ORL Crash type | IZ2: Location
BX3: Prior Movement | CA3: Move Direction | CI3: Collision Manner & Crash Type Agree 1? | CK3: Collision Manner & Crash Type Agree 2? | CM3: Collision Manner & Angle Agree? | CP3: Intersection & IntersectionID Agree? | CR3: Location Type & Intersection Agree? | CT3: Collision Manner & Access Agree? | CV3: Correct Same as Original | CX3: Might be Night | DA3: Collision Manner & Move Prior Agree? | DC3: Road Depart & Crash Type Agree? | DH3: m= | DI3: =Inputs!C123 -> 0 | DJ3: entries corrected | DK3: =IFERROR(COUNTIF(DK7:DK340,"corrected")/(A348),0) -> 0 | DM3: Solutions Count | DP3: =COUNTA(DP7:DP340)-COUNTIF(DP7:DP340,"can't view")-COUNTIF(DP7:DP340,"evaluate") -> 0 | DS3: the values in the below columns will supersede original values | EG3: Location Evaluation | EP3: Error Notation | FA3: Reported | FM3: Documented | FN3: Reported | FO3: Actual | FP3: Alt A | FQ3: where1 | FR3: where2 | FS3: where3 | FU3: H.Severity | FV3: V.Severity | FW3: who | FX3: when | FY3: Reported | FZ3: Actual | GA3: Reported | GB3: Actual | GC3: Reported | GD3: Actual | GE3: Reported | GF3: Actual | GG3: Traffic C | GH3: Availability | GI3: Narrative | GJ3: Diagram | GK3: =AH1 -> Done | GU3: Conditional | GY3: Collision | GZ3: Crash Type | HB3: Location Type | HC3: Night Crashes | HD3: Wet Crashes | HE3: All Crashes | HG3: Evaluation Scores | HN3: Collision Manner | HO3: Crash type | HP3: =Inputs!C31 -> Log-Mile | HQ3: Inter-section | HR3: Light Condition | HS3: Location Type | HU3: Location Access | HV3: All Access | HW3: Collision Manner | HX3: Impaired | HY3: Access Control | HZ3: Vehicle Scenario | IZ3: Critical | NA3: Collision Manner & Violation Agree? | NB3: Violation | ND3: Violation | NF3: Vehicle Type | NG3: Veh Type | NI3: Veh Type | NK3: Opp-Direction & Curve / Contributing Factor | NL3: Alignment | NM3: Contributing Factor | NN3: Alignment | NO3: Contributing Factor | NP3: Crash Type & Property Damage? | NQ3: Property Damage | NR3: Property Damage | NT3: Collision Manner Predicted & Actual | NU3: =IF(AND(FN3<>FO3,FO3<>"Z"),FO3,IF(OR(COUNTIF(LD3:LE3,"T")>0,COUNTIF(KT3:KU3,"D")>0),"Q",IF(OR(FO3="A",JW3=1,MQ3="B",MQ3="E",MQ3="G",MQ3="H",MQ3="J",MQ3="N",MQ3="P",MQ3="T"),"A",IF(IFERROR(VLOOKUP(LEFT(TRIM(KX3&KY3),2),Tables!$AJ$49:$AK$68,2,FALSE),"A")="O",IF(COUNTIF(KT3:KU3,"I")+COUNTIF(KT3:KU3,"M")+COUNTIF(KT3:KU3,"O")=2,"P",IF(AND(COUNTIF(KT3:KU3,"I")+COUNTIF(KT3:KU3,"M")+COUNTIF(KT3:KU3,"O")=1,COUNTIF(KT3:KU3,"J")+COUNTIF(KT3:KU3,"N")+COUNTIF(KT3:KU3,"P")=1),"N",IF(AND(COUNTIF(KT3:KU3,"I")+COUNTIF(KT3:KU3,"M")+COUNTIF(KT3:KU3,"O")=1,COUNTIF(KT3:KU3,"B")=1),"F",IF(AND(COUNTIF(KT3:KU3,"C")+COUNTIF(KT3:KU3,"E")+COUNTIF(KT3:KU3,"F")>0,FO3<>"C",JO3=0,MP3<>"A"),"K",IF(AND(COUNTIF(KT3:KU3,"I")+COUNTIF(KT3:KU3,"M")+COUNTIF(KT3:KU3,"O")=1,COUNTIF(KT3:KU3,"A")+COUNTIF(KT3:KU3,"K")+COUNTIF(KT3:KU3,"M")+COUNTIF(KT3:KU3,"N")+COUNTIF(KT3:KU3,"J")+COUNTIF(KT3:KU3,"P")+COUNTIF(KT3:KU3,"Q")>0),"M",FO3))))),IF(AND(COUNTIF(KT3:KU3,"I")+COUNTIF(KT3:KU3,"M")+COUNTIF(KT3:KU3,"O")=1,COUNTIF(KT3:KU3,"A")+COUNTIF(KT3:KU3,"K")+COUNTIF(KT3:KU3,"M")+COUNTIF(KT3:KU3,"N")+COUNTIF(KT3:KU3,"J")+COUNTIF(KT3:KU3,"P")+COUNTIF(KT3:KU3,"Q")>0),"M",IF(KX3=KY3,IF(AND(JO3=0,MP3<>"A",MP3<>"B",MP3<>"C"),IF(COUNTIF(LD3:LE3,"D")>0,"B",IF(OR(COUNTIF(LD3:LE3,"C")+COUNTIF(LD3:LE3,"F")>0,COUNTIF(KT3:KU3,"H")>0),"J",FO3)),IF(OR(AND(COUNTIF(KU3,"J")+COUNTIF(KU3,"N")+COUNTIF(KU3,"P")=1,COUNTIF(KT3,"A")+COUNTIF(KT3,"B")+COUNTIF(KT3,"E")+COUNTIF(KT3,"F")+COUNTIF(KT3,"H")+COUNTIF(KT3,"K")+COUNTIF(KT3,"M")+COUNTIF(KT3,"N")+COUNTIF(KT3,"O")+COUNTIF(KT3,"P")+COUNTIF(KT3,"Q")=1,FO3<>"I"),AND(COUNTIF(KT3,"J")+COUNTIF(KT3,"N")+COUNTIF(KT3,"P")=1,COUNTIF(KU3,"A")+COUNTIF(KU3,"B")+COUNTIF(KU3,"E")+COUNTIF(KU3,"F")+COUNTIF(KU3,"H")+COUNTIF(KU3,"K")+COUNTIF(KU3,"M")+COUNTIF(KU3,"N")+COUNTIF(KU3,"O")+COUNTIF(KU3,"P")+COUNTIF(KU3,"Q")=1,FO3<>"I")),"L",IF(OR(AND(COUNTIF(KU3,"I")+COUNTIF(KU3,"M")+COUNTIF(KU3,"O")=1,COUNTIF(KT3,"A")+COUNTIF(KT3,"B")+COUNTIF(KT3,"E")+COUNTIF(KT3,"F")+COUNTIF(KT3,"H")+COUNTIF(KT3,"K")+COUNTIF(KT3,"M")+COUNTIF(KT3,"N")+COUNTIF(KT3,"O")+COUNTIF(KT3,"P")+COUNTIF(KT3,"Q")=1),AND(COUNTIF(KT3,"I")+COUNTIF(KT3,"M")+COUNTIF(KT3,"O")=1,COUNTIF(KU3,"A")+COUNTIF(KU3,"B")+COUNTIF(KU3,"E")+COUNTIF(KU3,"F")+COUNTIF(KU3,"H")+COUNTIF(KU3,"K")+COUNTIF(KU3,"M")+COUNTIF(KU3,"N")+COUNTIF(KU3,"O")+COUNTIF(KU3,"P")+COUNTIF(KU3,"Q")=1)),"E",IF(OR(COUNTIF(KT3:KU3,"I")+COUNTIF(KT3:KU3,"M")+COUNTIF(KT3:KU3,"O")=2,COUNTIF(KT3:KU3,"J")+COUNTIF(KT3:KU3,"N")+COUNTIF(KT3:KU3,"P")=2),"J",FO3)))),IF(KX3<>KY3,IF(COUNTIF(LD3:LE3,"K")>0,"G",IF(AND(COUNTIF(LD3:LE3,"H")+COUNTIF(LD3:LE3,"K")+COUNTIF(LD3:LE3,"S")+COUNTIF(LD3:LE3,"Y")+COUNTIF(LD3:LE3,"Z")>0,COUNTIF(KT3:KU3,"J")+COUNTIF(KT3:KU3,"N")+COUNTIF(KT3:KU3,"P")=1,KT3<>KU3),IFERROR(VLOOKUP(KX3&KY3,Tables!$AJ$49:$AL$63,3,FALSE),FO3),IF(AND(OR(FO3="D",FO3="Z"),COUNTIF(KT3:KU3,"J")),"H",IF(OR(FO3="G",FO3="H",FO3="I"),FO3,"D"))))))))))) -> Actual
K4: Route | L4: Mile- | M4: Cntrl-Sctn | N4: Log- | O4: tot | P4: pdo | Q4: fat | R4: inj | S4: num | T4: num | U4: crash | V4: most | W4: manner | X4: type | Y4: surf | Z4: crash | AA4: par | AB4: hour | AC4: int | AD4: iv | AE4: dir | AF4: move | AG4: Alco | AH4: Intersection ID | AI4: LRS ID | AJ4: Severity | AK4: Rdwy | AL4: Loc | AM4: Computed | AN4: Computed | AO4: hwy type cd | AP4: vision obscure1 | AQ4: movement reason1 | AR4: lighting cd | AS4: dr cond cd1 | AT4: veh cond cd1 | DH4: b= | DI4: =Inputs!E123 -> 0 | DK4: Corrected? | DP4: =IFERROR(DP3/A345,0) -> 0 | EA4: __Vehicle 1__ | EC4: __Vehicle 2__ | EJ4: Updated Coordinates | EL4: Coordinate Evaluation | EP4: Location | ER4: Collision Manner | ES4: Crash type | ET4: Intersection | EU4: Road Depar-ture | EV4: Location Type | EW4: Lighting | EX4: Hour | EY4: Other | EZ4: Report Issues | FB4: Errors | GL4: =IFERROR(COUNTA(GD7:INDIRECT($GD$390&$GP$341))/$A$348,0) -> 0 | IY4: Move to Segment | IZ4: Using | NB4: V1 | NC4: V2 | ND4: V1 | NE4: V2 | NG4: V1 | NH4: V2 | NI4: V1 | NJ4: V2
L5: Point | N5: Mile | O5: acc | P5: acc | Q5: acc | R5: acc | S5: fat | T5: inj | U5: date | V5: harm evt | W5: coll | X5: crash | Y5: cond | Z5: num | AA5: ish | AD5: agy | AE5: trav | AF5: prior | AG5: hol | AK5: Dep | AL5: Type | AM5: Latitude | AN5: Longitude | BX5: All V | BY5: V1 | BZ5: V2 | CA5: All V | CB5: V1 | CC5: V2 | DH5: Calculated Latitude | DI5: Comparison | DP5: Review Notes | DQ5: Possible Solutions | DS5: Light Condition | DT5: Hour of Day | DU5: Hit & Run | DV5: Collision Manner | DW5: Crash type | DX5: Intersec-tion | DY5: Intersec-tion ID | DZ5: Road Departure | EA5: Prior Movement | EB5: Travel Direction | EC5: Prior Movement | ED5: Travel Direction | EE5: Location Type | EF5: =HP3 -> Log-Mile | EH5: Feature | EJ5: Latitude | EK5: Longitude | FF5: Coll | FG5: Acc | GL5: =IFERROR(SUBTOTAL(3,GJ7:INDIRECT($GJ$390&$GP$341))/$A$345,0) -> 0 | GP5: =ROW(D5) -> 5 | GQ5: MoY | GS5: Year | GU5: review | IZ5: Removed
FF6: check | FG6: check | GK6: crash # | GP6: 6 | IZ6: Not Used | JA6: =Data!A1 -> CRASH YEAR | JB6: =Data!B1 -> CRASH NUM | JC6: =Data!C1 -> CRASH DATE | JD6: =Data!D1 -> CRASH HOUR | JE6: =Data!E1 -> ACCESS CNTL CD | JF6: =Data!F1 -> ALCOHOL | JG6: =Data!G1 -> ALIGNMENT CD | JH6: =Data!H1 -> BYPASS | JI6: =Data!I1 -> CITY CD | JJ6: =Data!J1 -> CONST MAINT ZN | JK6: =Data!K1 -> DAY OF WK | JL6: =Data!L1 -> DOTD PROP DAM | JM6: =Data!M1 -> HIT AND RUN | JN6: =Data!N1 -> HWY TYPE CD | JO6: =Data!O1 -> INTERSECTION | JP6: =Data!P1 -> INVEST AGENCY CD | JQ6: =Data!Q1 -> LIGHTING CD | JR6: =Data!R1 -> LOC TYPE CD | JS6: =Data!S1 -> MAN COLL CD | JT6: =Data!T1 -> MILE POST | JU6: =Data!U1 -> NUM TOT INJ | JV6: =Data!V1 -> NUM TOT KIL | JW6: =Data!W1 -> NUM VEH | JX6: =Data!X1 -> PARISH CD | JY6: =Data!Y1 -> POP CD | JZ6: =Data!Z1 -> PRI HWY NUM | KA6: =Data!AA1 -> ROAD COND CD | KB6: =Data!AB1 -> ROAD REL CD | KC6: =Data!AC1 -> ROAD TYPE CD | KD6: =Data!AD1 -> RR TRAIN INV | KE6: =Data!AE1 -> SEVERITY CD | KF6: =Data!AF1 -> SURF COND CD | KG6: =Data!AG1 -> SURF TYPE CD | KH6: =Data!AH1 -> TROOP | KI6: =Data!AI1 -> WEATHER CD | KJ6: =Data!AJ1 -> DR COND CD1 | KK6: =Data!AK1 -> DR COND CD2 | KL6: =Data!AL1 -> EST SPEED1 | KM6: =Data!AM1 -> EST SPEED2 | KN6: =Data!AN1 -> F HARM EV CD1 | KO6: =Data!AO1 -> F HARM EV CD2 | KP6: =Data!AP1 -> M HARM EV CD1 | KQ6: =Data!AQ1 -> M HARM EV CD2 | KR6: =Data!AR1 -> POSTED SPEED | KS6: =Data!AS1 -> PRIOR MOVEMENTS | KT6: =Data!AT1 -> PRIOR MOVEMENT CD1 | KU6: =Data!AU1 -> PRIOR MOVEMENT CD2 | KV6: =Data!AV1 -> TRAFF CNTL CD | KW6: =Data!AW1 -> TRAVEL DIRS | KX6: =Data!AX1 -> TRAVEL DIR1 | KY6: =Data!AY1 -> TRAVEL DIR2 | KZ6: =Data!AZ1 -> VEH COND CD1 | LA6: =Data!BA1 -> VEH COND CD2 | LB6: =Data!BB1 -> VEH TYPE CD1 | LC6: =Data!BC1 -> VEH TYPE CD2 | LD6: =Data!BD1 -> VIOLATIONS CD1 | LE6: =Data!BE1 -> VIOLATIONS CD2 | LF6: =Data!BF1 -> PED COND | LG6: =Data!BG1 -> ACC CLASS | LH6: =Data!BH1 -> ADT | LI6: =Data!BI1 -> CSECT | LJ6: =Data!BJ1 -> DOTD PARISH | LK6: =Data!BK1 -> FUN CLASS | LL6: =Data!BL1 -> HWY CLASS | LM6: =Data!BM1 -> LOGMI FROM | LN6: =Data!BN1 -> LOGMI TO | LO6: =Data!BO1 -> LOGMILE | LP6: =Data!BP1 -> MED WIDTH | LQ6: =Data!BQ1 -> NUM LANES | LR6: =Data!BR1 -> PAVE TYPE | LS6: =Data!BS1 -> PAVE WIDTH | LT6: =Data!BT1 -> PEDESTRIAN | LU6: =Data!BU1 -> MILEPOST FROM | LV6: =Data!BV1 -> MILEPOST TO | LW6: =Data!BW1 -> ROUTE | LX6: =Data!BX1 -> SEC LENGTH | LY6: =Data!BY1 -> TYPE ACC | LZ6: =Data!BZ1 -> DISTRICT | MA6: =Data!CA1 -> PRI CONTRIB FAC | MB6: =Data!CB1 -> SEC CONTRIB FAC | MC6: =Data!CC1 -> MOVEMENT REASON 1 | MD6: =Data!CD1 -> MOVEMENT REASON 2 | ME6: =Data!CE1 -> URBAN AREA | MF6: =Data!CF1 -> MILEPOINT | MG6: =Data!CG1 -> dotd latitude | MH6: =Data!CH1 -> dotd longitude | MI6: =Data!CI1 -> crash time | MJ6: =Data!CJ1 -> spotted by | MK6: =Data!CK1 -> intersection id | ML6: =Data!CL1 -> LRS id | MM6: =Data!CM1 -> LRS log mile | MN6: =Data!CN1 -> Roadway Departure | MO6: =Data!CO1 -> lane departure | MP6: =Data!CP1 -> Location type | MQ6: =Data!CQ1 -> Crash type | MR6: =Data!CR1 -> Contributing Factor | MS6: =Data!CS1 -> Vehicle Severity
A7: =IFERROR(IF(AND(B7="done",C7="good",H7="done",I7="done"),"done","finish"),IFERROR(IF(AND(B7="done",C7="good",H7="done"),"done","finish"),IFERROR(IF(AND(B7="done",C7="good",I7="done"),"done","finish"),IF(AND(B7="done",C7="good"),"done","finish")))) -> finish | B7: =IF(AND(OR(EJ7="",EK7=""),OR(EG7="",LEFT(EG7,6)="report",DP7="not within study area")),"where?",IF(OR(CELL("type",DQ7)<>"l",DP7="evaluate"),"solution?","done")) -> where? | C7: =IF(OR(D7<>"A",AND(OR(CI7=CheckMark,CI7="checked"),CK7=CheckMark,CL7=CheckMark,CM7<>"resolve",CP7=CheckMark,CR7<>"resolve",CS7=CheckMark,OR(CT7=CheckMark,CT7="checked"),CU7<>4,CV7=CheckMark,CX7=CheckMark,DA7<>"resolve",DC7<>"resolve")),IF(Inputs!$C$90=Inputs!$G$90,"good",IF(AND(NT7<>FALSE,NA7<>"resolve",NF7<>"resolve",NK7<>"resolve",NP7<>"resolve"),"good","issue2")),"issue") -> issue | D7: =IF(IFERROR(COUNTIF(K7:AF7,0)>11,FALSE),"Z",IF(DP7="not within study area","B","A")) -> A | E7: =IF(COUNTIFS(A:A,"finish",GV:GV,"top")<=2,IF(AND(OR(A7="done",GU7="Yes"),DP7<>"can't view"),"yes","no"),IF(AND(OR(A7="done",GV7="top"),DP7<>"can't view"),"yes","no")) -> no | G7: =IF($D7="A",IF(HF7>=$GZ$350,"high",IF(HF7>=$HD$350,"med","low")),"X") -> low | H7: =IF(AND(OR(FC7="Done",FC7="Z"),GM7<>"X"),"done","finish") -> done | I7: =IF(OR(GM7=0,AND(GM7<>0,GM7<>"X"),AND(FF7="X",FG7="X",IFERROR(RIGHT(INDIRECT(GK$388&$GP7),3)*1,RIGHT(GK7,3)*1)<>0,COUNTBLANK(GG7:GJ7)<1,COUNTIF(GG7:GJ7,"O")<1)),"done","finish") ->  | K7: =Data!Z2 -> 325 | L7: =Data!CF2 -> 0.532 | M7: =Data!BI2 -> 789-12 | N7: =Data!BO2 -> 1.508 | U7: =Data!C2 -> 00:00:00 | W7: =IFERROR(VLOOKUP(Data!S2,Tables!$A$3:$B$18,2,FALSE),0) -> Rear End | X7: =IFERROR(VLOOKUP(Data!CQ2,Tables!$J$3:$L$21,3,FALSE),0) -> Small Veh | Y7: =Data!AF2 -> B | Z7: =SUBSTITUTE(Data!B2,"-","")&"-" -> - | AA7: =Data!X2 -> 28 | AB7: =Data!D2 -> 19 | AC7: =Data!O2*1 -> 1 | AD7: =Data!P2 -> B | AE7: =TRIM(Data!AW2) -> NN | AF7: =Data!AS2 -> BJ | AG7: =Data!F2 -> 0 | AH7: =TRIM(Data!CK2) -> 28LA325@ERA | AI7: =Data!CL2 -> 789-12-1-010 | AJ7: =Data!AE2 -> E | AK7: =Data!CN2 -> 0 | AL7: =IFERROR(VLOOKUP(Data!CP2,Tables!BV$3:BW$13,2,FALSE),0) -> Intersection | AM7: =Data!CG2 -> 30.254958 | AN7: =Data!CH2 -> -92.144478 | AO7: =Data!N2 -> C | AQ7: =Data!CC2 -> L | AR7: =IFERROR(VLOOKUP(Data!Q2,Tables!$AP$3:$AQ$10,2,FALSE),"Z") -> Night - CSL | AS7: =Data!AJ2 -> A | AT7: =Data!AZ2 -> K | BX7: =Data!AS2 -> BJ | BY7: =IF(AND(JW7<2,MD7="A"),Data!AU2,Data!AT2) -> B | BZ7: =IF(AND(JW7<2,MD7="A"),MID(BX7,3,1),Data!AU2) -> J | CA7: =Data!AW2 -> NN | CB7: =IF(AND(JW7<2,MD7="A"),Data!AY2,Data!AX2) -> N | CC7: =IF(AND(JW7<2,MD7="A"),MID(CA7,3,1),Data!AY2) -> N | CF7: =IF(D7="Z",CheckMark,IF($HO7=Tables!$L$10,IF(DW7=Tables!$L$10,CheckMark,"9"),CheckMark)) -> ✓ | CG7: =IF(D7="Z",CheckMark,IF(DV7=Tables!$B$14,CheckMark,IF(AND($HN7=Tables!$B$14,COUNTIF(Tables!$D$15:$D$22,HW7)=0,NOT(HX7)),"7",CheckMark))) -> ✓ | CH7: =IF(AND(LEN(KX7&KY7)=1,COUNTIF(Tables!Z$185:Z$210,HW7&MQ7)=0),"5",CheckMark) -> ✓ | CI7: =IF(CF7<>CheckMark,"issue "&CF7,IF(CG7<>CheckMark,"issue "&CG7,IF(CH7<>CheckMark,"issue "&CH7,CheckMark))) -> ✓ | CJ7: =HN7&":"&HO7 -> Rear End:Small Veh | CK7: =IF(CL7=CheckMark,CheckMark,"issue "&CL7) -> ✓ | CL7: =IF(D7="Z",CheckMark,IF(AND(INDIRECT(DV$388&$GP7)=0,DV7=0),1,IF(AND(INDIRECT(DW$388&$GP7)=0,DW7=0),2,IF(COUNTIF(Tables!Z$3:Z$177,HW7&MQ7)=1,3,CheckMark)))) -> ✓ | CM7: =IF(AND(HZ7="NV",LEN(TRIM(KX7)&TRIM(KY7))<3),CheckMark,IF(AND(HZ7="SV",LEN(TRIM(KX7)&TRIM(KY7))=1),CheckMark,IF(AND(OR(HZ7="MV",HZ7="SE",HZ7="ME"),LEN(TRIM(KX7)&TRIM(KY7))=2),IF(OR(HW7="A",HW7="Z",HW7="Q",HW7="S"),CheckMark,IF(IFERROR(VLOOKUP(HW7,Tables!$D$4:$G$22,4,FALSE)<>VLOOKUP(LEFT(TRIM(KX7&KY7),2),Tables!$AJ$49:$AK$68,2,FALSE),TRUE),IF(COUNTIF(KT7:KU7,"K")>0,CheckMark,"resolve"),CheckMark)),IF(AND(HZ7="ME",LEN(TRIM(KX7)&TRIM(KY7))=1),CheckMark,"resolve")))) -> ✓ | CN7: =KX7 -> N | CO7: =KY7 -> N | CP7: =IFERROR(IF(OR(AND(HQ7=1,MK7=0),AND(HQ7=0,MK7<>0)),"resolve",CheckMark),"Z") -> ✓ | CQ7: =HQ7&" "&HU7 -> 1 1 | CR7: =IF(OR(AND(HQ7=1,MP7<>"D",HY7,HU7<>1),AND(HQ7=0,MP7="D",HY7),AND(HQ7=0,MP7="A",NOT(HY7)),AND(HQ7=1,HU7<>1,NOT(HY7),MP7="Z")),"resolve",CheckMark) -> ✓ | CS7: =IF(OR(AND(HQ7=1,MP7<>"D",HY7,HU7<>1),AND(HQ7=0,MP7="D",HY7,HU7=1),AND(HQ7=0,MP7="A",NOT(HY7)),AND(HQ7=1,HU7<>1,NOT(HY7),MP7="Z")),"X",CheckMark) -> ✓ | CT7: =IF(CU7=CheckMark,CheckMark,"issue "&CU7) -> ✓ | CU7: =IF(D7="Z",CheckMark,IF(AND(COUNTIF(Tables!$AN$19:$AN$22,HW7),HV7<>0,NOT(COUNTIF(Tables!$AN$31:$AN$38,KT7)),NOT(COUNTIF(Tables!$AN$31:$AN$38,KU7)),MQ7<>"A",MQ7<>"B",MQ7<>"C",MC7<>"A",MD7<>"A",NOT(HY7)),"6",IF(AND(COUNTIF(Tables!$AN$4:$AN$16,HW7),HV7<>1),"4",IF(AND(COUNTIF(Tables!$AN$43:$AN$48,HW7),HY7,MP7<>"D"),"8",CheckMark)))) -> ✓ | CV7: =IF(COUNTIF(EP7:EY7,"why")>0,"resolve",CheckMark) -> ✓ | CW7: =IFERROR(JD7*1,"") -> 19 | CX7: =IF(AND(OR(OR(AND(OR(GQ7>10.5,GQ7<3.5),CW7>18),CW7>20.5),CW7<5.5),HR7="Day"),"resolve",CheckMark) -> ✓ | CY7: =KT7 -> B | CZ7: =KU7 -> J | DA7: =IF(AND(HZ7="NV",LEN(TRIM(SUBSTITUTE(KT7,"Z",""))&TRIM(KU7))<2),CheckMark,IF(AND(OR(HZ7="SV",HZ7="ME"),LEN(TRIM(KT7)&TRIM(KU7))=1),IF(IFERROR(HLOOKUP(IF(KT7="",KU7,KT7),Tables!$CP$1:$DO$22,VLOOKUP(HW7,Tables!$CN$3:$CO$22,2,FALSE),FALSE),TRUE),"resolve",CheckMark),IF(OR(IFERROR(HLOOKUP(KT7,Tables!$CP$1:$DO$22,VLOOKUP(HW7,Tables!$CN$3:$CO$22,2,FALSE),FALSE),TRUE),IFERROR(HLOOKUP(KU7,Tables!$CP$1:$DO$22,VLOOKUP(HW7,Tables!$CN$3:$CO$22,2,FALSE),FALSE),TRUE)),"resolve",CheckMark))) -> resolve | DB7: =IFERROR(MN7*1,"") -> 0 | DC7: =IF(OR(IFERROR(VLOOKUP(MQ7,Tables!J$3:N$21,5,FALSE),"")="B",AND(IFERROR(IF(VLOOKUP(LL7,Tables!CA$3:CD$19,4,FALSE)="Maybe",FALSE,VLOOKUP(LL7,Tables!CA$3:CD$19,4,FALSE)),IF(LP7>11,FALSE,TRUE)),COUNTIF(CY7:CZ7,"E")>0),COUNTIF(CY7:CZ7,"G")>0),CheckMark,IF(DB7=IFERROR(VLOOKUP(MQ7,Tables!J$3:N$21,5,FALSE),""),CheckMark,"resolve")) -> ✓ | DK7: =IF(COUNTA(DS7:EF7)>0,"corrected","X") -> X | DM7: =IF(COUNTIF(DQ$377:DQ$381,DQ7)>0,0,COUNTIF(INDIRECT(DQ$389&GP$5):INDIRECT(DQ$389&GP$341),DQ7)) -> 0 | EL7: =IFERROR(VLOOKUP(LL7,Tables!$CA$3:$CC$19,3,TRUE),"U") -> U | EM7: =IF(AND(EJ7<>0,EK7<>0,FH7>VLOOKUP(EL7,Tables!$CA$23:$CC$24,MAX(HV7,IF(AND(AH7<>"",AH7<>0),1,0))+2,FALSE)),"report",CheckMark) -> ✓ | EP7: =IF(OR($EG7="report location",$EM7="report"),EJ7,"") ->  | EQ7: =IF(OR($EG7="report location",$EM7="report"),EK7,"") ->  | ER7: =IF(DV7<>"",IF(DV7=INDIRECT(DV$388&$GP7),"why",DV7),"") ->  | ES7: =IF(DW7<>"",IF(DW7=INDIRECT(DW$388&$GP7),"why",DW7),"") ->  | ET7: =IF(DX7<>"",IF(DX7=INDIRECT(HQ$388&$GP7),"why",DX7),"") ->  | EU7: =IF(DZ7<>"",IF(DZ7=INDIRECT(DZ$388&$GP7),"why",DZ7),"") ->  | EV7: =IF(EE7<>"",IF(EE7=INDIRECT(EE$388&$GP7),"why",EE7),"") ->  | EW7: =IF(DS7<>"",IF(DS7=INDIRECT(DS$388&$GP7),"why",DS7),"") ->  | EX7: =IF(DT7<>"",IF(DT7=INDIRECT(DT$388&$GP7),"why",DT7),"") ->  | EY7: =IF(NB7="","","Violation1 = "&NB7&IF(COUNTA(NC7:NH7,NL7:NM7,NQ7)=0,"",", "))&IF(NC7="","","Violation2 = "&NC7&IF(COUNTA(NG7:NH7,NL7:NM7,NQ7)=0,"",", "))&IF(NG7="","","Veh Type1 = "&NG7&IF(COUNTA(NH7,NL7:NM7,NQ7)=0,"",", "))&IF(NH7="","","Veh Type1 = "&NH7&IF(COUNTA(NL7:NM7,NQ7)=0,"",", "))&IF(NL7="","","Alignment = "&NL7&IF(COUNTA(NM7,NQ7)=0,"",", "))&IF(NM7="","","Contributing Factor = "&NM7&IF(COUNTA(NQ7)=0,"",", "))&IF(NQ7="","","Property = "&NQ7) ->  | FB7: =IF((COUNTBLANK(EP7:EY7)+COUNTIF(EP7:EQ7,"0"))<10,"error","X") -> X | FC7: =IF((COUNTA(DS7:DT7,DV7:DX7,DZ7,EE7)+COUNTIF(EG7,"report"))>(COUNTA(EQ7:EX7)-COUNTIF(EQ7:EX7,"")),"update",IF(FB7="error",FA7,"Z")) -> Z | FH7: =ACOS( SIN(RADIANS(INDIRECT(EJ$388&$GP7)))*SIN(RADIANS(EJ7)) + COS(RADIANS(INDIRECT(EJ$388&$GP7)))*COS(RADIANS(EJ7))*COS(RADIANS(EK7)-RADIANS(INDIRECT(EK$388&$GP7))) ) * 3958.7 -> 6346.289305 | GK7: =SUBSTITUTE(INDIRECT(GK$388&$GP7),"-","") ->  | GP7: 7 | GQ7: =IF(D7="A",IF(INDIRECT(GS$388&$GP7)=0,"X",MONTH(INDIRECT(GS$388&$GP7))),"Z") -> X | GR7: =TEXT(JC7,"DDD")&JD7 -> Sat19 | GS7: =YEAR(INDIRECT(GS$388&$GP7)) -> 1900 | GT7: =IF(GU7="yes",HF7,"") ->  | GU7: =IF(GU$1,IF(G7="high","yes","no"),IF(OR(G7="high",G7="med"),"yes","no")) -> no | GV7: =IF(OR($D7="A",D7="low"),IF(HF7>_xlfn.PERCENTILE.EXC(GT$7:GT$339,0.6),"top",G7),"X") -> low | GY7: =IF(VLOOKUP(JS7,Outputs!$H$73:$N$84,6)="yes",VLOOKUP(JS7,Outputs!$H$73:$N$84,7),0)+IF(AND(Outputs!$M$85="Yes",OR(JS7="C",JS7="K")),Outputs!$N$85,0) -> 1.847422892 | GZ7: =IFERROR(IF(VLOOKUP(MQ7,Outputs!$A$73:$G$86,6)="yes",VLOOKUP(MQ7,Outputs!$A$73:$G$86,7),0),0) -> 0 | HA7: =IFERROR(SQRT(ACOS( SIN(RADIANS($MG7))*SIN(RADIANS(HA$384)) + COS(RADIANS($MG7))*COS(RADIANS(HA$384))*COS(RADIANS(HB$384)-RADIANS($MH7)) ) * 3958.7 * 444),0) -> 0.7282387783 | HB7: =IFERROR(IF(VLOOKUP(MP7,Outputs!$H$86:$N$89,6)="yes",VLOOKUP(MP7,Outputs!$H$86:$N$89,7),0),0) -> 0 | HC7: =IF(AND(JQ7="B",Outputs!F$87="Yes"),Outputs!G$87,0) -> 0 | HD7: =IF(AND(KF7="B",Outputs!F$89="Yes"),Outputs!G$89,0) -> 0 | HF7: =IF($D7="A",IF((IF(D7="A",0,3)+IF(DP7="can't view",2,0)+IF(DQ7="",0,1)+IF(OR(EG7<>"",AND(EJ7<>"",EK7<>"")),1,0)+IF(COUNTA(GH:GH)>10,IF(OR(GH7="",GH7="yes"),0,2),0)+IF(COUNTA(GI:GI)>10,IF(GI7="",0,1),0)+IF(COUNTA(GJ:GJ)>11,IF(GJ7="",0,1),0))>(1+IF(COUNTA(GI:GI)>10,1,0)+IF(COUNTA(GJ:GJ)>11,1,0)),0.77,1)*SUM(HG7:HL7)+2*SQRT(Data!U2+Data!V2)+SUM(GX7:HD7),"") -> 12.64122697 | HG7: =IFERROR(VLOOKUP(KE7,Tables!$AE$3:$AH$9,4,FALSE),0)+IFERROR(VLOOKUP(MS7,Tables!$AE$3:$AH$9,4,FALSE),0) -> 2.32597785 | HH7: =4*(1-COUNTIF(CK7,CheckMark))+4*(1-COUNTIF(CM7,CheckMark))+5*(1-COUNTIF(CP7,CheckMark))+3*(1-COUNTIF(CR7,CheckMark))+IF(Inputs!$C$90=Inputs!$G$90,0,3*(1-COUNTIF(NT7,TRUE))+3*(1-COUNTIF(NA7,CheckMark))) -> 0 | HI7: =IF(MR7="R",3,0) -> 0 | HJ7: =IF(HQ7=HQ$2,4,0) -> 4 | HK7: =(JA7-HI$387)/2 -> -1 | HL7: =VLOOKUP(IF(FP7=0,JS7,FP7),Tables!$D$3:$F$24,3,FALSE)+VLOOKUP(MQ7,Tables!$M$3:$P$21,4,FALSE) -> 4.739587447 | HN7: =IF($D7="A",IF(DV7<>"",DV7,IF(INDIRECT(DV$388&$GP7)=0,"Other",INDIRECT(DV$388&$GP7))),"") -> Rear End | HO7: =IF($D7="A",IF(DW7<>"",DW7,INDIRECT(DW$388&$GP7)),"") -> Small Veh | HP7: =IF($D7="A",IF(EF7<>"",EF7,INDIRECT(HP$388&$GP7)),"") -> 1.508 | HQ7: =IF($D7="A",IF(DX7<>"",DX7,1*INDIRECT(HQ$388&$GP7)),"") -> 1 | HR7: =IF($D7="A",IF(DS7<>"",DS7,INDIRECT(DS$388&$GP7)),"") -> Night - CSL | HS7: =IF($D7="A",IF(EE7<>"",EE7,INDIRECT(EE$388&$GP7)),"") -> Intersection | HU7: =IF(OR(MP7="A",MP7="B",MP7="C",MP7="J"),1,0) -> 1 | HV7: =MAX(HQ7,HU7) -> 1 | HW7: =IF(COUNTBLANK(FN7:FP7)>1,JS7,FP7) -> B | HX7: =IF(OR(JF7=1,TRIM(KJ7)="G",TRIM(KJ7)="H",TRIM(KK7)="G",TRIM(KK7)="H"),TRUE,FALSE) -> FALSE | HY7: =IF(OR(TRIM(JN7)="A",TRIM(LK7)="1",TRIM(LK7)="11",TRIM(LK7)="12"),TRUE,FALSE) -> FALSE | HZ7: =IF(AND(OR(JW7=1,COUNTIF(Tables!H$3:H$24,HW7)=0),IF(OR(KJ7="Y",TRIM(KJ7)=""),1,0)+IF(OR(KP7="YY",TRIM(KP7)=""),1,0)+IF(OR(KT7="Z",TRIM(KT7)=""),1,0)+IF(OR(KZ7="Y",TRIM(KZ7)=""),1,0)+IF(OR(LD7="Y",TRIM(LD7)=""),1,0)+IF(OR(MC7="Y",TRIM(MC7)=""),1,0)>(3-JM7),IF(OR(KK7="Y",TRIM(KK7)=""),1,0)+IF(OR(KQ7="YY",TRIM(KQ7)=""),1,0)+IF(OR(KU7="Z",TRIM(KU7)=""),1,0)+IF(OR(LA7="Y",TRIM(LA7)=""),1,0)+IF(OR(LE7="Y",TRIM(LE7)=""),1,0)+IF(OR(MD7="Y",TRIM(MD7)=""),1,0)>(3-JM7)),"NV",IF(OR(JW7=1,COUNTIF(Tables!H$3:H$24,HW7)=0),IF(OR(COUNTIF(KT7:KU7,"R"),MQ7="E",MQ7="J",(IF(OR(KK7="Y",TRIM(KK7)=""),1,0)+IF(OR(KQ7="YY",TRIM(KQ7)=""),1,0)+IF(OR(KU7="Z",TRIM(KU7)=""),1,0)+IF(OR(LA7="Y",TRIM(LA7)=""),1,0)+IF(OR(LE7="Y",TRIM(LE7)=""),1,0)+IF(OR(MD7="Y",TRIM(MD7)=""),1,0))>4,IF(KU7="",0,1)+IF(KY7="",0,1)+IF(OR(MU7="",MU7="Y"),0,1)=0),"SV","SE"),IF(AND(JW7<>0,JW7<>1,COUNTIF(Tables!H$3:H$24,HW7)=1,OR(IF(OR(KJ7="Y",TRIM(KJ7)=""),1,0)+IF(OR(KP7="YY",TRIM(KP7)=""),1,0)+IF(OR(KT7="Z",TRIM(KT7)=""),1,0)+IF(OR(KZ7="Y",TRIM(KZ7)=""),1,0)+IF(OR(LD7="Y",TRIM(LD7)=""),1,0)+IF(OR(MC7="Y",TRIM(MC7)=""),1,0)>(3-JM7),IF(OR(KK7="Y",TRIM(KK7)=""),1,0)+IF(OR(KQ7="YY",TRIM(KQ7)=""),1,0)+IF(OR(KU7="Z",TRIM(KU7)=""),1,0)+IF(OR(LA7="Y",TRIM(LA7)=""),1,0)+IF(OR(LE7="Y",TRIM(LE7)=""),1,0)+IF(OR(MD7="Y",TRIM(MD7)=""),1,0)>(3-JM7))),"ME","MV"))) -> MV | IA7: =IF(OR(HN7="Non Coll",HN7=0,HN7="Other"),HO7,HN7) -> Rear End | IB7: =IF(AND(OR(HN7="Non Coll",HN7="Other"),HO7="Run off rd"),HO7,HN7) -> Rear End | IY7: =IF(AND(OR(AC7<>HQ7,HQ7=0),(COUNTBLANK(DS7:EF7)+COUNTBLANK(EJ7:EK7))<15),"Move","Nope") -> Nope | JA7: =IF(Data!A2=0,"",Data!A2*1) -> 2019 | JB7: =Data!B2 -> 0 | JC7: =Data!C2 -> 00:00:00 | JD7: =IF(D7="A",IF(DT7="",INDIRECT(DT$388&$GP7),DT7),"") -> 19 | JE7: =Data!E2 -> B | JF7: =IF($D7="A",AG7,"") -> 0 | JG7: =IF(NL7="",Data!G2,NL7) -> A | JI7: =Data!I2 -> 0 | JJ7: =Data!J2 -> 0 | JK7: =Data!K2 -> WE | JL7: =IF(NQ7="",Data!L2,NQ7) -> 0 | JM7: =IF(DU7<>"",DU7,Data!M2) -> 0 | JN7: =Data!N2 -> C | JO7: =HQ7 -> 1 | JP7: =Data!P2 -> B | JQ7: =IFERROR(VLOOKUP(HR7,Tables!$AQ$3:$AR$10,2,FALSE),"") -> C | JS7: =IFERROR(VLOOKUP(HN7,Tables!$B$3:$D$18,3,FALSE),"") -> B | JU7: =Data!U2 -> 0 | JV7: =Data!V2 -> 0 | JW7: =Data!W2 -> 2 | JX7: =Data!X2 -> 28 | JZ7: =Data!Z2 -> 325 | KA7: =Data!AA2 -> A | KB7: =Data!AB2 -> A | KC7: =Data!AC2 -> B | KD7: =Data!AD2 -> 0 | KE7: =Data!AE2 -> E | KF7: =Data!AF2 -> B | KG7: =Data!AG2 -> A | KH7: =Data!AH2 ->  | KI7: =Data!AI2 -> C | KJ7: =Data!AJ2 -> A | KK7: =Data!AK2 -> A | KL7: =Data!AL2 -> 0 | KM7: =Data!AM2 -> 0 | KN7: =TRIM(Data!AN2) -> S | KO7: =TRIM(Data!AO2) -> S | KP7: =Data!AP2 -> S | KQ7: =Data!AQ2 -> S | KR7: =Data!AR2 -> 45 | KT7: =IF(EA7<>"",VLOOKUP(EA7,Tables!$DW$3:$DX$28,2,FALSE),TRIM(BY7)) -> B | KU7: =IF(EC7<>"",VLOOKUP(EC7,Tables!$DW$3:$DX$28,2,FALSE),TRIM(BZ7)) -> J | KV7: =Data!AV2 -> R | KX7: =IF(EB7<>0,EB7,TRIM(CB7)) -> N | KY7: =IF(ED7<>0,ED7,TRIM(CC7)) -> N | KZ7: =Data!AZ2 -> K | LA7: =Data!BA2 -> K | LB7: =IF(NG7="",Data!BB2,NG7) -> A | LC7: =IF(NH7="",Data!BC2,NH7) -> A | LD7: =IF(NB7="",Data!BD2,NB7) -> S | LE7: =IF(NC7="",Data!BE2,NC7) -> U | LF7: =Data!BF2 ->  | LH7: =Data!BH2 -> 9900 | LI7: =Data!BI2 -> 789-12 | LK7: =Data!BK2 -> 17 | LL7: =Data!BL2 -> 6 | LM7: =Data!BM2 -> 2.04 | LN7: =Data!BN2 -> 1.39 | LO7: =IF($LO$1=$HP$3,HP7,Data!BO2) -> 1.508 | LP7: =Data!BP2 -> 0 | LQ7: =Data!BQ2 -> 4 | LS7: =Data!BS2 -> 42 | LT7: =Data!BT2 -> 0 | LW7: =Data!BW2 -> 325 | LZ7: =Data!BZ2 -> 3 | MA7: =Data!CA2 -> A | MB7: =Data!CB2 -> B | MC7: =Data!CC2 -> L | MD7: =Data!CD2 -> P | ME7: =Data!CE2 -> 4 | MF7: =IF($MF$1=$HP$3,HP7,Data!CF2) -> 0.532 | MG7: =IF($D7="A",IF(EJ7<>"",ROUND(EJ7,5),INDIRECT(EJ$388&$GP7)),"") -> 30.254958 | MH7: =IF($D7="A",IF(EK7<>"",ROUND(EK7,5),INDIRECT(EK$388&$GP7)),"") -> -92.144478 | MI7: =Data!CI2 -> 19:21:00 | MK7: =IF($D7="A",IF(DY7<>"",DY7,IF(INDIRECT(DY$388&$GP7)="",0,INDIRECT(DY$388&$GP7))),"") -> 28LA325@ERA | ML7: =Data!CL2 -> 789-12-1-010 | MM7: =Data!CM2 -> 1.508 | MN7: =IF($D7="A",IF(DZ7="",INDIRECT(DZ$388&$GP7),DZ7),"") -> 0 | MP7: =IFERROR(VLOOKUP(HS7,Tables!BW$3:BX$13,2,FALSE),"") -> A | MQ7: =IFERROR(VLOOKUP(HO7,Tables!$L$3:$M$21,2,FALSE),"") -> S | MR7: =IF(NM7="",IF(OR(AND(LD7<>"S",LD7<>"U",LD7<>"Y"),AND(LE7<>"S",LE7<>"U",LE7<>"Y",LE7<>" "),MQ7="F"),"O",Data!CR2),NM7) -> O | MS7: =Data!CS2 -> D | NA7: =IF(OR(NB7<>"",NC7<>""),CheckMark,IF(OR(AND(NB7="",NC7="",NO7="R",COUNTIF(LD7:LE7,"")+COUNTIF(LD7:LE7,"S")+COUNTIF(LD7:LE7,"U")+COUNTIF(LD7:LE7,"Y")+COUNTIF(LD7:LE7,"Z")=IF(AND(HW7="A",TRIM(LE7)=""),1,2)),AND(OR(HW7="A",HW7="Z"),MP7="D",COUNTIF(LD7:LE7,"A")+COUNTIF(LD7:LE7,"B")+COUNTIF(LD7:LE7,"Q")+COUNTIF(LD7:LE7,"R")=0)),"resolve",IF(AND(OR(HW7="C",HW7="K"),IFERROR(IF(VLOOKUP(LL7,Tables!CA$3:CD$19,4,FALSE)="Maybe",FALSE,VLOOKUP(LL7,Tables!CA$3:CD$19,4,FALSE)),IF(LP7>11,FALSE,TRUE))),CheckMark,IF(AND(HW7="J",CY7=CZ7,COUNTIF(LD7:LE7,"K")),IF(AND(HW7="A",COUNTIF(LD7:LE7,"L")>0),IF(JO7=1,CheckMark,"resolve"),CheckMark),IF(AND(COUNTIF(Tables!$EA$3:$EA$54,HW7)+COUNTIF(Tables!$EB$3:$EB$54,LD7)+COUNTIF(Tables!$EB$3:$EB$54,LE7)>0,COUNTIF(Tables!$ED$3:$ED$54,HW7&LD7)+COUNTIF(Tables!$ED$3:$ED$54,HW7&LE7)<1),IF(AND(HW7="B",COUNTIF(LD7:LE7,"H"),COUNTIF(KT7:KU7,"P")),CheckMark,IF(AND(MR7="O",COUNTIF(LD7:LE7,"Q")+COUNTIF(LD7:LE7,"R")>0),CheckMark,"resolve")),CheckMark))))) -> resolve | ND7: =LD7 -> S | NE7: =LE7 -> U | NF7: =IF(OR(IF(NG7="Z",FALSE,TRIM(LB7)="Z"),IF(NH7="Z",FALSE,TRIM(LC7)="Z"),TRIM(LB7)="Y",TRIM(LC7)="Y",TRIM(LB7)="",IF(HW7="A",TRIM(LB7)="Z",FALSE)),"resolve",CheckMark) -> ✓ | NI7: =LB7 -> A | NJ7: =LC7 -> A | NK7: =IF(OR(JS7="C",JS7="K",MN7=1),IF(OR(JG7="C",JG7="D",JG7="F",JG7="H",JG7="I",MR7="O",MP7="B"),CheckMark,"resolve"),CheckMark) -> ✓ | NN7: =JG7 -> A | NO7: =MR7 -> O | NP7: =IF(AND(JL7=0,OR(MQ7="H",MQ7="G",NS7>0)),"resolve",IF(AND(JL7=1,NS7=0),IF(AND(JL7=1,MQ7<>"H",MQ7<>"G"),"resolve",CheckMark),CheckMark)) -> ✓ | NR7: =JL7 -> 0 | NS7: =IFERROR(VLOOKUP(TRIM(KN7),Tables!$DR$3:$DU$46,4,FALSE),0)+IFERROR(VLOOKUP(TRIM(KO7),Tables!$DR$3:$DU$46,4,FALSE),0)+IFERROR(VLOOKUP(TRIM(KP7),Tables!$DR$3:$DU$46,4,FALSE),0)+IFERROR(VLOOKUP(TRIM(KQ7),Tables!$DR$3:$DU$46,4,FALSE),0) -> 0 | NT7: =IF(COUNTIF(FP$342:FP$348,FP7)=1,TRUE,FO7=FP7) -> TRUE | NU7: =IF(AND(FN7<>FO7,FO7<>"Z"),FO7,IF(OR(COUNTIF(LD7:LE7,"T")>0,COUNTIF(KT7:KU7,"D")>0),"Q",IF(OR(FO7="A",JW7=1,MQ7="B",MQ7="E",MQ7="G",MQ7="H",MQ7="J",MQ7="N",MQ7="P",MQ7="T"),"A",IF(IFERROR(VLOOKUP(LEFT(TRIM(KX7&KY7),2),Tables!$AJ$49:$AK$68,2,FALSE),"A")="O",IF(COUNTIF(KT7:KU7,"I")+COUNTIF(KT7:KU7,"M")+COUNTIF(KT7:KU7,"O")=2,"P",IF(AND(COUNTIF(KT7:KU7,"I")+COUNTIF(KT7:KU7,"M")+COUNTIF(KT7:KU7,"O")=1,COUNTIF(KT7:KU7,"J")+COUNTIF(KT7:KU7,"N")+COUNTIF(KT7:KU7,"P")=1),"N",IF(AND(COUNTIF(KT7:KU7,"I")+COUNTIF(KT7:KU7,"M")+COUNTIF(KT7:KU7,"O")=1,COUNTIF(KT7:KU7,"B")=1),"F",IF(AND(COUNTIF(KT7:KU7,"C")+COUNTIF(KT7:KU7,"E")+COUNTIF(KT7:KU7,"F")>0,FO7<>"C",JO7=0,MP7<>"A"),"K",IF(AND(COUNTIF(KT7:KU7,"I")+COUNTIF(KT7:KU7,"M")+COUNTIF(KT7:KU7,"O")=1,COUNTIF(KT7:KU7,"A")+COUNTIF(KT7:KU7,"K")+COUNTIF(KT7:KU7,"M")+COUNTIF(KT7:KU7,"N")+COUNTIF(KT7:KU7,"J")+COUNTIF(KT7:KU7,"P")+COUNTIF(KT7:KU7,"Q")>0),"M",FO7))))),IF(AND(COUNTIF(KT7:KU7,"I")+COUNTIF(KT7:KU7,"M")+COUNTIF(KT7:KU7,"O")=1,COUNTIF(KT7:KU7,"A")+COUNTIF(KT7:KU7,"K")+COUNTIF(KT7:KU7,"M")+COUNTIF(KT7:KU7,"N")+COUNTIF(KT7:KU7,"J")+COUNTIF(KT7:KU7,"P")+COUNTIF(KT7:KU7,"Q")>0),"M",IF(KX7=KY7,IF(AND(JO7=0,MP7<>"A",MP7<>"B",MP7<>"C"),IF(COUNTIF(LD7:LE7,"D")>0,"B",IF(OR(COUNTIF(LD7:LE7,"C")+COUNTIF(LD7:LE7,"F")>0,COUNTIF(KT7:KU7,"H")>0),"J",FO7)),IF(OR(AND(COUNTIF(KU7,"J")+COUNTIF(KU7,"N")+COUNTIF(KU7,"P")=1,COUNTIF(KT7,"A")+COUNTIF(KT7,"B")+COUNTIF(KT7,"E")+COUNTIF(KT7,"F")+COUNTIF(KT7,"H")+COUNTIF(KT7,"K")+COUNTIF(KT7,"M")+COUNTIF(KT7,"N")+COUNTIF(KT7,"O")+COUNTIF(KT7,"P")+COUNTIF(KT7,"Q")=1,FO7<>"I"),AND(COUNTIF(KT7,"J")+COUNTIF(KT7,"N")+COUNTIF(KT7,"P")=1,COUNTIF(KU7,"A")+COUNTIF(KU7,"B")+COUNTIF(KU7,"E")+COUNTIF(KU7,"F")+COUNTIF(KU7,"H")+COUNTIF(KU7,"K")+COUNTIF(KU7,"M")+COUNTIF(KU7,"N")+COUNTIF(KU7,"O")+COUNTIF(KU7,"P")+COUNTIF(KU7,"Q")=1,FO7<>"I")),"L",IF(OR(AND(COUNTIF(KU7,"I")+COUNTIF(KU7,"M")+COUNTIF(KU7,"O")=1,COUNTIF(KT7,"A")+COUNTIF(KT7,"B")+COUNTIF(KT7,"E")+COUNTIF(KT7,"F")+COUNTIF(KT7,"H")+COUNTIF(KT7,"K")+COUNTIF(KT7,"M")+COUNTIF(KT7,"N")+COUNTIF(KT7,"O")+COUNTIF(KT7,"P")+COUNTIF(KT7,"Q")=1),AND(COUNTIF(KT7,"I")+COUNTIF(KT7,"M")+COUNTIF(KT7,"O")=1,COUNTIF(KU7,"A")+COUNTIF(KU7,"B")+COUNTIF(KU7,"E")+COUNTIF(KU7,"F")+COUNTIF(KU7,"H")+COUNTIF(KU7,"K")+COUNTIF(KU7,"M")+COUNTIF(KU7,"N")+COUNTIF(KU7,"O")+COUNTIF(KU7,"P")+COUNTIF(KU7,"Q")=1)),"E",IF(OR(COUNTIF(KT7:KU7,"I")+COUNTIF(KT7:KU7,"M")+COUNTIF(KT7:KU7,"O")=2,COUNTIF(KT7:KU7,"J")+COUNTIF(KT7:KU7,"N")+COUNTIF(KT7:KU7,"P")=2),"J",FO7)))),IF(KX7<>KY7,IF(COUNTIF(LD7:LE7,"K")>0,"G",IF(AND(COUNTIF(LD7:LE7,"H")+COUNTIF(LD7:LE7,"K")+COUNTIF(LD7:LE7,"S")+COUNTIF(LD7:LE7,"Y")+COUNTIF(LD7:LE7,"Z")>0,COUNTIF(KT7:KU7,"J")+COUNTIF(KT7:KU7,"N")+COUNTIF(KT7:KU7,"P")=1,KT7<>KU7),IFERROR(VLOOKUP(KX7&KY7,Tables!$AJ$49:$AL$63,3,FALSE),FO7),IF(AND(OR(FO7="D",FO7="Z"),COUNTIF(KT7:KU7,"J")),"H",IF(OR(FO7="G",FO7="H",FO7="I"),FO7,"D"))))))))))) -> L
A8: =IFERROR(IF(AND(B8="done",C8="good",H8="done",I8="done"),"done","finish"),IFERROR(IF(AND(B8="done",C8="good",H8="done"),"done","finish"),IFERROR(IF(AND(B8="done",C8="good",I8="done"),"done","finish"),IF(AND(B8="done",C8="good"),"done","finish")))) -> finish | B8: =IF(AND(OR(EJ8="",EK8=""),OR(EG8="",LEFT(EG8,6)="report",DP8="not within study area")),"where?",IF(OR(CELL("type",DQ8)<>"l",DP8="evaluate"),"solution?","done")) -> where? | C8: =IF(OR(D8<>"A",AND(OR(CI8=CheckMark,CI8="checked"),CK8=CheckMark,CL8=CheckMark,CM8<>"resolve",CP8=CheckMark,CR8<>"resolve",CS8=CheckMark,OR(CT8=CheckMark,CT8="checked"),CU8<>4,CV8=CheckMark,CX8=CheckMark,DA8<>"resolve",DC8<>"resolve")),IF(Inputs!$C$90=Inputs!$G$90,"good",IF(AND(NT8<>FALSE,NA8<>"resolve",NF8<>"resolve",NK8<>"resolve",NP8<>"resolve"),"good","issue2")),"issue") -> issue | D8: A | E8: =IF(COUNTIFS(A:A,"finish",GV:GV,"top")<=2,IF(AND(OR(A8="done",GU8="Yes"),DP8<>"can't view"),"yes","no"),IF(AND(OR(A8="done",GV8="top"),DP8<>"can't view"),"yes","no")) -> yes | G8: high | H8: done | K8: =Data!Z3 -> 325 | L8: =Data!CF3 -> 0.532 | M8: =Data!BI3 -> 789-12 | N8: =Data!BO3 -> 1.508 | U8: =Data!C3 -> 00:00:00 | W8: =IFERROR(VLOOKUP(Data!S3,Tables!$A$3:$B$18,2,FALSE),0) -> Rt Angle | X8: =IFERROR(VLOOKUP(Data!CQ3,Tables!$J$3:$L$21,3,FALSE),0) -> Other Veh | Y8: =Data!AF3 -> A | Z8: =SUBSTITUTE(Data!B3,"-","")&"-" -> - | AA8: =Data!X3 -> 28 | AB8: =Data!D3 -> 10 | AC8: =Data!O3*1 -> 1 | AD8: =Data!P3 -> B | AE8: =TRIM(Data!AW3) -> NN | AF8: =Data!AS3 -> JB | AG8: =Data!F3 -> 0 | AH8: =TRIM(Data!CK3) -> 28LA325@ERA | AI8: =Data!CL3 -> 789-12-1-010 | AJ8: =Data!AE3 -> D | AK8: =Data!CN3 -> 0 | AL8: =IFERROR(VLOOKUP(Data!CP3,Tables!BV$3:BW$13,2,FALSE),0) -> Intersection | AM8: =Data!CG3 -> 30.254958 | AN8: =Data!CH3 -> -92.144478 | AO8: =Data!N3 -> C | AQ8: =Data!CC3 -> L | AR8: =IFERROR(VLOOKUP(Data!Q3,Tables!$AP$3:$AQ$10,2,FALSE),"Z") -> Day | AS8: =Data!AJ3 -> A | AT8: =Data!AZ3 -> K | BX8: =Data!AS3 -> JB | BY8: =IF(AND(JW8<2,MD8="A"),Data!AU3,Data!AT3) -> J | BZ8: =IF(AND(JW8<2,MD8="A"),MID(BX8,3,1),Data!AU3) -> B | CA8: =Data!AW3 -> NN | CB8: =IF(AND(JW8<2,MD8="A"),Data!AY3,Data!AX3) -> N | CC8: =IF(AND(JW8<2,MD8="A"),MID(CA8,3,1),Data!AY3) -> N | CF8: =IF(D8="Z",CheckMark,IF($HO8=Tables!$L$10,IF(DW8=Tables!$L$10,CheckMark,"9"),CheckMark)) -> ✓ | CG8: =IF(D8="Z",CheckMark,IF(DV8=Tables!$B$14,CheckMark,IF(AND($HN8=Tables!$B$14,COUNTIF(Tables!$D$15:$D$22,HW8)=0,NOT(HX8)),"7",CheckMark))) -> ✓ | CH8: =IF(AND(LEN(KX8&KY8)=1,COUNTIF(Tables!Z$185:Z$210,HW8&MQ8)=0),"5",CheckMark) -> ✓ | CI8: =IF(CF8<>CheckMark,"issue "&CF8,IF(CG8<>CheckMark,"issue "&CG8,IF(CH8<>CheckMark,"issue "&CH8,CheckMark))) -> ✓ | CJ8: Rt Angle:Other Veh | CK8: ✓ | CL8: =IF(D8="Z",CheckMark,IF(AND(INDIRECT(DV$388&$GP8)=0,DV8=0),1,IF(AND(INDIRECT(DW$388&$GP8)=0,DW8=0),2,IF(COUNTIF(Tables!Z$3:Z$177,HW8&MQ8)=1,3,CheckMark)))) -> ✓ | CM8: =IF(AND(HZ8="NV",LEN(TRIM(KX8)&TRIM(KY8))<3),CheckMark,IF(AND(HZ8="SV",LEN(TRIM(KX8)&TRIM(KY8))=1),CheckMark,IF(AND(OR(HZ8="MV",HZ8="SE",HZ8="ME"),LEN(TRIM(KX8)&TRIM(KY8))=2),IF(OR(HW8="A",HW8="Z",HW8="Q",HW8="S"),CheckMark,IF(IFERROR(VLOOKUP(HW8,Tables!$D$4:$G$22,4,FALSE)<>VLOOKUP(LEFT(TRIM(KX8&KY8),2),Tables!$AJ$49:$AK$68,2,FALSE),TRUE),IF(COUNTIF(KT8:KU8,"K")>0,CheckMark,"resolve"),CheckMark)),IF(AND(HZ8="ME",LEN(TRIM(KX8)&TRIM(KY8))=1),CheckMark,"resolve")))) -> resolve | CN8: =KX8 -> N | CO8: =KY8 -> N | CP8: ✓ | CQ8: =HQ8&" "&HU8 -> 1 1 | CR8: =IF(OR(AND(HQ8=1,MP8<>"D",HY8,HU8<>1),AND(HQ8=0,MP8="D",HY8),AND(HQ8=0,MP8="A",NOT(HY8)),AND(HQ8=1,HU8<>1,NOT(HY8),MP8="Z")),"resolve",CheckMark) -> ✓ | CS8: =IF(OR(AND(HQ8=1,MP8<>"D",HY8,HU8<>1),AND(HQ8=0,MP8="D",HY8,HU8=1),AND(HQ8=0,MP8="A",NOT(HY8)),AND(HQ8=1,HU8<>1,NOT(HY8),MP8="Z")),"X",CheckMark) -> ✓ | CT8: =IF(CU8=CheckMark,CheckMark,"issue "&CU8) -> ✓ | CU8: =IF(D8="Z",CheckMark,IF(AND(COUNTIF(Tables!$AN$19:$AN$22,HW8),HV8<>0,NOT(COUNTIF(Tables!$AN$31:$AN$38,KT8)),NOT(COUNTIF(Tables!$AN$31:$AN$38,KU8)),MQ8<>"A",MQ8<>"B",MQ8<>"C",MC8<>"A",MD8<>"A",NOT(HY8)),"6",IF(AND(COUNTIF(Tables!$AN$4:$AN$16,HW8),HV8<>1),"4",IF(AND(COUNTIF(Tables!$AN$43:$AN$48,HW8),HY8,MP8<>"D"),"8",CheckMark)))) -> ✓ | CV8: ✓ | CW8: =IFERROR(JD8*1,"") -> 10 | CX8: ✓ | CY8: =KT8 -> J | CZ8: =KU8 -> B | DA8: =IF(AND(HZ8="NV",LEN(TRIM(SUBSTITUTE(KT8,"Z",""))&TRIM(KU8))<2),CheckMark,IF(AND(OR(HZ8="SV",HZ8="ME"),LEN(TRIM(KT8)&TRIM(KU8))=1),IF(IFERROR(HLOOKUP(IF(KT8="",KU8,KT8),Tables!$CP$1:$DO$22,VLOOKUP(HW8,Tables!$CN$3:$CO$22,2,FALSE),FALSE),TRUE),"resolve",CheckMark),IF(OR(IFERROR(HLOOKUP(KT8,Tables!$CP$1:$DO$22,VLOOKUP(HW8,Tables!$CN$3:$CO$22,2,FALSE),FALSE),TRUE),IFERROR(HLOOKUP(KU8,Tables!$CP$1:$DO$22,VLOOKUP(HW8,Tables!$CN$3:$CO$22,2,FALSE),FALSE),TRUE)),"resolve",CheckMark))) -> resolve | DB8: =IFERROR(MN8*1,"") -> 0 | DC8: =IF(OR(IFERROR(VLOOKUP(MQ8,Tables!J$3:N$21,5,FALSE),"")="B",AND(IFERROR(IF(VLOOKUP(LL8,Tables!CA$3:CD$19,4,FALSE)="Maybe",FALSE,VLOOKUP(LL8,Tables!CA$3:CD$19,4,FALSE)),IF(LP8>11,FALSE,TRUE)),COUNTIF(CY8:CZ8,"E")>0),COUNTIF(CY8:CZ8,"G")>0),CheckMark,IF(DB8=IFERROR(VLOOKUP(MQ8,Tables!J$3:N$21,5,FALSE),""),CheckMark,"resolve")) -> ✓ | DK8: X | DM8: =IF(COUNTIF(DQ$377:DQ$381,DQ8)>0,0,COUNTIF(INDIRECT(DQ$389&GP$5):INDIRECT(DQ$389&GP$341),DQ8)) -> 0 | EL8: =IFERROR(VLOOKUP(LL8,Tables!$CA$3:$CC$19,3,TRUE),"U") -> U | EM8: =IF(AND(EJ8<>0,EK8<>0,FH8>VLOOKUP(EL8,Tables!$CA$23:$CC$24,MAX(HV8,IF(AND(AH8<>"",AH8<>0),1,0))+2,FALSE)),"report",CheckMark) -> ✓ | EP8: =IF(OR($EG8="report location",$EM8="report"),EJ8,"") ->  | EQ8: =IF(OR($EG8="report location",$EM8="report"),EK8,"") ->  | FB8: =IF((COUNTBLANK(EP8:EY8)+COUNTIF(EP8:EQ8,"0"))<10,"error","X") -> X | FC8: =IF((COUNTA(DS8:DT8,DV8:DX8,DZ8,EE8)+COUNTIF(EG8,"report"))>(COUNTA(EQ8:EX8)-COUNTIF(EQ8:EX8,"")),"update",IF(FB8="error",FA8,"Z")) -> Z | FH8: 6346.289305 | GP8: 8 | GQ8: X | GR8: Sat10 | GS8: 1900 | GT8: 1900-01-25T12:56:16.535 | GU8: yes | GV8: =IF(OR($D8="A",D8="low"),IF(HF8>_xlfn.PERCENTILE.EXC(GT$7:GT$339,0.6),"top",G8),"X") -> top | GY8: =IF(VLOOKUP(JS8,Outputs!$H$73:$N$84,6)="yes",VLOOKUP(JS8,Outputs!$H$73:$N$84,7),0)+IF(AND(Outputs!$M$85="Yes",OR(JS8="C",JS8="K")),Outputs!$N$85,0) -> 0 | GZ8: =IFERROR(IF(VLOOKUP(MQ8,Outputs!$A$73:$G$86,6)="yes",VLOOKUP(MQ8,Outputs!$A$73:$G$86,7),0),0) -> 0.4521808929 | HA8: =IFERROR(SQRT(ACOS( SIN(RADIANS($MG8))*SIN(RADIANS(HA$384)) + COS(RADIANS($MG8))*COS(RADIANS(HA$384))*COS(RADIANS(HB$384)-RADIANS($MH8)) ) * 3958.7 * 444),0) -> 0.7282387783 | HB8: =IFERROR(IF(VLOOKUP(MP8,Outputs!$H$86:$N$89,6)="yes",VLOOKUP(MP8,Outputs!$H$86:$N$89,7),0),0) -> 0 | HC8: =IF(AND(JQ8="B",Outputs!F$87="Yes"),Outputs!G$87,0) -> 0 | HD8: =IF(AND(KF8="B",Outputs!F$89="Yes"),Outputs!G$89,0) -> 0 | HF8: =IF($D8="A",IF((IF(D8="A",0,3)+IF(DP8="can't view",2,0)+IF(DQ8="",0,1)+IF(OR(EG8<>"",AND(EJ8<>"",EK8<>"")),1,0)+IF(COUNTA(GH:GH)>10,IF(OR(GH8="",GH8="yes"),0,2),0)+IF(COUNTA(GI:GI)>10,IF(GI8="",0,1),0)+IF(COUNTA(GJ:GJ)>11,IF(GJ8="",0,1),0))>(1+IF(COUNTA(GI:GI)>10,1,0)+IF(COUNTA(GJ:GJ)>11,1,0)),0.77,1)*SUM(HG8:HL8)+2*SQRT(Data!U3+Data!V3)+SUM(GX8:HD8),"") -> 25.53908027 | HG8: =IFERROR(VLOOKUP(KE8,Tables!$AE$3:$AH$9,4,FALSE),0)+IFERROR(VLOOKUP(MS8,Tables!$AE$3:$AH$9,4,FALSE),0) -> 3.206860112 | HH8: =4*(1-COUNTIF(CK8,CheckMark))+4*(1-COUNTIF(CM8,CheckMark))+5*(1-COUNTIF(CP8,CheckMark))+3*(1-COUNTIF(CR8,CheckMark))+IF(Inputs!$C$90=Inputs!$G$90,0,3*(1-COUNTIF(NT8,TRUE))+3*(1-COUNTIF(NA8,CheckMark))) -> 4 | HI8: =IF(MR8="R",3,0) -> 0 | HJ8: =IF(HQ8=HQ$2,4,0) -> 4 | HK8: -1 | HL8: =VLOOKUP(IF(FP8=0,JS8,FP8),Tables!$D$3:$F$24,3,FALSE)+VLOOKUP(MQ8,Tables!$M$3:$P$21,4,FALSE) -> 10.68769887 | HN8: Rt Angle | HO8: Other Veh | HP8: 1.508 | HQ8: 1 | HR8: Day | HS8: Intersection | HU8: =IF(OR(MP8="A",MP8="B",MP8="C",MP8="J"),1,0) -> 1 | HV8: =MAX(HQ8,HU8) -> 1 | HW8: D | HX8: =IF(OR(JF8=1,TRIM(KJ8)="G",TRIM(KJ8)="H",TRIM(KK8)="G",TRIM(KK8)="H"),TRUE,FALSE) -> FALSE | HY8: =IF(OR(TRIM(JN8)="A",TRIM(LK8)="1",TRIM(LK8)="11",TRIM(LK8)="12"),TRUE,FALSE) -> FALSE | HZ8: =IF(AND(OR(JW8=1,COUNTIF(Tables!H$3:H$24,HW8)=0),IF(OR(KJ8="Y",TRIM(KJ8)=""),1,0)+IF(OR(KP8="YY",TRIM(KP8)=""),1,0)+IF(OR(KT8="Z",TRIM(KT8)=""),1,0)+IF(OR(KZ8="Y",TRIM(KZ8)=""),1,0)+IF(OR(LD8="Y",TRIM(LD8)=""),1,0)+IF(OR(MC8="Y",TRIM(MC8)=""),1,0)>(3-JM8),IF(OR(KK8="Y",TRIM(KK8)=""),1,0)+IF(OR(KQ8="YY",TRIM(KQ8)=""),1,0)+IF(OR(KU8="Z",TRIM(KU8)=""),1,0)+IF(OR(LA8="Y",TRIM(LA8)=""),1,0)+IF(OR(LE8="Y",TRIM(LE8)=""),1,0)+IF(OR(MD8="Y",TRIM(MD8)=""),1,0)>(3-JM8)),"NV",IF(OR(JW8=1,COUNTIF(Tables!H$3:H$24,HW8)=0),IF(OR(COUNTIF(KT8:KU8,"R"),MQ8="E",MQ8="J",(IF(OR(KK8="Y",TRIM(KK8)=""),1,0)+IF(OR(KQ8="YY",TRIM(KQ8)=""),1,0)+IF(OR(KU8="Z",TRIM(KU8)=""),1,0)+IF(OR(LA8="Y",TRIM(LA8)=""),1,0)+IF(OR(LE8="Y",TRIM(LE8)=""),1,0)+IF(OR(MD8="Y",TRIM(MD8)=""),1,0))>4,IF(KU8="",0,1)+IF(KY8="",0,1)+IF(OR(MU8="",MU8="Y"),0,1)=0),"SV","SE"),IF(AND(JW8<>0,JW8<>1,COUNTIF(Tables!H$3:H$24,HW8)=1,OR(IF(OR(KJ8="Y",TRIM(KJ8)=""),1,0)+IF(OR(KP8="YY",TRIM(KP8)=""),1,0)+IF(OR(KT8="Z",TRIM(KT8)=""),1,0)+IF(OR(KZ8="Y",TRIM(KZ8)=""),1,0)+IF(OR(LD8="Y",TRIM(LD8)=""),1,0)+IF(OR(MC8="Y",TRIM(MC8)=""),1,0)>(3-JM8),IF(OR(KK8="Y",TRIM(KK8)=""),1,0)+IF(OR(KQ8="YY",TRIM(KQ8)=""),1,0)+IF(OR(KU8="Z",TRIM(KU8)=""),1,0)+IF(OR(LA8="Y",TRIM(LA8)=""),1,0)+IF(OR(LE8="Y",TRIM(LE8)=""),1,0)+IF(OR(MD8="Y",TRIM(MD8)=""),1,0)>(3-JM8))),"ME","MV"))) -> MV | IA8: Rt Angle | IB8: Rt Angle | IY8: =IF(AND(OR(AC8<>HQ8,HQ8=0),(COUNTBLANK(DS8:EF8)+COUNTBLANK(EJ8:EK8))<15),"Move","Nope") -> Nope | JA8: =IF(Data!A3=0,"",Data!A3*1) -> 2019 | JB8: =Data!B3 -> 0 | JC8: =Data!C3 -> 00:00:00 | JD8: 10 | JE8: =Data!E3 -> A | JF8: 0 | JG8: =IF(NL8="",Data!G3,NL8) -> A | JI8: =Data!I3 -> 0 | JJ8: =Data!J3 -> 0 | JK8: =Data!K3 -> SU | JL8: =IF(NQ8="",Data!L3,NQ8) -> 0 | JM8: =IF(DU8<>"",DU8,Data!M3) -> 0 | JN8: =Data!N3 -> C | JO8: 1 | JP8: =Data!P3 -> B | JQ8: =IFERROR(VLOOKUP(HR8,Tables!$AQ$3:$AR$10,2,FALSE),"") -> A | JS8: =IFERROR(VLOOKUP(HN8,Tables!$B$3:$D$18,3,FALSE),"") -> D | JU8: =Data!U3 -> 3 | JV8: =Data!V3 -> 0 | JW8: =Data!W3 -> 2 | JX8: =Data!X3 -> 28 | JZ8: =Data!Z3 -> 325 | KA8: =Data!AA3 -> G | KB8: =Data!AB3 -> A | KC8: =Data!AC3 -> C | KD8: =Data!AD3 -> 0 | KE8: =Data!AE3 -> D | KF8: =Data!AF3 -> A | KG8: =Data!AG3 -> A | KH8: =Data!AH3 -> I | KI8: =Data!AI3 -> B | KJ8: =Data!AJ3 -> A | KK8: =Data!AK3 -> A | KL8: =Data!AL3 -> 0 | KM8: =Data!AM3 -> 0 | KN8: =TRIM(Data!AN3) -> S | KO8: =TRIM(Data!AO3) -> S | KP8: =Data!AP3 -> S | KQ8: =Data!AQ3 -> S | KR8: =Data!AR3 -> 45 | KT8: =IF(EA8<>"",VLOOKUP(EA8,Tables!$DW$3:$DX$28,2,FALSE),TRIM(BY8)) -> J | KU8: =IF(EC8<>"",VLOOKUP(EC8,Tables!$DW$3:$DX$28,2,FALSE),TRIM(BZ8)) -> B | KV8: =Data!AV3 -> R | KX8: N | KY8: N | KZ8: =Data!AZ3 -> K | LA8: =Data!BA3 -> K | LB8: =IF(NG8="",Data!BB3,NG8) -> V | LC8: =IF(NH8="",Data!BC3,NH8) -> A | LD8: =IF(NB8="",Data!BD3,NB8) -> H | LE8: =IF(NC8="",Data!BE3,NC8) -> U | LF8: =Data!BF3 ->  | LH8: =Data!BH3 -> 9900 | LI8: =Data!BI3 -> 789-12 | LK8: =Data!BK3 -> 17 | LL8: =Data!BL3 -> 6 | LM8: =Data!BM3 -> 2.04 | LN8: =Data!BN3 -> 1.39 | LO8: =IF($LO$1=$HP$3,HP8,Data!BO3) -> 1.508 | LP8: =Data!BP3 -> 0 | LQ8: =Data!BQ3 -> 4 | LS8: =Data!BS3 -> 42 | LT8: =Data!BT3 -> 0 | LW8: =Data!BW3 -> 325 | LZ8: =Data!BZ3 -> 3 | MA8: =Data!CA3 -> A | MB8: =Data!CB3 -> B | MC8: =Data!CC3 -> L | MD8: =Data!CD3 -> P | ME8: =Data!CE3 -> 4 | MF8: =IF($MF$1=$HP$3,HP8,Data!CF3) -> 0.532 | MG8: 30.254958 | MH8: -92.144478 | MI8: =Data!CI3 -> 10:32:00 | MK8: 28LA325@ERA | ML8: =Data!CL3 -> 789-12-1-010 | MM8: =Data!CM3 -> 1.508 | MN8: 0 | MP8: =IFERROR(VLOOKUP(HS8,Tables!BW$3:BX$13,2,FALSE),"") -> A | MQ8: =IFERROR(VLOOKUP(HO8,Tables!$L$3:$M$21,2,FALSE),"") -> K | MR8: =IF(NM8="",IF(OR(AND(LD8<>"S",LD8<>"U",LD8<>"Y"),AND(LE8<>"S",LE8<>"U",LE8<>"Y",LE8<>" "),MQ8="F"),"O",Data!CR3),NM8) -> O | MS8: =Data!CS3 -> C | NA8: =IF(OR(NB8<>"",NC8<>""),CheckMark,IF(OR(AND(NB8="",NC8="",NO8="R",COUNTIF(LD8:LE8,"")+COUNTIF(LD8:LE8,"S")+COUNTIF(LD8:LE8,"U")+COUNTIF(LD8:LE8,"Y")+COUNTIF(LD8:LE8,"Z")=IF(AND(HW8="A",TRIM(LE8)=""),1,2)),AND(OR(HW8="A",HW8="Z"),MP8="D",COUNTIF(LD8:LE8,"A")+COUNTIF(LD8:LE8,"B")+COUNTIF(LD8:LE8,"Q")+COUNTIF(LD8:LE8,"R")=0)),"resolve",IF(AND(OR(HW8="C",HW8="K"),IFERROR(IF(VLOOKUP(LL8,Tables!CA$3:CD$19,4,FALSE)="Maybe",FALSE,VLOOKUP(LL8,Tables!CA$3:CD$19,4,FALSE)),IF(LP8>11,FALSE,TRUE))),CheckMark,IF(AND(HW8="J",CY8=CZ8,COUNTIF(LD8:LE8,"K")),IF(AND(HW8="A",COUNTIF(LD8:LE8,"L")>0),IF(JO8=1,CheckMark,"resolve"),CheckMark),IF(AND(COUNTIF(Tables!$EA$3:$EA$54,HW8)+COUNTIF(Tables!$EB$3:$EB$54,LD8)+COUNTIF(Tables!$EB$3:$EB$54,LE8)>0,COUNTIF(Tables!$ED$3:$ED$54,HW8&LD8)+COUNTIF(Tables!$ED$3:$ED$54,HW8&LE8)<1),IF(AND(HW8="B",COUNTIF(LD8:LE8,"H"),COUNTIF(KT8:KU8,"P")),CheckMark,IF(AND(MR8="O",COUNTIF(LD8:LE8,"Q")+COUNTIF(LD8:LE8,"R")>0),CheckMark,"resolve")),CheckMark))))) -> resolve | ND8: H | NE8: U | NF8: ✓ | NI8: V | NJ8: A | NK8: ✓ | NN8: A | NO8: O | NP8: ✓ | NR8: 0 | NS8: =IFERROR(VLOOKUP(TRIM(KN8),Tables!$DR$3:$DU$46,4,FALSE),0)+IFERROR(VLOOKUP(TRIM(KO8),Tables!$DR$3:$DU$46,4,FALSE),0)+IFERROR(VLOOKUP(TRIM(KP8),Tables!$DR$3:$DU$46,4,FALSE),0)+IFERROR(VLOOKUP(TRIM(KQ8),Tables!$DR$3:$DU$46,4,FALSE),0) -> 0 | NT8: TRUE | NU8: =IF(AND(FN8<>FO8,FO8<>"Z"),FO8,IF(OR(COUNTIF(LD8:LE8,"T")>0,COUNTIF(KT8:KU8,"D")>0),"Q",IF(OR(FO8="A",JW8=1,MQ8="B",MQ8="E",MQ8="G",MQ8="H",MQ8="J",MQ8="N",MQ8="P",MQ8="T"),"A",IF(IFERROR(VLOOKUP(LEFT(TRIM(KX8&KY8),2),Tables!$AJ$49:$AK$68,2,FALSE),"A")="O",IF(COUNTIF(KT8:KU8,"I")+COUNTIF(KT8:KU8,"M")+COUNTIF(KT8:KU8,"O")=2,"P",IF(AND(COUNTIF(KT8:KU8,"I")+COUNTIF(KT8:KU8,"M")+COUNTIF(KT8:KU8,"O")=1,COUNTIF(KT8:KU8,"J")+COUNTIF(KT8:KU8,"N")+COUNTIF(KT8:KU8,"P")=1),"N",IF(AND(COUNTIF(KT8:KU8,"I")+COUNTIF(KT8:KU8,"M")+COUNTIF(KT8:KU8,"O")=1,COUNTIF(KT8:KU8,"B")=1),"F",IF(AND(COUNTIF(KT8:KU8,"C")+COUNTIF(KT8:KU8,"E")+COUNTIF(KT8:KU8,"F")>0,FO8<>"C",JO8=0,MP8<>"A"),"K",IF(AND(COUNTIF(KT8:KU8,"I")+COUNTIF(KT8:KU8,"M")+COUNTIF(KT8:KU8,"O")=1,COUNTIF(KT8:KU8,"A")+COUNTIF(KT8:KU8,"K")+COUNTIF(KT8:KU8,"M")+COUNTIF(KT8:KU8,"N")+COUNTIF(KT8:KU8,"J")+COUNTIF(KT8:KU8,"P")+COUNTIF(KT8:KU8,"Q")>0),"M",FO8))))),IF(AND(COUNTIF(KT8:KU8,"I")+COUNTIF(KT8:KU8,"M")+COUNTIF(KT8:KU8,"O")=1,COUNTIF(KT8:KU8,"A")+COUNTIF(KT8:KU8,"K")+COUNTIF(KT8:KU8,"M")+COUNTIF(KT8:KU8,"N")+COUNTIF(KT8:KU8,"J")+COUNTIF(KT8:KU8,"P")+COUNTIF(KT8:KU8,"Q")>0),"M",IF(KX8=KY8,IF(AND(JO8=0,MP8<>"A",MP8<>"B",MP8<>"C"),IF(COUNTIF(LD8:LE8,"D")>0,"B",IF(OR(COUNTIF(LD8:LE8,"C")+COUNTIF(LD8:LE8,"F")>0,COUNTIF(KT8:KU8,"H")>0),"J",FO8)),IF(OR(AND(COUNTIF(KU8,"J")+COUNTIF(KU8,"N")+COUNTIF(KU8,"P")=1,COUNTIF(KT8,"A")+COUNTIF(KT8,"B")+COUNTIF(KT8,"E")+COUNTIF(KT8,"F")+COUNTIF(KT8,"H")+COUNTIF(KT8,"K")+COUNTIF(KT8,"M")+COUNTIF(KT8,"N")+COUNTIF(KT8,"O")+COUNTIF(KT8,"P")+COUNTIF(KT8,"Q")=1,FO8<>"I"),AND(COUNTIF(KT8,"J")+COUNTIF(KT8,"N")+COUNTIF(KT8,"P")=1,COUNTIF(KU8,"A")+COUNTIF(KU8,"B")+COUNTIF(KU8,"E")+COUNTIF(KU8,"F")+COUNTIF(KU8,"H")+COUNTIF(KU8,"K")+COUNTIF(KU8,"M")+COUNTIF(KU8,"N")+COUNTIF(KU8,"O")+COUNTIF(KU8,"P")+COUNTIF(KU8,"Q")=1,FO8<>"I")),"L",IF(OR(AND(COUNTIF(KU8,"I")+COUNTIF(KU8,"M")+COUNTIF(KU8,"O")=1,COUNTIF(KT8,"A")+COUNTIF(KT8,"B")+COUNTIF(KT8,"E")+COUNTIF(KT8,"F")+COUNTIF(KT8,"H")+COUNTIF(KT8,"K")+COUNTIF(KT8,"M")+COUNTIF(KT8,"N")+COUNTIF(KT8,"O")+COUNTIF(KT8,"P")+COUNTIF(KT8,"Q")=1),AND(COUNTIF(KT8,"I")+COUNTIF(KT8,"M")+COUNTIF(KT8,"O")=1,COUNTIF(KU8,"A")+COUNTIF(KU8,"B")+COUNTIF(KU8,"E")+COUNTIF(KU8,"F")+COUNTIF(KU8,"H")+COUNTIF(KU8,"K")+COUNTIF(KU8,"M")+COUNTIF(KU8,"N")+COUNTIF(KU8,"O")+COUNTIF(KU8,"P")+COUNTIF(KU8,"Q")=1)),"E",IF(OR(COUNTIF(KT8:KU8,"I")+COUNTIF(KT8:KU8,"M")+COUNTIF(KT8:KU8,"O")=2,COUNTIF(KT8:KU8,"J")+COUNTIF(KT8:KU8,"N")+COUNTIF(KT8:KU8,"P")=2),"J",FO8)))),IF(KX8<>KY8,IF(COUNTIF(LD8:LE8,"K")>0,"G",IF(AND(COUNTIF(LD8:LE8,"H")+COUNTIF(LD8:LE8,"K")+COUNTIF(LD8:LE8,"S")+COUNTIF(LD8:LE8,"Y")+COUNTIF(LD8:LE8,"Z")>0,COUNTIF(KT8:KU8,"J")+COUNTIF(KT8:KU8,"N")+COUNTIF(KT8:KU8,"P")=1,KT8<>KU8),IFERROR(VLOOKUP(KX8&KY8,Tables!$AJ$49:$AL$63,3,FALSE),FO8),IF(AND(OR(FO8="D",FO8="Z"),COUNTIF(KT8:KU8,"J")),"H",IF(OR(FO8="G",FO8="H",FO8="I"),FO8,"D"))))))))))) -> L
A9: finish | B9: where? | C9: =IF(OR(D9<>"A",AND(OR(CI9=CheckMark,CI9="checked"),CK9=CheckMark,CL9=CheckMark,CM9<>"resolve",CP9=CheckMark,CR9<>"resolve",CS9=CheckMark,OR(CT9=CheckMark,CT9="checked"),CU9<>4,CV9=CheckMark,CX9=CheckMark,DA9<>"resolve",DC9<>"resolve")),IF(Inputs!$C$90=Inputs!$G$90,"good",IF(AND(NT9<>FALSE,NA9<>"resolve",NF9<>"resolve",NK9<>"resolve",NP9<>"resolve"),"good","issue2")),"issue") -> issue | D9: A | E9: no | G9: low | H9: done | K9: =Data!Z4 -> 325 | L9: =Data!CF4 -> 0.532 | M9: =Data!BI4 -> 789-12 | N9: =Data!BO4 -> 1.508 | U9: =Data!C4 -> 00:00:00 | W9: =IFERROR(VLOOKUP(Data!S4,Tables!$A$3:$B$18,2,FALSE),0) -> Right Turn-h | X9: =IFERROR(VLOOKUP(Data!CQ4,Tables!$J$3:$L$21,3,FALSE),0) -> Small Veh | Y9: =Data!AF4 -> B | Z9: =SUBSTITUTE(Data!B4,"-","")&"-" -> - | AA9: =Data!X4 -> 28 | AB9: =Data!D4 -> 13 | AC9: =Data!O4*1 -> 1 | AD9: =Data!P4 -> B | AE9: =TRIM(Data!AW4) -> EE | AF9: =Data!AS4 -> JB | AG9: =Data!F4 -> 0 | AH9: =TRIM(Data!CK4) -> 28LA325@ERA | AI9: =Data!CL4 -> 789-12-1-010 | AJ9: =Data!AE4 -> E | AK9: =Data!CN4 -> 0 | AL9: =IFERROR(VLOOKUP(Data!CP4,Tables!BV$3:BW$13,2,FALSE),0) -> Intersection | AM9: =Data!CG4 -> 30.254958 | AN9: =Data!CH4 -> -92.144478 | AO9: =Data!N4 -> C | AQ9: =Data!CC4 -> L | AR9: =IFERROR(VLOOKUP(Data!Q4,Tables!$AP$3:$AQ$10,2,FALSE),"Z") -> Day | AS9: =Data!AJ4 -> A | AT9: =Data!AZ4 -> K | BX9: =Data!AS4 -> JB | BY9: =IF(AND(JW9<2,MD9="A"),Data!AU4,Data!AT4) -> J | BZ9: =IF(AND(JW9<2,MD9="A"),MID(BX9,3,1),Data!AU4) -> B | CA9: =Data!AW4 -> EE | CB9: =IF(AND(JW9<2,MD9="A"),Data!AY4,Data!AX4) -> E | CC9: =IF(AND(JW9<2,MD9="A"),MID(CA9,3,1),Data!AY4) -> E | CF9: =IF(D9="Z",CheckMark,IF($HO9=Tables!$L$10,IF(DW9=Tables!$L$10,CheckMark,"9"),CheckMark)) -> ✓ | CG9: =IF(D9="Z",CheckMark,IF(DV9=Tables!$B$14,CheckMark,IF(AND($HN9=Tables!$B$14,COUNTIF(Tables!$D$15:$D$22,HW9)=0,NOT(HX9)),"7",CheckMark))) -> ✓ | CH9: =IF(AND(LEN(KX9&KY9)=1,COUNTIF(Tables!Z$185:Z$210,HW9&MQ9)=0),"5",CheckMark) -> ✓ | CI9: =IF(CF9<>CheckMark,"issue "&CF9,IF(CG9<>CheckMark,"issue "&CG9,IF(CH9<>CheckMark,"issue "&CH9,CheckMark))) -> ✓ | CJ9: Right Turn-h:Small Veh | CK9: ✓ | CL9: =IF(D9="Z",CheckMark,IF(AND(INDIRECT(DV$388&$GP9)=0,DV9=0),1,IF(AND(INDIRECT(DW$388&$GP9)=0,DW9=0),2,IF(COUNTIF(Tables!Z$3:Z$177,HW9&MQ9)=1,3,CheckMark)))) -> ✓ | CM9: =IF(AND(HZ9="NV",LEN(TRIM(KX9)&TRIM(KY9))<3),CheckMark,IF(AND(HZ9="SV",LEN(TRIM(KX9)&TRIM(KY9))=1),CheckMark,IF(AND(OR(HZ9="MV",HZ9="SE",HZ9="ME"),LEN(TRIM(KX9)&TRIM(KY9))=2),IF(OR(HW9="A",HW9="Z",HW9="Q",HW9="S"),CheckMark,IF(IFERROR(VLOOKUP(HW9,Tables!$D$4:$G$22,4,FALSE)<>VLOOKUP(LEFT(TRIM(KX9&KY9),2),Tables!$AJ$49:$AK$68,2,FALSE),TRUE),IF(COUNTIF(KT9:KU9,"K")>0,CheckMark,"resolve"),CheckMark)),IF(AND(HZ9="ME",LEN(TRIM(KX9)&TRIM(KY9))=1),CheckMark,"resolve")))) -> resolve | CN9: E | CO9: E | CP9: ✓ | CQ9: 1 1 | CR9: ✓ | CS9: ✓ | CT9: ✓ | CU9: =IF(D9="Z",CheckMark,IF(AND(COUNTIF(Tables!$AN$19:$AN$22,HW9),HV9<>0,NOT(COUNTIF(Tables!$AN$31:$AN$38,KT9)),NOT(COUNTIF(Tables!$AN$31:$AN$38,KU9)),MQ9<>"A",MQ9<>"B",MQ9<>"C",MC9<>"A",MD9<>"A",NOT(HY9)),"6",IF(AND(COUNTIF(Tables!$AN$4:$AN$16,HW9),HV9<>1),"4",IF(AND(COUNTIF(Tables!$AN$43:$AN$48,HW9),HY9,MP9<>"D"),"8",CheckMark)))) -> ✓ | CV9: ✓ | CW9: 13 | CX9: ✓ | CY9: J | CZ9: B | DA9: =IF(AND(HZ9="NV",LEN(TRIM(SUBSTITUTE(KT9,"Z",""))&TRIM(KU9))<2),CheckMark,IF(AND(OR(HZ9="SV",HZ9="ME"),LEN(TRIM(KT9)&TRIM(KU9))=1),IF(IFERROR(HLOOKUP(IF(KT9="",KU9,KT9),Tables!$CP$1:$DO$22,VLOOKUP(HW9,Tables!$CN$3:$CO$22,2,FALSE),FALSE),TRUE),"resolve",CheckMark),IF(OR(IFERROR(HLOOKUP(KT9,Tables!$CP$1:$DO$22,VLOOKUP(HW9,Tables!$CN$3:$CO$22,2,FALSE),FALSE),TRUE),IFERROR(HLOOKUP(KU9,Tables!$CP$1:$DO$22,VLOOKUP(HW9,Tables!$CN$3:$CO$22,2,FALSE),FALSE),TRUE)),"resolve",CheckMark))) -> ✓ | DB9: 0 | DC9: =IF(OR(IFERROR(VLOOKUP(MQ9,Tables!J$3:N$21,5,FALSE),"")="B",AND(IFERROR(IF(VLOOKUP(LL9,Tables!CA$3:CD$19,4,FALSE)="Maybe",FALSE,VLOOKUP(LL9,Tables!CA$3:CD$19,4,FALSE)),IF(LP9>11,FALSE,TRUE)),COUNTIF(CY9:CZ9,"E")>0),COUNTIF(CY9:CZ9,"G")>0),CheckMark,IF(DB9=IFERROR(VLOOKUP(MQ9,Tables!J$3:N$21,5,FALSE),""),CheckMark,"resolve")) -> ✓ | DK9: X | DM9: =IF(COUNTIF(DQ$377:DQ$381,DQ9)>0,0,COUNTIF(INDIRECT(DQ$389&GP$5):INDIRECT(DQ$389&GP$341),DQ9)) -> 0 | EL9: =IFERROR(VLOOKUP(LL9,Tables!$CA$3:$CC$19,3,TRUE),"U") -> U | EM9: =IF(AND(EJ9<>0,EK9<>0,FH9>VLOOKUP(EL9,Tables!$CA$23:$CC$24,MAX(HV9,IF(AND(AH9<>"",AH9<>0),1,0))+2,FALSE)),"report",CheckMark) -> ✓ | FB9: X | FC9: Z | FH9: 6346.289305 | GP9: 9 | GQ9: X | GR9: Sat13 | GS9: 1900 | GU9: no | GV9: low | GY9: =IF(VLOOKUP(JS9,Outputs!$H$73:$N$84,6)="yes",VLOOKUP(JS9,Outputs!$H$73:$N$84,7),0)+IF(AND(Outputs!$M$85="Yes",OR(JS9="C",JS9="K")),Outputs!$N$85,0) -> 0 | GZ9: =IFERROR(IF(VLOOKUP(MQ9,Outputs!$A$73:$G$86,6)="yes",VLOOKUP(MQ9,Outputs!$A$73:$G$86,7),0),0) -> 0 | HA9: 0.7282387783 | HB9: =IFERROR(IF(VLOOKUP(MP9,Outputs!$H$86:$N$89,6)="yes",VLOOKUP(MP9,Outputs!$H$86:$N$89,7),0),0) -> 0 | HC9: =IF(AND(JQ9="B",Outputs!F$87="Yes"),Outputs!G$87,0) -> 0 | HD9: =IF(AND(KF9="B",Outputs!F$89="Yes"),Outputs!G$89,0) -> 0 | HF9: =IF($D9="A",IF((IF(D9="A",0,3)+IF(DP9="can't view",2,0)+IF(DQ9="",0,1)+IF(OR(EG9<>"",AND(EJ9<>"",EK9<>"")),1,0)+IF(COUNTA(GH:GH)>10,IF(OR(GH9="",GH9="yes"),0,2),0)+IF(COUNTA(GI:GI)>10,IF(GI9="",0,1),0)+IF(COUNTA(GJ:GJ)>11,IF(GJ9="",0,1),0))>(1+IF(COUNTA(GI:GI)>10,1,0)+IF(COUNTA(GJ:GJ)>11,1,0)),0.77,1)*SUM(HG9:HL9)+2*SQRT(Data!U4+Data!V4)+SUM(GX9:HD9),"") -> 17.71212444 | HG9: =IFERROR(VLOOKUP(KE9,Tables!$AE$3:$AH$9,4,FALSE),0)+IFERROR(VLOOKUP(MS9,Tables!$AE$3:$AH$9,4,FALSE),0) -> 2.32597785 | HH9: =4*(1-COUNTIF(CK9,CheckMark))+4*(1-COUNTIF(CM9,CheckMark))+5*(1-COUNTIF(CP9,CheckMark))+3*(1-COUNTIF(CR9,CheckMark))+IF(Inputs!$C$90=Inputs!$G$90,0,3*(1-COUNTIF(NT9,TRUE))+3*(1-COUNTIF(NA9,CheckMark))) -> 4 | HI9: 0 | HJ9: 4 | HK9: -1 | HL9: =VLOOKUP(IF(FP9=0,JS9,FP9),Tables!$D$3:$F$24,3,FALSE)+VLOOKUP(MQ9,Tables!$M$3:$P$21,4,FALSE) -> 7.657907814 | HN9: Right Turn-h | HO9: Small Veh | HP9: 1.508 | HQ9: 1 | HR9: Day | HS9: Intersection | HU9: 1 | HV9: 1 | HW9: H | HX9: FALSE | HY9: FALSE | HZ9: =IF(AND(OR(JW9=1,COUNTIF(Tables!H$3:H$24,HW9)=0),IF(OR(KJ9="Y",TRIM(KJ9)=""),1,0)+IF(OR(KP9="YY",TRIM(KP9)=""),1,0)+IF(OR(KT9="Z",TRIM(KT9)=""),1,0)+IF(OR(KZ9="Y",TRIM(KZ9)=""),1,0)+IF(OR(LD9="Y",TRIM(LD9)=""),1,0)+IF(OR(MC9="Y",TRIM(MC9)=""),1,0)>(3-JM9),IF(OR(KK9="Y",TRIM(KK9)=""),1,0)+IF(OR(KQ9="YY",TRIM(KQ9)=""),1,0)+IF(OR(KU9="Z",TRIM(KU9)=""),1,0)+IF(OR(LA9="Y",TRIM(LA9)=""),1,0)+IF(OR(LE9="Y",TRIM(LE9)=""),1,0)+IF(OR(MD9="Y",TRIM(MD9)=""),1,0)>(3-JM9)),"NV",IF(OR(JW9=1,COUNTIF(Tables!H$3:H$24,HW9)=0),IF(OR(COUNTIF(KT9:KU9,"R"),MQ9="E",MQ9="J",(IF(OR(KK9="Y",TRIM(KK9)=""),1,0)+IF(OR(KQ9="YY",TRIM(KQ9)=""),1,0)+IF(OR(KU9="Z",TRIM(KU9)=""),1,0)+IF(OR(LA9="Y",TRIM(LA9)=""),1,0)+IF(OR(LE9="Y",TRIM(LE9)=""),1,0)+IF(OR(MD9="Y",TRIM(MD9)=""),1,0))>4,IF(KU9="",0,1)+IF(KY9="",0,1)+IF(OR(MU9="",MU9="Y"),0,1)=0),"SV","SE"),IF(AND(JW9<>0,JW9<>1,COUNTIF(Tables!H$3:H$24,HW9)=1,OR(IF(OR(KJ9="Y",TRIM(KJ9)=""),1,0)+IF(OR(KP9="YY",TRIM(KP9)=""),1,0)+IF(OR(KT9="Z",TRIM(KT9)=""),1,0)+IF(OR(KZ9="Y",TRIM(KZ9)=""),1,0)+IF(OR(LD9="Y",TRIM(LD9)=""),1,0)+IF(OR(MC9="Y",TRIM(MC9)=""),1,0)>(3-JM9),IF(OR(KK9="Y",TRIM(KK9)=""),1,0)+IF(OR(KQ9="YY",TRIM(KQ9)=""),1,0)+IF(OR(KU9="Z",TRIM(KU9)=""),1,0)+IF(OR(LA9="Y",TRIM(LA9)=""),1,0)+IF(OR(LE9="Y",TRIM(LE9)=""),1,0)+IF(OR(MD9="Y",TRIM(MD9)=""),1,0)>(3-JM9))),"ME","MV"))) -> MV | IA9: Right Turn-h | IB9: Right Turn-h | IY9: Nope | JA9: =IF(Data!A4=0,"",Data!A4*1) -> 2019 | JB9: =Data!B4 -> 0 | JC9: =Data!C4 -> 00:00:00 | JD9: 13 | JE9: =Data!E4 -> A | JF9: 0 | JG9: =IF(NL9="",Data!G4,NL9) -> A | JI9: =Data!I4 -> 0 | JJ9: =Data!J4 -> 0 | JK9: =Data!K4 -> MO | JL9: =IF(NQ9="",Data!L4,NQ9) -> 0 | JM9: =IF(DU9<>"",DU9,Data!M4) -> 0 | JN9: =Data!N4 -> C | JO9: 1 | JP9: =Data!P4 -> B | JQ9: =IFERROR(VLOOKUP(HR9,Tables!$AQ$3:$AR$10,2,FALSE),"") -> A | JS9: =IFERROR(VLOOKUP(HN9,Tables!$B$3:$D$18,3,FALSE),"") -> H | JU9: =Data!U4 -> 0 | JV9: =Data!V4 -> 0 | JW9: =Data!W4 -> 2 | JX9: =Data!X4 -> 28 | JZ9: =Data!Z4 -> 325 | KA9: =Data!AA4 -> A | KB9: =Data!AB4 -> A | KC9: =Data!AC4 -> B | KD9: =Data!AD4 -> 0 | KE9: =Data!AE4 -> E | KF9: =Data!AF4 -> B | KG9: =Data!AG4 -> A | KH9: =Data!AH4 ->  | KI9: =Data!AI4 -> C | KJ9: =Data!AJ4 -> A | KK9: =Data!AK4 -> A | KL9: =Data!AL4 -> 0 | KM9: =Data!AM4 -> 0 | KN9: =TRIM(Data!AN4) -> S | KO9: =TRIM(Data!AO4) -> S | KP9: =Data!AP4 -> S | KQ9: =Data!AQ4 -> S | KR9: =Data!AR4 -> 40 | KT9: =IF(EA9<>"",VLOOKUP(EA9,Tables!$DW$3:$DX$28,2,FALSE),TRIM(BY9)) -> J | KU9: =IF(EC9<>"",VLOOKUP(EC9,Tables!$DW$3:$DX$28,2,FALSE),TRIM(BZ9)) -> B | KV9: =Data!AV4 -> C | KX9: E | KY9: E | KZ9: =Data!AZ4 -> K | LA9: =Data!BA4 -> K | LB9: =IF(NG9="",Data!BB4,NG9) -> A | LC9: =IF(NH9="",Data!BC4,NH9) -> B | LD9: =IF(NB9="",Data!BD4,NB9) -> C | LE9: =IF(NC9="",Data!BE4,NC9) -> U | LF9: =Data!BF4 ->  | LH9: =Data!BH4 -> 9900 | LI9: =Data!BI4 -> 789-12 | LK9: =Data!BK4 -> 17 | LL9: =Data!BL4 -> 6 | LM9: =Data!BM4 -> 2.04 | LN9: =Data!BN4 -> 1.39 | LO9: =IF($LO$1=$HP$3,HP9,Data!BO4) -> 1.508 | LP9: =Data!BP4 -> 0 | LQ9: =Data!BQ4 -> 4 | LS9: =Data!BS4 -> 42 | LT9: =Data!BT4 -> 0 | LW9: =Data!BW4 -> 325 | LZ9: =Data!BZ4 -> 3 | MA9: =Data!CA4 -> A | MB9: =Data!CB4 -> B | MC9: =Data!CC4 -> L | MD9: =Data!CD4 -> P | ME9: =Data!CE4 -> 4 | MF9: =IF($MF$1=$HP$3,HP9,Data!CF4) -> 0.532 | MG9: 30.254958 | MH9: -92.144478 | MI9: =Data!CI4 -> 13:51:00 | MK9: 28LA325@ERA | ML9: =Data!CL4 -> 789-12-1-010 | MM9: =Data!CM4 -> 1.508 | MN9: 0 | MP9: =IFERROR(VLOOKUP(HS9,Tables!BW$3:BX$13,2,FALSE),"") -> A | MQ9: =IFERROR(VLOOKUP(HO9,Tables!$L$3:$M$21,2,FALSE),"") -> S | MR9: =IF(NM9="",IF(OR(AND(LD9<>"S",LD9<>"U",LD9<>"Y"),AND(LE9<>"S",LE9<>"U",LE9<>"Y",LE9<>" "),MQ9="F"),"O",Data!CR4),NM9) -> O | MS9: =Data!CS4 -> D | NA9: =IF(OR(NB9<>"",NC9<>""),CheckMark,IF(OR(AND(NB9="",NC9="",NO9="R",COUNTIF(LD9:LE9,"")+COUNTIF(LD9:LE9,"S")+COUNTIF(LD9:LE9,"U")+COUNTIF(LD9:LE9,"Y")+COUNTIF(LD9:LE9,"Z")=IF(AND(HW9="A",TRIM(LE9)=""),1,2)),AND(OR(HW9="A",HW9="Z"),MP9="D",COUNTIF(LD9:LE9,"A")+COUNTIF(LD9:LE9,"B")+COUNTIF(LD9:LE9,"Q")+COUNTIF(LD9:LE9,"R")=0)),"resolve",IF(AND(OR(HW9="C",HW9="K"),IFERROR(IF(VLOOKUP(LL9,Tables!CA$3:CD$19,4,FALSE)="Maybe",FALSE,VLOOKUP(LL9,Tables!CA$3:CD$19,4,FALSE)),IF(LP9>11,FALSE,TRUE))),CheckMark,IF(AND(HW9="J",CY9=CZ9,COUNTIF(LD9:LE9,"K")),IF(AND(HW9="A",COUNTIF(LD9:LE9,"L")>0),IF(JO9=1,CheckMark,"resolve"),CheckMark),IF(AND(COUNTIF(Tables!$EA$3:$EA$54,HW9)+COUNTIF(Tables!$EB$3:$EB$54,LD9)+COUNTIF(Tables!$EB$3:$EB$54,LE9)>0,COUNTIF(Tables!$ED$3:$ED$54,HW9&LD9)+COUNTIF(Tables!$ED$3:$ED$54,HW9&LE9)<1),IF(AND(HW9="B",COUNTIF(LD9:LE9,"H"),COUNTIF(KT9:KU9,"P")),CheckMark,IF(AND(MR9="O",COUNTIF(LD9:LE9,"Q")+COUNTIF(LD9:LE9,"R")>0),CheckMark,"resolve")),CheckMark))))) -> ✓ | ND9: C | NE9: U | NF9: ✓ | NI9: A | NJ9: B | NK9: ✓ | NN9: A | NO9: O | NP9: ✓ | NR9: 0 | NS9: =IFERROR(VLOOKUP(TRIM(KN9),Tables!$DR$3:$DU$46,4,FALSE),0)+IFERROR(VLOOKUP(TRIM(KO9),Tables!$DR$3:$DU$46,4,FALSE),0)+IFERROR(VLOOKUP(TRIM(KP9),Tables!$DR$3:$DU$46,4,FALSE),0)+IFERROR(VLOOKUP(TRIM(KQ9),Tables!$DR$3:$DU$46,4,FALSE),0) -> 0 | NT9: TRUE | NU9: =IF(AND(FN9<>FO9,FO9<>"Z"),FO9,IF(OR(COUNTIF(LD9:LE9,"T")>0,COUNTIF(KT9:KU9,"D")>0),"Q",IF(OR(FO9="A",JW9=1,MQ9="B",MQ9="E",MQ9="G",MQ9="H",MQ9="J",MQ9="N",MQ9="P",MQ9="T"),"A",IF(IFERROR(VLOOKUP(LEFT(TRIM(KX9&KY9),2),Tables!$AJ$49:$AK$68,2,FALSE),"A")="O",IF(COUNTIF(KT9:KU9,"I")+COUNTIF(KT9:KU9,"M")+COUNTIF(KT9:KU9,"O")=2,"P",IF(AND(COUNTIF(KT9:KU9,"I")+COUNTIF(KT9:KU9,"M")+COUNTIF(KT9:KU9,"O")=1,COUNTIF(KT9:KU9,"J")+COUNTIF(KT9:KU9,"N")+COUNTIF(KT9:KU9,"P")=1),"N",IF(AND(COUNTIF(KT9:KU9,"I")+COUNTIF(KT9:KU9,"M")+COUNTIF(KT9:KU9,"O")=1,COUNTIF(KT9:KU9,"B")=1),"F",IF(AND(COUNTIF(KT9:KU9,"C")+COUNTIF(KT9:KU9,"E")+COUNTIF(KT9:KU9,"F")>0,FO9<>"C",JO9=0,MP9<>"A"),"K",IF(AND(COUNTIF(KT9:KU9,"I")+COUNTIF(KT9:KU9,"M")+COUNTIF(KT9:KU9,"O")=1,COUNTIF(KT9:KU9,"A")+COUNTIF(KT9:KU9,"K")+COUNTIF(KT9:KU9,"M")+COUNTIF(KT9:KU9,"N")+COUNTIF(KT9:KU9,"J")+COUNTIF(KT9:KU9,"P")+COUNTIF(KT9:KU9,"Q")>0),"M",FO9))))),IF(AND(COUNTIF(KT9:KU9,"I")+COUNTIF(KT9:KU9,"M")+COUNTIF(KT9:KU9,"O")=1,COUNTIF(KT9:KU9,"A")+COUNTIF(KT9:KU9,"K")+COUNTIF(KT9:KU9,"M")+COUNTIF(KT9:KU9,"N")+COUNTIF(KT9:KU9,"J")+COUNTIF(KT9:KU9,"P")+COUNTIF(KT9:KU9,"Q")>0),"M",IF(KX9=KY9,IF(AND(JO9=0,MP9<>"A",MP9<>"B",MP9<>"C"),IF(COUNTIF(LD9:LE9,"D")>0,"B",IF(OR(COUNTIF(LD9:LE9,"C")+COUNTIF(LD9:LE9,"F")>0,COUNTIF(KT9:KU9,"H")>0),"J",FO9)),IF(OR(AND(COUNTIF(KU9,"J")+COUNTIF(KU9,"N")+COUNTIF(KU9,"P")=1,COUNTIF(KT9,"A")+COUNTIF(KT9,"B")+COUNTIF(KT9,"E")+COUNTIF(KT9,"F")+COUNTIF(KT9,"H")+COUNTIF(KT9,"K")+COUNTIF(KT9,"M")+COUNTIF(KT9,"N")+COUNTIF(KT9,"O")+COUNTIF(KT9,"P")+COUNTIF(KT9,"Q")=1,FO9<>"I"),AND(COUNTIF(KT9,"J")+COUNTIF(KT9,"N")+COUNTIF(KT9,"P")=1,COUNTIF(KU9,"A")+COUNTIF(KU9,"B")+COUNTIF(KU9,"E")+COUNTIF(KU9,"F")+COUNTIF(KU9,"H")+COUNTIF(KU9,"K")+COUNTIF(KU9,"M")+COUNTIF(KU9,"N")+COUNTIF(KU9,"O")+COUNTIF(KU9,"P")+COUNTIF(KU9,"Q")=1,FO9<>"I")),"L",IF(OR(AND(COUNTIF(KU9,"I")+COUNTIF(KU9,"M")+COUNTIF(KU9,"O")=1,COUNTIF(KT9,"A")+COUNTIF(KT9,"B")+COUNTIF(KT9,"E")+COUNTIF(KT9,"F")+COUNTIF(KT9,"H")+COUNTIF(KT9,"K")+COUNTIF(KT9,"M")+COUNTIF(KT9,"N")+COUNTIF(KT9,"O")+COUNTIF(KT9,"P")+COUNTIF(KT9,"Q")=1),AND(COUNTIF(KT9,"I")+COUNTIF(KT9,"M")+COUNTIF(KT9,"O")=1,COUNTIF(KU9,"A")+COUNTIF(KU9,"B")+COUNTIF(KU9,"E")+COUNTIF(KU9,"F")+COUNTIF(KU9,"H")+COUNTIF(KU9,"K")+COUNTIF(KU9,"M")+COUNTIF(KU9,"N")+COUNTIF(KU9,"O")+COUNTIF(KU9,"P")+COUNTIF(KU9,"Q")=1)),"E",IF(OR(COUNTIF(KT9:KU9,"I")+COUNTIF(KT9:KU9,"M")+COUNTIF(KT9:KU9,"O")=2,COUNTIF(KT9:KU9,"J")+COUNTIF(KT9:KU9,"N")+COUNTIF(KT9:KU9,"P")=2),"J",FO9)))),IF(KX9<>KY9,IF(COUNTIF(LD9:LE9,"K")>0,"G",IF(AND(COUNTIF(LD9:LE9,"H")+COUNTIF(LD9:LE9,"K")+COUNTIF(LD9:LE9,"S")+COUNTIF(LD9:LE9,"Y")+COUNTIF(LD9:LE9,"Z")>0,COUNTIF(KT9:KU9,"J")+COUNTIF(KT9:KU9,"N")+COUNTIF(KT9:KU9,"P")=1,KT9<>KU9),IFERROR(VLOOKUP(KX9&KY9,Tables!$AJ$49:$AL$63,3,FALSE),FO9),IF(AND(OR(FO9="D",FO9="Z"),COUNTIF(KT9:KU9,"J")),"H",IF(OR(FO9="G",FO9="H",FO9="I"),FO9,"D"))))))))))) -> L
A10: finish | B10: where? | C10: =IF(OR(D10<>"A",AND(OR(CI10=CheckMark,CI10="checked"),CK10=CheckMark,CL10=CheckMark,CM10<>"resolve",CP10=CheckMark,CR10<>"resolve",CS10=CheckMark,OR(CT10=CheckMark,CT10="checked"),CU10<>4,CV10=CheckMark,CX10=CheckMark,DA10<>"resolve",DC10<>"resolve")),IF(Inputs!$C$90=Inputs!$G$90,"good",IF(AND(NT10<>FALSE,NA10<>"resolve",NF10<>"resolve",NK10<>"resolve",NP10<>"resolve"),"good","issue2")),"issue") -> issue | D10: A | E10: no | G10: low | H10: done | K10: =Data!Z5 -> 325 | L10: =Data!CF5 -> 0.509 | M10: =Data!BI5 -> 789-12 | N10: =Data!BO5 -> 1.531 | U10: =Data!C5 -> 00:00:00 | W10: =IFERROR(VLOOKUP(Data!S5,Tables!$A$3:$B$18,2,FALSE),0) -> Other | X10: =IFERROR(VLOOKUP(Data!CQ5,Tables!$J$3:$L$21,3,FALSE),0) -> Medium Veh | Y10: =Data!AF5 -> A | Z10: =SUBSTITUTE(Data!B5,"-","")&"-" -> - | AA10: =Data!X5 -> 28 | AB10: =Data!D5 -> 17 | AC10: =Data!O5*1 -> 1 | AD10: =Data!P5 -> B | AE10: =TRIM(Data!AW5) -> NS | AF10: =Data!AS5 -> DA | AG10: =Data!F5 -> 0 | AH10: =TRIM(Data!CK5) -> 28LA325@ERA | AI10: =Data!CL5 -> 789-12-1-010 | AJ10: =Data!AE5 -> E | AK10: =Data!CN5 -> 0 | AL10: =IFERROR(VLOOKUP(Data!CP5,Tables!BV$3:BW$13,2,FALSE),0) -> Intersection | AM10: =Data!CG5 -> 30.255287 | AN10: =Data!CH5 -> -92.144443 | AO10: =Data!N5 -> C | AQ10: =Data!CC5 -> L | AR10: =IFERROR(VLOOKUP(Data!Q5,Tables!$AP$3:$AQ$10,2,FALSE),"Z") -> Day | AS10: =Data!AJ5 -> B | AT10: =Data!AZ5 -> K | BX10: =Data!AS5 -> DA | BY10: =IF(AND(JW10<2,MD10="A"),Data!AU5,Data!AT5) -> D | BZ10: =IF(AND(JW10<2,MD10="A"),MID(BX10,3,1),Data!AU5) -> A | CA10: =Data!AW5 -> NS | CB10: =IF(AND(JW10<2,MD10="A"),Data!AY5,Data!AX5) -> N | CC10: =IF(AND(JW10<2,MD10="A"),MID(CA10,3,1),Data!AY5) -> S | CF10: =IF(D10="Z",CheckMark,IF($HO10=Tables!$L$10,IF(DW10=Tables!$L$10,CheckMark,"9"),CheckMark)) -> ✓ | CG10: =IF(D10="Z",CheckMark,IF(DV10=Tables!$B$14,CheckMark,IF(AND($HN10=Tables!$B$14,COUNTIF(Tables!$D$15:$D$22,HW10)=0,NOT(HX10)),"7",CheckMark))) -> 7 | CH10: =IF(AND(LEN(KX10&KY10)=1,COUNTIF(Tables!Z$185:Z$210,HW10&MQ10)=0),"5",CheckMark) -> ✓ | CI10: issue 7 | CJ10: Other:Medium Veh | CK10: ✓ | CL10: =IF(D10="Z",CheckMark,IF(AND(INDIRECT(DV$388&$GP10)=0,DV10=0),1,IF(AND(INDIRECT(DW$388&$GP10)=0,DW10=0),2,IF(COUNTIF(Tables!Z$3:Z$177,HW10&MQ10)=1,3,CheckMark)))) -> ✓ | CM10: =IF(AND(HZ10="NV",LEN(TRIM(KX10)&TRIM(KY10))<3),CheckMark,IF(AND(HZ10="SV",LEN(TRIM(KX10)&TRIM(KY10))=1),CheckMark,IF(AND(OR(HZ10="MV",HZ10="SE",HZ10="ME"),LEN(TRIM(KX10)&TRIM(KY10))=2),IF(OR(HW10="A",HW10="Z",HW10="Q",HW10="S"),CheckMark,IF(IFERROR(VLOOKUP(HW10,Tables!$D$4:$G$22,4,FALSE)<>VLOOKUP(LEFT(TRIM(KX10&KY10),2),Tables!$AJ$49:$AK$68,2,FALSE),TRUE),IF(COUNTIF(KT10:KU10,"K")>0,CheckMark,"resolve"),CheckMark)),IF(AND(HZ10="ME",LEN(TRIM(KX10)&TRIM(KY10))=1),CheckMark,"resolve")))) -> ✓ | CN10: N | CO10: S | CP10: ✓ | CQ10: 1 1 | CR10: ✓ | CS10: ✓ | CT10: ✓ | CU10: =IF(D10="Z",CheckMark,IF(AND(COUNTIF(Tables!$AN$19:$AN$22,HW10),HV10<>0,NOT(COUNTIF(Tables!$AN$31:$AN$38,KT10)),NOT(COUNTIF(Tables!$AN$31:$AN$38,KU10)),MQ10<>"A",MQ10<>"B",MQ10<>"C",MC10<>"A",MD10<>"A",NOT(HY10)),"6",IF(AND(COUNTIF(Tables!$AN$4:$AN$16,HW10),HV10<>1),"4",IF(AND(COUNTIF(Tables!$AN$43:$AN$48,HW10),HY10,MP10<>"D"),"8",CheckMark)))) -> ✓ | CV10: ✓ | CW10: 17 | CX10: ✓ | CY10: D | CZ10: A | DA10: =IF(AND(HZ10="NV",LEN(TRIM(SUBSTITUTE(KT10,"Z",""))&TRIM(KU10))<2),CheckMark,IF(AND(OR(HZ10="SV",HZ10="ME"),LEN(TRIM(KT10)&TRIM(KU10))=1),IF(IFERROR(HLOOKUP(IF(KT10="",KU10,KT10),Tables!$CP$1:$DO$22,VLOOKUP(HW10,Tables!$CN$3:$CO$22,2,FALSE),FALSE),TRUE),"resolve",CheckMark),IF(OR(IFERROR(HLOOKUP(KT10,Tables!$CP$1:$DO$22,VLOOKUP(HW10,Tables!$CN$3:$CO$22,2,FALSE),FALSE),TRUE),IFERROR(HLOOKUP(KU10,Tables!$CP$1:$DO$22,VLOOKUP(HW10,Tables!$CN$3:$CO$22,2,FALSE),FALSE),TRUE)),"resolve",CheckMark))) -> ✓ | DB10: 0 | DC10: =IF(OR(IFERROR(VLOOKUP(MQ10,Tables!J$3:N$21,5,FALSE),"")="B",AND(IFERROR(IF(VLOOKUP(LL10,Tables!CA$3:CD$19,4,FALSE)="Maybe",FALSE,VLOOKUP(LL10,Tables!CA$3:CD$19,4,FALSE)),IF(LP10>11,FALSE,TRUE)),COUNTIF(CY10:CZ10,"E")>0),COUNTIF(CY10:CZ10,"G")>0),CheckMark,IF(DB10=IFERROR(VLOOKUP(MQ10,Tables!J$3:N$21,5,FALSE),""),CheckMark,"resolve")) -> ✓ | DK10: X | DM10: =IF(COUNTIF(DQ$377:DQ$381,DQ10)>0,0,COUNTIF(INDIRECT(DQ$389&GP$5):INDIRECT(DQ$389&GP$341),DQ10)) -> 0 | EL10: =IFERROR(VLOOKUP(LL10,Tables!$CA$3:$CC$19,3,TRUE),"U") -> U | EM10: =IF(AND(EJ10<>0,EK10<>0,FH10>VLOOKUP(EL10,Tables!$CA$23:$CC$24,MAX(HV10,IF(AND(AH10<>"",AH10<>0),1,0))+2,FALSE)),"report",CheckMark) -> ✓ | FB10: X | FC10: Z | FH10: 6346.286788 | GP10: 10 | GQ10: X | GR10: Sat17 | GS10: 1900 | GU10: no | GV10: low | GY10: =IF(VLOOKUP(JS10,Outputs!$H$73:$N$84,6)="yes",VLOOKUP(JS10,Outputs!$H$73:$N$84,7),0)+IF(AND(Outputs!$M$85="Yes",OR(JS10="C",JS10="K")),Outputs!$N$85,0) -> 0 | GZ10: =IFERROR(IF(VLOOKUP(MQ10,Outputs!$A$73:$G$86,6)="yes",VLOOKUP(MQ10,Outputs!$A$73:$G$86,7),0),0) -> 0 | HA10: 3.193805654 | HB10: =IFERROR(IF(VLOOKUP(MP10,Outputs!$H$86:$N$89,6)="yes",VLOOKUP(MP10,Outputs!$H$86:$N$89,7),0),0) -> 0 | HC10: =IF(AND(JQ10="B",Outputs!F$87="Yes"),Outputs!G$87,0) -> 0 | HD10: =IF(AND(KF10="B",Outputs!F$89="Yes"),Outputs!G$89,0) -> 0 | HF10: =IF($D10="A",IF((IF(D10="A",0,3)+IF(DP10="can't view",2,0)+IF(DQ10="",0,1)+IF(OR(EG10<>"",AND(EJ10<>"",EK10<>"")),1,0)+IF(COUNTA(GH:GH)>10,IF(OR(GH10="",GH10="yes"),0,2),0)+IF(COUNTA(GI:GI)>10,IF(GI10="",0,1),0)+IF(COUNTA(GJ:GJ)>11,IF(GJ10="",0,1),0))>(1+IF(COUNTA(GI:GI)>10,1,0)+IF(COUNTA(GJ:GJ)>11,1,0)),0.77,1)*SUM(HG10:HL10)+2*SQRT(Data!U5+Data!V5)+SUM(GX10:HD10),"") -> 14.36876914 | HG10: =IFERROR(VLOOKUP(KE10,Tables!$AE$3:$AH$9,4,FALSE),0)+IFERROR(VLOOKUP(MS10,Tables!$AE$3:$AH$9,4,FALSE),0) -> 2 | HH10: =4*(1-COUNTIF(CK10,CheckMark))+4*(1-COUNTIF(CM10,CheckMark))+5*(1-COUNTIF(CP10,CheckMark))+3*(1-COUNTIF(CR10,CheckMark))+IF(Inputs!$C$90=Inputs!$G$90,0,3*(1-COUNTIF(NT10,TRUE))+3*(1-COUNTIF(NA10,CheckMark))) -> 0 | HI10: 0 | HJ10: 4 | HK10: -1 | HL10: =VLOOKUP(IF(FP10=0,JS10,FP10),Tables!$D$3:$F$24,3,FALSE)+VLOOKUP(MQ10,Tables!$M$3:$P$21,4,FALSE) -> 6.174963486 | HN10: Other | HO10: Medium Veh | HP10: 1.531 | HQ10: 1 | HR10: Day | HS10: Intersection | HU10: 1 | HV10: 1 | HW10: Z | HX10: FALSE | HY10: FALSE | HZ10: =IF(AND(OR(JW10=1,COUNTIF(Tables!H$3:H$24,HW10)=0),IF(OR(KJ10="Y",TRIM(KJ10)=""),1,0)+IF(OR(KP10="YY",TRIM(KP10)=""),1,0)+IF(OR(KT10="Z",TRIM(KT10)=""),1,0)+IF(OR(KZ10="Y",TRIM(KZ10)=""),1,0)+IF(OR(LD10="Y",TRIM(LD10)=""),1,0)+IF(OR(MC10="Y",TRIM(MC10)=""),1,0)>(3-JM10),IF(OR(KK10="Y",TRIM(KK10)=""),1,0)+IF(OR(KQ10="YY",TRIM(KQ10)=""),1,0)+IF(OR(KU10="Z",TRIM(KU10)=""),1,0)+IF(OR(LA10="Y",TRIM(LA10)=""),1,0)+IF(OR(LE10="Y",TRIM(LE10)=""),1,0)+IF(OR(MD10="Y",TRIM(MD10)=""),1,0)>(3-JM10)),"NV",IF(OR(JW10=1,COUNTIF(Tables!H$3:H$24,HW10)=0),IF(OR(COUNTIF(KT10:KU10,"R"),MQ10="E",MQ10="J",(IF(OR(KK10="Y",TRIM(KK10)=""),1,0)+IF(OR(KQ10="YY",TRIM(KQ10)=""),1,0)+IF(OR(KU10="Z",TRIM(KU10)=""),1,0)+IF(OR(LA10="Y",TRIM(LA10)=""),1,0)+IF(OR(LE10="Y",TRIM(LE10)=""),1,0)+IF(OR(MD10="Y",TRIM(MD10)=""),1,0))>4,IF(KU10="",0,1)+IF(KY10="",0,1)+IF(OR(MU10="",MU10="Y"),0,1)=0),"SV","SE"),IF(AND(JW10<>0,JW10<>1,COUNTIF(Tables!H$3:H$24,HW10)=1,OR(IF(OR(KJ10="Y",TRIM(KJ10)=""),1,0)+IF(OR(KP10="YY",TRIM(KP10)=""),1,0)+IF(OR(KT10="Z",TRIM(KT10)=""),1,0)+IF(OR(KZ10="Y",TRIM(KZ10)=""),1,0)+IF(OR(LD10="Y",TRIM(LD10)=""),1,0)+IF(OR(MC10="Y",TRIM(MC10)=""),1,0)>(3-JM10),IF(OR(KK10="Y",TRIM(KK10)=""),1,0)+IF(OR(KQ10="YY",TRIM(KQ10)=""),1,0)+IF(OR(KU10="Z",TRIM(KU10)=""),1,0)+IF(OR(LA10="Y",TRIM(LA10)=""),1,0)+IF(OR(LE10="Y",TRIM(LE10)=""),1,0)+IF(OR(MD10="Y",TRIM(MD10)=""),1,0)>(3-JM10))),"ME","MV"))) -> MV | IA10: Medium Veh | IB10: Other | IY10: Nope | JA10: =IF(Data!A5=0,"",Data!A5*1) -> 2019 | JB10: =Data!B5 -> 0 | JC10: =Data!C5 -> 00:00:00 | JD10: 17 | JE10: =Data!E5 -> A | JF10: 0 | JG10: =IF(NL10="",Data!G5,NL10) -> A | JI10: =Data!I5 -> 0 | JJ10: =Data!J5 -> 1 | JK10: =Data!K5 -> FR | JL10: =IF(NQ10="",Data!L5,NQ10) -> 0 | JM10: =IF(DU10<>"",DU10,Data!M5) -> 1 | JN10: =Data!N5 -> C | JO10: 1 | JP10: =Data!P5 -> B | JQ10: =IFERROR(VLOOKUP(HR10,Tables!$AQ$3:$AR$10,2,FALSE),"") -> A | JS10: =IFERROR(VLOOKUP(HN10,Tables!$B$3:$D$18,3,FALSE),"") -> Z | JU10: =Data!U5 -> 0 | JV10: =Data!V5 -> 0 | JW10: =Data!W5 -> 2 | JX10: =Data!X5 -> 28 | JZ10: =Data!Z5 -> 325 | KA10: =Data!AA5 -> A | KB10: =Data!AB5 -> A | KC10: =Data!AC5 -> B | KD10: =Data!AD5 -> 0 | KE10: =Data!AE5 -> E | KF10: =Data!AF5 -> A | KG10: =Data!AG5 -> A | KH10: =Data!AH5 ->  | KI10: =Data!AI5 -> A | KJ10: =Data!AJ5 -> B | KK10: =Data!AK5 -> A | KL10: =Data!AL5 -> 0 | KM10: =Data!AM5 -> 0 | KN10: =TRIM(Data!AN5) -> S | KO10: =TRIM(Data!AO5) -> S | KP10: =Data!AP5 -> S | KQ10: =Data!AQ5 -> S | KR10: =Data!AR5 -> 25 | KT10: =IF(EA10<>"",VLOOKUP(EA10,Tables!$DW$3:$DX$28,2,FALSE),TRIM(BY10)) -> D | KU10: =IF(EC10<>"",VLOOKUP(EC10,Tables!$DW$3:$DX$28,2,FALSE),TRIM(BZ10)) -> A | KV10: =Data!AV5 -> C | KX10: N | KY10: S | KZ10: =Data!AZ5 -> K | LA10: =Data!BA5 -> K | LB10: =IF(NG10="",Data!BB5,NG10) -> B | LC10: =IF(NH10="",Data!BC5,NH10) -> S | LD10: =IF(NB10="",Data!BD5,NB10) -> T | LE10: =IF(NC10="",Data!BE5,NC10) -> U | LF10: =Data!BF5 ->  | LH10: =Data!BH5 -> 9900 | LI10: =Data!BI5 -> 789-12 | LK10: =Data!BK5 -> 17 | LL10: =Data!BL5 -> 6 | LM10: =Data!BM5 -> 2.04 | LN10: =Data!BN5 -> 1.39 | LO10: =IF($LO$1=$HP$3,HP10,Data!BO5) -> 1.531 | LP10: =Data!BP5 -> 0 | LQ10: =Data!BQ5 -> 4 | LS10: =Data!BS5 -> 42 | LT10: =Data!BT5 -> 0 | LW10: =Data!BW5 -> 325 | LZ10: =Data!BZ5 -> 3 | MA10: =Data!CA5 -> B | MB10: =Data!CB5 -> A | MC10: =Data!CC5 -> L | MD10: =Data!CD5 -> P | ME10: =Data!CE5 -> 4 | MF10: =IF($MF$1=$HP$3,HP10,Data!CF5) -> 0.509 | MG10: 30.255287 | MH10: -92.144443 | MI10: =Data!CI5 -> 17:04:00 | MK10: 28LA325@ERA | ML10: =Data!CL5 -> 789-12-1-010 | MM10: =Data!CM5 -> 1.531 | MN10: 0 | MP10: =IFERROR(VLOOKUP(HS10,Tables!BW$3:BX$13,2,FALSE),"") -> A | MQ10: =IFERROR(VLOOKUP(HO10,Tables!$L$3:$M$21,2,FALSE),"") -> U | MR10: =IF(NM10="",IF(OR(AND(LD10<>"S",LD10<>"U",LD10<>"Y"),AND(LE10<>"S",LE10<>"U",LE10<>"Y",LE10<>" "),MQ10="F"),"O",Data!CR5),NM10) -> O | MS10: =Data!CS5 -> E | NA10: =IF(OR(NB10<>"",NC10<>""),CheckMark,IF(OR(AND(NB10="",NC10="",NO10="R",COUNTIF(LD10:LE10,"")+COUNTIF(LD10:LE10,"S")+COUNTIF(LD10:LE10,"U")+COUNTIF(LD10:LE10,"Y")+COUNTIF(LD10:LE10,"Z")=IF(AND(HW10="A",TRIM(LE10)=""),1,2)),AND(OR(HW10="A",HW10="Z"),MP10="D",COUNTIF(LD10:LE10,"A")+COUNTIF(LD10:LE10,"B")+COUNTIF(LD10:LE10,"Q")+COUNTIF(LD10:LE10,"R")=0)),"resolve",IF(AND(OR(HW10="C",HW10="K"),IFERROR(IF(VLOOKUP(LL10,Tables!CA$3:CD$19,4,FALSE)="Maybe",FALSE,VLOOKUP(LL10,Tables!CA$3:CD$19,4,FALSE)),IF(LP10>11,FALSE,TRUE))),CheckMark,IF(AND(HW10="J",CY10=CZ10,COUNTIF(LD10:LE10,"K")),IF(AND(HW10="A",COUNTIF(LD10:LE10,"L")>0),IF(JO10=1,CheckMark,"resolve"),CheckMark),IF(AND(COUNTIF(Tables!$EA$3:$EA$54,HW10)+COUNTIF(Tables!$EB$3:$EB$54,LD10)+COUNTIF(Tables!$EB$3:$EB$54,LE10)>0,COUNTIF(Tables!$ED$3:$ED$54,HW10&LD10)+COUNTIF(Tables!$ED$3:$ED$54,HW10&LE10)<1),IF(AND(HW10="B",COUNTIF(LD10:LE10,"H"),COUNTIF(KT10:KU10,"P")),CheckMark,IF(AND(MR10="O",COUNTIF(LD10:LE10,"Q")+COUNTIF(LD10:LE10,"R")>0),CheckMark,"resolve")),CheckMark))))) -> resolve | ND10: T | NE10: U | NF10: ✓ | NI10: B | NJ10: S | NK10: ✓ | NN10: A | NO10: O | NP10: ✓ | NR10: 0 | NS10: =IFERROR(VLOOKUP(TRIM(KN10),Tables!$DR$3:$DU$46,4,FALSE),0)+IFERROR(VLOOKUP(TRIM(KO10),Tables!$DR$3:$DU$46,4,FALSE),0)+IFERROR(VLOOKUP(TRIM(KP10),Tables!$DR$3:$DU$46,4,FALSE),0)+IFERROR(VLOOKUP(TRIM(KQ10),Tables!$DR$3:$DU$46,4,FALSE),0) -> 0 | NT10: TRUE | NU10: =IF(AND(FN10<>FO10,FO10<>"Z"),FO10,IF(OR(COUNTIF(LD10:LE10,"T")>0,COUNTIF(KT10:KU10,"D")>0),"Q",IF(OR(FO10="A",JW10=1,MQ10="B",MQ10="E",MQ10="G",MQ10="H",MQ10="J",MQ10="N",MQ10="P",MQ10="T"),"A",IF(IFERROR(VLOOKUP(LEFT(TRIM(KX10&KY10),2),Tables!$AJ$49:$AK$68,2,FALSE),"A")="O",IF(COUNTIF(KT10:KU10,"I")+COUNTIF(KT10:KU10,"M")+COUNTIF(KT10:KU10,"O")=2,"P",IF(AND(COUNTIF(KT10:KU10,"I")+COUNTIF(KT10:KU10,"M")+COUNTIF(KT10:KU10,"O")=1,COUNTIF(KT10:KU10,"J")+COUNTIF(KT10:KU10,"N")+COUNTIF(KT10:KU10,"P")=1),"N",IF(AND(COUNTIF(KT10:KU10,"I")+COUNTIF(KT10:KU10,"M")+COUNTIF(KT10:KU10,"O")=1,COUNTIF(KT10:KU10,"B")=1),"F",IF(AND(COUNTIF(KT10:KU10,"C")+COUNTIF(KT10:KU10,"E")+COUNTIF(KT10:KU10,"F")>0,FO10<>"C",JO10=0,MP10<>"A"),"K",IF(AND(COUNTIF(KT10:KU10,"I")+COUNTIF(KT10:KU10,"M")+COUNTIF(KT10:KU10,"O")=1,COUNTIF(KT10:KU10,"A")+COUNTIF(KT10:KU10,"K")+COUNTIF(KT10:KU10,"M")+COUNTIF(KT10:KU10,"N")+COUNTIF(KT10:KU10,"J")+COUNTIF(KT10:KU10,"P")+COUNTIF(KT10:KU10,"Q")>0),"M",FO10))))),IF(AND(COUNTIF(KT10:KU10,"I")+COUNTIF(KT10:KU10,"M")+COUNTIF(KT10:KU10,"O")=1,COUNTIF(KT10:KU10,"A")+COUNTIF(KT10:KU10,"K")+COUNTIF(KT10:KU10,"M")+COUNTIF(KT10:KU10,"N")+COUNTIF(KT10:KU10,"J")+COUNTIF(KT10:KU10,"P")+COUNTIF(KT10:KU10,"Q")>0),"M",IF(KX10=KY10,IF(AND(JO10=0,MP10<>"A",MP10<>"B",MP10<>"C"),IF(COUNTIF(LD10:LE10,"D")>0,"B",IF(OR(COUNTIF(LD10:LE10,"C")+COUNTIF(LD10:LE10,"F")>0,COUNTIF(KT10:KU10,"H")>0),"J",FO10)),IF(OR(AND(COUNTIF(KU10,"J")+COUNTIF(KU10,"N")+COUNTIF(KU10,"P")=1,COUNTIF(KT10,"A")+COUNTIF(KT10,"B")+COUNTIF(KT10,"E")+COUNTIF(KT10,"F")+COUNTIF(KT10,"H")+COUNTIF(KT10,"K")+COUNTIF(KT10,"M")+COUNTIF(KT10,"N")+COUNTIF(KT10,"O")+COUNTIF(KT10,"P")+COUNTIF(KT10,"Q")=1,FO10<>"I"),AND(COUNTIF(KT10,"J")+COUNTIF(KT10,"N")+COUNTIF(KT10,"P")=1,COUNTIF(KU10,"A")+COUNTIF(KU10,"B")+COUNTIF(KU10,"E")+COUNTIF(KU10,"F")+COUNTIF(KU10,"H")+COUNTIF(KU10,"K")+COUNTIF(KU10,"M")+COUNTIF(KU10,"N")+COUNTIF(KU10,"O")+COUNTIF(KU10,"P")+COUNTIF(KU10,"Q")=1,FO10<>"I")),"L",IF(OR(AND(COUNTIF(KU10,"I")+COUNTIF(KU10,"M")+COUNTIF(KU10,"O")=1,COUNTIF(KT10,"A")+COUNTIF(KT10,"B")+COUNTIF(KT10,"E")+COUNTIF(KT10,"F")+COUNTIF(KT10,"H")+COUNTIF(KT10,"K")+COUNTIF(KT10,"M")+COUNTIF(KT10,"N")+COUNTIF(KT10,"O")+COUNTIF(KT10,"P")+COUNTIF(KT10,"Q")=1),AND(COUNTIF(KT10,"I")+COUNTIF(KT10,"M")+COUNTIF(KT10,"O")=1,COUNTIF(KU10,"A")+COUNTIF(KU10,"B")+COUNTIF(KU10,"E")+COUNTIF(KU10,"F")+COUNTIF(KU10,"H")+COUNTIF(KU10,"K")+COUNTIF(KU10,"M")+COUNTIF(KU10,"N")+COUNTIF(KU10,"O")+COUNTIF(KU10,"P")+COUNTIF(KU10,"Q")=1)),"E",IF(OR(COUNTIF(KT10:KU10,"I")+COUNTIF(KT10:KU10,"M")+COUNTIF(KT10:KU10,"O")=2,COUNTIF(KT10:KU10,"J")+COUNTIF(KT10:KU10,"N")+COUNTIF(KT10:KU10,"P")=2),"J",FO10)))),IF(KX10<>KY10,IF(COUNTIF(LD10:LE10,"K")>0,"G",IF(AND(COUNTIF(LD10:LE10,"H")+COUNTIF(LD10:LE10,"K")+COUNTIF(LD10:LE10,"S")+COUNTIF(LD10:LE10,"Y")+COUNTIF(LD10:LE10,"Z")>0,COUNTIF(KT10:KU10,"J")+COUNTIF(KT10:KU10,"N")+COUNTIF(KT10:KU10,"P")=1,KT10<>KU10),IFERROR(VLOOKUP(KX10&KY10,Tables!$AJ$49:$AL$63,3,FALSE),FO10),IF(AND(OR(FO10="D",FO10="Z"),COUNTIF(KT10:KU10,"J")),"H",IF(OR(FO10="G",FO10="H",FO10="I"),FO10,"D"))))))))))) -> Q
A11: finish | B11: where? | C11: =IF(OR(D11<>"A",AND(OR(CI11=CheckMark,CI11="checked"),CK11=CheckMark,CL11=CheckMark,CM11<>"resolve",CP11=CheckMark,CR11<>"resolve",CS11=CheckMark,OR(CT11=CheckMark,CT11="checked"),CU11<>4,CV11=CheckMark,CX11=CheckMark,DA11<>"resolve",DC11<>"resolve")),IF(Inputs!$C$90=Inputs!$G$90,"good",IF(AND(NT11<>FALSE,NA11<>"resolve",NF11<>"resolve",NK11<>"resolve",NP11<>"resolve"),"good","issue2")),"issue") -> good | D11: A | E11: no | G11: low | H11: done | K11: =Data!Z6 -> 325 | L11: =Data!CF6 -> 0.532 | M11: =Data!BI6 -> 789-12 | N11: =Data!BO6 -> 1.508 | U11: =Data!C6 -> 00:00:00 | W11: =IFERROR(VLOOKUP(Data!S6,Tables!$A$3:$B$18,2,FALSE),0) -> Rt Angle | X11: =IFERROR(VLOOKUP(Data!CQ6,Tables!$J$3:$L$21,3,FALSE),0) -> Small Veh | Y11: =Data!AF6 -> A | Z11: =SUBSTITUTE(Data!B6,"-","")&"-" -> - | AA11: =Data!X6 -> 28 | AB11: =Data!D6 -> 10 | AC11: =Data!O6*1 -> 1 | AD11: =Data!P6 -> B | AE11: =TRIM(Data!AW6) -> ES | AF11: =Data!AS6 -> BB | AG11: =Data!F6 -> 0 | AH11: =TRIM(Data!CK6) -> 28LA325@ERA | AI11: =Data!CL6 -> 789-12-1-010 | AJ11: =Data!AE6 -> E | AK11: =Data!CN6 -> 0 | AL11: =IFERROR(VLOOKUP(Data!CP6,Tables!BV$3:BW$13,2,FALSE),0) -> Intersection | AM11: =Data!CG6 -> 30.254958 | AN11: =Data!CH6 -> -92.144478 | AO11: =Data!N6 -> C | AQ11: =Data!CC6 -> Y | AR11: =IFERROR(VLOOKUP(Data!Q6,Tables!$AP$3:$AQ$10,2,FALSE),"Z") -> Day | AS11: =Data!AJ6 -> Z | AT11: =Data!AZ6 -> K | BX11: =Data!AS6 -> BB | BY11: =IF(AND(JW11<2,MD11="A"),Data!AU6,Data!AT6) -> B | BZ11: =IF(AND(JW11<2,MD11="A"),MID(BX11,3,1),Data!AU6) -> B | CA11: =Data!AW6 -> ES | CB11: =IF(AND(JW11<2,MD11="A"),Data!AY6,Data!AX6) -> E | CC11: =IF(AND(JW11<2,MD11="A"),MID(CA11,3,1),Data!AY6) -> S | CF11: =IF(D11="Z",CheckMark,IF($HO11=Tables!$L$10,IF(DW11=Tables!$L$10,CheckMark,"9"),CheckMark)) -> ✓ | CG11: =IF(D11="Z",CheckMark,IF(DV11=Tables!$B$14,CheckMark,IF(AND($HN11=Tables!$B$14,COUNTIF(Tables!$D$15:$D$22,HW11)=0,NOT(HX11)),"7",CheckMark))) -> ✓ | CH11: =IF(AND(LEN(KX11&KY11)=1,COUNTIF(Tables!Z$185:Z$210,HW11&MQ11)=0),"5",CheckMark) -> ✓ | CI11: ✓ | CJ11: Rt Angle:Small Veh | CK11: ✓ | CL11: =IF(D11="Z",CheckMark,IF(AND(INDIRECT(DV$388&$GP11)=0,DV11=0),1,IF(AND(INDIRECT(DW$388&$GP11)=0,DW11=0),2,IF(COUNTIF(Tables!Z$3:Z$177,HW11&MQ11)=1,3,CheckMark)))) -> ✓ | CM11: =IF(AND(HZ11="NV",LEN(TRIM(KX11)&TRIM(KY11))<3),CheckMark,IF(AND(HZ11="SV",LEN(TRIM(KX11)&TRIM(KY11))=1),CheckMark,IF(AND(OR(HZ11="MV",HZ11="SE",HZ11="ME"),LEN(TRIM(KX11)&TRIM(KY11))=2),IF(OR(HW11="A",HW11="Z",HW11="Q",HW11="S"),CheckMark,IF(IFERROR(VLOOKUP(HW11,Tables!$D$4:$G$22,4,FALSE)<>VLOOKUP(LEFT(TRIM(KX11&KY11),2),Tables!$AJ$49:$AK$68,2,FALSE),TRUE),IF(COUNTIF(KT11:KU11,"K")>0,CheckMark,"resolve"),CheckMark)),IF(AND(HZ11="ME",LEN(TRIM(KX11)&TRIM(KY11))=1),CheckMark,"resolve")))) -> ✓ | CN11: E | CO11: S | CP11: ✓ | CQ11: 1 1 | CR11: ✓ | CS11: ✓ | CT11: ✓ | CU11: =IF(D11="Z",CheckMark,IF(AND(COUNTIF(Tables!$AN$19:$AN$22,HW11),HV11<>0,NOT(COUNTIF(Tables!$AN$31:$AN$38,KT11)),NOT(COUNTIF(Tables!$AN$31:$AN$38,KU11)),MQ11<>"A",MQ11<>"B",MQ11<>"C",MC11<>"A",MD11<>"A",NOT(HY11)),"6",IF(AND(COUNTIF(Tables!$AN$4:$AN$16,HW11),HV11<>1),"4",IF(AND(COUNTIF(Tables!$AN$43:$AN$48,HW11),HY11,MP11<>"D"),"8",CheckMark)))) -> ✓ | CV11: ✓ | CW11: 10 | CX11: ✓ | CY11: B | CZ11: B | DA11: =IF(AND(HZ11="NV",LEN(TRIM(SUBSTITUTE(KT11,"Z",""))&TRIM(KU11))<2),CheckMark,IF(AND(OR(HZ11="SV",HZ11="ME"),LEN(TRIM(KT11)&TRIM(KU11))=1),IF(IFERROR(HLOOKUP(IF(KT11="",KU11,KT11),Tables!$CP$1:$DO$22,VLOOKUP(HW11,Tables!$CN$3:$CO$22,2,FALSE),FALSE),TRUE),"resolve",CheckMark),IF(OR(IFERROR(HLOOKUP(KT11,Tables!$CP$1:$DO$22,VLOOKUP(HW11,Tables!$CN$3:$CO$22,2,FALSE),FALSE),TRUE),IFERROR(HLOOKUP(KU11,Tables!$CP$1:$DO$22,VLOOKUP(HW11,Tables!$CN$3:$CO$22,2,FALSE),FALSE),TRUE)),"resolve",CheckMark))) -> ✓ | DB11: 0 | DC11: =IF(OR(IFERROR(VLOOKUP(MQ11,Tables!J$3:N$21,5,FALSE),"")="B",AND(IFERROR(IF(VLOOKUP(LL11,Tables!CA$3:CD$19,4,FALSE)="Maybe",FALSE,VLOOKUP(LL11,Tables!CA$3:CD$19,4,FALSE)),IF(LP11>11,FALSE,TRUE)),COUNTIF(CY11:CZ11,"E")>0),COUNTIF(CY11:CZ11,"G")>0),CheckMark,IF(DB11=IFERROR(VLOOKUP(MQ11,Tables!J$3:N$21,5,FALSE),""),CheckMark,"resolve")) -> ✓ | DK11: X | DM11: =IF(COUNTIF(DQ$377:DQ$381,DQ11)>0,0,COUNTIF(INDIRECT(DQ$389&GP$5):INDIRECT(DQ$389&GP$341),DQ11)) -> 0 | EL11: =IFERROR(VLOOKUP(LL11,Tables!$CA$3:$CC$19,3,TRUE),"U") -> U | EM11: =IF(AND(EJ11<>0,EK11<>0,FH11>VLOOKUP(EL11,Tables!$CA$23:$CC$24,MAX(HV11,IF(AND(AH11<>"",AH11<>0),1,0))+2,FALSE)),"report",CheckMark) -> ✓ | FB11: X | FC11: Z | FH11: 6346.289305 | GP11: 11 | GQ11: X | GR11: Sat10 | GS11: 1900 | GU11: no | GV11: low | GY11: =IF(VLOOKUP(JS11,Outputs!$H$73:$N$84,6)="yes",VLOOKUP(JS11,Outputs!$H$73:$N$84,7),0)+IF(AND(Outputs!$M$85="Yes",OR(JS11="C",JS11="K")),Outputs!$N$85,0) -> 0 | GZ11: =IFERROR(IF(VLOOKUP(MQ11,Outputs!$A$73:$G$86,6)="yes",VLOOKUP(MQ11,Outputs!$A$73:$G$86,7),0),0) -> 0 | HA11: 0.7282387783 | HB11: =IFERROR(IF(VLOOKUP(MP11,Outputs!$H$86:$N$89,6)="yes",VLOOKUP(MP11,Outputs!$H$86:$N$89,7),0),0) -> 0 | HC11: =IF(AND(JQ11="B",Outputs!F$87="Yes"),Outputs!G$87,0) -> 0 | HD11: =IF(AND(KF11="B",Outputs!F$89="Yes"),Outputs!G$89,0) -> 0 | HF11: =IF($D11="A",IF((IF(D11="A",0,3)+IF(DP11="can't view",2,0)+IF(DQ11="",0,1)+IF(OR(EG11<>"",AND(EJ11<>"",EK11<>"")),1,0)+IF(COUNTA(GH:GH)>10,IF(OR(GH11="",GH11="yes"),0,2),0)+IF(COUNTA(GI:GI)>10,IF(GI11="",0,1),0)+IF(COUNTA(GJ:GJ)>11,IF(GJ11="",0,1),0))>(1+IF(COUNTA(GI:GI)>10,1,0)+IF(COUNTA(GJ:GJ)>11,1,0)),0.77,1)*SUM(HG11:HL11)+2*SQRT(Data!U6+Data!V6)+SUM(GX11:HD11),"") -> 15.88650236 | HG11: =IFERROR(VLOOKUP(KE11,Tables!$AE$3:$AH$9,4,FALSE),0)+IFERROR(VLOOKUP(MS11,Tables!$AE$3:$AH$9,4,FALSE),0) -> 2.32597785 | HH11: =4*(1-COUNTIF(CK11,CheckMark))+4*(1-COUNTIF(CM11,CheckMark))+5*(1-COUNTIF(CP11,CheckMark))+3*(1-COUNTIF(CR11,CheckMark))+IF(Inputs!$C$90=Inputs!$G$90,0,3*(1-COUNTIF(NT11,TRUE))+3*(1-COUNTIF(NA11,CheckMark))) -> 0 | HI11: 0 | HJ11: 4 | HK11: -1 | HL11: =VLOOKUP(IF(FP11=0,JS11,FP11),Tables!$D$3:$F$24,3,FALSE)+VLOOKUP(MQ11,Tables!$M$3:$P$21,4,FALSE) -> 9.832285731 | HN11: Rt Angle | HO11: Small Veh | HP11: 1.508 | HQ11: 1 | HR11: Day | HS11: Intersection | HU11: 1 | HV11: 1 | HW11: D | HX11: FALSE | HY11: FALSE | HZ11: =IF(AND(OR(JW11=1,COUNTIF(Tables!H$3:H$24,HW11)=0),IF(OR(KJ11="Y",TRIM(KJ11)=""),1,0)+IF(OR(KP11="YY",TRIM(KP11)=""),1,0)+IF(OR(KT11="Z",TRIM(KT11)=""),1,0)+IF(OR(KZ11="Y",TRIM(KZ11)=""),1,0)+IF(OR(LD11="Y",TRIM(LD11)=""),1,0)+IF(OR(MC11="Y",TRIM(MC11)=""),1,0)>(3-JM11),IF(OR(KK11="Y",TRIM(KK11)=""),1,0)+IF(OR(KQ11="YY",TRIM(KQ11)=""),1,0)+IF(OR(KU11="Z",TRIM(KU11)=""),1,0)+IF(OR(LA11="Y",TRIM(LA11)=""),1,0)+IF(OR(LE11="Y",TRIM(LE11)=""),1,0)+IF(OR(MD11="Y",TRIM(MD11)=""),1,0)>(3-JM11)),"NV",IF(OR(JW11=1,COUNTIF(Tables!H$3:H$24,HW11)=0),IF(OR(COUNTIF(KT11:KU11,"R"),MQ11="E",MQ11="J",(IF(OR(KK11="Y",TRIM(KK11)=""),1,0)+IF(OR(KQ11="YY",TRIM(KQ11)=""),1,0)+IF(OR(KU11="Z",TRIM(KU11)=""),1,0)+IF(OR(LA11="Y",TRIM(LA11)=""),1,0)+IF(OR(LE11="Y",TRIM(LE11)=""),1,0)+IF(OR(MD11="Y",TRIM(MD11)=""),1,0))>4,IF(KU11="",0,1)+IF(KY11="",0,1)+IF(OR(MU11="",MU11="Y"),0,1)=0),"SV","SE"),IF(AND(JW11<>0,JW11<>1,COUNTIF(Tables!H$3:H$24,HW11)=1,OR(IF(OR(KJ11="Y",TRIM(KJ11)=""),1,0)+IF(OR(KP11="YY",TRIM(KP11)=""),1,0)+IF(OR(KT11="Z",TRIM(KT11)=""),1,0)+IF(OR(KZ11="Y",TRIM(KZ11)=""),1,0)+IF(OR(LD11="Y",TRIM(LD11)=""),1,0)+IF(OR(MC11="Y",TRIM(MC11)=""),1,0)>(3-JM11),IF(OR(KK11="Y",TRIM(KK11)=""),1,0)+IF(OR(KQ11="YY",TRIM(KQ11)=""),1,0)+IF(OR(KU11="Z",TRIM(KU11)=""),1,0)+IF(OR(LA11="Y",TRIM(LA11)=""),1,0)+IF(OR(LE11="Y",TRIM(LE11)=""),1,0)+IF(OR(MD11="Y",TRIM(MD11)=""),1,0)>(3-JM11))),"ME","MV"))) -> MV | IA11: Rt Angle | IB11: Rt Angle | IY11: Nope | JA11: =IF(Data!A6=0,"",Data!A6*1) -> 2019 | JB11: =Data!B6 -> 0 | JC11: =Data!C6 -> 00:00:00 | JD11: 10 | JE11: =Data!E6 -> A | JF11: 0 | JG11: =IF(NL11="",Data!G6,NL11) -> A | JI11: =Data!I6 -> 0 | JJ11: =Data!J6 -> 0 | JK11: =Data!K6 -> FR | JL11: =IF(NQ11="",Data!L6,NQ11) -> 0 | JM11: =IF(DU11<>"",DU11,Data!M6) -> 0 | JN11: =Data!N6 -> C | JO11: 1 | JP11: =Data!P6 -> B | JQ11: =IFERROR(VLOOKUP(HR11,Tables!$AQ$3:$AR$10,2,FALSE),"") -> A | JS11: =IFERROR(VLOOKUP(HN11,Tables!$B$3:$D$18,3,FALSE),"") -> D | JU11: =Data!U6 -> 0 | JV11: =Data!V6 -> 0 | JW11: =Data!W6 -> 2 | JX11: =Data!X6 -> 28 | JZ11: =Data!Z6 -> 325 | KA11: =Data!AA6 -> G | KB11: =Data!AB6 -> A | KC11: =Data!AC6 -> C | KD11: =Data!AD6 -> 0 | KE11: =Data!AE6 -> E | KF11: =Data!AF6 -> A | KG11: =Data!AG6 -> A | KH11: =Data!AH6 ->  | KI11: =Data!AI6 -> A | KJ11: =Data!AJ6 -> Z | KK11: =Data!AK6 -> Y | KL11: =Data!AL6 -> 0 | KM11: =Data!AM6 -> 0 | KN11: =TRIM(Data!AN6) -> S | KO11: =TRIM(Data!AO6) -> S | KP11: =Data!AP6 -> S | KQ11: =Data!AQ6 -> S | KR11: =Data!AR6 -> 40 | KT11: =IF(EA11<>"",VLOOKUP(EA11,Tables!$DW$3:$DX$28,2,FALSE),TRIM(BY11)) -> B | KU11: =IF(EC11<>"",VLOOKUP(EC11,Tables!$DW$3:$DX$28,2,FALSE),TRIM(BZ11)) -> B | KV11: =Data!AV6 -> E | KX11: E | KY11: S | KZ11: =Data!AZ6 -> K | LA11: =Data!BA6 -> K | LB11: =IF(NG11="",Data!BB6,NG11) -> A | LC11: =IF(NH11="",Data!BC6,NH11) -> A | LD11: =IF(NB11="",Data!BD6,NB11) -> Y | LE11: =IF(NC11="",Data!BE6,NC11) -> Y | LF11: =Data!BF6 ->  | LH11: =Data!BH6 -> 9900 | LI11: =Data!BI6 -> 789-12 | LK11: =Data!BK6 -> 17 | LL11: =Data!BL6 -> 6 | LM11: =Data!BM6 -> 2.04 | LN11: =Data!BN6 -> 1.39 | LO11: =IF($LO$1=$HP$3,HP11,Data!BO6) -> 1.508 | LP11: =Data!BP6 -> 0 | LQ11: =Data!BQ6 -> 4 | LS11: =Data!BS6 -> 42 | LT11: =Data!BT6 -> 0 | LW11: =Data!BW6 -> 325 | LZ11: =Data!BZ6 -> 3 | MA11: =Data!CA6 -> A | MB11: =Data!CB6 -> B | MC11: =Data!CC6 -> Y | MD11: =Data!CD6 ->  | ME11: =Data!CE6 -> 4 | MF11: =IF($MF$1=$HP$3,HP11,Data!CF6) -> 0.532 | MG11: 30.254958 | MH11: -92.144478 | MI11: =Data!CI6 -> 10:36:00 | MK11: 28LA325@ERA | ML11: =Data!CL6 -> 789-12-1-010 | MM11: =Data!CM6 -> 1.508 | MN11: 0 | MP11: =IFERROR(VLOOKUP(HS11,Tables!BW$3:BX$13,2,FALSE),"") -> A | MQ11: =IFERROR(VLOOKUP(HO11,Tables!$L$3:$M$21,2,FALSE),"") -> S | MR11: =IF(NM11="",IF(OR(AND(LD11<>"S",LD11<>"U",LD11<>"Y"),AND(LE11<>"S",LE11<>"U",LE11<>"Y",LE11<>" "),MQ11="F"),"O",Data!CR6),NM11) -> O | MS11: =Data!CS6 -> D | NA11: =IF(OR(NB11<>"",NC11<>""),CheckMark,IF(OR(AND(NB11="",NC11="",NO11="R",COUNTIF(LD11:LE11,"")+COUNTIF(LD11:LE11,"S")+COUNTIF(LD11:LE11,"U")+COUNTIF(LD11:LE11,"Y")+COUNTIF(LD11:LE11,"Z")=IF(AND(HW11="A",TRIM(LE11)=""),1,2)),AND(OR(HW11="A",HW11="Z"),MP11="D",COUNTIF(LD11:LE11,"A")+COUNTIF(LD11:LE11,"B")+COUNTIF(LD11:LE11,"Q")+COUNTIF(LD11:LE11,"R")=0)),"resolve",IF(AND(OR(HW11="C",HW11="K"),IFERROR(IF(VLOOKUP(LL11,Tables!CA$3:CD$19,4,FALSE)="Maybe",FALSE,VLOOKUP(LL11,Tables!CA$3:CD$19,4,FALSE)),IF(LP11>11,FALSE,TRUE))),CheckMark,IF(AND(HW11="J",CY11=CZ11,COUNTIF(LD11:LE11,"K")),IF(AND(HW11="A",COUNTIF(LD11:LE11,"L")>0),IF(JO11=1,CheckMark,"resolve"),CheckMark),IF(AND(COUNTIF(Tables!$EA$3:$EA$54,HW11)+COUNTIF(Tables!$EB$3:$EB$54,LD11)+COUNTIF(Tables!$EB$3:$EB$54,LE11)>0,COUNTIF(Tables!$ED$3:$ED$54,HW11&LD11)+COUNTIF(Tables!$ED$3:$ED$54,HW11&LE11)<1),IF(AND(HW11="B",COUNTIF(LD11:LE11,"H"),COUNTIF(KT11:KU11,"P")),CheckMark,IF(AND(MR11="O",COUNTIF(LD11:LE11,"Q")+COUNTIF(LD11:LE11,"R")>0),CheckMark,"resolve")),CheckMark))))) -> resolve | ND11: Y | NE11: Y | NF11: ✓ | NI11: A | NJ11: A | NK11: ✓ | NN11: A | NO11: O | NP11: ✓ | NR11: 0 | NS11: =IFERROR(VLOOKUP(TRIM(KN11),Tables!$DR$3:$DU$46,4,FALSE),0)+IFERROR(VLOOKUP(TRIM(KO11),Tables!$DR$3:$DU$46,4,FALSE),0)+IFERROR(VLOOKUP(TRIM(KP11),Tables!$DR$3:$DU$46,4,FALSE),0)+IFERROR(VLOOKUP(TRIM(KQ11),Tables!$DR$3:$DU$46,4,FALSE),0) -> 0 | NT11: TRUE | NU11: =IF(AND(FN11<>FO11,FO11<>"Z"),FO11,IF(OR(COUNTIF(LD11:LE11,"T")>0,COUNTIF(KT11:KU11,"D")>0),"Q",IF(OR(FO11="A",JW11=1,MQ11="B",MQ11="E",MQ11="G",MQ11="H",MQ11="J",MQ11="N",MQ11="P",MQ11="T"),"A",IF(IFERROR(VLOOKUP(LEFT(TRIM(KX11&KY11),2),Tables!$AJ$49:$AK$68,2,FALSE),"A")="O",IF(COUNTIF(KT11:KU11,"I")+COUNTIF(KT11:KU11,"M")+COUNTIF(KT11:KU11,"O")=2,"P",IF(AND(COUNTIF(KT11:KU11,"I")+COUNTIF(KT11:KU11,"M")+COUNTIF(KT11:KU11,"O")=1,COUNTIF(KT11:KU11,"J")+COUNTIF(KT11:KU11,"N")+COUNTIF(KT11:KU11,"P")=1),"N",IF(AND(COUNTIF(KT11:KU11,"I")+COUNTIF(KT11:KU11,"M")+COUNTIF(KT11:KU11,"O")=1,COUNTIF(KT11:KU11,"B")=1),"F",IF(AND(COUNTIF(KT11:KU11,"C")+COUNTIF(KT11:KU11,"E")+COUNTIF(KT11:KU11,"F")>0,FO11<>"C",JO11=0,MP11<>"A"),"K",IF(AND(COUNTIF(KT11:KU11,"I")+COUNTIF(KT11:KU11,"M")+COUNTIF(KT11:KU11,"O")=1,COUNTIF(KT11:KU11,"A")+COUNTIF(KT11:KU11,"K")+COUNTIF(KT11:KU11,"M")+COUNTIF(KT11:KU11,"N")+COUNTIF(KT11:KU11,"J")+COUNTIF(KT11:KU11,"P")+COUNTIF(KT11:KU11,"Q")>0),"M",FO11))))),IF(AND(COUNTIF(KT11:KU11,"I")+COUNTIF(KT11:KU11,"M")+COUNTIF(KT11:KU11,"O")=1,COUNTIF(KT11:KU11,"A")+COUNTIF(KT11:KU11,"K")+COUNTIF(KT11:KU11,"M")+COUNTIF(KT11:KU11,"N")+COUNTIF(KT11:KU11,"J")+COUNTIF(KT11:KU11,"P")+COUNTIF(KT11:KU11,"Q")>0),"M",IF(KX11=KY11,IF(AND(JO11=0,MP11<>"A",MP11<>"B",MP11<>"C"),IF(COUNTIF(LD11:LE11,"D")>0,"B",IF(OR(COUNTIF(LD11:LE11,"C")+COUNTIF(LD11:LE11,"F")>0,COUNTIF(KT11:KU11,"H")>0),"J",FO11)),IF(OR(AND(COUNTIF(KU11,"J")+COUNTIF(KU11,"N")+COUNTIF(KU11,"P")=1,COUNTIF(KT11,"A")+COUNTIF(KT11,"B")+COUNTIF(KT11,"E")+COUNTIF(KT11,"F")+COUNTIF(KT11,"H")+COUNTIF(KT11,"K")+COUNTIF(KT11,"M")+COUNTIF(KT11,"N")+COUNTIF(KT11,"O")+COUNTIF(KT11,"P")+COUNTIF(KT11,"Q")=1,FO11<>"I"),AND(COUNTIF(KT11,"J")+COUNTIF(KT11,"N")+COUNTIF(KT11,"P")=1,COUNTIF(KU11,"A")+COUNTIF(KU11,"B")+COUNTIF(KU11,"E")+COUNTIF(KU11,"F")+COUNTIF(KU11,"H")+COUNTIF(KU11,"K")+COUNTIF(KU11,"M")+COUNTIF(KU11,"N")+COUNTIF(KU11,"O")+COUNTIF(KU11,"P")+COUNTIF(KU11,"Q")=1,FO11<>"I")),"L",IF(OR(AND(COUNTIF(KU11,"I")+COUNTIF(KU11,"M")+COUNTIF(KU11,"O")=1,COUNTIF(KT11,"A")+COUNTIF(KT11,"B")+COUNTIF(KT11,"E")+COUNTIF(KT11,"F")+COUNTIF(KT11,"H")+COUNTIF(KT11,"K")+COUNTIF(KT11,"M")+COUNTIF(KT11,"N")+COUNTIF(KT11,"O")+COUNTIF(KT11,"P")+COUNTIF(KT11,"Q")=1),AND(COUNTIF(KT11,"I")+COUNTIF(KT11,"M")+COUNTIF(KT11,"O")=1,COUNTIF(KU11,"A")+COUNTIF(KU11,"B")+COUNTIF(KU11,"E")+COUNTIF(KU11,"F")+COUNTIF(KU11,"H")+COUNTIF(KU11,"K")+COUNTIF(KU11,"M")+COUNTIF(KU11,"N")+COUNTIF(KU11,"O")+COUNTIF(KU11,"P")+COUNTIF(KU11,"Q")=1)),"E",IF(OR(COUNTIF(KT11:KU11,"I")+COUNTIF(KT11:KU11,"M")+COUNTIF(KT11:KU11,"O")=2,COUNTIF(KT11:KU11,"J")+COUNTIF(KT11:KU11,"N")+COUNTIF(KT11:KU11,"P")=2),"J",FO11)))),IF(KX11<>KY11,IF(COUNTIF(LD11:LE11,"K")>0,"G",IF(AND(COUNTIF(LD11:LE11,"H")+COUNTIF(LD11:LE11,"K")+COUNTIF(LD11:LE11,"S")+COUNTIF(LD11:LE11,"Y")+COUNTIF(LD11:LE11,"Z")>0,COUNTIF(KT11:KU11,"J")+COUNTIF(KT11:KU11,"N")+COUNTIF(KT11:KU11,"P")=1,KT11<>KU11),IFERROR(VLOOKUP(KX11&KY11,Tables!$AJ$49:$AL$63,3,FALSE),FO11),IF(AND(OR(FO11="D",FO11="Z"),COUNTIF(KT11:KU11,"J")),"H",IF(OR(FO11="G",FO11="H",FO11="I"),FO11,"D"))))))))))) -> D
A12: finish | B12: where? | C12: =IF(OR(D12<>"A",AND(OR(CI12=CheckMark,CI12="checked"),CK12=CheckMark,CL12=CheckMark,CM12<>"resolve",CP12=CheckMark,CR12<>"resolve",CS12=CheckMark,OR(CT12=CheckMark,CT12="checked"),CU12<>4,CV12=CheckMark,CX12=CheckMark,DA12<>"resolve",DC12<>"resolve")),IF(Inputs!$C$90=Inputs!$G$90,"good",IF(AND(NT12<>FALSE,NA12<>"resolve",NF12<>"resolve",NK12<>"resolve",NP12<>"resolve"),"good","issue2")),"issue") -> good | D12: A | E12: no | G12: low | H12: done | K12: =Data!Z7 -> 325 | L12: =Data!CF7 -> 0.532 | M12: =Data!BI7 -> 789-12 | N12: =Data!BO7 -> 1.508 | U12: =Data!C7 -> 00:00:00 | W12: =IFERROR(VLOOKUP(Data!S7,Tables!$A$3:$B$18,2,FALSE),0) -> Rt Angle | X12: =IFERROR(VLOOKUP(Data!CQ7,Tables!$J$3:$L$21,3,FALSE),0) -> Medium Veh | Y12: =Data!AF7 -> A | Z12: =SUBSTITUTE(Data!B7,"-","")&"-" -> - | AA12: =Data!X7 -> 28 | AB12: =Data!D7 -> 11 | AC12: =Data!O7*1 -> 1 | AD12: =Data!P7 -> B | AE12: =TRIM(Data!AW7) -> SE | AF12: =Data!AS7 -> BB | AG12: =Data!F7 -> 0 | AH12: =TRIM(Data!CK7) -> 28LA325@ERA | AI12: =Data!CL7 -> 789-12-1-010 | AJ12: =Data!AE7 -> E | AK12: =Data!CN7 -> 0 | AL12: =IFERROR(VLOOKUP(Data!CP7,Tables!BV$3:BW$13,2,FALSE),0) -> Crossover | AM12: =Data!CG7 -> 30.254958 | AN12: =Data!CH7 -> -92.144478 | AO12: =Data!N7 -> C | AQ12: =Data!CC7 -> L | AR12: =IFERROR(VLOOKUP(Data!Q7,Tables!$AP$3:$AQ$10,2,FALSE),"Z") -> Day | AS12: =Data!AJ7 -> A | AT12: =Data!AZ7 -> K | BX12: =Data!AS7 -> BB | BY12: =IF(AND(JW12<2,MD12="A"),Data!AU7,Data!AT7) -> B | BZ12: =IF(AND(JW12<2,MD12="A"),MID(BX12,3,1),Data!AU7) -> B | CA12: =Data!AW7 -> SE | CB12: =IF(AND(JW12<2,MD12="A"),Data!AY7,Data!AX7) -> S | CC12: =IF(AND(JW12<2,MD12="A"),MID(CA12,3,1),Data!AY7) -> E | CF12: =IF(D12="Z",CheckMark,IF($HO12=Tables!$L$10,IF(DW12=Tables!$L$10,CheckMark,"9"),CheckMark)) -> ✓ | CG12: =IF(D12="Z",CheckMark,IF(DV12=Tables!$B$14,CheckMark,IF(AND($HN12=Tables!$B$14,COUNTIF(Tables!$D$15:$D$22,HW12)=0,NOT(HX12)),"7",CheckMark))) -> ✓ | CH12: =IF(AND(LEN(KX12&KY12)=1,COUNTIF(Tables!Z$185:Z$210,HW12&MQ12)=0),"5",CheckMark) -> ✓ | CI12: ✓ | CJ12: Rt Angle:Medium Veh | CK12: ✓ | CL12: =IF(D12="Z",CheckMark,IF(AND(INDIRECT(DV$388&$GP12)=0,DV12=0),1,IF(AND(INDIRECT(DW$388&$GP12)=0,DW12=0),2,IF(COUNTIF(Tables!Z$3:Z$177,HW12&MQ12)=1,3,CheckMark)))) -> ✓ | CM12: =IF(AND(HZ12="NV",LEN(TRIM(KX12)&TRIM(KY12))<3),CheckMark,IF(AND(HZ12="SV",LEN(TRIM(KX12)&TRIM(KY12))=1),CheckMark,IF(AND(OR(HZ12="MV",HZ12="SE",HZ12="ME"),LEN(TRIM(KX12)&TRIM(KY12))=2),IF(OR(HW12="A",HW12="Z",HW12="Q",HW12="S"),CheckMark,IF(IFERROR(VLOOKUP(HW12,Tables!$D$4:$G$22,4,FALSE)<>VLOOKUP(LEFT(TRIM(KX12&KY12),2),Tables!$AJ$49:$AK$68,2,FALSE),TRUE),IF(COUNTIF(KT12:KU12,"K")>0,CheckMark,"resolve"),CheckMark)),IF(AND(HZ12="ME",LEN(TRIM(KX12)&TRIM(KY12))=1),CheckMark,"resolve")))) -> ✓ | CN12: S | CO12: E | CP12: ✓ | CQ12: 1 1 | CR12: ✓ | CS12: ✓ | CT12: ✓ | CU12: =IF(D12="Z",CheckMark,IF(AND(COUNTIF(Tables!$AN$19:$AN$22,HW12),HV12<>0,NOT(COUNTIF(Tables!$AN$31:$AN$38,KT12)),NOT(COUNTIF(Tables!$AN$31:$AN$38,KU12)),MQ12<>"A",MQ12<>"B",MQ12<>"C",MC12<>"A",MD12<>"A",NOT(HY12)),"6",IF(AND(COUNTIF(Tables!$AN$4:$AN$16,HW12),HV12<>1),"4",IF(AND(COUNTIF(Tables!$AN$43:$AN$48,HW12),HY12,MP12<>"D"),"8",CheckMark)))) -> ✓ | CV12: ✓ | CW12: 11 | CX12: ✓ | CY12: B | CZ12: B | DA12: =IF(AND(HZ12="NV",LEN(TRIM(SUBSTITUTE(KT12,"Z",""))&TRIM(KU12))<2),CheckMark,IF(AND(OR(HZ12="SV",HZ12="ME"),LEN(TRIM(KT12)&TRIM(KU12))=1),IF(IFERROR(HLOOKUP(IF(KT12="",KU12,KT12),Tables!$CP$1:$DO$22,VLOOKUP(HW12,Tables!$CN$3:$CO$22,2,FALSE),FALSE),TRUE),"resolve",CheckMark),IF(OR(IFERROR(HLOOKUP(KT12,Tables!$CP$1:$DO$22,VLOOKUP(HW12,Tables!$CN$3:$CO$22,2,FALSE),FALSE),TRUE),IFERROR(HLOOKUP(KU12,Tables!$CP$1:$DO$22,VLOOKUP(HW12,Tables!$CN$3:$CO$22,2,FALSE),FALSE),TRUE)),"resolve",CheckMark))) -> ✓ | DB12: 0 | DC12: =IF(OR(IFERROR(VLOOKUP(MQ12,Tables!J$3:N$21,5,FALSE),"")="B",AND(IFERROR(IF(VLOOKUP(LL12,Tables!CA$3:CD$19,4,FALSE)="Maybe",FALSE,VLOOKUP(LL12,Tables!CA$3:CD$19,4,FALSE)),IF(LP12>11,FALSE,TRUE)),COUNTIF(CY12:CZ12,"E")>0),COUNTIF(CY12:CZ12,"G")>0),CheckMark,IF(DB12=IFERROR(VLOOKUP(MQ12,Tables!J$3:N$21,5,FALSE),""),CheckMark,"resolve")) -> ✓ | DK12: X | DM12: =IF(COUNTIF(DQ$377:DQ$381,DQ12)>0,0,COUNTIF(INDIRECT(DQ$389&GP$5):INDIRECT(DQ$389&GP$341),DQ12)) -> 0 | EL12: =IFERROR(VLOOKUP(LL12,Tables!$CA$3:$CC$19,3,TRUE),"U") -> U | EM12: =IF(AND(EJ12<>0,EK12<>0,FH12>VLOOKUP(EL12,Tables!$CA$23:$CC$24,MAX(HV12,IF(AND(AH12<>"",AH12<>0),1,0))+2,FALSE)),"report",CheckMark) -> ✓ | FB12: X | FC12: Z | FH12: 6346.289305 | GP12: 12 | GQ12: X | GR12: Sat11 | GS12: 1900 | GU12: no | GV12: low | GY12: =IF(VLOOKUP(JS12,Outputs!$H$73:$N$84,6)="yes",VLOOKUP(JS12,Outputs!$H$73:$N$84,7),0)+IF(AND(Outputs!$M$85="Yes",OR(JS12="C",JS12="K")),Outputs!$N$85,0) -> 0 | GZ12: =IFERROR(IF(VLOOKUP(MQ12,Outputs!$A$73:$G$86,6)="yes",VLOOKUP(MQ12,Outputs!$A$73:$G$86,7),0),0) -> 0 | HA12: 0.7282387783 | HB12: =IFERROR(IF(VLOOKUP(MP12,Outputs!$H$86:$N$89,6)="yes",VLOOKUP(MP12,Outputs!$H$86:$N$89,7),0),0) -> 0 | HC12: =IF(AND(JQ12="B",Outputs!F$87="Yes"),Outputs!G$87,0) -> 0 | HD12: =IF(AND(KF12="B",Outputs!F$89="Yes"),Outputs!G$89,0) -> 0 | HF12: =IF($D12="A",IF((IF(D12="A",0,3)+IF(DP12="can't view",2,0)+IF(DQ12="",0,1)+IF(OR(EG12<>"",AND(EJ12<>"",EK12<>"")),1,0)+IF(COUNTA(GH:GH)>10,IF(OR(GH12="",GH12="yes"),0,2),0)+IF(COUNTA(GI:GI)>10,IF(GI12="",0,1),0)+IF(COUNTA(GJ:GJ)>11,IF(GJ12="",0,1),0))>(1+IF(COUNTA(GI:GI)>10,1,0)+IF(COUNTA(GJ:GJ)>11,1,0)),0.77,1)*SUM(HG12:HL12)+2*SQRT(Data!U7+Data!V7)+SUM(GX12:HD12),"") -> 13.35591278 | HG12: =IFERROR(VLOOKUP(KE12,Tables!$AE$3:$AH$9,4,FALSE),0)+IFERROR(VLOOKUP(MS12,Tables!$AE$3:$AH$9,4,FALSE),0) -> 2.32597785 | HH12: =4*(1-COUNTIF(CK12,CheckMark))+4*(1-COUNTIF(CM12,CheckMark))+5*(1-COUNTIF(CP12,CheckMark))+3*(1-COUNTIF(CR12,CheckMark))+IF(Inputs!$C$90=Inputs!$G$90,0,3*(1-COUNTIF(NT12,TRUE))+3*(1-COUNTIF(NA12,CheckMark))) -> 0 | HI12: 0 | HJ12: 4 | HK12: -1 | HL12: =VLOOKUP(IF(FP12=0,JS12,FP12),Tables!$D$3:$F$24,3,FALSE)+VLOOKUP(MQ12,Tables!$M$3:$P$21,4,FALSE) -> 7.301696147 | HN12: Rt Angle | HO12: Medium Veh | HP12: 1.508 | HQ12: 1 | HR12: Day | HS12: Crossover | HU12: 1 | HV12: 1 | HW12: D | HX12: FALSE | HY12: FALSE | HZ12: =IF(AND(OR(JW12=1,COUNTIF(Tables!H$3:H$24,HW12)=0),IF(OR(KJ12="Y",TRIM(KJ12)=""),1,0)+IF(OR(KP12="YY",TRIM(KP12)=""),1,0)+IF(OR(KT12="Z",TRIM(KT12)=""),1,0)+IF(OR(KZ12="Y",TRIM(KZ12)=""),1,0)+IF(OR(LD12="Y",TRIM(LD12)=""),1,0)+IF(OR(MC12="Y",TRIM(MC12)=""),1,0)>(3-JM12),IF(OR(KK12="Y",TRIM(KK12)=""),1,0)+IF(OR(KQ12="YY",TRIM(KQ12)=""),1,0)+IF(OR(KU12="Z",TRIM(KU12)=""),1,0)+IF(OR(LA12="Y",TRIM(LA12)=""),1,0)+IF(OR(LE12="Y",TRIM(LE12)=""),1,0)+IF(OR(MD12="Y",TRIM(MD12)=""),1,0)>(3-JM12)),"NV",IF(OR(JW12=1,COUNTIF(Tables!H$3:H$24,HW12)=0),IF(OR(COUNTIF(KT12:KU12,"R"),MQ12="E",MQ12="J",(IF(OR(KK12="Y",TRIM(KK12)=""),1,0)+IF(OR(KQ12="YY",TRIM(KQ12)=""),1,0)+IF(OR(KU12="Z",TRIM(KU12)=""),1,0)+IF(OR(LA12="Y",TRIM(LA12)=""),1,0)+IF(OR(LE12="Y",TRIM(LE12)=""),1,0)+IF(OR(MD12="Y",TRIM(MD12)=""),1,0))>4,IF(KU12="",0,1)+IF(KY12="",0,1)+IF(OR(MU12="",MU12="Y"),0,1)=0),"SV","SE"),IF(AND(JW12<>0,JW12<>1,COUNTIF(Tables!H$3:H$24,HW12)=1,OR(IF(OR(KJ12="Y",TRIM(KJ12)=""),1,0)+IF(OR(KP12="YY",TRIM(KP12)=""),1,0)+IF(OR(KT12="Z",TRIM(KT12)=""),1,0)+IF(OR(KZ12="Y",TRIM(KZ12)=""),1,0)+IF(OR(LD12="Y",TRIM(LD12)=""),1,0)+IF(OR(MC12="Y",TRIM(MC12)=""),1,0)>(3-JM12),IF(OR(KK12="Y",TRIM(KK12)=""),1,0)+IF(OR(KQ12="YY",TRIM(KQ12)=""),1,0)+IF(OR(KU12="Z",TRIM(KU12)=""),1,0)+IF(OR(LA12="Y",TRIM(LA12)=""),1,0)+IF(OR(LE12="Y",TRIM(LE12)=""),1,0)+IF(OR(MD12="Y",TRIM(MD12)=""),1,0)>(3-JM12))),"ME","MV"))) -> MV | IA12: Rt Angle | IB12: Rt Angle | IY12: Nope | JA12: =IF(Data!A7=0,"",Data!A7*1) -> 2019 | JB12: =Data!B7 -> 0 | JC12: =Data!C7 -> 00:00:00 | JD12: 11 | JE12: =Data!E7 -> Z | JF12: 0 | JG12: =IF(NL12="",Data!G7,NL12) -> A | JI12: =Data!I7 -> 0 | JJ12: =Data!J7 -> 1 | JK12: =Data!K7 -> MO | JL12: =IF(NQ12="",Data!L7,NQ12) -> 0 | JM12: =IF(DU12<>"",DU12,Data!M7) -> 0 | JN12: =Data!N7 -> C | JO12: 1 | JP12: =Data!P7 -> B | JQ12: =IFERROR(VLOOKUP(HR12,Tables!$AQ$3:$AR$10,2,FALSE),"") -> A | JS12: =IFERROR(VLOOKUP(HN12,Tables!$B$3:$D$18,3,FALSE),"") -> D | JU12: =Data!U7 -> 0 | JV12: =Data!V7 -> 0 | JW12: =Data!W7 -> 2 | JX12: =Data!X7 -> 28 | JZ12: =Data!Z7 -> 325 | KA12: =Data!AA7 -> G | KB12: =Data!AB7 -> A | KC12: =Data!AC7 -> Z | KD12: =Data!AD7 -> 0 | KE12: =Data!AE7 -> E | KF12: =Data!AF7 -> A | KG12: =Data!AG7 -> A | KH12: =Data!AH7 ->  | KI12: =Data!AI7 -> A | KJ12: =Data!AJ7 -> A | KK12: =Data!AK7 -> A | KL12: =Data!AL7 -> 0 | KM12: =Data!AM7 -> 0 | KN12: =TRIM(Data!AN7) -> S | KO12: =TRIM(Data!AO7) -> S | KP12: =Data!AP7 -> S | KQ12: =Data!AQ7 -> S | KR12: =Data!AR7 -> 40 | KT12: =IF(EA12<>"",VLOOKUP(EA12,Tables!$DW$3:$DX$28,2,FALSE),TRIM(BY12)) -> B | KU12: =IF(EC12<>"",VLOOKUP(EC12,Tables!$DW$3:$DX$28,2,FALSE),TRIM(BZ12)) -> B | KV12: =Data!AV7 -> A | KX12: S | KY12: E | KZ12: =Data!AZ7 -> K | LA12: =Data!BA7 -> K | LB12: =IF(NG12="",Data!BB7,NG12) -> S | LC12: =IF(NH12="",Data!BC7,NH12) -> A | LD12: =IF(NB12="",Data!BD7,NB12) -> C | LE12: =IF(NC12="",Data!BE7,NC12) -> U | LF12: =Data!BF7 ->  | LH12: =Data!BH7 -> 9900 | LI12: =Data!BI7 -> 789-12 | LK12: =Data!BK7 -> 17 | LL12: =Data!BL7 -> 6 | LM12: =Data!BM7 -> 2.04 | LN12: =Data!BN7 -> 1.39 | LO12: =IF($LO$1=$HP$3,HP12,Data!BO7) -> 1.508 | LP12: =Data!BP7 -> 0 | LQ12: =Data!BQ7 -> 4 | LS12: =Data!BS7 -> 42 | LT12: =Data!BT7 -> 0 | LW12: =Data!BW7 -> 325 | LZ12: =Data!BZ7 -> 3 | MA12: =Data!CA7 -> A | MB12: =Data!CB7 -> B | MC12: =Data!CC7 -> L | MD12: =Data!CD7 -> P | ME12: =Data!CE7 -> 4 | MF12: =IF($MF$1=$HP$3,HP12,Data!CF7) -> 0.532 | MG12: 30.254958 | MH12: -92.144478 | MI12: =Data!CI7 -> 11:04:00 | MK12: 28LA325@ERA | ML12: =Data!CL7 -> 789-12-1-010 | MM12: =Data!CM7 -> 1.508 | MN12: 0 | MP12: =IFERROR(VLOOKUP(HS12,Tables!BW$3:BX$13,2,FALSE),"") -> B | MQ12: =IFERROR(VLOOKUP(HO12,Tables!$L$3:$M$21,2,FALSE),"") -> U | MR12: =IF(NM12="",IF(OR(AND(LD12<>"S",LD12<>"U",LD12<>"Y"),AND(LE12<>"S",LE12<>"U",LE12<>"Y",LE12<>" "),MQ12="F"),"O",Data!CR7),NM12) -> O | MS12: =Data!CS7 -> D | NA12: =IF(OR(NB12<>"",NC12<>""),CheckMark,IF(OR(AND(NB12="",NC12="",NO12="R",COUNTIF(LD12:LE12,"")+COUNTIF(LD12:LE12,"S")+COUNTIF(LD12:LE12,"U")+COUNTIF(LD12:LE12,"Y")+COUNTIF(LD12:LE12,"Z")=IF(AND(HW12="A",TRIM(LE12)=""),1,2)),AND(OR(HW12="A",HW12="Z"),MP12="D",COUNTIF(LD12:LE12,"A")+COUNTIF(LD12:LE12,"B")+COUNTIF(LD12:LE12,"Q")+COUNTIF(LD12:LE12,"R")=0)),"resolve",IF(AND(OR(HW12="C",HW12="K"),IFERROR(IF(VLOOKUP(LL12,Tables!CA$3:CD$19,4,FALSE)="Maybe",FALSE,VLOOKUP(LL12,Tables!CA$3:CD$19,4,FALSE)),IF(LP12>11,FALSE,TRUE))),CheckMark,IF(AND(HW12="J",CY12=CZ12,COUNTIF(LD12:LE12,"K")),IF(AND(HW12="A",COUNTIF(LD12:LE12,"L")>0),IF(JO12=1,CheckMark,"resolve"),CheckMark),IF(AND(COUNTIF(Tables!$EA$3:$EA$54,HW12)+COUNTIF(Tables!$EB$3:$EB$54,LD12)+COUNTIF(Tables!$EB$3:$EB$54,LE12)>0,COUNTIF(Tables!$ED$3:$ED$54,HW12&LD12)+COUNTIF(Tables!$ED$3:$ED$54,HW12&LE12)<1),IF(AND(HW12="B",COUNTIF(LD12:LE12,"H"),COUNTIF(KT12:KU12,"P")),CheckMark,IF(AND(MR12="O",COUNTIF(LD12:LE12,"Q")+COUNTIF(LD12:LE12,"R")>0),CheckMark,"resolve")),CheckMark))))) -> ✓ | ND12: C | NE12: U | NF12: ✓ | NI12: S | NJ12: A | NK12: ✓ | NN12: A | NO12: O | NP12: ✓ | NR12: 0 | NS12: =IFERROR(VLOOKUP(TRIM(KN12),Tables!$DR$3:$DU$46,4,FALSE),0)+IFERROR(VLOOKUP(TRIM(KO12),Tables!$DR$3:$DU$46,4,FALSE),0)+IFERROR(VLOOKUP(TRIM(KP12),Tables!$DR$3:$DU$46,4,FALSE),0)+IFERROR(VLOOKUP(TRIM(KQ12),Tables!$DR$3:$DU$46,4,FALSE),0) -> 0 | NT12: TRUE | NU12: =IF(AND(FN12<>FO12,FO12<>"Z"),FO12,IF(OR(COUNTIF(LD12:LE12,"T")>0,COUNTIF(KT12:KU12,"D")>0),"Q",IF(OR(FO12="A",JW12=1,MQ12="B",MQ12="E",MQ12="G",MQ12="H",MQ12="J",MQ12="N",MQ12="P",MQ12="T"),"A",IF(IFERROR(VLOOKUP(LEFT(TRIM(KX12&KY12),2),Tables!$AJ$49:$AK$68,2,FALSE),"A")="O",IF(COUNTIF(KT12:KU12,"I")+COUNTIF(KT12:KU12,"M")+COUNTIF(KT12:KU12,"O")=2,"P",IF(AND(COUNTIF(KT12:KU12,"I")+COUNTIF(KT12:KU12,"M")+COUNTIF(KT12:KU12,"O")=1,COUNTIF(KT12:KU12,"J")+COUNTIF(KT12:KU12,"N")+COUNTIF(KT12:KU12,"P")=1),"N",IF(AND(COUNTIF(KT12:KU12,"I")+COUNTIF(KT12:KU12,"M")+COUNTIF(KT12:KU12,"O")=1,COUNTIF(KT12:KU12,"B")=1),"F",IF(AND(COUNTIF(KT12:KU12,"C")+COUNTIF(KT12:KU12,"E")+COUNTIF(KT12:KU12,"F")>0,FO12<>"C",JO12=0,MP12<>"A"),"K",IF(AND(COUNTIF(KT12:KU12,"I")+COUNTIF(KT12:KU12,"M")+COUNTIF(KT12:KU12,"O")=1,COUNTIF(KT12:KU12,"A")+COUNTIF(KT12:KU12,"K")+COUNTIF(KT12:KU12,"M")+COUNTIF(KT12:KU12,"N")+COUNTIF(KT12:KU12,"J")+COUNTIF(KT12:KU12,"P")+COUNTIF(KT12:KU12,"Q")>0),"M",FO12))))),IF(AND(COUNTIF(KT12:KU12,"I")+COUNTIF(KT12:KU12,"M")+COUNTIF(KT12:KU12,"O")=1,COUNTIF(KT12:KU12,"A")+COUNTIF(KT12:KU12,"K")+COUNTIF(KT12:KU12,"M")+COUNTIF(KT12:KU12,"N")+COUNTIF(KT12:KU12,"J")+COUNTIF(KT12:KU12,"P")+COUNTIF(KT12:KU12,"Q")>0),"M",IF(KX12=KY12,IF(AND(JO12=0,MP12<>"A",MP12<>"B",MP12<>"C"),IF(COUNTIF(LD12:LE12,"D")>0,"B",IF(OR(COUNTIF(LD12:LE12,"C")+COUNTIF(LD12:LE12,"F")>0,COUNTIF(KT12:KU12,"H")>0),"J",FO12)),IF(OR(AND(COUNTIF(KU12,"J")+COUNTIF(KU12,"N")+COUNTIF(KU12,"P")=1,COUNTIF(KT12,"A")+COUNTIF(KT12,"B")+COUNTIF(KT12,"E")+COUNTIF(KT12,"F")+COUNTIF(KT12,"H")+COUNTIF(KT12,"K")+COUNTIF(KT12,"M")+COUNTIF(KT12,"N")+COUNTIF(KT12,"O")+COUNTIF(KT12,"P")+COUNTIF(KT12,"Q")=1,FO12<>"I"),AND(COUNTIF(KT12,"J")+COUNTIF(KT12,"N")+COUNTIF(KT12,"P")=1,COUNTIF(KU12,"A")+COUNTIF(KU12,"B")+COUNTIF(KU12,"E")+COUNTIF(KU12,"F")+COUNTIF(KU12,"H")+COUNTIF(KU12,"K")+COUNTIF(KU12,"M")+COUNTIF(KU12,"N")+COUNTIF(KU12,"O")+COUNTIF(KU12,"P")+COUNTIF(KU12,"Q")=1,FO12<>"I")),"L",IF(OR(AND(COUNTIF(KU12,"I")+COUNTIF(KU12,"M")+COUNTIF(KU12,"O")=1,COUNTIF(KT12,"A")+COUNTIF(KT12,"B")+COUNTIF(KT12,"E")+COUNTIF(KT12,"F")+COUNTIF(KT12,"H")+COUNTIF(KT12,"K")+COUNTIF(KT12,"M")+COUNTIF(KT12,"N")+COUNTIF(KT12,"O")+COUNTIF(KT12,"P")+COUNTIF(KT12,"Q")=1),AND(COUNTIF(KT12,"I")+COUNTIF(KT12,"M")+COUNTIF(KT12,"O")=1,COUNTIF(KU12,"A")+COUNTIF(KU12,"B")+COUNTIF(KU12,"E")+COUNTIF(KU12,"F")+COUNTIF(KU12,"H")+COUNTIF(KU12,"K")+COUNTIF(KU12,"M")+COUNTIF(KU12,"N")+COUNTIF(KU12,"O")+COUNTIF(KU12,"P")+COUNTIF(KU12,"Q")=1)),"E",IF(OR(COUNTIF(KT12:KU12,"I")+COUNTIF(KT12:KU12,"M")+COUNTIF(KT12:KU12,"O")=2,COUNTIF(KT12:KU12,"J")+COUNTIF(KT12:KU12,"N")+COUNTIF(KT12:KU12,"P")=2),"J",FO12)))),IF(KX12<>KY12,IF(COUNTIF(LD12:LE12,"K")>0,"G",IF(AND(COUNTIF(LD12:LE12,"H")+COUNTIF(LD12:LE12,"K")+COUNTIF(LD12:LE12,"S")+COUNTIF(LD12:LE12,"Y")+COUNTIF(LD12:LE12,"Z")>0,COUNTIF(KT12:KU12,"J")+COUNTIF(KT12:KU12,"N")+COUNTIF(KT12:KU12,"P")=1,KT12<>KU12),IFERROR(VLOOKUP(KX12&KY12,Tables!$AJ$49:$AL$63,3,FALSE),FO12),IF(AND(OR(FO12="D",FO12="Z"),COUNTIF(KT12:KU12,"J")),"H",IF(OR(FO12="G",FO12="H",FO12="I"),FO12,"D"))))))))))) -> D
A13: finish | B13: where? | C13: =IF(OR(D13<>"A",AND(OR(CI13=CheckMark,CI13="checked"),CK13=CheckMark,CL13=CheckMark,CM13<>"resolve",CP13=CheckMark,CR13<>"resolve",CS13=CheckMark,OR(CT13=CheckMark,CT13="checked"),CU13<>4,CV13=CheckMark,CX13=CheckMark,DA13<>"resolve",DC13<>"resolve")),IF(Inputs!$C$90=Inputs!$G$90,"good",IF(AND(NT13<>FALSE,NA13<>"resolve",NF13<>"resolve",NK13<>"resolve",NP13<>"resolve"),"good","issue2")),"issue") -> good | D13: A | E13: no | G13: low | H13: done | K13: =Data!Z8 -> 325 | L13: =Data!CF8 -> 0.532 | M13: =Data!BI8 -> 789-12 | N13: =Data!BO8 -> 1.508 | U13: =Data!C8 -> 00:00:00 | W13: =IFERROR(VLOOKUP(Data!S8,Tables!$A$3:$B$18,2,FALSE),0) -> Rt Angle | X13: =IFERROR(VLOOKUP(Data!CQ8,Tables!$J$3:$L$21,3,FALSE),0) -> Medium Veh | Y13: =Data!AF8 -> A | Z13: =SUBSTITUTE(Data!B8,"-","")&"-" -> - | AA13: =Data!X8 -> 28 | AB13: =Data!D8 -> 20 | AC13: =Data!O8*1 -> 1 | AD13: =Data!P8 -> B | AE13: =TRIM(Data!AW8) -> EN | AF13: =Data!AS8 -> BB | AG13: =Data!F8 -> 0 | AH13: =TRIM(Data!CK8) -> 28LA325@ERA | AI13: =Data!CL8 -> 789-12-1-010 | AJ13: =Data!AE8 -> E | AK13: =Data!CN8 -> 0 | AL13: =IFERROR(VLOOKUP(Data!CP8,Tables!BV$3:BW$13,2,FALSE),0) -> Intersection | AM13: =Data!CG8 -> 30.254958 | AN13: =Data!CH8 -> -92.144478 | AO13: =Data!N8 -> C | AQ13: =Data!CC8 -> Y | AR13: =IFERROR(VLOOKUP(Data!Q8,Tables!$AP$3:$AQ$10,2,FALSE),"Z") -> Night - CSL | AS13: =Data!AJ8 -> Y | AT13: =Data!AZ8 -> K | BX13: =Data!AS8 -> BB | BY13: =IF(AND(JW13<2,MD13="A"),Data!AU8,Data!AT8) -> B | BZ13: =IF(AND(JW13<2,MD13="A"),MID(BX13,3,1),Data!AU8) -> B | CA13: =Data!AW8 -> EN | CB13: =IF(AND(JW13<2,MD13="A"),Data!AY8,Data!AX8) -> E | CC13: =IF(AND(JW13<2,MD13="A"),MID(CA13,3,1),Data!AY8) -> N | CF13: =IF(D13="Z",CheckMark,IF($HO13=Tables!$L$10,IF(DW13=Tables!$L$10,CheckMark,"9"),CheckMark)) -> ✓ | CG13: =IF(D13="Z",CheckMark,IF(DV13=Tables!$B$14,CheckMark,IF(AND($HN13=Tables!$B$14,COUNTIF(Tables!$D$15:$D$22,HW13)=0,NOT(HX13)),"7",CheckMark))) -> ✓ | CH13: =IF(AND(LEN(KX13&KY13)=1,COUNTIF(Tables!Z$185:Z$210,HW13&MQ13)=0),"5",CheckMark) -> ✓ | CI13: ✓ | CJ13: Rt Angle:Medium Veh | CK13: ✓ | CL13: =IF(D13="Z",CheckMark,IF(AND(INDIRECT(DV$388&$GP13)=0,DV13=0),1,IF(AND(INDIRECT(DW$388&$GP13)=0,DW13=0),2,IF(COUNTIF(Tables!Z$3:Z$177,HW13&MQ13)=1,3,CheckMark)))) -> ✓ | CM13: =IF(AND(HZ13="NV",LEN(TRIM(KX13)&TRIM(KY13))<3),CheckMark,IF(AND(HZ13="SV",LEN(TRIM(KX13)&TRIM(KY13))=1),CheckMark,IF(AND(OR(HZ13="MV",HZ13="SE",HZ13="ME"),LEN(TRIM(KX13)&TRIM(KY13))=2),IF(OR(HW13="A",HW13="Z",HW13="Q",HW13="S"),CheckMark,IF(IFERROR(VLOOKUP(HW13,Tables!$D$4:$G$22,4,FALSE)<>VLOOKUP(LEFT(TRIM(KX13&KY13),2),Tables!$AJ$49:$AK$68,2,FALSE),TRUE),IF(COUNTIF(KT13:KU13,"K")>0,CheckMark,"resolve"),CheckMark)),IF(AND(HZ13="ME",LEN(TRIM(KX13)&TRIM(KY13))=1),CheckMark,"resolve")))) -> ✓ | CN13: E | CO13: N | CP13: ✓ | CQ13: 1 1 | CR13: ✓ | CS13: ✓ | CT13: ✓ | CU13: =IF(D13="Z",CheckMark,IF(AND(COUNTIF(Tables!$AN$19:$AN$22,HW13),HV13<>0,NOT(COUNTIF(Tables!$AN$31:$AN$38,KT13)),NOT(COUNTIF(Tables!$AN$31:$AN$38,KU13)),MQ13<>"A",MQ13<>"B",MQ13<>"C",MC13<>"A",MD13<>"A",NOT(HY13)),"6",IF(AND(COUNTIF(Tables!$AN$4:$AN$16,HW13),HV13<>1),"4",IF(AND(COUNTIF(Tables!$AN$43:$AN$48,HW13),HY13,MP13<>"D"),"8",CheckMark)))) -> ✓ | CV13: ✓ | CW13: 20 | CX13: ✓ | CY13: B | CZ13: B | DA13: =IF(AND(HZ13="NV",LEN(TRIM(SUBSTITUTE(KT13,"Z",""))&TRIM(KU13))<2),CheckMark,IF(AND(OR(HZ13="SV",HZ13="ME"),LEN(TRIM(KT13)&TRIM(KU13))=1),IF(IFERROR(HLOOKUP(IF(KT13="",KU13,KT13),Tables!$CP$1:$DO$22,VLOOKUP(HW13,Tables!$CN$3:$CO$22,2,FALSE),FALSE),TRUE),"resolve",CheckMark),IF(OR(IFERROR(HLOOKUP(KT13,Tables!$CP$1:$DO$22,VLOOKUP(HW13,Tables!$CN$3:$CO$22,2,FALSE),FALSE),TRUE),IFERROR(HLOOKUP(KU13,Tables!$CP$1:$DO$22,VLOOKUP(HW13,Tables!$CN$3:$CO$22,2,FALSE),FALSE),TRUE)),"resolve",CheckMark))) -> ✓ | DB13: 0 | DC13: =IF(OR(IFERROR(VLOOKUP(MQ13,Tables!J$3:N$21,5,FALSE),"")="B",AND(IFERROR(IF(VLOOKUP(LL13,Tables!CA$3:CD$19,4,FALSE)="Maybe",FALSE,VLOOKUP(LL13,Tables!CA$3:CD$19,4,FALSE)),IF(LP13>11,FALSE,TRUE)),COUNTIF(CY13:CZ13,"E")>0),COUNTIF(CY13:CZ13,"G")>0),CheckMark,IF(DB13=IFERROR(VLOOKUP(MQ13,Tables!J$3:N$21,5,FALSE),""),CheckMark,"resolve")) -> ✓ | DK13: X | DM13: =IF(COUNTIF(DQ$377:DQ$381,DQ13)>0,0,COUNTIF(INDIRECT(DQ$389&GP$5):INDIRECT(DQ$389&GP$341),DQ13)) -> 0 | EL13: =IFERROR(VLOOKUP(LL13,Tables!$CA$3:$CC$19,3,TRUE),"U") -> U | EM13: =IF(AND(EJ13<>0,EK13<>0,FH13>VLOOKUP(EL13,Tables!$CA$23:$CC$24,MAX(HV13,IF(AND(AH13<>"",AH13<>0),1,0))+2,FALSE)),"report",CheckMark) -> ✓ | FB13: X | FC13: Z | FH13: 6346.289305 | GP13: 13 | GQ13: X | GR13: Sat20 | GS13: 1900 | GU13: no | GV13: low | GY13: =IF(VLOOKUP(JS13,Outputs!$H$73:$N$84,6)="yes",VLOOKUP(JS13,Outputs!$H$73:$N$84,7),0)+IF(AND(Outputs!$M$85="Yes",OR(JS13="C",JS13="K")),Outputs!$N$85,0) -> 0 | GZ13: =IFERROR(IF(VLOOKUP(MQ13,Outputs!$A$73:$G$86,6)="yes",VLOOKUP(MQ13,Outputs!$A$73:$G$86,7),0),0) -> 0 | HA13: 0.7282387783 | HB13: =IFERROR(IF(VLOOKUP(MP13,Outputs!$H$86:$N$89,6)="yes",VLOOKUP(MP13,Outputs!$H$86:$N$89,7),0),0) -> 0 | HC13: =IF(AND(JQ13="B",Outputs!F$87="Yes"),Outputs!G$87,0) -> 0 | HD13: =IF(AND(KF13="B",Outputs!F$89="Yes"),Outputs!G$89,0) -> 0 | HF13: =IF($D13="A",IF((IF(D13="A",0,3)+IF(DP13="can't view",2,0)+IF(DQ13="",0,1)+IF(OR(EG13<>"",AND(EJ13<>"",EK13<>"")),1,0)+IF(COUNTA(GH:GH)>10,IF(OR(GH13="",GH13="yes"),0,2),0)+IF(COUNTA(GI:GI)>10,IF(GI13="",0,1),0)+IF(COUNTA(GJ:GJ)>11,IF(GJ13="",0,1),0))>(1+IF(COUNTA(GI:GI)>10,1,0)+IF(COUNTA(GJ:GJ)>11,1,0)),0.77,1)*SUM(HG13:HL13)+2*SQRT(Data!U8+Data!V8)+SUM(GX13:HD13),"") -> 16.91081719 | HG13: =IFERROR(VLOOKUP(KE13,Tables!$AE$3:$AH$9,4,FALSE),0)+IFERROR(VLOOKUP(MS13,Tables!$AE$3:$AH$9,4,FALSE),0) -> 2.880882262 | HH13: =4*(1-COUNTIF(CK13,CheckMark))+4*(1-COUNTIF(CM13,CheckMark))+5*(1-COUNTIF(CP13,CheckMark))+3*(1-COUNTIF(CR13,CheckMark))+IF(Inputs!$C$90=Inputs!$G$90,0,3*(1-COUNTIF(NT13,TRUE))+3*(1-COUNTIF(NA13,CheckMark))) -> 0 | HI13: 3 | HJ13: 4 | HK13: -1 | HL13: =VLOOKUP(IF(FP13=0,JS13,FP13),Tables!$D$3:$F$24,3,FALSE)+VLOOKUP(MQ13,Tables!$M$3:$P$21,4,FALSE) -> 7.301696147 | HN13: Rt Angle | HO13: Medium Veh | HP13: 1.508 | HQ13: 1 | HR13: Night - CSL | HS13: Intersection | HU13: 1 | HV13: 1 | HW13: D | HX13: FALSE | HY13: FALSE | HZ13: =IF(AND(OR(JW13=1,COUNTIF(Tables!H$3:H$24,HW13)=0),IF(OR(KJ13="Y",TRIM(KJ13)=""),1,0)+IF(OR(KP13="YY",TRIM(KP13)=""),1,0)+IF(OR(KT13="Z",TRIM(KT13)=""),1,0)+IF(OR(KZ13="Y",TRIM(KZ13)=""),1,0)+IF(OR(LD13="Y",TRIM(LD13)=""),1,0)+IF(OR(MC13="Y",TRIM(MC13)=""),1,0)>(3-JM13),IF(OR(KK13="Y",TRIM(KK13)=""),1,0)+IF(OR(KQ13="YY",TRIM(KQ13)=""),1,0)+IF(OR(KU13="Z",TRIM(KU13)=""),1,0)+IF(OR(LA13="Y",TRIM(LA13)=""),1,0)+IF(OR(LE13="Y",TRIM(LE13)=""),1,0)+IF(OR(MD13="Y",TRIM(MD13)=""),1,0)>(3-JM13)),"NV",IF(OR(JW13=1,COUNTIF(Tables!H$3:H$24,HW13)=0),IF(OR(COUNTIF(KT13:KU13,"R"),MQ13="E",MQ13="J",(IF(OR(KK13="Y",TRIM(KK13)=""),1,0)+IF(OR(KQ13="YY",TRIM(KQ13)=""),1,0)+IF(OR(KU13="Z",TRIM(KU13)=""),1,0)+IF(OR(LA13="Y",TRIM(LA13)=""),1,0)+IF(OR(LE13="Y",TRIM(LE13)=""),1,0)+IF(OR(MD13="Y",TRIM(MD13)=""),1,0))>4,IF(KU13="",0,1)+IF(KY13="",0,1)+IF(OR(MU13="",MU13="Y"),0,1)=0),"SV","SE"),IF(AND(JW13<>0,JW13<>1,COUNTIF(Tables!H$3:H$24,HW13)=1,OR(IF(OR(KJ13="Y",TRIM(KJ13)=""),1,0)+IF(OR(KP13="YY",TRIM(KP13)=""),1,0)+IF(OR(KT13="Z",TRIM(KT13)=""),1,0)+IF(OR(KZ13="Y",TRIM(KZ13)=""),1,0)+IF(OR(LD13="Y",TRIM(LD13)=""),1,0)+IF(OR(MC13="Y",TRIM(MC13)=""),1,0)>(3-JM13),IF(OR(KK13="Y",TRIM(KK13)=""),1,0)+IF(OR(KQ13="YY",TRIM(KQ13)=""),1,0)+IF(OR(KU13="Z",TRIM(KU13)=""),1,0)+IF(OR(LA13="Y",TRIM(LA13)=""),1,0)+IF(OR(LE13="Y",TRIM(LE13)=""),1,0)+IF(OR(MD13="Y",TRIM(MD13)=""),1,0)>(3-JM13))),"ME","MV"))) -> MV | IA13: Rt Angle | IB13: Rt Angle | IY13: Nope | JA13: =IF(Data!A8=0,"",Data!A8*1) -> 2019 | JB13: =Data!B8 -> 0 | JC13: =Data!C8 -> 00:00:00 | JD13: 20 | JE13: =Data!E8 -> B | JF13: 0 | JG13: =IF(NL13="",Data!G8,NL13) -> A | JI13: =Data!I8 -> 0 | JJ13: =Data!J8 -> 1 | JK13: =Data!K8 -> MO | JL13: =IF(NQ13="",Data!L8,NQ13) -> 0 | JM13: =IF(DU13<>"",DU13,Data!M8) -> 0 | JN13: =Data!N8 -> C | JO13: 1 | JP13: =Data!P8 -> B | JQ13: =IFERROR(VLOOKUP(HR13,Tables!$AQ$3:$AR$10,2,FALSE),"") -> C | JS13: =IFERROR(VLOOKUP(HN13,Tables!$B$3:$D$18,3,FALSE),"") -> D | JU13: =Data!U8 -> 0 | JV13: =Data!V8 -> 0 | JW13: =Data!W8 -> 2 | JX13: =Data!X8 -> 28 | JZ13: =Data!Z8 -> 325 | KA13: =Data!AA8 -> G | KB13: =Data!AB8 -> A | KC13: =Data!AC8 -> C | KD13: =Data!AD8 -> 0 | KE13: =Data!AE8 -> E | KF13: =Data!AF8 -> A | KG13: =Data!AG8 -> A | KH13: =Data!AH8 ->  | KI13: =Data!AI8 -> A | KJ13: =Data!AJ8 -> Y | KK13: =Data!AK8 -> Y | KL13: =Data!AL8 -> 0 | KM13: =Data!AM8 -> 0 | KN13: =TRIM(Data!AN8) -> S | KO13: =TRIM(Data!AO8) -> S | KP13: =Data!AP8 -> S | KQ13: =Data!AQ8 -> S | KR13: =Data!AR8 -> 25 | KT13: =IF(EA13<>"",VLOOKUP(EA13,Tables!$DW$3:$DX$28,2,FALSE),TRIM(BY13)) -> B | KU13: =IF(EC13<>"",VLOOKUP(EC13,Tables!$DW$3:$DX$28,2,FALSE),TRIM(BZ13)) -> B | KV13: =Data!AV8 -> H | KX13: E | KY13: N | KZ13: =Data!AZ8 -> K | LA13: =Data!BA8 -> K | LB13: =IF(NG13="",Data!BB8,NG13) -> B | LC13: =IF(NH13="",Data!BC8,NH13) -> A | LD13: =IF(NB13="",Data!BD8,NB13) -> Y | LE13: =IF(NC13="",Data!BE8,NC13) -> Y | LF13: =Data!BF8 ->  | LH13: =Data!BH8 -> 9900 | LI13: =Data!BI8 -> 789-12 | LK13: =Data!BK8 -> 17 | LL13: =Data!BL8 -> 6 | LM13: =Data!BM8 -> 2.04 | LN13: =Data!BN8 -> 1.39 | LO13: =IF($LO$1=$HP$3,HP13,Data!BO8) -> 1.508 | LP13: =Data!BP8 -> 0 | LQ13: =Data!BQ8 -> 4 | LS13: =Data!BS8 -> 42 | LT13: =Data!BT8 -> 0 | LW13: =Data!BW8 -> 325 | LZ13: =Data!BZ8 -> 3 | MA13: =Data!CA8 -> A | MB13: =Data!CB8 -> B | MC13: =Data!CC8 -> Y | MD13: =Data!CD8 -> Y | ME13: =Data!CE8 -> 4 | MF13: =IF($MF$1=$HP$3,HP13,Data!CF8) -> 0.532 | MG13: 30.254958 | MH13: -92.144478 | MI13: =Data!CI8 -> 20:44:00 | MK13: 28LA325@ERA | ML13: =Data!CL8 -> 789-12-1-010 | MM13: =Data!CM8 -> 1.508 | MN13: 0 | MP13: =IFERROR(VLOOKUP(HS13,Tables!BW$3:BX$13,2,FALSE),"") -> A | MQ13: =IFERROR(VLOOKUP(HO13,Tables!$L$3:$M$21,2,FALSE),"") -> U | MR13: =IF(NM13="",IF(OR(AND(LD13<>"S",LD13<>"U",LD13<>"Y"),AND(LE13<>"S",LE13<>"U",LE13<>"Y",LE13<>" "),MQ13="F"),"O",Data!CR8),NM13) -> R | MS13: =Data!CS8 -> C | NA13: =IF(OR(NB13<>"",NC13<>""),CheckMark,IF(OR(AND(NB13="",NC13="",NO13="R",COUNTIF(LD13:LE13,"")+COUNTIF(LD13:LE13,"S")+COUNTIF(LD13:LE13,"U")+COUNTIF(LD13:LE13,"Y")+COUNTIF(LD13:LE13,"Z")=IF(AND(HW13="A",TRIM(LE13)=""),1,2)),AND(OR(HW13="A",HW13="Z"),MP13="D",COUNTIF(LD13:LE13,"A")+COUNTIF(LD13:LE13,"B")+COUNTIF(LD13:LE13,"Q")+COUNTIF(LD13:LE13,"R")=0)),"resolve",IF(AND(OR(HW13="C",HW13="K"),IFERROR(IF(VLOOKUP(LL13,Tables!CA$3:CD$19,4,FALSE)="Maybe",FALSE,VLOOKUP(LL13,Tables!CA$3:CD$19,4,FALSE)),IF(LP13>11,FALSE,TRUE))),CheckMark,IF(AND(HW13="J",CY13=CZ13,COUNTIF(LD13:LE13,"K")),IF(AND(HW13="A",COUNTIF(LD13:LE13,"L")>0),IF(JO13=1,CheckMark,"resolve"),CheckMark),IF(AND(COUNTIF(Tables!$EA$3:$EA$54,HW13)+COUNTIF(Tables!$EB$3:$EB$54,LD13)+COUNTIF(Tables!$EB$3:$EB$54,LE13)>0,COUNTIF(Tables!$ED$3:$ED$54,HW13&LD13)+COUNTIF(Tables!$ED$3:$ED$54,HW13&LE13)<1),IF(AND(HW13="B",COUNTIF(LD13:LE13,"H"),COUNTIF(KT13:KU13,"P")),CheckMark,IF(AND(MR13="O",COUNTIF(LD13:LE13,"Q")+COUNTIF(LD13:LE13,"R")>0),CheckMark,"resolve")),CheckMark))))) -> resolve | ND13: Y | NE13: Y | NF13: ✓ | NI13: B | NJ13: A | NK13: ✓ | NN13: A | NO13: R | NP13: ✓ | NR13: 0 | NS13: =IFERROR(VLOOKUP(TRIM(KN13),Tables!$DR$3:$DU$46,4,FALSE),0)+IFERROR(VLOOKUP(TRIM(KO13),Tables!$DR$3:$DU$46,4,FALSE),0)+IFERROR(VLOOKUP(TRIM(KP13),Tables!$DR$3:$DU$46,4,FALSE),0)+IFERROR(VLOOKUP(TRIM(KQ13),Tables!$DR$3:$DU$46,4,FALSE),0) -> 0 | NT13: TRUE | NU13: =IF(AND(FN13<>FO13,FO13<>"Z"),FO13,IF(OR(COUNTIF(LD13:LE13,"T")>0,COUNTIF(KT13:KU13,"D")>0),"Q",IF(OR(FO13="A",JW13=1,MQ13="B",MQ13="E",MQ13="G",MQ13="H",MQ13="J",MQ13="N",MQ13="P",MQ13="T"),"A",IF(IFERROR(VLOOKUP(LEFT(TRIM(KX13&KY13),2),Tables!$AJ$49:$AK$68,2,FALSE),"A")="O",IF(COUNTIF(KT13:KU13,"I")+COUNTIF(KT13:KU13,"M")+COUNTIF(KT13:KU13,"O")=2,"P",IF(AND(COUNTIF(KT13:KU13,"I")+COUNTIF(KT13:KU13,"M")+COUNTIF(KT13:KU13,"O")=1,COUNTIF(KT13:KU13,"J")+COUNTIF(KT13:KU13,"N")+COUNTIF(KT13:KU13,"P")=1),"N",IF(AND(COUNTIF(KT13:KU13,"I")+COUNTIF(KT13:KU13,"M")+COUNTIF(KT13:KU13,"O")=1,COUNTIF(KT13:KU13,"B")=1),"F",IF(AND(COUNTIF(KT13:KU13,"C")+COUNTIF(KT13:KU13,"E")+COUNTIF(KT13:KU13,"F")>0,FO13<>"C",JO13=0,MP13<>"A"),"K",IF(AND(COUNTIF(KT13:KU13,"I")+COUNTIF(KT13:KU13,"M")+COUNTIF(KT13:KU13,"O")=1,COUNTIF(KT13:KU13,"A")+COUNTIF(KT13:KU13,"K")+COUNTIF(KT13:KU13,"M")+COUNTIF(KT13:KU13,"N")+COUNTIF(KT13:KU13,"J")+COUNTIF(KT13:KU13,"P")+COUNTIF(KT13:KU13,"Q")>0),"M",FO13))))),IF(AND(COUNTIF(KT13:KU13,"I")+COUNTIF(KT13:KU13,"M")+COUNTIF(KT13:KU13,"O")=1,COUNTIF(KT13:KU13,"A")+COUNTIF(KT13:KU13,"K")+COUNTIF(KT13:KU13,"M")+COUNTIF(KT13:KU13,"N")+COUNTIF(KT13:KU13,"J")+COUNTIF(KT13:KU13,"P")+COUNTIF(KT13:KU13,"Q")>0),"M",IF(KX13=KY13,IF(AND(JO13=0,MP13<>"A",MP13<>"B",MP13<>"C"),IF(COUNTIF(LD13:LE13,"D")>0,"B",IF(OR(COUNTIF(LD13:LE13,"C")+COUNTIF(LD13:LE13,"F")>0,COUNTIF(KT13:KU13,"H")>0),"J",FO13)),IF(OR(AND(COUNTIF(KU13,"J")+COUNTIF(KU13,"N")+COUNTIF(KU13,"P")=1,COUNTIF(KT13,"A")+COUNTIF(KT13,"B")+COUNTIF(KT13,"E")+COUNTIF(KT13,"F")+COUNTIF(KT13,"H")+COUNTIF(KT13,"K")+COUNTIF(KT13,"M")+COUNTIF(KT13,"N")+COUNTIF(KT13,"O")+COUNTIF(KT13,"P")+COUNTIF(KT13,"Q")=1,FO13<>"I"),AND(COUNTIF(KT13,"J")+COUNTIF(KT13,"N")+COUNTIF(KT13,"P")=1,COUNTIF(KU13,"A")+COUNTIF(KU13,"B")+COUNTIF(KU13,"E")+COUNTIF(KU13,"F")+COUNTIF(KU13,"H")+COUNTIF(KU13,"K")+COUNTIF(KU13,"M")+COUNTIF(KU13,"N")+COUNTIF(KU13,"O")+COUNTIF(KU13,"P")+COUNTIF(KU13,"Q")=1,FO13<>"I")),"L",IF(OR(AND(COUNTIF(KU13,"I")+COUNTIF(KU13,"M")+COUNTIF(KU13,"O")=1,COUNTIF(KT13,"A")+COUNTIF(KT13,"B")+COUNTIF(KT13,"E")+COUNTIF(KT13,"F")+COUNTIF(KT13,"H")+COUNTIF(KT13,"K")+COUNTIF(KT13,"M")+COUNTIF(KT13,"N")+COUNTIF(KT13,"O")+COUNTIF(KT13,"P")+COUNTIF(KT13,"Q")=1),AND(COUNTIF(KT13,"I")+COUNTIF(KT13,"M")+COUNTIF(KT13,"O")=1,COUNTIF(KU13,"A")+COUNTIF(KU13,"B")+COUNTIF(KU13,"E")+COUNTIF(KU13,"F")+COUNTIF(KU13,"H")+COUNTIF(KU13,"K")+COUNTIF(KU13,"M")+COUNTIF(KU13,"N")+COUNTIF(KU13,"O")+COUNTIF(KU13,"P")+COUNTIF(KU13,"Q")=1)),"E",IF(OR(COUNTIF(KT13:KU13,"I")+COUNTIF(KT13:KU13,"M")+COUNTIF(KT13:KU13,"O")=2,COUNTIF(KT13:KU13,"J")+COUNTIF(KT13:KU13,"N")+COUNTIF(KT13:KU13,"P")=2),"J",FO13)))),IF(KX13<>KY13,IF(COUNTIF(LD13:LE13,"K")>0,"G",IF(AND(COUNTIF(LD13:LE13,"H")+COUNTIF(LD13:LE13,"K")+COUNTIF(LD13:LE13,"S")+COUNTIF(LD13:LE13,"Y")+COUNTIF(LD13:LE13,"Z")>0,COUNTIF(KT13:KU13,"J")+COUNTIF(KT13:KU13,"N")+COUNTIF(KT13:KU13,"P")=1,KT13<>KU13),IFERROR(VLOOKUP(KX13&KY13,Tables!$AJ$49:$AL$63,3,FALSE),FO13),IF(AND(OR(FO13="D",FO13="Z"),COUNTIF(KT13:KU13,"J")),"H",IF(OR(FO13="G",FO13="H",FO13="I"),FO13,"D"))))))))))) -> D
A14: finish | B14: where? | C14: =IF(OR(D14<>"A",AND(OR(CI14=CheckMark,CI14="checked"),CK14=CheckMark,CL14=CheckMark,CM14<>"resolve",CP14=CheckMark,CR14<>"resolve",CS14=CheckMark,OR(CT14=CheckMark,CT14="checked"),CU14<>4,CV14=CheckMark,CX14=CheckMark,DA14<>"resolve",DC14<>"resolve")),IF(Inputs!$C$90=Inputs!$G$90,"good",IF(AND(NT14<>FALSE,NA14<>"resolve",NF14<>"resolve",NK14<>"resolve",NP14<>"resolve"),"good","issue2")),"issue") -> issue | D14: A | E14: no | G14: med | H14: done | K14: =Data!Z9 -> 325 | L14: =Data!CF9 -> 0.528 | M14: =Data!BI9 -> 789-12 | N14: =Data!BO9 -> 1.512 | U14: =Data!C9 -> 00:00:00 | W14: =IFERROR(VLOOKUP(Data!S9,Tables!$A$3:$B$18,2,FALSE),0) -> Rear End | X14: =IFERROR(VLOOKUP(Data!CQ9,Tables!$J$3:$L$21,3,FALSE),0) -> Small Veh | Y14: =Data!AF9 -> A | Z14: =SUBSTITUTE(Data!B9,"-","")&"-" -> - | AA14: =Data!X9 -> 28 | AB14: =Data!D9 -> 20 | AC14: =Data!O9*1 -> 0 | AD14: =Data!P9 -> B | AE14: =TRIM(Data!AW9) -> SS | AF14: =Data!AS9 -> BA | AG14: =Data!F9 -> 0 | AH14: =TRIM(Data!CK9) -> 28LA325@ERA | AI14: =Data!CL9 -> 789-12-1-010 | AJ14: =Data!AE9 -> E | AK14: =Data!CN9 -> 0 | AL14: =IFERROR(VLOOKUP(Data!CP9,Tables!BV$3:BW$13,2,FALSE),0) -> Intersection | AM14: =Data!CG9 -> 30.255016 | AN14: =Data!CH9 -> -92.144472 | AO14: =Data!N9 -> C | AQ14: =Data!CC9 -> L | AR14: =IFERROR(VLOOKUP(Data!Q9,Tables!$AP$3:$AQ$10,2,FALSE),"Z") -> Night - CSL | AS14: =Data!AJ9 -> B | AT14: =Data!AZ9 -> K | BX14: =Data!AS9 -> BA | BY14: =IF(AND(JW14<2,MD14="A"),Data!AU9,Data!AT9) -> B | BZ14: =IF(AND(JW14<2,MD14="A"),MID(BX14,3,1),Data!AU9) -> A | CA14: =Data!AW9 -> SS | CB14: =IF(AND(JW14<2,MD14="A"),Data!AY9,Data!AX9) -> S | CC14: =IF(AND(JW14<2,MD14="A"),MID(CA14,3,1),Data!AY9) -> S | CF14: =IF(D14="Z",CheckMark,IF($HO14=Tables!$L$10,IF(DW14=Tables!$L$10,CheckMark,"9"),CheckMark)) -> ✓ | CG14: =IF(D14="Z",CheckMark,IF(DV14=Tables!$B$14,CheckMark,IF(AND($HN14=Tables!$B$14,COUNTIF(Tables!$D$15:$D$22,HW14)=0,NOT(HX14)),"7",CheckMark))) -> ✓ | CH14: =IF(AND(LEN(KX14&KY14)=1,COUNTIF(Tables!Z$185:Z$210,HW14&MQ14)=0),"5",CheckMark) -> ✓ | CI14: ✓ | CJ14: Rear End:Small Veh | CK14: ✓ | CL14: =IF(D14="Z",CheckMark,IF(AND(INDIRECT(DV$388&$GP14)=0,DV14=0),1,IF(AND(INDIRECT(DW$388&$GP14)=0,DW14=0),2,IF(COUNTIF(Tables!Z$3:Z$177,HW14&MQ14)=1,3,CheckMark)))) -> ✓ | CM14: =IF(AND(HZ14="NV",LEN(TRIM(KX14)&TRIM(KY14))<3),CheckMark,IF(AND(HZ14="SV",LEN(TRIM(KX14)&TRIM(KY14))=1),CheckMark,IF(AND(OR(HZ14="MV",HZ14="SE",HZ14="ME"),LEN(TRIM(KX14)&TRIM(KY14))=2),IF(OR(HW14="A",HW14="Z",HW14="Q",HW14="S"),CheckMark,IF(IFERROR(VLOOKUP(HW14,Tables!$D$4:$G$22,4,FALSE)<>VLOOKUP(LEFT(TRIM(KX14&KY14),2),Tables!$AJ$49:$AK$68,2,FALSE),TRUE),IF(COUNTIF(KT14:KU14,"K")>0,CheckMark,"resolve"),CheckMark)),IF(AND(HZ14="ME",LEN(TRIM(KX14)&TRIM(KY14))=1),CheckMark,"resolve")))) -> ✓ | CN14: S | CO14: S | CP14: resolve | CQ14: 0 1 | CR14: resolve | CS14: X | CT14: ✓ | CU14: =IF(D14="Z",CheckMark,IF(AND(COUNTIF(Tables!$AN$19:$AN$22,HW14),HV14<>0,NOT(COUNTIF(Tables!$AN$31:$AN$38,KT14)),NOT(COUNTIF(Tables!$AN$31:$AN$38,KU14)),MQ14<>"A",MQ14<>"B",MQ14<>"C",MC14<>"A",MD14<>"A",NOT(HY14)),"6",IF(AND(COUNTIF(Tables!$AN$4:$AN$16,HW14),HV14<>1),"4",IF(AND(COUNTIF(Tables!$AN$43:$AN$48,HW14),HY14,MP14<>"D"),"8",CheckMark)))) -> ✓ | CV14: ✓ | CW14: 20 | CX14: ✓ | CY14: B | CZ14: A | DA14: =IF(AND(HZ14="NV",LEN(TRIM(SUBSTITUTE(KT14,"Z",""))&TRIM(KU14))<2),CheckMark,IF(AND(OR(HZ14="SV",HZ14="ME"),LEN(TRIM(KT14)&TRIM(KU14))=1),IF(IFERROR(HLOOKUP(IF(KT14="",KU14,KT14),Tables!$CP$1:$DO$22,VLOOKUP(HW14,Tables!$CN$3:$CO$22,2,FALSE),FALSE),TRUE),"resolve",CheckMark),IF(OR(IFERROR(HLOOKUP(KT14,Tables!$CP$1:$DO$22,VLOOKUP(HW14,Tables!$CN$3:$CO$22,2,FALSE),FALSE),TRUE),IFERROR(HLOOKUP(KU14,Tables!$CP$1:$DO$22,VLOOKUP(HW14,Tables!$CN$3:$CO$22,2,FALSE),FALSE),TRUE)),"resolve",CheckMark))) -> ✓ | DB14: 0 | DC14: =IF(OR(IFERROR(VLOOKUP(MQ14,Tables!J$3:N$21,5,FALSE),"")="B",AND(IFERROR(IF(VLOOKUP(LL14,Tables!CA$3:CD$19,4,FALSE)="Maybe",FALSE,VLOOKUP(LL14,Tables!CA$3:CD$19,4,FALSE)),IF(LP14>11,FALSE,TRUE)),COUNTIF(CY14:CZ14,"E")>0),COUNTIF(CY14:CZ14,"G")>0),CheckMark,IF(DB14=IFERROR(VLOOKUP(MQ14,Tables!J$3:N$21,5,FALSE),""),CheckMark,"resolve")) -> ✓ | DK14: X | DM14: =IF(COUNTIF(DQ$377:DQ$381,DQ14)>0,0,COUNTIF(INDIRECT(DQ$389&GP$5):INDIRECT(DQ$389&GP$341),DQ14)) -> 0 | EL14: =IFERROR(VLOOKUP(LL14,Tables!$CA$3:$CC$19,3,TRUE),"U") -> U | EM14: =IF(AND(EJ14<>0,EK14<>0,FH14>VLOOKUP(EL14,Tables!$CA$23:$CC$24,MAX(HV14,IF(AND(AH14<>"",AH14<>0),1,0))+2,FALSE)),"report",CheckMark) -> ✓ | FB14: X | FC14: Z | FH14: 6346.288872 | GP14: 14 | GQ14: X | GR14: Sat20 | GS14: 1900 | GU14: no | GV14: med | GY14: =IF(VLOOKUP(JS14,Outputs!$H$73:$N$84,6)="yes",VLOOKUP(JS14,Outputs!$H$73:$N$84,7),0)+IF(AND(Outputs!$M$85="Yes",OR(JS14="C",JS14="K")),Outputs!$N$85,0) -> 1.847422892 | GZ14: =IFERROR(IF(VLOOKUP(MQ14,Outputs!$A$73:$G$86,6)="yes",VLOOKUP(MQ14,Outputs!$A$73:$G$86,7),0),0) -> 0 | HA14: 1.382281687 | HB14: =IFERROR(IF(VLOOKUP(MP14,Outputs!$H$86:$N$89,6)="yes",VLOOKUP(MP14,Outputs!$H$86:$N$89,7),0),0) -> 0 | HC14: =IF(AND(JQ14="B",Outputs!F$87="Yes"),Outputs!G$87,0) -> 0 | HD14: =IF(AND(KF14="B",Outputs!F$89="Yes"),Outputs!G$89,0) -> 0 | HF14: =IF($D14="A",IF((IF(D14="A",0,3)+IF(DP14="can't view",2,0)+IF(DQ14="",0,1)+IF(OR(EG14<>"",AND(EJ14<>"",EK14<>"")),1,0)+IF(COUNTA(GH:GH)>10,IF(OR(GH14="",GH14="yes"),0,2),0)+IF(COUNTA(GI:GI)>10,IF(GI14="",0,1),0)+IF(COUNTA(GJ:GJ)>11,IF(GJ14="",0,1),0))>(1+IF(COUNTA(GI:GI)>10,1,0)+IF(COUNTA(GJ:GJ)>11,1,0)),0.77,1)*SUM(HG14:HL14)+2*SQRT(Data!U9+Data!V9)+SUM(GX14:HD14),"") -> 20.29526988 | HG14: =IFERROR(VLOOKUP(KE14,Tables!$AE$3:$AH$9,4,FALSE),0)+IFERROR(VLOOKUP(MS14,Tables!$AE$3:$AH$9,4,FALSE),0) -> 2.32597785 | HH14: =4*(1-COUNTIF(CK14,CheckMark))+4*(1-COUNTIF(CM14,CheckMark))+5*(1-COUNTIF(CP14,CheckMark))+3*(1-COUNTIF(CR14,CheckMark))+IF(Inputs!$C$90=Inputs!$G$90,0,3*(1-COUNTIF(NT14,TRUE))+3*(1-COUNTIF(NA14,CheckMark))) -> 8 | HI14: 3 | HJ14: 0 | HK14: -1 | HL14: =VLOOKUP(IF(FP14=0,JS14,FP14),Tables!$D$3:$F$24,3,FALSE)+VLOOKUP(MQ14,Tables!$M$3:$P$21,4,FALSE) -> 4.739587447 | HN14: Rear End | HO14: Small Veh | HP14: 1.512 | HQ14: 0 | HR14: Night - CSL | HS14: Intersection | HU14: 1 | HV14: 1 | HW14: B | HX14: FALSE | HY14: FALSE | HZ14: =IF(AND(OR(JW14=1,COUNTIF(Tables!H$3:H$24,HW14)=0),IF(OR(KJ14="Y",TRIM(KJ14)=""),1,0)+IF(OR(KP14="YY",TRIM(KP14)=""),1,0)+IF(OR(KT14="Z",TRIM(KT14)=""),1,0)+IF(OR(KZ14="Y",TRIM(KZ14)=""),1,0)+IF(OR(LD14="Y",TRIM(LD14)=""),1,0)+IF(OR(MC14="Y",TRIM(MC14)=""),1,0)>(3-JM14),IF(OR(KK14="Y",TRIM(KK14)=""),1,0)+IF(OR(KQ14="YY",TRIM(KQ14)=""),1,0)+IF(OR(KU14="Z",TRIM(KU14)=""),1,0)+IF(OR(LA14="Y",TRIM(LA14)=""),1,0)+IF(OR(LE14="Y",TRIM(LE14)=""),1,0)+IF(OR(MD14="Y",TRIM(MD14)=""),1,0)>(3-JM14)),"NV",IF(OR(JW14=1,COUNTIF(Tables!H$3:H$24,HW14)=0),IF(OR(COUNTIF(KT14:KU14,"R"),MQ14="E",MQ14="J",(IF(OR(KK14="Y",TRIM(KK14)=""),1,0)+IF(OR(KQ14="YY",TRIM(KQ14)=""),1,0)+IF(OR(KU14="Z",TRIM(KU14)=""),1,0)+IF(OR(LA14="Y",TRIM(LA14)=""),1,0)+IF(OR(LE14="Y",TRIM(LE14)=""),1,0)+IF(OR(MD14="Y",TRIM(MD14)=""),1,0))>4,IF(KU14="",0,1)+IF(KY14="",0,1)+IF(OR(MU14="",MU14="Y"),0,1)=0),"SV","SE"),IF(AND(JW14<>0,JW14<>1,COUNTIF(Tables!H$3:H$24,HW14)=1,OR(IF(OR(KJ14="Y",TRIM(KJ14)=""),1,0)+IF(OR(KP14="YY",TRIM(KP14)=""),1,0)+IF(OR(KT14="Z",TRIM(KT14)=""),1,0)+IF(OR(KZ14="Y",TRIM(KZ14)=""),1,0)+IF(OR(LD14="Y",TRIM(LD14)=""),1,0)+IF(OR(MC14="Y",TRIM(MC14)=""),1,0)>(3-JM14),IF(OR(KK14="Y",TRIM(KK14)=""),1,0)+IF(OR(KQ14="YY",TRIM(KQ14)=""),1,0)+IF(OR(KU14="Z",TRIM(KU14)=""),1,0)+IF(OR(LA14="Y",TRIM(LA14)=""),1,0)+IF(OR(LE14="Y",TRIM(LE14)=""),1,0)+IF(OR(MD14="Y",TRIM(MD14)=""),1,0)>(3-JM14))),"ME","MV"))) -> MV | IA14: Rear End | IB14: Rear End | IY14: Nope | JA14: =IF(Data!A9=0,"",Data!A9*1) -> 2019 | JB14: =Data!B9 -> 0 | JC14: =Data!C9 -> 00:00:00 | JD14: 20 | JE14: =Data!E9 -> A | JF14: 0 | JG14: =IF(NL14="",Data!G9,NL14) -> A | JI14: =Data!I9 -> 0 | JJ14: =Data!J9 -> 1 | JK14: =Data!K9 -> WE | JL14: =IF(NQ14="",Data!L9,NQ14) -> 0 | JM14: =IF(DU14<>"",DU14,Data!M9) -> 0 | JN14: =Data!N9 -> C | JO14: 0 | JP14: =Data!P9 -> B | JQ14: =IFERROR(VLOOKUP(HR14,Tables!$AQ$3:$AR$10,2,FALSE),"") -> C | JS14: =IFERROR(VLOOKUP(HN14,Tables!$B$3:$D$18,3,FALSE),"") -> B | JU14: =Data!U9 -> 0 | JV14: =Data!V9 -> 0 | JW14: =Data!W9 -> 2 | JX14: =Data!X9 -> 28 | JZ14: =Data!Z9 -> 325 | KA14: =Data!AA9 -> G | KB14: =Data!AB9 -> A | KC14: =Data!AC9 -> C | KD14: =Data!AD9 -> 0 | KE14: =Data!AE9 -> E | KF14: =Data!AF9 -> A | KG14: =Data!AG9 -> A | KH14: =Data!AH9 ->  | KI14: =Data!AI9 -> B | KJ14: =Data!AJ9 -> B | KK14: =Data!AK9 -> A | KL14: =Data!AL9 -> 0 | KM14: =Data!AM9 -> 0 | KN14: =TRIM(Data!AN9) -> S | KO14: =TRIM(Data!AO9) -> S | KP14: =Data!AP9 -> S | KQ14: =Data!AQ9 -> S | KR14: =Data!AR9 -> 45 | KT14: =IF(EA14<>"",VLOOKUP(EA14,Tables!$DW$3:$DX$28,2,FALSE),TRIM(BY14)) -> B | KU14: =IF(EC14<>"",VLOOKUP(EC14,Tables!$DW$3:$DX$28,2,FALSE),TRIM(BZ14)) -> A | KV14: =Data!AV9 -> C | KX14: S | KY14: S | KZ14: =Data!AZ9 -> K | LA14: =Data!BA9 -> K | LB14: =IF(NG14="",Data!BB9,NG14) -> A | LC14: =IF(NH14="",Data!BC9,NH14) -> B | LD14: =IF(NB14="",Data!BD9,NB14) -> S | LE14: =IF(NC14="",Data!BE9,NC14) -> U | LF14: =Data!BF9 ->  | LH14: =Data!BH9 -> 9900 | LI14: =Data!BI9 -> 789-12 | LK14: =Data!BK9 -> 17 | LL14: =Data!BL9 -> 6 | LM14: =Data!BM9 -> 2.04 | LN14: =Data!BN9 -> 1.39 | LO14: =IF($LO$1=$HP$3,HP14,Data!BO9) -> 1.512 | LP14: =Data!BP9 -> 0 | LQ14: =Data!BQ9 -> 4 | LS14: =Data!BS9 -> 42 | LT14: =Data!BT9 -> 0 | LW14: =Data!BW9 -> 325 | LZ14: =Data!BZ9 -> 3 | MA14: =Data!CA9 -> A | MB14: =Data!CB9 -> B | MC14: =Data!CC9 -> L | MD14: =Data!CD9 -> P | ME14: =Data!CE9 -> 4 | MF14: =IF($MF$1=$HP$3,HP14,Data!CF9) -> 0.528 | MG14: 30.255016 | MH14: -92.144472 | MI14: =Data!CI9 -> 20:25:00 | MK14: 28LA325@ERA | ML14: =Data!CL9 -> 789-12-1-010 | MM14: =Data!CM9 -> 1.512 | MN14: 0 | MP14: =IFERROR(VLOOKUP(HS14,Tables!BW$3:BX$13,2,FALSE),"") -> A | MQ14: =IFERROR(VLOOKUP(HO14,Tables!$L$3:$M$21,2,FALSE),"") -> S | MR14: =IF(NM14="",IF(OR(AND(LD14<>"S",LD14<>"U",LD14<>"Y"),AND(LE14<>"S",LE14<>"U",LE14<>"Y",LE14<>" "),MQ14="F"),"O",Data!CR9),NM14) -> R | MS14: =Data!CS9 -> D | NA14: =IF(OR(NB14<>"",NC14<>""),CheckMark,IF(OR(AND(NB14="",NC14="",NO14="R",COUNTIF(LD14:LE14,"")+COUNTIF(LD14:LE14,"S")+COUNTIF(LD14:LE14,"U")+COUNTIF(LD14:LE14,"Y")+COUNTIF(LD14:LE14,"Z")=IF(AND(HW14="A",TRIM(LE14)=""),1,2)),AND(OR(HW14="A",HW14="Z"),MP14="D",COUNTIF(LD14:LE14,"A")+COUNTIF(LD14:LE14,"B")+COUNTIF(LD14:LE14,"Q")+COUNTIF(LD14:LE14,"R")=0)),"resolve",IF(AND(OR(HW14="C",HW14="K"),IFERROR(IF(VLOOKUP(LL14,Tables!CA$3:CD$19,4,FALSE)="Maybe",FALSE,VLOOKUP(LL14,Tables!CA$3:CD$19,4,FALSE)),IF(LP14>11,FALSE,TRUE))),CheckMark,IF(AND(HW14="J",CY14=CZ14,COUNTIF(LD14:LE14,"K")),IF(AND(HW14="A",COUNTIF(LD14:LE14,"L")>0),IF(JO14=1,CheckMark,"resolve"),CheckMark),IF(AND(COUNTIF(Tables!$EA$3:$EA$54,HW14)+COUNTIF(Tables!$EB$3:$EB$54,LD14)+COUNTIF(Tables!$EB$3:$EB$54,LE14)>0,COUNTIF(Tables!$ED$3:$ED$54,HW14&LD14)+COUNTIF(Tables!$ED$3:$ED$54,HW14&LE14)<1),IF(AND(HW14="B",COUNTIF(LD14:LE14,"H"),COUNTIF(KT14:KU14,"P")),CheckMark,IF(AND(MR14="O",COUNTIF(LD14:LE14,"Q")+COUNTIF(LD14:LE14,"R")>0),CheckMark,"resolve")),CheckMark))))) -> resolve | ND14: S | NE14: U | NF14: ✓ | NI14: A | NJ14: B | NK14: ✓ | NN14: A | NO14: R | NP14: ✓ | NR14: 0 | NS14: =IFERROR(VLOOKUP(TRIM(KN14),Tables!$DR$3:$DU$46,4,FALSE),0)+IFERROR(VLOOKUP(TRIM(KO14),Tables!$DR$3:$DU$46,4,FALSE),0)+IFERROR(VLOOKUP(TRIM(KP14),Tables!$DR$3:$DU$46,4,FALSE),0)+IFERROR(VLOOKUP(TRIM(KQ14),Tables!$DR$3:$DU$46,4,FALSE),0) -> 0 | NT14: TRUE | NU14: =IF(AND(FN14<>FO14,FO14<>"Z"),FO14,IF(OR(COUNTIF(LD14:LE14,"T")>0,COUNTIF(KT14:KU14,"D")>0),"Q",IF(OR(FO14="A",JW14=1,MQ14="B",MQ14="E",MQ14="G",MQ14="H",MQ14="J",MQ14="N",MQ14="P",MQ14="T"),"A",IF(IFERROR(VLOOKUP(LEFT(TRIM(KX14&KY14),2),Tables!$AJ$49:$AK$68,2,FALSE),"A")="O",IF(COUNTIF(KT14:KU14,"I")+COUNTIF(KT14:KU14,"M")+COUNTIF(KT14:KU14,"O")=2,"P",IF(AND(COUNTIF(KT14:KU14,"I")+COUNTIF(KT14:KU14,"M")+COUNTIF(KT14:KU14,"O")=1,COUNTIF(KT14:KU14,"J")+COUNTIF(KT14:KU14,"N")+COUNTIF(KT14:KU14,"P")=1),"N",IF(AND(COUNTIF(KT14:KU14,"I")+COUNTIF(KT14:KU14,"M")+COUNTIF(KT14:KU14,"O")=1,COUNTIF(KT14:KU14,"B")=1),"F",IF(AND(COUNTIF(KT14:KU14,"C")+COUNTIF(KT14:KU14,"E")+COUNTIF(KT14:KU14,"F")>0,FO14<>"C",JO14=0,MP14<>"A"),"K",IF(AND(COUNTIF(KT14:KU14,"I")+COUNTIF(KT14:KU14,"M")+COUNTIF(KT14:KU14,"O")=1,COUNTIF(KT14:KU14,"A")+COUNTIF(KT14:KU14,"K")+COUNTIF(KT14:KU14,"M")+COUNTIF(KT14:KU14,"N")+COUNTIF(KT14:KU14,"J")+COUNTIF(KT14:KU14,"P")+COUNTIF(KT14:KU14,"Q")>0),"M",FO14))))),IF(AND(COUNTIF(KT14:KU14,"I")+COUNTIF(KT14:KU14,"M")+COUNTIF(KT14:KU14,"O")=1,COUNTIF(KT14:KU14,"A")+COUNTIF(KT14:KU14,"K")+COUNTIF(KT14:KU14,"M")+COUNTIF(KT14:KU14,"N")+COUNTIF(KT14:KU14,"J")+COUNTIF(KT14:KU14,"P")+COUNTIF(KT14:KU14,"Q")>0),"M",IF(KX14=KY14,IF(AND(JO14=0,MP14<>"A",MP14<>"B",MP14<>"C"),IF(COUNTIF(LD14:LE14,"D")>0,"B",IF(OR(COUNTIF(LD14:LE14,"C")+COUNTIF(LD14:LE14,"F")>0,COUNTIF(KT14:KU14,"H")>0),"J",FO14)),IF(OR(AND(COUNTIF(KU14,"J")+COUNTIF(KU14,"N")+COUNTIF(KU14,"P")=1,COUNTIF(KT14,"A")+COUNTIF(KT14,"B")+COUNTIF(KT14,"E")+COUNTIF(KT14,"F")+COUNTIF(KT14,"H")+COUNTIF(KT14,"K")+COUNTIF(KT14,"M")+COUNTIF(KT14,"N")+COUNTIF(KT14,"O")+COUNTIF(KT14,"P")+COUNTIF(KT14,"Q")=1,FO14<>"I"),AND(COUNTIF(KT14,"J")+COUNTIF(KT14,"N")+COUNTIF(KT14,"P")=1,COUNTIF(KU14,"A")+COUNTIF(KU14,"B")+COUNTIF(KU14,"E")+COUNTIF(KU14,"F")+COUNTIF(KU14,"H")+COUNTIF(KU14,"K")+COUNTIF(KU14,"M")+COUNTIF(KU14,"N")+COUNTIF(KU14,"O")+COUNTIF(KU14,"P")+COUNTIF(KU14,"Q")=1,FO14<>"I")),"L",IF(OR(AND(COUNTIF(KU14,"I")+COUNTIF(KU14,"M")+COUNTIF(KU14,"O")=1,COUNTIF(KT14,"A")+COUNTIF(KT14,"B")+COUNTIF(KT14,"E")+COUNTIF(KT14,"F")+COUNTIF(KT14,"H")+COUNTIF(KT14,"K")+COUNTIF(KT14,"M")+COUNTIF(KT14,"N")+COUNTIF(KT14,"O")+COUNTIF(KT14,"P")+COUNTIF(KT14,"Q")=1),AND(COUNTIF(KT14,"I")+COUNTIF(KT14,"M")+COUNTIF(KT14,"O")=1,COUNTIF(KU14,"A")+COUNTIF(KU14,"B")+COUNTIF(KU14,"E")+COUNTIF(KU14,"F")+COUNTIF(KU14,"H")+COUNTIF(KU14,"K")+COUNTIF(KU14,"M")+COUNTIF(KU14,"N")+COUNTIF(KU14,"O")+COUNTIF(KU14,"P")+COUNTIF(KU14,"Q")=1)),"E",IF(OR(COUNTIF(KT14:KU14,"I")+COUNTIF(KT14:KU14,"M")+COUNTIF(KT14:KU14,"O")=2,COUNTIF(KT14:KU14,"J")+COUNTIF(KT14:KU14,"N")+COUNTIF(KT14:KU14,"P")=2),"J",FO14)))),IF(KX14<>KY14,IF(COUNTIF(LD14:LE14,"K")>0,"G",IF(AND(COUNTIF(LD14:LE14,"H")+COUNTIF(LD14:LE14,"K")+COUNTIF(LD14:LE14,"S")+COUNTIF(LD14:LE14,"Y")+COUNTIF(LD14:LE14,"Z")>0,COUNTIF(KT14:KU14,"J")+COUNTIF(KT14:KU14,"N")+COUNTIF(KT14:KU14,"P")=1,KT14<>KU14),IFERROR(VLOOKUP(KX14&KY14,Tables!$AJ$49:$AL$63,3,FALSE),FO14),IF(AND(OR(FO14="D",FO14="Z"),COUNTIF(KT14:KU14,"J")),"H",IF(OR(FO14="G",FO14="H",FO14="I"),FO14,"D"))))))))))) -> 0
A15: finish | B15: where? | C15: =IF(OR(D15<>"A",AND(OR(CI15=CheckMark,CI15="checked"),CK15=CheckMark,CL15=CheckMark,CM15<>"resolve",CP15=CheckMark,CR15<>"resolve",CS15=CheckMark,OR(CT15=CheckMark,CT15="checked"),CU15<>4,CV15=CheckMark,CX15=CheckMark,DA15<>"resolve",DC15<>"resolve")),IF(Inputs!$C$90=Inputs!$G$90,"good",IF(AND(NT15<>FALSE,NA15<>"resolve",NF15<>"resolve",NK15<>"resolve",NP15<>"resolve"),"good","issue2")),"issue") -> issue | D15: A | E15: no | G15: med | H15: done | K15: =Data!Z10 -> 325 | L15: =Data!CF10 -> 0.532 | M15: =Data!BI10 -> 789-12 | N15: =Data!BO10 -> 1.508 | U15: =Data!C10 -> 00:00:00 | W15: =IFERROR(VLOOKUP(Data!S10,Tables!$A$3:$B$18,2,FALSE),0) -> Rt Angle | X15: =IFERROR(VLOOKUP(Data!CQ10,Tables!$J$3:$L$21,3,FALSE),0) -> Vertical Fixed | Y15: =Data!AF10 -> A | Z15: =SUBSTITUTE(Data!B10,"-","")&"-" -> - | AA15: =Data!X10 -> 28 | AB15: =Data!D10 -> 17 | AC15: =Data!O10*1 -> 1 | AD15: =Data!P10 -> B | AE15: =TRIM(Data!AW10) -> SS | AF15: =Data!AS10 -> JB | AG15: =Data!F10 -> 0 | AH15: =TRIM(Data!CK10) -> 28LA325@ERA | AI15: =Data!CL10 -> 789-12-1-010 | AJ15: =Data!AE10 -> E | AK15: =Data!CN10 -> 0 | AL15: =IFERROR(VLOOKUP(Data!CP10,Tables!BV$3:BW$13,2,FALSE),0) -> Intersection | AM15: =Data!CG10 -> 30.254958 | AN15: =Data!CH10 -> -92.144478 | AO15: =Data!N10 -> C | AQ15: =Data!CC10 -> L | AR15: =IFERROR(VLOOKUP(Data!Q10,Tables!$AP$3:$AQ$10,2,FALSE),"Z") -> Day | AS15: =Data!AJ10 -> Y | AT15: =Data!AZ10 -> K | BX15: =Data!AS10 -> JB | BY15: =IF(AND(JW15<2,MD15="A"),Data!AU10,Data!AT10) -> J | BZ15: =IF(AND(JW15<2,MD15="A"),MID(BX15,3,1),Data!AU10) -> B | CA15: =Data!AW10 -> SS | CB15: =IF(AND(JW15<2,MD15="A"),Data!AY10,Data!AX10) -> S | CC15: =IF(AND(JW15<2,MD15="A"),MID(CA15,3,1),Data!AY10) -> S | CF15: =IF(D15="Z",CheckMark,IF($HO15=Tables!$L$10,IF(DW15=Tables!$L$10,CheckMark,"9"),CheckMark)) -> ✓ | CG15: =IF(D15="Z",CheckMark,IF(DV15=Tables!$B$14,CheckMark,IF(AND($HN15=Tables!$B$14,COUNTIF(Tables!$D$15:$D$22,HW15)=0,NOT(HX15)),"7",CheckMark))) -> ✓ | CH15: =IF(AND(LEN(KX15&KY15)=1,COUNTIF(Tables!Z$185:Z$210,HW15&MQ15)=0),"5",CheckMark) -> ✓ | CI15: ✓ | CJ15: Rt Angle:Vertical Fixed | CK15: issue 3 | CL15: =IF(D15="Z",CheckMark,IF(AND(INDIRECT(DV$388&$GP15)=0,DV15=0),1,IF(AND(INDIRECT(DW$388&$GP15)=0,DW15=0),2,IF(COUNTIF(Tables!Z$3:Z$177,HW15&MQ15)=1,3,CheckMark)))) -> 3 | CM15: =IF(AND(HZ15="NV",LEN(TRIM(KX15)&TRIM(KY15))<3),CheckMark,IF(AND(HZ15="SV",LEN(TRIM(KX15)&TRIM(KY15))=1),CheckMark,IF(AND(OR(HZ15="MV",HZ15="SE",HZ15="ME"),LEN(TRIM(KX15)&TRIM(KY15))=2),IF(OR(HW15="A",HW15="Z",HW15="Q",HW15="S"),CheckMark,IF(IFERROR(VLOOKUP(HW15,Tables!$D$4:$G$22,4,FALSE)<>VLOOKUP(LEFT(TRIM(KX15&KY15),2),Tables!$AJ$49:$AK$68,2,FALSE),TRUE),IF(COUNTIF(KT15:KU15,"K")>0,CheckMark,"resolve"),CheckMark)),IF(AND(HZ15="ME",LEN(TRIM(KX15)&TRIM(KY15))=1),CheckMark,"resolve")))) -> resolve | CN15: S | CO15: S | CP15: ✓ | CQ15: 1 1 | CR15: ✓ | CS15: ✓ | CT15: ✓ | CU15: =IF(D15="Z",CheckMark,IF(AND(COUNTIF(Tables!$AN$19:$AN$22,HW15),HV15<>0,NOT(COUNTIF(Tables!$AN$31:$AN$38,KT15)),NOT(COUNTIF(Tables!$AN$31:$AN$38,KU15)),MQ15<>"A",MQ15<>"B",MQ15<>"C",MC15<>"A",MD15<>"A",NOT(HY15)),"6",IF(AND(COUNTIF(Tables!$AN$4:$AN$16,HW15),HV15<>1),"4",IF(AND(COUNTIF(Tables!$AN$43:$AN$48,HW15),HY15,MP15<>"D"),"8",CheckMark)))) -> ✓ | CV15: ✓ | CW15: 17 | CX15: ✓ | CY15: J | CZ15: B | DA15: =IF(AND(HZ15="NV",LEN(TRIM(SUBSTITUTE(KT15,"Z",""))&TRIM(KU15))<2),CheckMark,IF(AND(OR(HZ15="SV",HZ15="ME"),LEN(TRIM(KT15)&TRIM(KU15))=1),IF(IFERROR(HLOOKUP(IF(KT15="",KU15,KT15),Tables!$CP$1:$DO$22,VLOOKUP(HW15,Tables!$CN$3:$CO$22,2,FALSE),FALSE),TRUE),"resolve",CheckMark),IF(OR(IFERROR(HLOOKUP(KT15,Tables!$CP$1:$DO$22,VLOOKUP(HW15,Tables!$CN$3:$CO$22,2,FALSE),FALSE),TRUE),IFERROR(HLOOKUP(KU15,Tables!$CP$1:$DO$22,VLOOKUP(HW15,Tables!$CN$3:$CO$22,2,FALSE),FALSE),TRUE)),"resolve",CheckMark))) -> resolve | DB15: 0 | DC15: =IF(OR(IFERROR(VLOOKUP(MQ15,Tables!J$3:N$21,5,FALSE),"")="B",AND(IFERROR(IF(VLOOKUP(LL15,Tables!CA$3:CD$19,4,FALSE)="Maybe",FALSE,VLOOKUP(LL15,Tables!CA$3:CD$19,4,FALSE)),IF(LP15>11,FALSE,TRUE)),COUNTIF(CY15:CZ15,"E")>0),COUNTIF(CY15:CZ15,"G")>0),CheckMark,IF(DB15=IFERROR(VLOOKUP(MQ15,Tables!J$3:N$21,5,FALSE),""),CheckMark,"resolve")) -> resolve | DK15: X | DM15: =IF(COUNTIF(DQ$377:DQ$381,DQ15)>0,0,COUNTIF(INDIRECT(DQ$389&GP$5):INDIRECT(DQ$389&GP$341),DQ15)) -> 0 | EL15: =IFERROR(VLOOKUP(LL15,Tables!$CA$3:$CC$19,3,TRUE),"U") -> U | EM15: =IF(AND(EJ15<>0,EK15<>0,FH15>VLOOKUP(EL15,Tables!$CA$23:$CC$24,MAX(HV15,IF(AND(AH15<>"",AH15<>0),1,0))+2,FALSE)),"report",CheckMark) -> ✓ | FB15: X | FC15: Z | FH15: 6346.289305 | GP15: 15 | GQ15: X | GR15: Sat17 | GS15: 1900 | GU15: no | GV15: med | GY15: =IF(VLOOKUP(JS15,Outputs!$H$73:$N$84,6)="yes",VLOOKUP(JS15,Outputs!$H$73:$N$84,7),0)+IF(AND(Outputs!$M$85="Yes",OR(JS15="C",JS15="K")),Outputs!$N$85,0) -> 0 | GZ15: =IFERROR(IF(VLOOKUP(MQ15,Outputs!$A$73:$G$86,6)="yes",VLOOKUP(MQ15,Outputs!$A$73:$G$86,7),0),0) -> 0 | HA15: 0.7282387783 | HB15: =IFERROR(IF(VLOOKUP(MP15,Outputs!$H$86:$N$89,6)="yes",VLOOKUP(MP15,Outputs!$H$86:$N$89,7),0),0) -> 0 | HC15: =IF(AND(JQ15="B",Outputs!F$87="Yes"),Outputs!G$87,0) -> 0 | HD15: =IF(AND(KF15="B",Outputs!F$89="Yes"),Outputs!G$89,0) -> 0 | HF15: =IF($D15="A",IF((IF(D15="A",0,3)+IF(DP15="can't view",2,0)+IF(DQ15="",0,1)+IF(OR(EG15<>"",AND(EJ15<>"",EK15<>"")),1,0)+IF(COUNTA(GH:GH)>10,IF(OR(GH15="",GH15="yes"),0,2),0)+IF(COUNTA(GI:GI)>10,IF(GI15="",0,1),0)+IF(COUNTA(GJ:GJ)>11,IF(GJ15="",0,1),0))>(1+IF(COUNTA(GI:GI)>10,1,0)+IF(COUNTA(GJ:GJ)>11,1,0)),0.77,1)*SUM(HG15:HL15)+2*SQRT(Data!U10+Data!V10)+SUM(GX15:HD15),"") -> 21.80877981 | HG15: =IFERROR(VLOOKUP(KE15,Tables!$AE$3:$AH$9,4,FALSE),0)+IFERROR(VLOOKUP(MS15,Tables!$AE$3:$AH$9,4,FALSE),0) -> 2.32597785 | HH15: =4*(1-COUNTIF(CK15,CheckMark))+4*(1-COUNTIF(CM15,CheckMark))+5*(1-COUNTIF(CP15,CheckMark))+3*(1-COUNTIF(CR15,CheckMark))+IF(Inputs!$C$90=Inputs!$G$90,0,3*(1-COUNTIF(NT15,TRUE))+3*(1-COUNTIF(NA15,CheckMark))) -> 8 | HI15: 0 | HJ15: 4 | HK15: -1 | HL15: =VLOOKUP(IF(FP15=0,JS15,FP15),Tables!$D$3:$F$24,3,FALSE)+VLOOKUP(MQ15,Tables!$M$3:$P$21,4,FALSE) -> 7.754563178 | HN15: Rt Angle | HO15: Vertical Fixed | HP15: 1.508 | HQ15: 1 | HR15: Day | HS15: Intersection | HU15: 1 | HV15: 1 | HW15: D | HX15: FALSE | HY15: FALSE | HZ15: =IF(AND(OR(JW15=1,COUNTIF(Tables!H$3:H$24,HW15)=0),IF(OR(KJ15="Y",TRIM(KJ15)=""),1,0)+IF(OR(KP15="YY",TRIM(KP15)=""),1,0)+IF(OR(KT15="Z",TRIM(KT15)=""),1,0)+IF(OR(KZ15="Y",TRIM(KZ15)=""),1,0)+IF(OR(LD15="Y",TRIM(LD15)=""),1,0)+IF(OR(MC15="Y",TRIM(MC15)=""),1,0)>(3-JM15),IF(OR(KK15="Y",TRIM(KK15)=""),1,0)+IF(OR(KQ15="YY",TRIM(KQ15)=""),1,0)+IF(OR(KU15="Z",TRIM(KU15)=""),1,0)+IF(OR(LA15="Y",TRIM(LA15)=""),1,0)+IF(OR(LE15="Y",TRIM(LE15)=""),1,0)+IF(OR(MD15="Y",TRIM(MD15)=""),1,0)>(3-JM15)),"NV",IF(OR(JW15=1,COUNTIF(Tables!H$3:H$24,HW15)=0),IF(OR(COUNTIF(KT15:KU15,"R"),MQ15="E",MQ15="J",(IF(OR(KK15="Y",TRIM(KK15)=""),1,0)+IF(OR(KQ15="YY",TRIM(KQ15)=""),1,0)+IF(OR(KU15="Z",TRIM(KU15)=""),1,0)+IF(OR(LA15="Y",TRIM(LA15)=""),1,0)+IF(OR(LE15="Y",TRIM(LE15)=""),1,0)+IF(OR(MD15="Y",TRIM(MD15)=""),1,0))>4,IF(KU15="",0,1)+IF(KY15="",0,1)+IF(OR(MU15="",MU15="Y"),0,1)=0),"SV","SE"),IF(AND(JW15<>0,JW15<>1,COUNTIF(Tables!H$3:H$24,HW15)=1,OR(IF(OR(KJ15="Y",TRIM(KJ15)=""),1,0)+IF(OR(KP15="YY",TRIM(KP15)=""),1,0)+IF(OR(KT15="Z",TRIM(KT15)=""),1,0)+IF(OR(KZ15="Y",TRIM(KZ15)=""),1,0)+IF(OR(LD15="Y",TRIM(LD15)=""),1,0)+IF(OR(MC15="Y",TRIM(MC15)=""),1,0)>(3-JM15),IF(OR(KK15="Y",TRIM(KK15)=""),1,0)+IF(OR(KQ15="YY",TRIM(KQ15)=""),1,0)+IF(OR(KU15="Z",TRIM(KU15)=""),1,0)+IF(OR(LA15="Y",TRIM(LA15)=""),1,0)+IF(OR(LE15="Y",TRIM(LE15)=""),1,0)+IF(OR(MD15="Y",TRIM(MD15)=""),1,0)>(3-JM15))),"ME","MV"))) -> MV | IA15: Rt Angle | IB15: Rt Angle | IY15: Nope | JA15: =IF(Data!A10=0,"",Data!A10*1) -> 2019 | JB15: =Data!B10 -> 0 | JC15: =Data!C10 -> 00:00:00 | JD15: 17 | JE15: =Data!E10 -> A | JF15: 0 | JG15: =IF(NL15="",Data!G10,NL15) -> A | JI15: =Data!I10 -> 0 | JJ15: =Data!J10 -> 1 | JK15: =Data!K10 -> MO | JL15: =IF(NQ15="",Data!L10,NQ15) -> 0 | JM15: =IF(DU15<>"",DU15,Data!M10) -> 0 | JN15: =Data!N10 -> C | JO15: 1 | JP15: =Data!P10 -> B | JQ15: =IFERROR(VLOOKUP(HR15,Tables!$AQ$3:$AR$10,2,FALSE),"") -> A | JS15: =IFERROR(VLOOKUP(HN15,Tables!$B$3:$D$18,3,FALSE),"") -> D | JU15: =Data!U10 -> 0 | JV15: =Data!V10 -> 0 | JW15: =Data!W10 -> 2 | JX15: =Data!X10 -> 28 | JZ15: =Data!Z10 -> 325 | KA15: =Data!AA10 -> A | KB15: =Data!AB10 -> A | KC15: =Data!AC10 -> B | KD15: =Data!AD10 -> 0 | KE15: =Data!AE10 -> E | KF15: =Data!AF10 -> A | KG15: =Data!AG10 -> A | KH15: =Data!AH10 ->  | KI15: =Data!AI10 -> A | KJ15: =Data!AJ10 -> Y | KK15: =Data!AK10 -> Y | KL15: =Data!AL10 -> 0 | KM15: =Data!AM10 -> 0 | KN15: =TRIM(Data!AN10) -> S | KO15: =TRIM(Data!AO10) -> S | KP15: =Data!AP10 -> S | KQ15: =Data!AQ10 -> S | KR15: =Data!AR10 -> 45 | KT15: =IF(EA15<>"",VLOOKUP(EA15,Tables!$DW$3:$DX$28,2,FALSE),TRIM(BY15)) -> J | KU15: =IF(EC15<>"",VLOOKUP(EC15,Tables!$DW$3:$DX$28,2,FALSE),TRIM(BZ15)) -> B | KV15: =Data!AV10 -> R | KX15: S | KY15: S | KZ15: =Data!AZ10 -> K | LA15: =Data!BA10 -> K | LB15: =IF(NG15="",Data!BB10,NG15) -> B | LC15: =IF(NH15="",Data!BC10,NH15) -> A | LD15: =IF(NB15="",Data!BD10,NB15) -> H | LE15: =IF(NC15="",Data!BE10,NC15) -> U | LF15: =Data!BF10 ->  | LH15: =Data!BH10 -> 9900 | LI15: =Data!BI10 -> 789-12 | LK15: =Data!BK10 -> 17 | LL15: =Data!BL10 -> 6 | LM15: =Data!BM10 -> 2.04 | LN15: =Data!BN10 -> 1.39 | LO15: =IF($LO$1=$HP$3,HP15,Data!BO10) -> 1.508 | LP15: =Data!BP10 -> 0 | LQ15: =Data!BQ10 -> 4 | LS15: =Data!BS10 -> 42 | LT15: =Data!BT10 -> 0 | LW15: =Data!BW10 -> 325 | LZ15: =Data!BZ10 -> 3 | MA15: =Data!CA10 -> A | MB15: =Data!CB10 -> B | MC15: =Data!CC10 -> L | MD15: =Data!CD10 -> P | ME15: =Data!CE10 -> 4 | MF15: =IF($MF$1=$HP$3,HP15,Data!CF10) -> 0.532 | MG15: 30.254958 | MH15: -92.144478 | MI15: =Data!CI10 -> 17:21:00 | MK15: 28LA325@ERA | ML15: =Data!CL10 -> 789-12-1-010 | MM15: =Data!CM10 -> 1.508 | MN15: 0 | MP15: =IFERROR(VLOOKUP(HS15,Tables!BW$3:BX$13,2,FALSE),"") -> A | MQ15: =IFERROR(VLOOKUP(HO15,Tables!$L$3:$M$21,2,FALSE),"") -> G | MR15: =IF(NM15="",IF(OR(AND(LD15<>"S",LD15<>"U",LD15<>"Y"),AND(LE15<>"S",LE15<>"U",LE15<>"Y",LE15<>" "),MQ15="F"),"O",Data!CR10),NM15) -> O | MS15: =Data!CS10 -> D | NA15: =IF(OR(NB15<>"",NC15<>""),CheckMark,IF(OR(AND(NB15="",NC15="",NO15="R",COUNTIF(LD15:LE15,"")+COUNTIF(LD15:LE15,"S")+COUNTIF(LD15:LE15,"U")+COUNTIF(LD15:LE15,"Y")+COUNTIF(LD15:LE15,"Z")=IF(AND(HW15="A",TRIM(LE15)=""),1,2)),AND(OR(HW15="A",HW15="Z"),MP15="D",COUNTIF(LD15:LE15,"A")+COUNTIF(LD15:LE15,"B")+COUNTIF(LD15:LE15,"Q")+COUNTIF(LD15:LE15,"R")=0)),"resolve",IF(AND(OR(HW15="C",HW15="K"),IFERROR(IF(VLOOKUP(LL15,Tables!CA$3:CD$19,4,FALSE)="Maybe",FALSE,VLOOKUP(LL15,Tables!CA$3:CD$19,4,FALSE)),IF(LP15>11,FALSE,TRUE))),CheckMark,IF(AND(HW15="J",CY15=CZ15,COUNTIF(LD15:LE15,"K")),IF(AND(HW15="A",COUNTIF(LD15:LE15,"L")>0),IF(JO15=1,CheckMark,"resolve"),CheckMark),IF(AND(COUNTIF(Tables!$EA$3:$EA$54,HW15)+COUNTIF(Tables!$EB$3:$EB$54,LD15)+COUNTIF(Tables!$EB$3:$EB$54,LE15)>0,COUNTIF(Tables!$ED$3:$ED$54,HW15&LD15)+COUNTIF(Tables!$ED$3:$ED$54,HW15&LE15)<1),IF(AND(HW15="B",COUNTIF(LD15:LE15,"H"),COUNTIF(KT15:KU15,"P")),CheckMark,IF(AND(MR15="O",COUNTIF(LD15:LE15,"Q")+COUNTIF(LD15:LE15,"R")>0),CheckMark,"resolve")),CheckMark))))) -> resolve | ND15: H | NE15: U | NF15: ✓ | NI15: B | NJ15: A | NK15: ✓ | NN15: A | NO15: O | NP15: resolve | NR15: 0 | NS15: =IFERROR(VLOOKUP(TRIM(KN15),Tables!$DR$3:$DU$46,4,FALSE),0)+IFERROR(VLOOKUP(TRIM(KO15),Tables!$DR$3:$DU$46,4,FALSE),0)+IFERROR(VLOOKUP(TRIM(KP15),Tables!$DR$3:$DU$46,4,FALSE),0)+IFERROR(VLOOKUP(TRIM(KQ15),Tables!$DR$3:$DU$46,4,FALSE),0) -> 0 | NT15: TRUE | NU15: =IF(AND(FN15<>FO15,FO15<>"Z"),FO15,IF(OR(COUNTIF(LD15:LE15,"T")>0,COUNTIF(KT15:KU15,"D")>0),"Q",IF(OR(FO15="A",JW15=1,MQ15="B",MQ15="E",MQ15="G",MQ15="H",MQ15="J",MQ15="N",MQ15="P",MQ15="T"),"A",IF(IFERROR(VLOOKUP(LEFT(TRIM(KX15&KY15),2),Tables!$AJ$49:$AK$68,2,FALSE),"A")="O",IF(COUNTIF(KT15:KU15,"I")+COUNTIF(KT15:KU15,"M")+COUNTIF(KT15:KU15,"O")=2,"P",IF(AND(COUNTIF(KT15:KU15,"I")+COUNTIF(KT15:KU15,"M")+COUNTIF(KT15:KU15,"O")=1,COUNTIF(KT15:KU15,"J")+COUNTIF(KT15:KU15,"N")+COUNTIF(KT15:KU15,"P")=1),"N",IF(AND(COUNTIF(KT15:KU15,"I")+COUNTIF(KT15:KU15,"M")+COUNTIF(KT15:KU15,"O")=1,COUNTIF(KT15:KU15,"B")=1),"F",IF(AND(COUNTIF(KT15:KU15,"C")+COUNTIF(KT15:KU15,"E")+COUNTIF(KT15:KU15,"F")>0,FO15<>"C",JO15=0,MP15<>"A"),"K",IF(AND(COUNTIF(KT15:KU15,"I")+COUNTIF(KT15:KU15,"M")+COUNTIF(KT15:KU15,"O")=1,COUNTIF(KT15:KU15,"A")+COUNTIF(KT15:KU15,"K")+COUNTIF(KT15:KU15,"M")+COUNTIF(KT15:KU15,"N")+COUNTIF(KT15:KU15,"J")+COUNTIF(KT15:KU15,"P")+COUNTIF(KT15:KU15,"Q")>0),"M",FO15))))),IF(AND(COUNTIF(KT15:KU15,"I")+COUNTIF(KT15:KU15,"M")+COUNTIF(KT15:KU15,"O")=1,COUNTIF(KT15:KU15,"A")+COUNTIF(KT15:KU15,"K")+COUNTIF(KT15:KU15,"M")+COUNTIF(KT15:KU15,"N")+COUNTIF(KT15:KU15,"J")+COUNTIF(KT15:KU15,"P")+COUNTIF(KT15:KU15,"Q")>0),"M",IF(KX15=KY15,IF(AND(JO15=0,MP15<>"A",MP15<>"B",MP15<>"C"),IF(COUNTIF(LD15:LE15,"D")>0,"B",IF(OR(COUNTIF(LD15:LE15,"C")+COUNTIF(LD15:LE15,"F")>0,COUNTIF(KT15:KU15,"H")>0),"J",FO15)),IF(OR(AND(COUNTIF(KU15,"J")+COUNTIF(KU15,"N")+COUNTIF(KU15,"P")=1,COUNTIF(KT15,"A")+COUNTIF(KT15,"B")+COUNTIF(KT15,"E")+COUNTIF(KT15,"F")+COUNTIF(KT15,"H")+COUNTIF(KT15,"K")+COUNTIF(KT15,"M")+COUNTIF(KT15,"N")+COUNTIF(KT15,"O")+COUNTIF(KT15,"P")+COUNTIF(KT15,"Q")=1,FO15<>"I"),AND(COUNTIF(KT15,"J")+COUNTIF(KT15,"N")+COUNTIF(KT15,"P")=1,COUNTIF(KU15,"A")+COUNTIF(KU15,"B")+COUNTIF(KU15,"E")+COUNTIF(KU15,"F")+COUNTIF(KU15,"H")+COUNTIF(KU15,"K")+COUNTIF(KU15,"M")+COUNTIF(KU15,"N")+COUNTIF(KU15,"O")+COUNTIF(KU15,"P")+COUNTIF(KU15,"Q")=1,FO15<>"I")),"L",IF(OR(AND(COUNTIF(KU15,"I")+COUNTIF(KU15,"M")+COUNTIF(KU15,"O")=1,COUNTIF(KT15,"A")+COUNTIF(KT15,"B")+COUNTIF(KT15,"E")+COUNTIF(KT15,"F")+COUNTIF(KT15,"H")+COUNTIF(KT15,"K")+COUNTIF(KT15,"M")+COUNTIF(KT15,"N")+COUNTIF(KT15,"O")+COUNTIF(KT15,"P")+COUNTIF(KT15,"Q")=1),AND(COUNTIF(KT15,"I")+COUNTIF(KT15,"M")+COUNTIF(KT15,"O")=1,COUNTIF(KU15,"A")+COUNTIF(KU15,"B")+COUNTIF(KU15,"E")+COUNTIF(KU15,"F")+COUNTIF(KU15,"H")+COUNTIF(KU15,"K")+COUNTIF(KU15,"M")+COUNTIF(KU15,"N")+COUNTIF(KU15,"O")+COUNTIF(KU15,"P")+COUNTIF(KU15,"Q")=1)),"E",IF(OR(COUNTIF(KT15:KU15,"I")+COUNTIF(KT15:KU15,"M")+COUNTIF(KT15:KU15,"O")=2,COUNTIF(KT15:KU15,"J")+COUNTIF(KT15:KU15,"N")+COUNTIF(KT15:KU15,"P")=2),"J",FO15)))),IF(KX15<>KY15,IF(COUNTIF(LD15:LE15,"K")>0,"G",IF(AND(COUNTIF(LD15:LE15,"H")+COUNTIF(LD15:LE15,"K")+COUNTIF(LD15:LE15,"S")+COUNTIF(LD15:LE15,"Y")+COUNTIF(LD15:LE15,"Z")>0,COUNTIF(KT15:KU15,"J")+COUNTIF(KT15:KU15,"N")+COUNTIF(KT15:KU15,"P")=1,KT15<>KU15),IFERROR(VLOOKUP(KX15&KY15,Tables!$AJ$49:$AL$63,3,FALSE),FO15),IF(AND(OR(FO15="D",FO15="Z"),COUNTIF(KT15:KU15,"J")),"H",IF(OR(FO15="G",FO15="H",FO15="I"),FO15,"D"))))))))))) -> A
A16: finish | B16: where? | C16: =IF(OR(D16<>"A",AND(OR(CI16=CheckMark,CI16="checked"),CK16=CheckMark,CL16=CheckMark,CM16<>"resolve",CP16=CheckMark,CR16<>"resolve",CS16=CheckMark,OR(CT16=CheckMark,CT16="checked"),CU16<>4,CV16=CheckMark,CX16=CheckMark,DA16<>"resolve",DC16<>"resolve")),IF(Inputs!$C$90=Inputs!$G$90,"good",IF(AND(NT16<>FALSE,NA16<>"resolve",NF16<>"resolve",NK16<>"resolve",NP16<>"resolve"),"good","issue2")),"issue") -> issue | D16: A | E16: no | G16: med | H16: done | K16: =Data!Z11 -> 0 | L16: =Data!CF11 -> 0 | M16: =Data!BI11 ->  | N16: =Data!BO11 -> 0 | U16: =Data!C11 -> 00:00:00 | W16: =IFERROR(VLOOKUP(Data!S11,Tables!$A$3:$B$18,2,FALSE),0) -> Rt Angle | X16: =IFERROR(VLOOKUP(Data!CQ11,Tables!$J$3:$L$21,3,FALSE),0) -> Medium Veh | Y16: =Data!AF11 -> A | Z16: =SUBSTITUTE(Data!B11,"-","")&"-" -> - | AA16: =Data!X11 -> 28 | AB16: =Data!D11 -> 16 | AC16: =Data!O11*1 -> 1 | AD16: =Data!P11 -> B | AE16: =TRIM(Data!AW11) -> SW | AF16: =Data!AS11 -> BB | AG16: =Data!F11 -> 0 | AH16: =TRIM(Data!CK11) ->  | AI16: =Data!CL11 -> 5.59014728e+16 | AJ16: =Data!AE11 -> E | AK16: =Data!CN11 -> 0 | AL16: =IFERROR(VLOOKUP(Data!CP11,Tables!BV$3:BW$13,2,FALSE),0) -> Intersection | AM16: =Data!CG11 -> 30.254731 | AN16: =Data!CH11 -> -92.144883 | AO16: =Data!N11 -> E | AQ16: =Data!CC11 -> L | AR16: =IFERROR(VLOOKUP(Data!Q11,Tables!$AP$3:$AQ$10,2,FALSE),"Z") -> Day | AS16: =Data!AJ11 -> B | AT16: =Data!AZ11 -> K | BX16: =Data!AS11 -> BB | BY16: =IF(AND(JW16<2,MD16="A"),Data!AU11,Data!AT11) -> B | BZ16: =IF(AND(JW16<2,MD16="A"),MID(BX16,3,1),Data!AU11) -> B | CA16: =Data!AW11 -> SW | CB16: =IF(AND(JW16<2,MD16="A"),Data!AY11,Data!AX11) -> S | CC16: =IF(AND(JW16<2,MD16="A"),MID(CA16,3,1),Data!AY11) -> W | CF16: =IF(D16="Z",CheckMark,IF($HO16=Tables!$L$10,IF(DW16=Tables!$L$10,CheckMark,"9"),CheckMark)) -> ✓ | CG16: =IF(D16="Z",CheckMark,IF(DV16=Tables!$B$14,CheckMark,IF(AND($HN16=Tables!$B$14,COUNTIF(Tables!$D$15:$D$22,HW16)=0,NOT(HX16)),"7",CheckMark))) -> ✓ | CH16: =IF(AND(LEN(KX16&KY16)=1,COUNTIF(Tables!Z$185:Z$210,HW16&MQ16)=0),"5",CheckMark) -> ✓ | CI16: ✓ | CJ16: Rt Angle:Medium Veh | CK16: ✓ | CL16: =IF(D16="Z",CheckMark,IF(AND(INDIRECT(DV$388&$GP16)=0,DV16=0),1,IF(AND(INDIRECT(DW$388&$GP16)=0,DW16=0),2,IF(COUNTIF(Tables!Z$3:Z$177,HW16&MQ16)=1,3,CheckMark)))) -> ✓ | CM16: =IF(AND(HZ16="NV",LEN(TRIM(KX16)&TRIM(KY16))<3),CheckMark,IF(AND(HZ16="SV",LEN(TRIM(KX16)&TRIM(KY16))=1),CheckMark,IF(AND(OR(HZ16="MV",HZ16="SE",HZ16="ME"),LEN(TRIM(KX16)&TRIM(KY16))=2),IF(OR(HW16="A",HW16="Z",HW16="Q",HW16="S"),CheckMark,IF(IFERROR(VLOOKUP(HW16,Tables!$D$4:$G$22,4,FALSE)<>VLOOKUP(LEFT(TRIM(KX16&KY16),2),Tables!$AJ$49:$AK$68,2,FALSE),TRUE),IF(COUNTIF(KT16:KU16,"K")>0,CheckMark,"resolve"),CheckMark)),IF(AND(HZ16="ME",LEN(TRIM(KX16)&TRIM(KY16))=1),CheckMark,"resolve")))) -> ✓ | CN16: S | CO16: W | CP16: resolve | CQ16: 1 1 | CR16: ✓ | CS16: ✓ | CT16: ✓ | CU16: =IF(D16="Z",CheckMark,IF(AND(COUNTIF(Tables!$AN$19:$AN$22,HW16),HV16<>0,NOT(COUNTIF(Tables!$AN$31:$AN$38,KT16)),NOT(COUNTIF(Tables!$AN$31:$AN$38,KU16)),MQ16<>"A",MQ16<>"B",MQ16<>"C",MC16<>"A",MD16<>"A",NOT(HY16)),"6",IF(AND(COUNTIF(Tables!$AN$4:$AN$16,HW16),HV16<>1),"4",IF(AND(COUNTIF(Tables!$AN$43:$AN$48,HW16),HY16,MP16<>"D"),"8",CheckMark)))) -> ✓ | CV16: ✓ | CW16: 16 | CX16: ✓ | CY16: B | CZ16: B | DA16: =IF(AND(HZ16="NV",LEN(TRIM(SUBSTITUTE(KT16,"Z",""))&TRIM(KU16))<2),CheckMark,IF(AND(OR(HZ16="SV",HZ16="ME"),LEN(TRIM(KT16)&TRIM(KU16))=1),IF(IFERROR(HLOOKUP(IF(KT16="",KU16,KT16),Tables!$CP$1:$DO$22,VLOOKUP(HW16,Tables!$CN$3:$CO$22,2,FALSE),FALSE),TRUE),"resolve",CheckMark),IF(OR(IFERROR(HLOOKUP(KT16,Tables!$CP$1:$DO$22,VLOOKUP(HW16,Tables!$CN$3:$CO$22,2,FALSE),FALSE),TRUE),IFERROR(HLOOKUP(KU16,Tables!$CP$1:$DO$22,VLOOKUP(HW16,Tables!$CN$3:$CO$22,2,FALSE),FALSE),TRUE)),"resolve",CheckMark))) -> ✓ | DB16: 0 | DC16: =IF(OR(IFERROR(VLOOKUP(MQ16,Tables!J$3:N$21,5,FALSE),"")="B",AND(IFERROR(IF(VLOOKUP(LL16,Tables!CA$3:CD$19,4,FALSE)="Maybe",FALSE,VLOOKUP(LL16,Tables!CA$3:CD$19,4,FALSE)),IF(LP16>11,FALSE,TRUE)),COUNTIF(CY16:CZ16,"E")>0),COUNTIF(CY16:CZ16,"G")>0),CheckMark,IF(DB16=IFERROR(VLOOKUP(MQ16,Tables!J$3:N$21,5,FALSE),""),CheckMark,"resolve")) -> ✓ | DK16: X | DM16: =IF(COUNTIF(DQ$377:DQ$381,DQ16)>0,0,COUNTIF(INDIRECT(DQ$389&GP$5):INDIRECT(DQ$389&GP$341),DQ16)) -> 0 | EL16: =IFERROR(VLOOKUP(LL16,Tables!$CA$3:$CC$19,3,TRUE),"U") -> U | EM16: =IF(AND(EJ16<>0,EK16<>0,FH16>VLOOKUP(EL16,Tables!$CA$23:$CC$24,MAX(HV16,IF(AND(AH16<>"",AH16<>0),1,0))+2,FALSE)),"report",CheckMark) -> ✓ | FB16: X | FC16: Z | FH16: 6346.313768 | GP16: 16 | GQ16: X | GR16: Sat16 | GS16: 1900 | GU16: no | GV16: med | GY16: =IF(VLOOKUP(JS16,Outputs!$H$73:$N$84,6)="yes",VLOOKUP(JS16,Outputs!$H$73:$N$84,7),0)+IF(AND(Outputs!$M$85="Yes",OR(JS16="C",JS16="K")),Outputs!$N$85,0) -> 0 | GZ16: =IFERROR(IF(VLOOKUP(MQ16,Outputs!$A$73:$G$86,6)="yes",VLOOKUP(MQ16,Outputs!$A$73:$G$86,7),0),0) -> 0 | HA16: 3.514301951 | HB16: =IFERROR(IF(VLOOKUP(MP16,Outputs!$H$86:$N$89,6)="yes",VLOOKUP(MP16,Outputs!$H$86:$N$89,7),0),0) -> 0 | HC16: =IF(AND(JQ16="B",Outputs!F$87="Yes"),Outputs!G$87,0) -> 0 | HD16: =IF(AND(KF16="B",Outputs!F$89="Yes"),Outputs!G$89,0) -> 0 | HF16: =IF($D16="A",IF((IF(D16="A",0,3)+IF(DP16="can't view",2,0)+IF(DQ16="",0,1)+IF(OR(EG16<>"",AND(EJ16<>"",EK16<>"")),1,0)+IF(COUNTA(GH:GH)>10,IF(OR(GH16="",GH16="yes"),0,2),0)+IF(COUNTA(GI:GI)>10,IF(GI16="",0,1),0)+IF(COUNTA(GJ:GJ)>11,IF(GJ16="",0,1),0))>(1+IF(COUNTA(GI:GI)>10,1,0)+IF(COUNTA(GJ:GJ)>11,1,0)),0.77,1)*SUM(HG16:HL16)+2*SQRT(Data!U11+Data!V11)+SUM(GX16:HD16),"") -> 21.14197595 | HG16: =IFERROR(VLOOKUP(KE16,Tables!$AE$3:$AH$9,4,FALSE),0)+IFERROR(VLOOKUP(MS16,Tables!$AE$3:$AH$9,4,FALSE),0) -> 2.32597785 | HH16: =4*(1-COUNTIF(CK16,CheckMark))+4*(1-COUNTIF(CM16,CheckMark))+5*(1-COUNTIF(CP16,CheckMark))+3*(1-COUNTIF(CR16,CheckMark))+IF(Inputs!$C$90=Inputs!$G$90,0,3*(1-COUNTIF(NT16,TRUE))+3*(1-COUNTIF(NA16,CheckMark))) -> 5 | HI16: 0 | HJ16: 4 | HK16: -1 | HL16: =VLOOKUP(IF(FP16=0,JS16,FP16),Tables!$D$3:$F$24,3,FALSE)+VLOOKUP(MQ16,Tables!$M$3:$P$21,4,FALSE) -> 7.301696147 | HN16: Rt Angle | HO16: Medium Veh | HP16: 0 | HQ16: 1 | HR16: Day | HS16: Intersection | HU16: 1 | HV16: 1 | HW16: D | HX16: FALSE | HY16: FALSE | HZ16: =IF(AND(OR(JW16=1,COUNTIF(Tables!H$3:H$24,HW16)=0),IF(OR(KJ16="Y",TRIM(KJ16)=""),1,0)+IF(OR(KP16="YY",TRIM(KP16)=""),1,0)+IF(OR(KT16="Z",TRIM(KT16)=""),1,0)+IF(OR(KZ16="Y",TRIM(KZ16)=""),1,0)+IF(OR(LD16="Y",TRIM(LD16)=""),1,0)+IF(OR(MC16="Y",TRIM(MC16)=""),1,0)>(3-JM16),IF(OR(KK16="Y",TRIM(KK16)=""),1,0)+IF(OR(KQ16="YY",TRIM(KQ16)=""),1,0)+IF(OR(KU16="Z",TRIM(KU16)=""),1,0)+IF(OR(LA16="Y",TRIM(LA16)=""),1,0)+IF(OR(LE16="Y",TRIM(LE16)=""),1,0)+IF(OR(MD16="Y",TRIM(MD16)=""),1,0)>(3-JM16)),"NV",IF(OR(JW16=1,COUNTIF(Tables!H$3:H$24,HW16)=0),IF(OR(COUNTIF(KT16:KU16,"R"),MQ16="E",MQ16="J",(IF(OR(KK16="Y",TRIM(KK16)=""),1,0)+IF(OR(KQ16="YY",TRIM(KQ16)=""),1,0)+IF(OR(KU16="Z",TRIM(KU16)=""),1,0)+IF(OR(LA16="Y",TRIM(LA16)=""),1,0)+IF(OR(LE16="Y",TRIM(LE16)=""),1,0)+IF(OR(MD16="Y",TRIM(MD16)=""),1,0))>4,IF(KU16="",0,1)+IF(KY16="",0,1)+IF(OR(MU16="",MU16="Y"),0,1)=0),"SV","SE"),IF(AND(JW16<>0,JW16<>1,COUNTIF(Tables!H$3:H$24,HW16)=1,OR(IF(OR(KJ16="Y",TRIM(KJ16)=""),1,0)+IF(OR(KP16="YY",TRIM(KP16)=""),1,0)+IF(OR(KT16="Z",TRIM(KT16)=""),1,0)+IF(OR(KZ16="Y",TRIM(KZ16)=""),1,0)+IF(OR(LD16="Y",TRIM(LD16)=""),1,0)+IF(OR(MC16="Y",TRIM(MC16)=""),1,0)>(3-JM16),IF(OR(KK16="Y",TRIM(KK16)=""),1,0)+IF(OR(KQ16="YY",TRIM(KQ16)=""),1,0)+IF(OR(KU16="Z",TRIM(KU16)=""),1,0)+IF(OR(LA16="Y",TRIM(LA16)=""),1,0)+IF(OR(LE16="Y",TRIM(LE16)=""),1,0)+IF(OR(MD16="Y",TRIM(MD16)=""),1,0)>(3-JM16))),"ME","MV"))) -> MV | IA16: Rt Angle | IB16: Rt Angle | IY16: Nope | JA16: =IF(Data!A11=0,"",Data!A11*1) -> 2019 | JB16: =Data!B11 -> 0 | JC16: =Data!C11 -> 00:00:00 | JD16: 16 | JE16: =Data!E11 -> A | JF16: 0 | JG16: =IF(NL16="",Data!G11,NL16) -> A | JI16: =Data!I11 -> 0 | JJ16: =Data!J11 -> 1 | JK16: =Data!K11 -> MO | JL16: =IF(NQ16="",Data!L11,NQ16) -> 0 | JM16: =IF(DU16<>"",DU16,Data!M11) -> 0 | JN16: =Data!N11 -> E | JO16: 1 | JP16: =Data!P11 -> B | JQ16: =IFERROR(VLOOKUP(HR16,Tables!$AQ$3:$AR$10,2,FALSE),"") -> A | JS16: =IFERROR(VLOOKUP(HN16,Tables!$B$3:$D$18,3,FALSE),"") -> D | JU16: =Data!U11 -> 0 | JV16: =Data!V11 -> 0 | JW16: =Data!W11 -> 2 | JX16: =Data!X11 -> 28 | JZ16: =Data!Z11 -> 0 | KA16: =Data!AA11 -> G | KB16: =Data!AB11 -> A | KC16: =Data!AC11 -> B | KD16: =Data!AD11 -> 0 | KE16: =Data!AE11 -> E | KF16: =Data!AF11 -> A | KG16: =Data!AG11 -> A | KH16: =Data!AH11 ->  | KI16: =Data!AI11 -> A | KJ16: =Data!AJ11 -> B | KK16: =Data!AK11 -> A | KL16: =Data!AL11 -> 0 | KM16: =Data!AM11 -> 0 | KN16: =TRIM(Data!AN11) -> S | KO16: =TRIM(Data!AO11) -> S | KP16: =Data!AP11 -> S | KQ16: =Data!AQ11 -> S | KR16: =Data!AR11 -> 45 | KT16: =IF(EA16<>"",VLOOKUP(EA16,Tables!$DW$3:$DX$28,2,FALSE),TRIM(BY16)) -> B | KU16: =IF(EC16<>"",VLOOKUP(EC16,Tables!$DW$3:$DX$28,2,FALSE),TRIM(BZ16)) -> B | KV16: =Data!AV11 -> A | KX16: S | KY16: W | KZ16: =Data!AZ11 -> K | LA16: =Data!BA11 -> K | LB16: =IF(NG16="",Data!BB11,NG16) -> S | LC16: =IF(NH16="",Data!BC11,NH16) -> C | LD16: =IF(NB16="",Data!BD11,NB16) -> C | LE16: =IF(NC16="",Data!BE11,NC16) -> U | LF16: =Data!BF11 ->  | LH16: =Data!BH11 -> 0 | LI16: =Data!BI11 ->  | LK16: =Data!BK11 ->  | LL16: =Data!BL11 ->  | LM16: =Data!BM11 -> 0 | LN16: =Data!BN11 -> 0 | LO16: =IF($LO$1=$HP$3,HP16,Data!BO11) -> 0 | LP16: =Data!BP11 -> 0 | LQ16: =Data!BQ11 -> 0 | LS16: =Data!BS11 -> 0 | LT16: =Data!BT11 -> 0 | LW16: =Data!BW11 -> 0 | LZ16: =Data!BZ11 -> 3 | MA16: =Data!CA11 -> A | MB16: =Data!CB11 -> B | MC16: =Data!CC11 -> L | MD16: =Data!CD11 -> P | ME16: =Data!CE11 ->  | MF16: =IF($MF$1=$HP$3,HP16,Data!CF11) -> 0 | MG16: 30.254731 | MH16: -92.144883 | MI16: =Data!CI11 -> 16:43:00 | MK16: 0 | ML16: =Data!CL11 -> 5.59014728e+16 | MM16: =Data!CM11 -> 0.992 | MN16: 0 | MP16: =IFERROR(VLOOKUP(HS16,Tables!BW$3:BX$13,2,FALSE),"") -> A | MQ16: =IFERROR(VLOOKUP(HO16,Tables!$L$3:$M$21,2,FALSE),"") -> U | MR16: =IF(NM16="",IF(OR(AND(LD16<>"S",LD16<>"U",LD16<>"Y"),AND(LE16<>"S",LE16<>"U",LE16<>"Y",LE16<>" "),MQ16="F"),"O",Data!CR11),NM16) -> O | MS16: =Data!CS11 -> D | NA16: =IF(OR(NB16<>"",NC16<>""),CheckMark,IF(OR(AND(NB16="",NC16="",NO16="R",COUNTIF(LD16:LE16,"")+COUNTIF(LD16:LE16,"S")+COUNTIF(LD16:LE16,"U")+COUNTIF(LD16:LE16,"Y")+COUNTIF(LD16:LE16,"Z")=IF(AND(HW16="A",TRIM(LE16)=""),1,2)),AND(OR(HW16="A",HW16="Z"),MP16="D",COUNTIF(LD16:LE16,"A")+COUNTIF(LD16:LE16,"B")+COUNTIF(LD16:LE16,"Q")+COUNTIF(LD16:LE16,"R")=0)),"resolve",IF(AND(OR(HW16="C",HW16="K"),IFERROR(IF(VLOOKUP(LL16,Tables!CA$3:CD$19,4,FALSE)="Maybe",FALSE,VLOOKUP(LL16,Tables!CA$3:CD$19,4,FALSE)),IF(LP16>11,FALSE,TRUE))),CheckMark,IF(AND(HW16="J",CY16=CZ16,COUNTIF(LD16:LE16,"K")),IF(AND(HW16="A",COUNTIF(LD16:LE16,"L")>0),IF(JO16=1,CheckMark,"resolve"),CheckMark),IF(AND(COUNTIF(Tables!$EA$3:$EA$54,HW16)+COUNTIF(Tables!$EB$3:$EB$54,LD16)+COUNTIF(Tables!$EB$3:$EB$54,LE16)>0,COUNTIF(Tables!$ED$3:$ED$54,HW16&LD16)+COUNTIF(Tables!$ED$3:$ED$54,HW16&LE16)<1),IF(AND(HW16="B",COUNTIF(LD16:LE16,"H"),COUNTIF(KT16:KU16,"P")),CheckMark,IF(AND(MR16="O",COUNTIF(LD16:LE16,"Q")+COUNTIF(LD16:LE16,"R")>0),CheckMark,"resolve")),CheckMark))))) -> ✓ | ND16: C | NE16: U | NF16: ✓ | NI16: S | NJ16: C | NK16: ✓ | NN16: A | NO16: O | NP16: ✓ | NR16: 0 | NS16: =IFERROR(VLOOKUP(TRIM(KN16),Tables!$DR$3:$DU$46,4,FALSE),0)+IFERROR(VLOOKUP(TRIM(KO16),Tables!$DR$3:$DU$46,4,FALSE),0)+IFERROR(VLOOKUP(TRIM(KP16),Tables!$DR$3:$DU$46,4,FALSE),0)+IFERROR(VLOOKUP(TRIM(KQ16),Tables!$DR$3:$DU$46,4,FALSE),0) -> 0 | NT16: TRUE | NU16: =IF(AND(FN16<>FO16,FO16<>"Z"),FO16,IF(OR(COUNTIF(LD16:LE16,"T")>0,COUNTIF(KT16:KU16,"D")>0),"Q",IF(OR(FO16="A",JW16=1,MQ16="B",MQ16="E",MQ16="G",MQ16="H",MQ16="J",MQ16="N",MQ16="P",MQ16="T"),"A",IF(IFERROR(VLOOKUP(LEFT(TRIM(KX16&KY16),2),Tables!$AJ$49:$AK$68,2,FALSE),"A")="O",IF(COUNTIF(KT16:KU16,"I")+COUNTIF(KT16:KU16,"M")+COUNTIF(KT16:KU16,"O")=2,"P",IF(AND(COUNTIF(KT16:KU16,"I")+COUNTIF(KT16:KU16,"M")+COUNTIF(KT16:KU16,"O")=1,COUNTIF(KT16:KU16,"J")+COUNTIF(KT16:KU16,"N")+COUNTIF(KT16:KU16,"P")=1),"N",IF(AND(COUNTIF(KT16:KU16,"I")+COUNTIF(KT16:KU16,"M")+COUNTIF(KT16:KU16,"O")=1,COUNTIF(KT16:KU16,"B")=1),"F",IF(AND(COUNTIF(KT16:KU16,"C")+COUNTIF(KT16:KU16,"E")+COUNTIF(KT16:KU16,"F")>0,FO16<>"C",JO16=0,MP16<>"A"),"K",IF(AND(COUNTIF(KT16:KU16,"I")+COUNTIF(KT16:KU16,"M")+COUNTIF(KT16:KU16,"O")=1,COUNTIF(KT16:KU16,"A")+COUNTIF(KT16:KU16,"K")+COUNTIF(KT16:KU16,"M")+COUNTIF(KT16:KU16,"N")+COUNTIF(KT16:KU16,"J")+COUNTIF(KT16:KU16,"P")+COUNTIF(KT16:KU16,"Q")>0),"M",FO16))))),IF(AND(COUNTIF(KT16:KU16,"I")+COUNTIF(KT16:KU16,"M")+COUNTIF(KT16:KU16,"O")=1,COUNTIF(KT16:KU16,"A")+COUNTIF(KT16:KU16,"K")+COUNTIF(KT16:KU16,"M")+COUNTIF(KT16:KU16,"N")+COUNTIF(KT16:KU16,"J")+COUNTIF(KT16:KU16,"P")+COUNTIF(KT16:KU16,"Q")>0),"M",IF(KX16=KY16,IF(AND(JO16=0,MP16<>"A",MP16<>"B",MP16<>"C"),IF(COUNTIF(LD16:LE16,"D")>0,"B",IF(OR(COUNTIF(LD16:LE16,"C")+COUNTIF(LD16:LE16,"F")>0,COUNTIF(KT16:KU16,"H")>0),"J",FO16)),IF(OR(AND(COUNTIF(KU16,"J")+COUNTIF(KU16,"N")+COUNTIF(KU16,"P")=1,COUNTIF(KT16,"A")+COUNTIF(KT16,"B")+COUNTIF(KT16,"E")+COUNTIF(KT16,"F")+COUNTIF(KT16,"H")+COUNTIF(KT16,"K")+COUNTIF(KT16,"M")+COUNTIF(KT16,"N")+COUNTIF(KT16,"O")+COUNTIF(KT16,"P")+COUNTIF(KT16,"Q")=1,FO16<>"I"),AND(COUNTIF(KT16,"J")+COUNTIF(KT16,"N")+COUNTIF(KT16,"P")=1,COUNTIF(KU16,"A")+COUNTIF(KU16,"B")+COUNTIF(KU16,"E")+COUNTIF(KU16,"F")+COUNTIF(KU16,"H")+COUNTIF(KU16,"K")+COUNTIF(KU16,"M")+COUNTIF(KU16,"N")+COUNTIF(KU16,"O")+COUNTIF(KU16,"P")+COUNTIF(KU16,"Q")=1,FO16<>"I")),"L",IF(OR(AND(COUNTIF(KU16,"I")+COUNTIF(KU16,"M")+COUNTIF(KU16,"O")=1,COUNTIF(KT16,"A")+COUNTIF(KT16,"B")+COUNTIF(KT16,"E")+COUNTIF(KT16,"F")+COUNTIF(KT16,"H")+COUNTIF(KT16,"K")+COUNTIF(KT16,"M")+COUNTIF(KT16,"N")+COUNTIF(KT16,"O")+COUNTIF(KT16,"P")+COUNTIF(KT16,"Q")=1),AND(COUNTIF(KT16,"I")+COUNTIF(KT16,"M")+COUNTIF(KT16,"O")=1,COUNTIF(KU16,"A")+COUNTIF(KU16,"B")+COUNTIF(KU16,"E")+COUNTIF(KU16,"F")+COUNTIF(KU16,"H")+COUNTIF(KU16,"K")+COUNTIF(KU16,"M")+COUNTIF(KU16,"N")+COUNTIF(KU16,"O")+COUNTIF(KU16,"P")+COUNTIF(KU16,"Q")=1)),"E",IF(OR(COUNTIF(KT16:KU16,"I")+COUNTIF(KT16:KU16,"M")+COUNTIF(KT16:KU16,"O")=2,COUNTIF(KT16:KU16,"J")+COUNTIF(KT16:KU16,"N")+COUNTIF(KT16:KU16,"P")=2),"J",FO16)))),IF(KX16<>KY16,IF(COUNTIF(LD16:LE16,"K")>0,"G",IF(AND(COUNTIF(LD16:LE16,"H")+COUNTIF(LD16:LE16,"K")+COUNTIF(LD16:LE16,"S")+COUNTIF(LD16:LE16,"Y")+COUNTIF(LD16:LE16,"Z")>0,COUNTIF(KT16:KU16,"J")+COUNTIF(KT16:KU16,"N")+COUNTIF(KT16:KU16,"P")=1,KT16<>KU16),IFERROR(VLOOKUP(KX16&KY16,Tables!$AJ$49:$AL$63,3,FALSE),FO16),IF(AND(OR(FO16="D",FO16="Z"),COUNTIF(KT16:KU16,"J")),"H",IF(OR(FO16="G",FO16="H",FO16="I"),FO16,"D"))))))))))) -> D
A17: finish | B17: where? | C17: =IF(OR(D17<>"A",AND(OR(CI17=CheckMark,CI17="checked"),CK17=CheckMark,CL17=CheckMark,CM17<>"resolve",CP17=CheckMark,CR17<>"resolve",CS17=CheckMark,OR(CT17=CheckMark,CT17="checked"),CU17<>4,CV17=CheckMark,CX17=CheckMark,DA17<>"resolve",DC17<>"resolve")),IF(Inputs!$C$90=Inputs!$G$90,"good",IF(AND(NT17<>FALSE,NA17<>"resolve",NF17<>"resolve",NK17<>"resolve",NP17<>"resolve"),"good","issue2")),"issue") -> good | D17: A | E17: no | G17: low | H17: done | K17: =Data!Z12 -> 325 | L17: =Data!CF12 -> 0.532 | M17: =Data!BI12 -> 789-12 | N17: =Data!BO12 -> 1.508 | U17: =Data!C12 -> 00:00:00 | W17: =IFERROR(VLOOKUP(Data!S12,Tables!$A$3:$B$18,2,FALSE),0) -> Rear End | X17: =IFERROR(VLOOKUP(Data!CQ12,Tables!$J$3:$L$21,3,FALSE),0) -> Small Veh | Y17: =Data!AF12 -> A | Z17: =SUBSTITUTE(Data!B12,"-","")&"-" -> - | AA17: =Data!X12 -> 28 | AB17: =Data!D12 -> 23 | AC17: =Data!O12*1 -> 1 | AD17: =Data!P12 -> B | AE17: =TRIM(Data!AW12) -> SS | AF17: =Data!AS12 -> BA | AG17: =Data!F12 -> 0 | AH17: =TRIM(Data!CK12) -> 28LA325@ERA | AI17: =Data!CL12 -> 789-12-1-010 | AJ17: =Data!AE12 -> D | AK17: =Data!CN12 -> 0 | AL17: =IFERROR(VLOOKUP(Data!CP12,Tables!BV$3:BW$13,2,FALSE),0) -> Intersection | AM17: =Data!CG12 -> 30.254958 | AN17: =Data!CH12 -> -92.144478 | AO17: =Data!N12 -> C | AQ17: =Data!CC12 -> L | AR17: =IFERROR(VLOOKUP(Data!Q12,Tables!$AP$3:$AQ$10,2,FALSE),"Z") -> Night - SL@I | AS17: =Data!AJ12 -> Y | AT17: =Data!AZ12 -> Y | BX17: =Data!AS12 -> BA | BY17: =IF(AND(JW17<2,MD17="A"),Data!AU12,Data!AT12) -> B | BZ17: =IF(AND(JW17<2,MD17="A"),MID(BX17,3,1),Data!AU12) -> A | CA17: =Data!AW12 -> SS | CB17: =IF(AND(JW17<2,MD17="A"),Data!AY12,Data!AX12) -> S | CC17: =IF(AND(JW17<2,MD17="A"),MID(CA17,3,1),Data!AY12) -> S | CF17: =IF(D17="Z",CheckMark,IF($HO17=Tables!$L$10,IF(DW17=Tables!$L$10,CheckMark,"9"),CheckMark)) -> ✓ | CG17: =IF(D17="Z",CheckMark,IF(DV17=Tables!$B$14,CheckMark,IF(AND($HN17=Tables!$B$14,COUNTIF(Tables!$D$15:$D$22,HW17)=0,NOT(HX17)),"7",CheckMark))) -> ✓ | CH17: =IF(AND(LEN(KX17&KY17)=1,COUNTIF(Tables!Z$185:Z$210,HW17&MQ17)=0),"5",CheckMark) -> ✓ | CI17: ✓ | CJ17: Rear End:Small Veh | CK17: ✓ | CL17: =IF(D17="Z",CheckMark,IF(AND(INDIRECT(DV$388&$GP17)=0,DV17=0),1,IF(AND(INDIRECT(DW$388&$GP17)=0,DW17=0),2,IF(COUNTIF(Tables!Z$3:Z$177,HW17&MQ17)=1,3,CheckMark)))) -> ✓ | CM17: =IF(AND(HZ17="NV",LEN(TRIM(KX17)&TRIM(KY17))<3),CheckMark,IF(AND(HZ17="SV",LEN(TRIM(KX17)&TRIM(KY17))=1),CheckMark,IF(AND(OR(HZ17="MV",HZ17="SE",HZ17="ME"),LEN(TRIM(KX17)&TRIM(KY17))=2),IF(OR(HW17="A",HW17="Z",HW17="Q",HW17="S"),CheckMark,IF(IFERROR(VLOOKUP(HW17,Tables!$D$4:$G$22,4,FALSE)<>VLOOKUP(LEFT(TRIM(KX17&KY17),2),Tables!$AJ$49:$AK$68,2,FALSE),TRUE),IF(COUNTIF(KT17:KU17,"K")>0,CheckMark,"resolve"),CheckMark)),IF(AND(HZ17="ME",LEN(TRIM(KX17)&TRIM(KY17))=1),CheckMark,"resolve")))) -> ✓ | CN17: S | CO17: S | CP17: ✓ | CQ17: 1 1 | CR17: ✓ | CS17: ✓ | CT17: =IF(CS17=CheckMark,CheckMark,"issue "&CS17) -> ✓ | CU17: =IF(D17="Z",CheckMark,IF(AND(COUNTIF(Tables!$AN$19:$AN$22,HW17),HV17<>0,NOT(COUNTIF(Tables!$AN$31:$AN$38,KT17)),NOT(COUNTIF(Tables!$AN$31:$AN$38,KU17)),MQ17<>"A",MQ17<>"B",MQ17<>"C",MC17<>"A",MD17<>"A",NOT(HY17)),"6",IF(AND(COUNTIF(Tables!$AN$4:$AN$16,HW17),HV17<>1),"4",IF(AND(COUNTIF(Tables!$AN$43:$AN$48,HW17),HY17,MP17<>"D"),"8",CheckMark)))) -> ✓ | CV17: ✓ | CW17: 23 | CX17: ✓ | CY17: B | CZ17: A | DA17: =IF(AND(HZ17="NV",LEN(TRIM(SUBSTITUTE(KT17,"Z",""))&TRIM(KU17))<2),CheckMark,IF(AND(OR(HZ17="SV",HZ17="ME"),LEN(TRIM(KT17)&TRIM(KU17))=1),IF(IFERROR(HLOOKUP(IF(KT17="",KU17,KT17),Tables!$CP$1:$DO$22,VLOOKUP(HW17,Tables!$CN$3:$CO$22,2,FALSE),FALSE),TRUE),"resolve",CheckMark),IF(OR(IFERROR(HLOOKUP(KT17,Tables!$CP$1:$DO$22,VLOOKUP(HW17,Tables!$CN$3:$CO$22,2,FALSE),FALSE),TRUE),IFERROR(HLOOKUP(KU17,Tables!$CP$1:$DO$22,VLOOKUP(HW17,Tables!$CN$3:$CO$22,2,FALSE),FALSE),TRUE)),"resolve",CheckMark))) -> ✓ | DB17: 0 | DC17: =IF(OR(IFERROR(VLOOKUP(MQ17,Tables!J$3:N$21,5,FALSE),"")="B",AND(IFERROR(IF(VLOOKUP(LL17,Tables!CA$3:CD$19,4,FALSE)="Maybe",FALSE,VLOOKUP(LL17,Tables!CA$3:CD$19,4,FALSE)),IF(LP17>11,FALSE,TRUE)),COUNTIF(CY17:CZ17,"E")>0),COUNTIF(CY17:CZ17,"G")>0),CheckMark,IF(DB17=IFERROR(VLOOKUP(MQ17,Tables!J$3:N$21,5,FALSE),""),CheckMark,"resolve")) -> ✓ | DK17: X | DM17: =IF(COUNTIF(DQ$377:DQ$381,DQ17)>0,0,COUNTIF(INDIRECT(DQ$389&GP$5):INDIRECT(DQ$389&GP$341),DQ17)) -> 0 | EL17: =IFERROR(VLOOKUP(LL17,Tables!$CA$3:$CC$19,3,TRUE),"U") -> U | EM17: =IF(AND(EJ17<>0,EK17<>0,FH17>VLOOKUP(EL17,Tables!$CA$23:$CC$24,MAX(HV17,IF(AND(AH17<>"",AH17<>0),1,0))+2,FALSE)),"report",CheckMark) -> ✓ | FB17: X | FC17: Z | FH17: 6346.289305 | GP17: 17 | GQ17: X | GR17: Sat23 | GS17: 1900 | GU17: no | GV17: low | GY17: =IF(VLOOKUP(JS17,Outputs!$H$73:$N$84,6)="yes",VLOOKUP(JS17,Outputs!$H$73:$N$84,7),0)+IF(AND(Outputs!$M$85="Yes",OR(JS17="C",JS17="K")),Outputs!$N$85,0) -> 1.847422892 | GZ17: =IFERROR(IF(VLOOKUP(MQ17,Outputs!$A$73:$G$86,6)="yes",VLOOKUP(MQ17,Outputs!$A$73:$G$86,7),0),0) -> 0 | HA17: 0.7282387783 | HB17: =IFERROR(IF(VLOOKUP(MP17,Outputs!$H$86:$N$89,6)="yes",VLOOKUP(MP17,Outputs!$H$86:$N$89,7),0),0) -> 0 | HC17: =IF(AND(JQ17="B",Outputs!F$87="Yes"),Outputs!G$87,0) -> 0 | HD17: =IF(AND(KF17="B",Outputs!F$89="Yes"),Outputs!G$89,0) -> 0 | HF17: =IF($D17="A",IF((IF(D17="A",0,3)+IF(DP17="can't view",2,0)+IF(DQ17="",0,1)+IF(OR(EG17<>"",AND(EJ17<>"",EK17<>"")),1,0)+IF(COUNTA(GH:GH)>10,IF(OR(GH17="",GH17="yes"),0,2),0)+IF(COUNTA(GI:GI)>10,IF(GI17="",0,1),0)+IF(COUNTA(GJ:GJ)>11,IF(GJ17="",0,1),0))>(1+IF(COUNTA(GI:GI)>10,1,0)+IF(COUNTA(GJ:GJ)>11,1,0)),0.77,1)*SUM(HG17:HL17)+2*SQRT(Data!U12+Data!V12)+SUM(GX17:HD17),"") -> 17.64122697 | HG17: =IFERROR(VLOOKUP(KE17,Tables!$AE$3:$AH$9,4,FALSE),0)+IFERROR(VLOOKUP(MS17,Tables!$AE$3:$AH$9,4,FALSE),0) -> 2.32597785 | HH17: =4*(1-COUNTIF(CK17,CheckMark))+4*(1-COUNTIF(CM17,CheckMark))+5*(1-COUNTIF(CP17,CheckMark))+3*(1-COUNTIF(CR17,CheckMark))+IF(Inputs!$C$90=Inputs!$G$90,0,3*(1-COUNTIF(NT17,TRUE))+3*(1-COUNTIF(NA17,CheckMark))) -> 0 | HI17: 3 | HJ17: 4 | HK17: -1 | HL17: =VLOOKUP(IF(FP17=0,JS17,FP17),Tables!$D$3:$F$24,3,FALSE)+VLOOKUP(MQ17,Tables!$M$3:$P$21,4,FALSE) -> 4.739587447 | HN17: Rear End | HO17: Small Veh | HP17: 1.508 | HQ17: 1 | HR17: Night - SL@I | HS17: Intersection | HU17: 1 | HV17: 1 | HW17: B | HX17: FALSE | HY17: FALSE | HZ17: =IF(AND(OR(JW17=1,COUNTIF(Tables!H$3:H$24,HW17)=0),IF(OR(KJ17="Y",TRIM(KJ17)=""),1,0)+IF(OR(KP17="YY",TRIM(KP17)=""),1,0)+IF(OR(KT17="Z",TRIM(KT17)=""),1,0)+IF(OR(KZ17="Y",TRIM(KZ17)=""),1,0)+IF(OR(LD17="Y",TRIM(LD17)=""),1,0)+IF(OR(MC17="Y",TRIM(MC17)=""),1,0)>(3-JM17),IF(OR(KK17="Y",TRIM(KK17)=""),1,0)+IF(OR(KQ17="YY",TRIM(KQ17)=""),1,0)+IF(OR(KU17="Z",TRIM(KU17)=""),1,0)+IF(OR(LA17="Y",TRIM(LA17)=""),1,0)+IF(OR(LE17="Y",TRIM(LE17)=""),1,0)+IF(OR(MD17="Y",TRIM(MD17)=""),1,0)>(3-JM17)),"NV",IF(OR(JW17=1,COUNTIF(Tables!H$3:H$24,HW17)=0),IF(OR(COUNTIF(KT17:KU17,"R"),MQ17="E",MQ17="J",(IF(OR(KK17="Y",TRIM(KK17)=""),1,0)+IF(OR(KQ17="YY",TRIM(KQ17)=""),1,0)+IF(OR(KU17="Z",TRIM(KU17)=""),1,0)+IF(OR(LA17="Y",TRIM(LA17)=""),1,0)+IF(OR(LE17="Y",TRIM(LE17)=""),1,0)+IF(OR(MD17="Y",TRIM(MD17)=""),1,0))>4,IF(KU17="",0,1)+IF(KY17="",0,1)+IF(OR(MU17="",MU17="Y"),0,1)=0),"SV","SE"),IF(AND(JW17<>0,JW17<>1,COUNTIF(Tables!H$3:H$24,HW17)=1,OR(IF(OR(KJ17="Y",TRIM(KJ17)=""),1,0)+IF(OR(KP17="YY",TRIM(KP17)=""),1,0)+IF(OR(KT17="Z",TRIM(KT17)=""),1,0)+IF(OR(KZ17="Y",TRIM(KZ17)=""),1,0)+IF(OR(LD17="Y",TRIM(LD17)=""),1,0)+IF(OR(MC17="Y",TRIM(MC17)=""),1,0)>(3-JM17),IF(OR(KK17="Y",TRIM(KK17)=""),1,0)+IF(OR(KQ17="YY",TRIM(KQ17)=""),1,0)+IF(OR(KU17="Z",TRIM(KU17)=""),1,0)+IF(OR(LA17="Y",TRIM(LA17)=""),1,0)+IF(OR(LE17="Y",TRIM(LE17)=""),1,0)+IF(OR(MD17="Y",TRIM(MD17)=""),1,0)>(3-JM17))),"ME","MV"))) -> MV | IA17: Rear End | IB17: Rear End | IY17: Nope | JA17: =IF(Data!A12=0,"",Data!A12*1) -> 2019 | JB17: =Data!B12 -> 0 | JC17: =Data!C12 -> 00:00:00 | JD17: 23 | JE17: =Data!E12 -> A | JF17: 0 | JG17: =IF(NL17="",Data!G12,NL17) -> A | JI17: =Data!I12 -> 0 | JJ17: =Data!J12 -> 1 | JK17: =Data!K12 -> FR | JL17: =IF(NQ17="",Data!L12,NQ17) -> 0 | JM17: =IF(DU17<>"",DU17,Data!M12) -> 1 | JN17: =Data!N12 -> C | JO17: 1 | JP17: =Data!P12 -> B | JQ17: =IFERROR(VLOOKUP(HR17,Tables!$AQ$3:$AR$10,2,FALSE),"") -> D | JS17: =IFERROR(VLOOKUP(HN17,Tables!$B$3:$D$18,3,FALSE),"") -> B | JU17: =Data!U12 -> 1 | JV17: =Data!V12 -> 0 | JW17: =Data!W12 -> 2 | JX17: =Data!X12 -> 28 | JZ17: =Data!Z12 -> 325 | KA17: =Data!AA12 -> A | KB17: =Data!AB12 -> A | KC17: =Data!AC12 -> C | KD17: =Data!AD12 -> 0 | KE17: =Data!AE12 -> D | KF17: =Data!AF12 -> A | KG17: =Data!AG12 -> A | KH17: =Data!AH12 ->  | KI17: =Data!AI12 -> B | KJ17: =Data!AJ12 -> Y | KK17: =Data!AK12 -> A | KL17: =Data!AL12 -> 0 | KM17: =Data!AM12 -> 0 | KN17: =TRIM(Data!AN12) -> S | KO17: =TRIM(Data!AO12) -> S | KP17: =Data!AP12 -> S | KQ17: =Data!AQ12 -> S | KR17: =Data!AR12 -> 45 | KT17: =IF(EA17<>"",VLOOKUP(EA17,Tables!$DW$3:$DX$28,2,FALSE),TRIM(BY17)) -> B | KU17: =IF(EC17<>"",VLOOKUP(EC17,Tables!$DW$3:$DX$28,2,FALSE),TRIM(BZ17)) -> A | KV17: =Data!AV12 -> R | KX17: S | KY17: S | KZ17: =Data!AZ12 -> Y | LA17: =Data!BA12 -> K | LB17: =IF(NG17="",Data!BB12,NG17) -> A | LC17: =IF(NH17="",Data!BC12,NH17) -> A | LD17: =IF(NB17="",Data!BD12,NB17) -> S | LE17: =IF(NC17="",Data!BE12,NC17) -> U | LF17: =Data!BF12 ->  | LH17: =Data!BH12 -> 9900 | LI17: =Data!BI12 -> 789-12 | LK17: =Data!BK12 -> 17 | LL17: =Data!BL12 -> 6 | LM17: =Data!BM12 -> 2.04 | LN17: =Data!BN12 -> 1.39 | LO17: =IF($LO$1=$HP$3,HP17,Data!BO12) -> 1.508 | LP17: =Data!BP12 -> 0 | LQ17: =Data!BQ12 -> 4 | LS17: =Data!BS12 -> 42 | LT17: =Data!BT12 -> 0 | LW17: =Data!BW12 -> 325 | LZ17: =Data!BZ12 -> 3 | MA17: =Data!CA12 -> A | MB17: =Data!CB12 -> B | MC17: =Data!CC12 -> L | MD17: =Data!CD12 -> P | ME17: =Data!CE12 -> 4 | MF17: =IF($MF$1=$HP$3,HP17,Data!CF12) -> 0.532 | MG17: 30.254958 | MH17: -92.144478 | MI17: =Data!CI12 -> 23:27:00 | MK17: 28LA325@ERA | ML17: =Data!CL12 -> 789-12-1-010 | MM17: =Data!CM12 -> 1.508 | MN17: 0 | MP17: =IFERROR(VLOOKUP(HS17,Tables!BW$3:BX$13,2,FALSE),"") -> A | MQ17: =IFERROR(VLOOKUP(HO17,Tables!$L$3:$M$21,2,FALSE),"") -> S | MR17: =IF(NM17="",IF(OR(AND(LD17<>"S",LD17<>"U",LD17<>"Y"),AND(LE17<>"S",LE17<>"U",LE17<>"Y",LE17<>" "),MQ17="F"),"O",Data!CR12),NM17) -> R | MS17: =Data!CS12 -> E | NA17: =IF(OR(NB17<>"",NC17<>""),CheckMark,IF(OR(AND(NB17="",NC17="",NO17="R",COUNTIF(LD17:LE17,"")+COUNTIF(LD17:LE17,"S")+COUNTIF(LD17:LE17,"U")+COUNTIF(LD17:LE17,"Y")+COUNTIF(LD17:LE17,"Z")=IF(AND(HW17="A",TRIM(LE17)=""),1,2)),AND(OR(HW17="A",HW17="Z"),MP17="D",COUNTIF(LD17:LE17,"A")+COUNTIF(LD17:LE17,"B")+COUNTIF(LD17:LE17,"Q")+COUNTIF(LD17:LE17,"R")=0)),"resolve",IF(AND(OR(HW17="C",HW17="K"),IFERROR(IF(VLOOKUP(LL17,Tables!CA$3:CD$19,4,FALSE)="Maybe",FALSE,VLOOKUP(LL17,Tables!CA$3:CD$19,4,FALSE)),IF(LP17>11,FALSE,TRUE))),CheckMark,IF(AND(HW17="J",CY17=CZ17,COUNTIF(LD17:LE17,"K")),IF(AND(HW17="A",COUNTIF(LD17:LE17,"L")>0),IF(JO17=1,CheckMark,"resolve"),CheckMark),IF(AND(COUNTIF(Tables!$EA$3:$EA$54,HW17)+COUNTIF(Tables!$EB$3:$EB$54,LD17)+COUNTIF(Tables!$EB$3:$EB$54,LE17)>0,COUNTIF(Tables!$ED$3:$ED$54,HW17&LD17)+COUNTIF(Tables!$ED$3:$ED$54,HW17&LE17)<1),IF(AND(HW17="B",COUNTIF(LD17:LE17,"H"),COUNTIF(KT17:KU17,"P")),CheckMark,IF(AND(MR17="O",COUNTIF(LD17:LE17,"Q")+COUNTIF(LD17:LE17,"R")>0),CheckMark,"resolve")),CheckMark))))) -> resolve | ND17: S | NE17: U | NF17: ✓ | NI17: A | NJ17: A | NK17: ✓ | NN17: A | NO17: R | NP17: ✓ | NR17: 0 | NS17: =IFERROR(VLOOKUP(TRIM(KN17),Tables!$DR$3:$DU$46,4,FALSE),0)+IFERROR(VLOOKUP(TRIM(KO17),Tables!$DR$3:$DU$46,4,FALSE),0)+IFERROR(VLOOKUP(TRIM(KP17),Tables!$DR$3:$DU$46,4,FALSE),0)+IFERROR(VLOOKUP(TRIM(KQ17),Tables!$DR$3:$DU$46,4,FALSE),0) -> 0 | NT17: TRUE | NU17: =IF(AND(FN17<>FO17,FO17<>"Z"),FO17,IF(OR(COUNTIF(LD17:LE17,"T")>0,COUNTIF(KT17:KU17,"D")>0),"Q",IF(OR(FO17="A",JW17=1,MQ17="B",MQ17="E",MQ17="G",MQ17="H",MQ17="J",MQ17="N",MQ17="P",MQ17="T"),"A",IF(IFERROR(VLOOKUP(LEFT(TRIM(KX17&KY17),2),Tables!$AJ$49:$AK$68,2,FALSE),"A")="O",IF(COUNTIF(KT17:KU17,"I")+COUNTIF(KT17:KU17,"M")+COUNTIF(KT17:KU17,"O")=2,"P",IF(AND(COUNTIF(KT17:KU17,"I")+COUNTIF(KT17:KU17,"M")+COUNTIF(KT17:KU17,"O")=1,COUNTIF(KT17:KU17,"J")+COUNTIF(KT17:KU17,"N")+COUNTIF(KT17:KU17,"P")=1),"N",IF(AND(COUNTIF(KT17:KU17,"I")+COUNTIF(KT17:KU17,"M")+COUNTIF(KT17:KU17,"O")=1,COUNTIF(KT17:KU17,"B")=1),"F",IF(AND(COUNTIF(KT17:KU17,"C")+COUNTIF(KT17:KU17,"E")+COUNTIF(KT17:KU17,"F")>0,FO17<>"C",JO17=0,MP17<>"A"),"K",IF(AND(COUNTIF(KT17:KU17,"I")+COUNTIF(KT17:KU17,"M")+COUNTIF(KT17:KU17,"O")=1,COUNTIF(KT17:KU17,"A")+COUNTIF(KT17:KU17,"K")+COUNTIF(KT17:KU17,"M")+COUNTIF(KT17:KU17,"N")+COUNTIF(KT17:KU17,"J")+COUNTIF(KT17:KU17,"P")+COUNTIF(KT17:KU17,"Q")>0),"M",FO17))))),IF(AND(COUNTIF(KT17:KU17,"I")+COUNTIF(KT17:KU17,"M")+COUNTIF(KT17:KU17,"O")=1,COUNTIF(KT17:KU17,"A")+COUNTIF(KT17:KU17,"K")+COUNTIF(KT17:KU17,"M")+COUNTIF(KT17:KU17,"N")+COUNTIF(KT17:KU17,"J")+COUNTIF(KT17:KU17,"P")+COUNTIF(KT17:KU17,"Q")>0),"M",IF(KX17=KY17,IF(AND(JO17=0,MP17<>"A",MP17<>"B",MP17<>"C"),IF(COUNTIF(LD17:LE17,"D")>0,"B",IF(OR(COUNTIF(LD17:LE17,"C")+COUNTIF(LD17:LE17,"F")>0,COUNTIF(KT17:KU17,"H")>0),"J",FO17)),IF(OR(AND(COUNTIF(KU17,"J")+COUNTIF(KU17,"N")+COUNTIF(KU17,"P")=1,COUNTIF(KT17,"A")+COUNTIF(KT17,"B")+COUNTIF(KT17,"E")+COUNTIF(KT17,"F")+COUNTIF(KT17,"H")+COUNTIF(KT17,"K")+COUNTIF(KT17,"M")+COUNTIF(KT17,"N")+COUNTIF(KT17,"O")+COUNTIF(KT17,"P")+COUNTIF(KT17,"Q")=1,FO17<>"I"),AND(COUNTIF(KT17,"J")+COUNTIF(KT17,"N")+COUNTIF(KT17,"P")=1,COUNTIF(KU17,"A")+COUNTIF(KU17,"B")+COUNTIF(KU17,"E")+COUNTIF(KU17,"F")+COUNTIF(KU17,"H")+COUNTIF(KU17,"K")+COUNTIF(KU17,"M")+COUNTIF(KU17,"N")+COUNTIF(KU17,"O")+COUNTIF(KU17,"P")+COUNTIF(KU17,"Q")=1,FO17<>"I")),"L",IF(OR(AND(COUNTIF(KU17,"I")+COUNTIF(KU17,"M")+COUNTIF(KU17,"O")=1,COUNTIF(KT17,"A")+COUNTIF(KT17,"B")+COUNTIF(KT17,"E")+COUNTIF(KT17,"F")+COUNTIF(KT17,"H")+COUNTIF(KT17,"K")+COUNTIF(KT17,"M")+COUNTIF(KT17,"N")+COUNTIF(KT17,"O")+COUNTIF(KT17,"P")+COUNTIF(KT17,"Q")=1),AND(COUNTIF(KT17,"I")+COUNTIF(KT17,"M")+COUNTIF(KT17,"O")=1,COUNTIF(KU17,"A")+COUNTIF(KU17,"B")+COUNTIF(KU17,"E")+COUNTIF(KU17,"F")+COUNTIF(KU17,"H")+COUNTIF(KU17,"K")+COUNTIF(KU17,"M")+COUNTIF(KU17,"N")+COUNTIF(KU17,"O")+COUNTIF(KU17,"P")+COUNTIF(KU17,"Q")=1)),"E",IF(OR(COUNTIF(KT17:KU17,"I")+COUNTIF(KT17:KU17,"M")+COUNTIF(KT17:KU17,"O")=2,COUNTIF(KT17:KU17,"J")+COUNTIF(KT17:KU17,"N")+COUNTIF(KT17:KU17,"P")=2),"J",FO17)))),IF(KX17<>KY17,IF(COUNTIF(LD17:LE17,"K")>0,"G",IF(AND(COUNTIF(LD17:LE17,"H")+COUNTIF(LD17:LE17,"K")+COUNTIF(LD17:LE17,"S")+COUNTIF(LD17:LE17,"Y")+COUNTIF(LD17:LE17,"Z")>0,COUNTIF(KT17:KU17,"J")+COUNTIF(KT17:KU17,"N")+COUNTIF(KT17:KU17,"P")=1,KT17<>KU17),IFERROR(VLOOKUP(KX17&KY17,Tables!$AJ$49:$AL$63,3,FALSE),FO17),IF(AND(OR(FO17="D",FO17="Z"),COUNTIF(KT17:KU17,"J")),"H",IF(OR(FO17="G",FO17="H",FO17="I"),FO17,"D"))))))))))) -> 0
